Workbook

Sheet INTRO
C1: Cette version sera utilisée par les pays endémiques à la Loase
B2: Formulaire de Rapport Commun v.3.1 (L)
B4: Le but de ce formulaire de rapport commun - disponible sous forme de fichier Excel - est de mettre à disposition des autorités sanitaires nationales et des gestionnaires de données un outil standardisé qui réponde aux défis, facilite l'intégration et par conséquent contribue à améliorer la gestion de programme. Ce formulaire tend à standardiser le rapport de résultats des programmes nationaux, améliore la disponibilité et la coordination des données de chimioprévention à travers les Bureaux des Régions de l'Organisation mondiale de la Santé. Les autorités nationales sont priées de compléter ce formulaire et de le soumettre à l'Organisation mondiale de la Santé avant le 15 août de l'année en cours pour rapporter les données des activités de chimioprévention mises en oeuvre l'année précédente.
B6: Structure de l'application (feuilles de travail) :
B8: INTRO | C8: Cette feuille contient des instructions pour compléter le formulaire de rapport commun et des informations sur le statut de la chimioprévention pour les maladies d'endémie du pays.
B9: COUNTRY_INFO | C9: Cette feuille contient des informations sur la structure administrative du pays, la population par groupe d'âge, le statut d'endémicité pour chaque maladie, la population devant être traitée par chimioprévention, les interventions prévues et les interventions mises en oeuvre.
B10: MDA1, MDA2, MDA3, T1, T2 et T3 | C10: Ces feuilles contiennent des informations sur l'endémicité des districts ciblés pour le traitement aux médicaments spécifiques pour la chimioprévention, les plans de traitement, et le nombre de personnes traitées par groupe d'âge.
B11: DISTRICT | C11: Cette feuille contient un résumé sur les personnes traitées, par maladie, au niveau de mise en oeuvre. Si les données par genre (sexe) sont disponibles, merci de les saisir.
B12: SUMMARY | C12: Cette feuille contient un résumé sur les personnes traitées, par maladie et par type d'intervention de chimioprévention. Avant de générer le rapport (exécuter macro), veuillez sélectionner la maladie pour laquelle vous souhaitez un rapport. Veuillez suivre le même processus pour générer les divers rapports. Cette feuille doit être imprimée et soumise comme formulaire de rapport commun (voir les instructions pour la soumission du formulaire sous la feuille SUMMARY).
B14: Instructions pour la saisie des données
B16: La plupart des cellules des feuilles de travail mentionnées ci-dessus contiennent des formules calculées automatiquement en fonction du protocole de traitement recommandé par l'OMS pour chaque maladie. Voir : http://www.who.int/neglected_diseases/preventive_chemotherapy/pct_manual/en/index.html
B18: Veuillez entrer vos données dans les cellules en fonction de leur code de couleur :
C20: Blanc - la cellule n'est pas protégée. Veuillez entrer la valeur de l'indicateur demandé.
C22: Jaune - la cellule est protégée et inclut le nom de l'indicateur. Aucune entrée de données requise.
C24: Orange - la cellule n'est pas protégée et contient un menu déroulant. Veuillez sélectionner la valeur dans le menu déroulant.
C27: Vert - la cellule n'est pas protégée et contient des formules. Veuillez changer la valeur indiquée uniquement si vos données sont différentes de celles calculées automatiquement.
C30: Bleu - la cellule est protégée et contient des formules. Aucune entrée de données requise.
B32: Données pays
B34: PAYS | E34: Cameroon
B36: Année de rapport des données | E36: 2018
B38: Le pays est-il endémique à la filariose lymphatique (FL) ? | E38: Endémique
B40: Le pays est-il endémique à l'onchocercose (ONCHO) ? | E40: Endémique
B42: Le pays est-il endémique aux géohelminthiases (STH) ? | E42: Endémique
B44: Le pays est-il endémique à la schistosomiase (SCH) ? | E44: Endémique
B46: Combien d'unités administratives compte le pays ? | E46: 189
B47: Si les données démographiques par groupe d'âge ne sont pas disponibles au second niveau administratif, veuillez entrer la proportion (%) de population, par groupe d'âge, du pays. Si les données sont disponibles, veuillez laisser les cellules vierges.
B48: 1-4 ans | C48: Enfants d'âge pré-scolaire (EAPréS) | E48: 0.1292
B49: 5-14 ans | C49: Enfants d'âge scolaire (EAS) | E49: 0.267
B50: 15 ans et plus | C50: Adultes | E50: 0.564

Sheet COUNTRY_INFO
A1: INFORMATIONS PAYS
A2: Structure administrative, population par groupe d'âge, statut d'endémicité, interventions planifiées et interventions mises en oeuvre
A4: TOTAL | D4: =SUM(D$9:D$1000) -> 24863338 | E4: =SUM(E$9:E$1000) -> 3212342 | F4: =SUM(F$9:F$1000) -> 6666871 | G4: =SUM(G$9:G$1000) -> 14033565 | M4: =SUM(M$9:M$1000) -> 1621568 | N4: =SUM(N$9:N$1000) -> 11479661 | O4: =SUM(O$9:O$1000) -> 9879213 | P4: =SUM(P$9:P$1000) -> 4252095.32
A6: Structure administrative du pays | D6: Population | H6: Endémicité | M6: Population nécessitant la CP | Q6: Nombre de tournées de traitement prévues pour l'année | U6: Mise en oeuvre de la chimioprévention
A7: Pays | B7: Région/Département | C7: District | D7: Total | E7: EAPréS | F7: EAS | G7: Adultes | H7: FL | I7: Oncho | J7: STH | K7: SCH | L7: Loa | M7: FL | N7: Oncho | O7: STH | P7: SCH | Q7: FL | R7: Oncho | S7: STH | T7: SCH | U7: TOURNEE 1 | V7: TOURNEE 2 | W7: IU_ID | X7: IU_Name
A9: =IF(INTRO!$E$34<>0,INTRO!$E$34,"") -> Cameroon | B9: ADAMAOUA | C9: BANKIM | D9: 106903 | E9: =IF(INTRO!$E$48="","",ROUND($D9*INTRO!$E$48,0)) -> 13812 | F9: =IF(INTRO!$E$49="","",ROUND($D9*INTRO!$E$49,0)) -> 28543 | G9: =IF(INTRO!$E$50="","",ROUND($D9*INTRO!$E$50,0)) -> 60293 | H9: 99 | I9: 1 | J9: 2 | K9: 2 | L9: 1 | M9: =IF(INTRO!$E$38="Endémique", IF($H9>0, IF($H9=4,"Inconnu", IF($H9=99,"Interrompu", $D9)), 0),"Non requis") -> Interrompu | N9: =IF(INTRO!$E$40="Endémique", IF($I9>0, IF($I9=4,"Inconnu",IF($I9=99,"Interrompu", $D9)), 0),"Non requis") -> 106903 | O9: =IF(INTRO!$E$42="Endémique", IF(AND($J9>1,$J9<5), IF($J9=4, "Inconnu", E9+F9), 0),"Non requis") -> 42355 | P9: =IF(INTRO!$E$44="Endémique", IF(AND($K9>0,$K9<5), IF($K9=4,"Inconnu", IF($K9=1, $F9*0.33, IF($K9=2, $F9*0.5+$G9*0.2, SUM(F9:G9)))), 0),"Non requis") -> 26330.1 | Q9: 0 | R9: 1 | S9: 1 | T9: 1 | U9: MDA3 (IVM) | W9: 7420 | X9: BANKIM | Z9: =X9=C9 -> TRUE
A10: =IF(INTRO!$E$34<>0,INTRO!$E$34,"") -> Cameroon | B10: ADAMAOUA | C10: BANYO | D10: 147039 | E10: =IF(INTRO!$E$48="","",ROUND($D10*INTRO!$E$48,0)) -> 18997 | F10: =IF(INTRO!$E$49="","",ROUND($D10*INTRO!$E$49,0)) -> 39259 | G10: =IF(INTRO!$E$50="","",ROUND($D10*INTRO!$E$50,0)) -> 82930 | H10: 99 | I10: 1 | J10: 2 | K10: 2 | L10: 1 | M10: =IF(INTRO!$E$38="Endémique", IF($H10>0, IF($H10=4,"Inconnu", IF($H10=99,"Interrompu", $D10)), 0),"Non requis") -> Interrompu | N10: =IF(INTRO!$E$40="Endémique", IF($I10>0, IF($I10=4,"Inconnu",IF($I10=99,"Interrompu", $D10)), 0),"Non requis") -> 147039 | O10: =IF(INTRO!$E$42="Endémique", IF(AND($J10>1,$J10<5), IF($J10=4, "Inconnu", E10+F10), 0),"Non requis") -> 58256 | P10: =IF(INTRO!$E$44="Endémique", IF(AND($K10>0,$K10<5), IF($K10=4,"Inconnu", IF($K10=1, $F10*0.33, IF($K10=2, $F10*0.5+$G10*0.2, SUM(F10:G10)))), 0),"Non requis") -> 36215.5 | Q10: 0 | R10: 1 | S10: 1 | T10: 1 | U10: MDA3 (IVM) | V10: T2 (PZQ) | W10: 7421 | X10: BANYO | Z10: =X10=C10 -> TRUE
A11: =IF(INTRO!$E$34<>0,INTRO!$E$34,"") -> Cameroon | B11: ADAMAOUA | C11: DJOHONG | D11: 56356 | E11: =IF(INTRO!$E$48="","",ROUND($D11*INTRO!$E$48,0)) -> 7281 | F11: =IF(INTRO!$E$49="","",ROUND($D11*INTRO!$E$49,0)) -> 15047 | G11: =IF(INTRO!$E$50="","",ROUND($D11*INTRO!$E$50,0)) -> 31785 | H11: 0 | I11: 1 | J11: 2 | K11: 2 | L11: 1 | M11: =IF(INTRO!$E$38="Endémique", IF($H11>0, IF($H11=4,"Inconnu", IF($H11=99,"Interrompu", $D11)), 0),"Non requis") -> 0 | N11: =IF(INTRO!$E$40="Endémique", IF($I11>0, IF($I11=4,"Inconnu",IF($I11=99,"Interrompu", $D11)), 0),"Non requis") -> 56356 | O11: =IF(INTRO!$E$42="Endémique", IF(AND($J11>1,$J11<5), IF($J11=4, "Inconnu", E11+F11), 0),"Non requis") -> 22328 | P11: =IF(INTRO!$E$44="Endémique", IF(AND($K11>0,$K11<5), IF($K11=4,"Inconnu", IF($K11=1, $F11*0.33, IF($K11=2, $F11*0.5+$G11*0.2, SUM(F11:G11)))), 0),"Non requis") -> 13880.5 | Q11: 0 | R11: 1 | S11: 1 | T11: 1 | U11: MDA3 (IVM) | W11: 7422 | X11: DJOHONG | Z11: TRUE
A12: =IF(INTRO!$E$34<>0,INTRO!$E$34,"") -> Cameroon | B12: ADAMAOUA | C12: MEIGANGA | D12: 151282 | E12: =IF(INTRO!$E$48="","",ROUND($D12*INTRO!$E$48,0)) -> 19546 | F12: =IF(INTRO!$E$49="","",ROUND($D12*INTRO!$E$49,0)) -> 40392 | G12: =IF(INTRO!$E$50="","",ROUND($D12*INTRO!$E$50,0)) -> 85323 | H12: 1 | I12: 1 | J12: 2 | K12: 2 | L12: 1 | M12: =IF(INTRO!$E$38="Endémique", IF($H12>0, IF($H12=4,"Inconnu", IF($H12=99,"Interrompu", $D12)), 0),"Non requis") -> 151282 | N12: =IF(INTRO!$E$40="Endémique", IF($I12>0, IF($I12=4,"Inconnu",IF($I12=99,"Interrompu", $D12)), 0),"Non requis") -> 151282 | O12: =IF(INTRO!$E$42="Endémique", IF(AND($J12>1,$J12<5), IF($J12=4, "Inconnu", E12+F12), 0),"Non requis") -> 59938 | P12: =IF(INTRO!$E$44="Endémique", IF(AND($K12>0,$K12<5), IF($K12=4,"Inconnu", IF($K12=1, $F12*0.33, IF($K12=2, $F12*0.5+$G12*0.2, SUM(F12:G12)))), 0),"Non requis") -> 37260.6 | Q12: 1 | R12: 1 | S12: 1 | T12: 1 | U12: MDA1 (IVM+ALB) | W12: 7423 | X12: MEIGANGA | Z12: TRUE
A13: =IF(INTRO!$E$34<>0,INTRO!$E$34,"") -> Cameroon | B13: ADAMAOUA | C13: NGAOUNDAL | D13: 83120 | E13: =IF(INTRO!$E$48="","",ROUND($D13*INTRO!$E$48,0)) -> 10739 | F13: =IF(INTRO!$E$49="","",ROUND($D13*INTRO!$E$49,0)) -> 22193 | G13: =IF(INTRO!$E$50="","",ROUND($D13*INTRO!$E$50,0)) -> 46880 | H13: 0 | I13: 1 | J13: 2 | K13: 2 | L13: 1 | M13: =IF(INTRO!$E$38="Endémique", IF($H13>0, IF($H13=4,"Inconnu", IF($H13=99,"Interrompu", $D13)), 0),"Non requis") -> 0 | N13: =IF(INTRO!$E$40="Endémique", IF($I13>0, IF($I13=4,"Inconnu",IF($I13=99,"Interrompu", $D13)), 0),"Non requis") -> 83120 | O13: =IF(INTRO!$E$42="Endémique", IF(AND($J13>1,$J13<5), IF($J13=4, "Inconnu", E13+F13), 0),"Non requis") -> 32932 | P13: =IF(INTRO!$E$44="Endémique", IF(AND($K13>0,$K13<5), IF($K13=4,"Inconnu", IF($K13=1, $F13*0.33, IF($K13=2, $F13*0.5+$G13*0.2, SUM(F13:G13)))), 0),"Non requis") -> 20472.5 | Q13: 0 | R13: 1 | S13: 1 | T13: 1 | U13: MDA3 (IVM) | W13: 7424 | X13: NGAOUNDAL | Z13: TRUE
A14: =IF(INTRO!$E$34<>0,INTRO!$E$34,"") -> Cameroon | B14: ADAMAOUA | C14: NGAOUNDERE RURAL | D14: 213843 | E14: =IF(INTRO!$E$48="","",ROUND($D14*INTRO!$E$48,0)) -> 27629 | F14: =IF(INTRO!$E$49="","",ROUND($D14*INTRO!$E$49,0)) -> 57096 | G14: =IF(INTRO!$E$50="","",ROUND($D14*INTRO!$E$50,0)) -> 120607 | H14: 99 | I14: 1 | J14: 2 | K14: 2 | L14: 1 | M14: =IF(INTRO!$E$38="Endémique", IF($H14>0, IF($H14=4,"Inconnu", IF($H14=99,"Interrompu", $D14)), 0),"Non requis") -> Interrompu | N14: =IF(INTRO!$E$40="Endémique", IF($I14>0, IF($I14=4,"Inconnu",IF($I14=99,"Interrompu", $D14)), 0),"Non requis") -> 213843 | O14: =IF(INTRO!$E$42="Endémique", IF(AND($J14>1,$J14<5), IF($J14=4, "Inconnu", E14+F14), 0),"Non requis") -> 84725 | P14: =IF(INTRO!$E$44="Endémique", IF(AND($K14>0,$K14<5), IF($K14=4,"Inconnu", IF($K14=1, $F14*0.33, IF($K14=2, $F14*0.5+$G14*0.2, SUM(F14:G14)))), 0),"Non requis") -> 52669.4 | Q14: 0 | R14: 1 | S14: 1 | T14: 1 | U14: MDA3 (IVM) | V14: T2 (PZQ) | W14: 7425 | X14: NGAOUNDERE RURAL | Z14: TRUE
A15: =IF(INTRO!$E$34<>0,INTRO!$E$34,"") -> Cameroon | B15: ADAMAOUA | C15: NGAOUNDERE URBAIN | D15: 294679 | E15: =IF(INTRO!$E$48="","",ROUND($D15*INTRO!$E$48,0)) -> 38073 | F15: =IF(INTRO!$E$49="","",ROUND($D15*INTRO!$E$49,0)) -> 78679 | G15: =IF(INTRO!$E$50="","",ROUND($D15*INTRO!$E$50,0)) -> 166199 | H15: 1 | I15: 1 | J15: 2 | K15: 2 | L15: 1 | M15: =IF(INTRO!$E$38="Endémique", IF($H15>0, IF($H15=4,"Inconnu", IF($H15=99,"Interrompu", $D15)), 0),"Non requis") -> 294679 | N15: =IF(INTRO!$E$40="Endémique", IF($I15>0, IF($I15=4,"Inconnu",IF($I15=99,"Interrompu", $D15)), 0),"Non requis") -> 294679 | O15: =IF(INTRO!$E$42="Endémique", IF(AND($J15>1,$J15<5), IF($J15=4, "Inconnu", E15+F15), 0),"Non requis") -> 116752 | P15: =IF(INTRO!$E$44="Endémique", IF(AND($K15>0,$K15<5), IF($K15=4,"Inconnu", IF($K15=1, $F15*0.33, IF($K15=2, $F15*0.5+$G15*0.2, SUM(F15:G15)))), 0),"Non requis") -> 72579.3 | Q15: 1 | R15: 1 | S15: 1 | T15: 1 | U15: MDA1 (IVM+ALB) | W15: 7426 | X15: NGAOUNDERE URBAIN | Z15: TRUE
A16: =IF(INTRO!$E$34<>0,INTRO!$E$34,"") -> Cameroon | B16: ADAMAOUA | C16: TIBATI | D16: 100361 | E16: =IF(INTRO!$E$48="","",ROUND($D16*INTRO!$E$48,0)) -> 12967 | F16: =IF(INTRO!$E$49="","",ROUND($D16*INTRO!$E$49,0)) -> 26796 | G16: =IF(INTRO!$E$50="","",ROUND($D16*INTRO!$E$50,0)) -> 56604 | H16: 0 | I16: 1 | J16: 2 | K16: 2 | L16: 1 | M16: =IF(INTRO!$E$38="Endémique", IF($H16>0, IF($H16=4,"Inconnu", IF($H16=99,"Interrompu", $D16)), 0),"Non requis") -> 0 | N16: =IF(INTRO!$E$40="Endémique", IF($I16>0, IF($I16=4,"Inconnu",IF($I16=99,"Interrompu", $D16)), 0),"Non requis") -> 100361 | O16: =IF(INTRO!$E$42="Endémique", IF(AND($J16>1,$J16<5), IF($J16=4, "Inconnu", E16+F16), 0),"Non requis") -> 39763 | P16: =IF(INTRO!$E$44="Endémique", IF(AND($K16>0,$K16<5), IF($K16=4,"Inconnu", IF($K16=1, $F16*0.33, IF($K16=2, $F16*0.5+$G16*0.2, SUM(F16:G16)))), 0),"Non requis") -> 24718.8 | Q16: 0 | R16: 1 | S16: 1 | T16: 1 | U16: MDA3 (IVM) | W16: 7427 | X16: TIBATI | Z16: TRUE
A17: =IF(INTRO!$E$34<>0,INTRO!$E$34,"") -> Cameroon | B17: ADAMAOUA | C17: TIGNERE | D17: 120746 | E17: =IF(INTRO!$E$48="","",ROUND($D17*INTRO!$E$48,0)) -> 15600 | F17: =IF(INTRO!$E$49="","",ROUND($D17*INTRO!$E$49,0)) -> 32239 | G17: =IF(INTRO!$E$50="","",ROUND($D17*INTRO!$E$50,0)) -> 68101 | H17: 1 | I17: 1 | J17: 2 | K17: 2 | L17: 0 | M17: =IF(INTRO!$E$38="Endémique", IF($H17>0, IF($H17=4,"Inconnu", IF($H17=99,"Interrompu", $D17)), 0),"Non requis") -> 120746 | N17: =IF(INTRO!$E$40="Endémique", IF($I17>0, IF($I17=4,"Inconnu",IF($I17=99,"Interrompu", $D17)), 0),"Non requis") -> 120746 | O17: =IF(INTRO!$E$42="Endémique", IF(AND($J17>1,$J17<5), IF($J17=4, "Inconnu", E17+F17), 0),"Non requis") -> 47839 | P17: =IF(INTRO!$E$44="Endémique", IF(AND($K17>0,$K17<5), IF($K17=4,"Inconnu", IF($K17=1, $F17*0.33, IF($K17=2, $F17*0.5+$G17*0.2, SUM(F17:G17)))), 0),"Non requis") -> 29739.7 | Q17: 1 | R17: 1 | S17: 1 | T17: 1 | U17: MDA1 (IVM+ALB) | V17: T2 (PZQ) | W17: 7428 | X17: TIGNERE | Z17: TRUE
A18: =IF(INTRO!$E$34<>0,INTRO!$E$34,"") -> Cameroon | B18: CENTRE | C18: AKONOLINGA | D18: 84809 | E18: =IF(INTRO!$E$48="","",ROUND($D18*INTRO!$E$48,0)) -> 10957 | F18: =IF(INTRO!$E$49="","",ROUND($D18*INTRO!$E$49,0)) -> 22644 | G18: =IF(INTRO!$E$50="","",ROUND($D18*INTRO!$E$50,0)) -> 47832 | H18: 0 | I18: 4 | J18: 2 | K18: 1 | L18: 1 | M18: =IF(INTRO!$E$38="Endémique", IF($H18>0, IF($H18=4,"Inconnu", IF($H18=99,"Interrompu", $D18)), 0),"Non requis") -> 0 | N18: =IF(INTRO!$E$40="Endémique", IF($I18>0, IF($I18=4,"Inconnu",IF($I18=99,"Interrompu", $D18)), 0),"Non requis") -> Inconnu | O18: =IF(INTRO!$E$42="Endémique", IF(AND($J18>1,$J18<5), IF($J18=4, "Inconnu", E18+F18), 0),"Non requis") -> 33601 | P18: =IF(INTRO!$E$44="Endémique", IF(AND($K18>0,$K18<5), IF($K18=4,"Inconnu", IF($K18=1, $F18*0.33, IF($K18=2, $F18*0.5+$G18*0.2, SUM(F18:G18)))), 0),"Non requis") -> 7472.52 | Q18: 0 | R18: 0 | S18: 1 | T18: 0 | W18: 7429 | X18: AKONOLINGA | Z18: TRUE
A19: =IF(INTRO!$E$34<>0,INTRO!$E$34,"") -> Cameroon | B19: CENTRE | C19: AWAE | D19: 27497 | E19: =IF(INTRO!$E$48="","",ROUND($D19*INTRO!$E$48,0)) -> 3553 | F19: =IF(INTRO!$E$49="","",ROUND($D19*INTRO!$E$49,0)) -> 7342 | G19: =IF(INTRO!$E$50="","",ROUND($D19*INTRO!$E$50,0)) -> 15508 | H19: 0 | I19: 4 | J19: 2 | K19: 0 | L19: 1 | M19: =IF(INTRO!$E$38="Endémique", IF($H19>0, IF($H19=4,"Inconnu", IF($H19=99,"Interrompu", $D19)), 0),"Non requis") -> 0 | N19: =IF(INTRO!$E$40="Endémique", IF($I19>0, IF($I19=4,"Inconnu",IF($I19=99,"Interrompu", $D19)), 0),"Non requis") -> Inconnu | O19: =IF(INTRO!$E$42="Endémique", IF(AND($J19>1,$J19<5), IF($J19=4, "Inconnu", E19+F19), 0),"Non requis") -> 10895 | P19: =IF(INTRO!$E$44="Endémique", IF(AND($K19>0,$K19<5), IF($K19=4,"Inconnu", IF($K19=1, $F19*0.33, IF($K19=2, $F19*0.5+$G19*0.2, SUM(F19:G19)))), 0),"Non requis") -> 0 | Q19: 0 | R19: 0 | S19: 1 | T19: 0 | W19: 7430 | X19: AWAE | Z19: TRUE
A20: =IF(INTRO!$E$34<>0,INTRO!$E$34,"") -> Cameroon | B20: CENTRE | C20: AYOS | D20: 41349 | E20: =IF(INTRO!$E$48="","",ROUND($D20*INTRO!$E$48,0)) -> 5342 | F20: =IF(INTRO!$E$49="","",ROUND($D20*INTRO!$E$49,0)) -> 11040 | G20: =IF(INTRO!$E$50="","",ROUND($D20*INTRO!$E$50,0)) -> 23321 | H20: 0 | I20: 4 | J20: 2 | K20: 2 | L20: 1 | M20: =IF(INTRO!$E$38="Endémique", IF($H20>0, IF($H20=4,"Inconnu", IF($H20=99,"Interrompu", $D20)), 0),"Non requis") -> 0 | N20: =IF(INTRO!$E$40="Endémique", IF($I20>0, IF($I20=4,"Inconnu",IF($I20=99,"Interrompu", $D20)), 0),"Non requis") -> Inconnu | O20: =IF(INTRO!$E$42="Endémique", IF(AND($J20>1,$J20<5), IF($J20=4, "Inconnu", E20+F20), 0),"Non requis") -> 16382 | P20: =IF(INTRO!$E$44="Endémique", IF(AND($K20>0,$K20<5), IF($K20=4,"Inconnu", IF($K20=1, $F20*0.33, IF($K20=2, $F20*0.5+$G20*0.2, SUM(F20:G20)))), 0),"Non requis") -> 10184.2 | Q20: 0 | R20: 0 | S20: 1 | T20: 1 | W20: 7431 | X20: AYOS | Z20: TRUE
A21: =IF(INTRO!$E$34<>0,INTRO!$E$34,"") -> Cameroon | B21: CENTRE | C21: BAFIA | D21: 164002 | E21: =IF(INTRO!$E$48="","",ROUND($D21*INTRO!$E$48,0)) -> 21189 | F21: =IF(INTRO!$E$49="","",ROUND($D21*INTRO!$E$49,0)) -> 43789 | G21: =IF(INTRO!$E$50="","",ROUND($D21*INTRO!$E$50,0)) -> 92497 | H21: 99 | I21: 1 | J21: 2 | K21: 2 | L21: 1 | M21: =IF(INTRO!$E$38="Endémique", IF($H21>0, IF($H21=4,"Inconnu", IF($H21=99,"Interrompu", $D21)), 0),"Non requis") -> Interrompu | N21: =IF(INTRO!$E$40="Endémique", IF($I21>0, IF($I21=4,"Inconnu",IF($I21=99,"Interrompu", $D21)), 0),"Non requis") -> 164002 | O21: =IF(INTRO!$E$42="Endémique", IF(AND($J21>1,$J21<5), IF($J21=4, "Inconnu", E21+F21), 0),"Non requis") -> 64978 | P21: =IF(INTRO!$E$44="Endémique", IF(AND($K21>0,$K21<5), IF($K21=4,"Inconnu", IF($K21=1, $F21*0.33, IF($K21=2, $F21*0.5+$G21*0.2, SUM(F21:G21)))), 0),"Non requis") -> 40393.9 | Q21: 0 | R21: 1 | S21: 1 | T21: 1 | U21: MDA3 (IVM) | V21: T2 (PZQ) | W21: 7432 | X21: BAFIA | Z21: TRUE
A22: =IF(INTRO!$E$34<>0,INTRO!$E$34,"") -> Cameroon | B22: CENTRE | C22: BIYEM ASSI | D22: 364455 | E22: =IF(INTRO!$E$48="","",ROUND($D22*INTRO!$E$48,0)) -> 47088 | F22: =IF(INTRO!$E$49="","",ROUND($D22*INTRO!$E$49,0)) -> 97309 | G22: =IF(INTRO!$E$50="","",ROUND($D22*INTRO!$E$50,0)) -> 205553 | H22: 0 | I22: 4 | J22: 2 | K22: 1 | L22: 1 | M22: =IF(INTRO!$E$38="Endémique", IF($H22>0, IF($H22=4,"Inconnu", IF($H22=99,"Interrompu", $D22)), 0),"Non requis") -> 0 | N22: =IF(INTRO!$E$40="Endémique", IF($I22>0, IF($I22=4,"Inconnu",IF($I22=99,"Interrompu", $D22)), 0),"Non requis") -> Inconnu | O22: =IF(INTRO!$E$42="Endémique", IF(AND($J22>1,$J22<5), IF($J22=4, "Inconnu", E22+F22), 0),"Non requis") -> 144397 | P22: =IF(INTRO!$E$44="Endémique", IF(AND($K22>0,$K22<5), IF($K22=4,"Inconnu", IF($K22=1, $F22*0.33, IF($K22=2, $F22*0.5+$G22*0.2, SUM(F22:G22)))), 0),"Non requis") -> 32111.97 | Q22: 0 | R22: 0 | S22: 1 | T22: 0 | W22: 7433 | X22: BIYEM ASSI | Z22: TRUE
A23: =IF(INTRO!$E$34<>0,INTRO!$E$34,"") -> Cameroon | B23: CENTRE | C23: CITE VERTE | D23: 407390 | E23: =IF(INTRO!$E$48="","",ROUND($D23*INTRO!$E$48,0)) -> 52635 | F23: =IF(INTRO!$E$49="","",ROUND($D23*INTRO!$E$49,0)) -> 108773 | G23: =IF(INTRO!$E$50="","",ROUND($D23*INTRO!$E$50,0)) -> 229768 | H23: 0 | I23: 4 | J23: 2 | K23: 2 | L23: 1 | M23: =IF(INTRO!$E$38="Endémique", IF($H23>0, IF($H23=4,"Inconnu", IF($H23=99,"Interrompu", $D23)), 0),"Non requis") -> 0 | N23: =IF(INTRO!$E$40="Endémique", IF($I23>0, IF($I23=4,"Inconnu",IF($I23=99,"Interrompu", $D23)), 0),"Non requis") -> Inconnu | O23: =IF(INTRO!$E$42="Endémique", IF(AND($J23>1,$J23<5), IF($J23=4, "Inconnu", E23+F23), 0),"Non requis") -> 161408 | P23: =IF(INTRO!$E$44="Endémique", IF(AND($K23>0,$K23<5), IF($K23=4,"Inconnu", IF($K23=1, $F23*0.33, IF($K23=2, $F23*0.5+$G23*0.2, SUM(F23:G23)))), 0),"Non requis") -> 100340.1 | Q23: 0 | R23: 0 | S23: 1 | T23: 1 | W23: 7434 | X23: CITE VERTE | Z23: TRUE
A24: =IF(INTRO!$E$34<>0,INTRO!$E$34,"") -> Cameroon | B24: CENTRE | C24: DJOUNGOLO | D24: 879470 | E24: =IF(INTRO!$E$48="","",ROUND($D24*INTRO!$E$48,0)) -> 113628 | F24: =IF(INTRO!$E$49="","",ROUND($D24*INTRO!$E$49,0)) -> 234818 | G24: =IF(INTRO!$E$50="","",ROUND($D24*INTRO!$E$50,0)) -> 496021 | H24: 0 | I24: 4 | J24: 2 | K24: 2 | L24: 1 | M24: =IF(INTRO!$E$38="Endémique", IF($H24>0, IF($H24=4,"Inconnu", IF($H24=99,"Interrompu", $D24)), 0),"Non requis") -> 0 | N24: =IF(INTRO!$E$40="Endémique", IF($I24>0, IF($I24=4,"Inconnu",IF($I24=99,"Interrompu", $D24)), 0),"Non requis") -> Inconnu | O24: =IF(INTRO!$E$42="Endémique", IF(AND($J24>1,$J24<5), IF($J24=4, "Inconnu", E24+F24), 0),"Non requis") -> 348446 | P24: =IF(INTRO!$E$44="Endémique", IF(AND($K24>0,$K24<5), IF($K24=4,"Inconnu", IF($K24=1, $F24*0.33, IF($K24=2, $F24*0.5+$G24*0.2, SUM(F24:G24)))), 0),"Non requis") -> 216613.2 | Q24: 0 | R24: 0 | S24: 1 | T24: 1 | W24: 7435 | X24: DJOUNGOLO | Z24: TRUE
A25: =IF(INTRO!$E$34<>0,INTRO!$E$34,"") -> Cameroon | B25: CENTRE | C25: EBEBDA | D25: 21755 | E25: =IF(INTRO!$E$48="","",ROUND($D25*INTRO!$E$48,0)) -> 2811 | F25: =IF(INTRO!$E$49="","",ROUND($D25*INTRO!$E$49,0)) -> 5809 | G25: =IF(INTRO!$E$50="","",ROUND($D25*INTRO!$E$50,0)) -> 12270 | H25: 99 | I25: 1 | J25: 2 | K25: 0 | L25: 1 | M25: =IF(INTRO!$E$38="Endémique", IF($H25>0, IF($H25=4,"Inconnu", IF($H25=99,"Interrompu", $D25)), 0),"Non requis") -> Interrompu | N25: =IF(INTRO!$E$40="Endémique", IF($I25>0, IF($I25=4,"Inconnu",IF($I25=99,"Interrompu", $D25)), 0),"Non requis") -> 21755 | O25: =IF(INTRO!$E$42="Endémique", IF(AND($J25>1,$J25<5), IF($J25=4, "Inconnu", E25+F25), 0),"Non requis") -> 8620 | P25: =IF(INTRO!$E$44="Endémique", IF(AND($K25>0,$K25<5), IF($K25=4,"Inconnu", IF($K25=1, $F25*0.33, IF($K25=2, $F25*0.5+$G25*0.2, SUM(F25:G25)))), 0),"Non requis") -> 0 | Q25: 0 | R25: 1 | S25: 1 | T25: 0 | U25: MDA3 (IVM) | W25: 7436 | X25: EBEBDA | Z25: TRUE
A26: =IF(INTRO!$E$34<>0,INTRO!$E$34,"") -> Cameroon | B26: CENTRE | C26: EFOULAN | D26: 414374 | E26: =IF(INTRO!$E$48="","",ROUND($D26*INTRO!$E$48,0)) -> 53537 | F26: =IF(INTRO!$E$49="","",ROUND($D26*INTRO!$E$49,0)) -> 110638 | G26: =IF(INTRO!$E$50="","",ROUND($D26*INTRO!$E$50,0)) -> 233707 | H26: 0 | I26: 4 | J26: 2 | K26: 2 | L26: 1 | M26: =IF(INTRO!$E$38="Endémique", IF($H26>0, IF($H26=4,"Inconnu", IF($H26=99,"Interrompu", $D26)), 0),"Non requis") -> 0 | N26: =IF(INTRO!$E$40="Endémique", IF($I26>0, IF($I26=4,"Inconnu",IF($I26=99,"Interrompu", $D26)), 0),"Non requis") -> Inconnu | O26: =IF(INTRO!$E$42="Endémique", IF(AND($J26>1,$J26<5), IF($J26=4, "Inconnu", E26+F26), 0),"Non requis") -> 164175 | P26: =IF(INTRO!$E$44="Endémique", IF(AND($K26>0,$K26<5), IF($K26=4,"Inconnu", IF($K26=1, $F26*0.33, IF($K26=2, $F26*0.5+$G26*0.2, SUM(F26:G26)))), 0),"Non requis") -> 102060.4 | Q26: 0 | R26: 0 | S26: 1 | T26: 1 | W26: 7437 | X26: EFOULAN | Z26: TRUE
A27: =IF(INTRO!$E$34<>0,INTRO!$E$34,"") -> Cameroon | B27: CENTRE | C27: ELIG MFOMO | D27: 16500 | E27: =IF(INTRO!$E$48="","",ROUND($D27*INTRO!$E$48,0)) -> 2132 | F27: =IF(INTRO!$E$49="","",ROUND($D27*INTRO!$E$49,0)) -> 4406 | G27: =IF(INTRO!$E$50="","",ROUND($D27*INTRO!$E$50,0)) -> 9306 | H27: 0 | I27: 1 | J27: 2 | K27: 0 | L27: 1 | M27: =IF(INTRO!$E$38="Endémique", IF($H27>0, IF($H27=4,"Inconnu", IF($H27=99,"Interrompu", $D27)), 0),"Non requis") -> 0 | N27: =IF(INTRO!$E$40="Endémique", IF($I27>0, IF($I27=4,"Inconnu",IF($I27=99,"Interrompu", $D27)), 0),"Non requis") -> 16500 | O27: =IF(INTRO!$E$42="Endémique", IF(AND($J27>1,$J27<5), IF($J27=4, "Inconnu", E27+F27), 0),"Non requis") -> 6538 | P27: =IF(INTRO!$E$44="Endémique", IF(AND($K27>0,$K27<5), IF($K27=4,"Inconnu", IF($K27=1, $F27*0.33, IF($K27=2, $F27*0.5+$G27*0.2, SUM(F27:G27)))), 0),"Non requis") -> 0 | Q27: 0 | R27: 1 | S27: 1 | T27: 0 | U27: MDA3 (IVM) | W27: 7438 | X27: ELIG MFOMO | Z27: TRUE
A28: =IF(INTRO!$E$34<>0,INTRO!$E$34,"") -> Cameroon | B28: CENTRE | C28: ESEKA | D28: 81516 | E28: =IF(INTRO!$E$48="","",ROUND($D28*INTRO!$E$48,0)) -> 10532 | F28: =IF(INTRO!$E$49="","",ROUND($D28*INTRO!$E$49,0)) -> 21765 | G28: =IF(INTRO!$E$50="","",ROUND($D28*INTRO!$E$50,0)) -> 45975 | H28: 0 | I28: 1 | J28: 2 | K28: 2 | L28: 1 | M28: =IF(INTRO!$E$38="Endémique", IF($H28>0, IF($H28=4,"Inconnu", IF($H28=99,"Interrompu", $D28)), 0),"Non requis") -> 0 | N28: =IF(INTRO!$E$40="Endémique", IF($I28>0, IF($I28=4,"Inconnu",IF($I28=99,"Interrompu", $D28)), 0),"Non requis") -> 81516 | O28: =IF(INTRO!$E$42="Endémique", IF(AND($J28>1,$J28<5), IF($J28=4, "Inconnu", E28+F28), 0),"Non requis") -> 32297 | P28: =IF(INTRO!$E$44="Endémique", IF(AND($K28>0,$K28<5), IF($K28=4,"Inconnu", IF($K28=1, $F28*0.33, IF($K28=2, $F28*0.5+$G28*0.2, SUM(F28:G28)))), 0),"Non requis") -> 20077.5 | Q28: 0 | R28: 1 | S28: 1 | T28: 1 | U28: MDA3 (IVM) | W28: 7439 | X28: ESEKA | Z28: TRUE
A29: =IF(INTRO!$E$34<>0,INTRO!$E$34,"") -> Cameroon | B29: CENTRE | C29: ESSE | D29: 26090 | E29: =IF(INTRO!$E$48="","",ROUND($D29*INTRO!$E$48,0)) -> 3371 | F29: =IF(INTRO!$E$49="","",ROUND($D29*INTRO!$E$49,0)) -> 6966 | G29: =IF(INTRO!$E$50="","",ROUND($D29*INTRO!$E$50,0)) -> 14715 | H29: 1 | I29: 1 | J29: 2 | K29: 0 | L29: 1 | M29: =IF(INTRO!$E$38="Endémique", IF($H29>0, IF($H29=4,"Inconnu", IF($H29=99,"Interrompu", $D29)), 0),"Non requis") -> 26090 | N29: =IF(INTRO!$E$40="Endémique", IF($I29>0, IF($I29=4,"Inconnu",IF($I29=99,"Interrompu", $D29)), 0),"Non requis") -> 26090 | O29: =IF(INTRO!$E$42="Endémique", IF(AND($J29>1,$J29<5), IF($J29=4, "Inconnu", E29+F29), 0),"Non requis") -> 10337 | P29: =IF(INTRO!$E$44="Endémique", IF(AND($K29>0,$K29<5), IF($K29=4,"Inconnu", IF($K29=1, $F29*0.33, IF($K29=2, $F29*0.5+$G29*0.2, SUM(F29:G29)))), 0),"Non requis") -> 0 | Q29: 1 | R29: 1 | S29: 1 | T29: 0 | U29: MDA1 (IVM+ALB) | W29: 7440 | X29: ESSE | Z29: TRUE
A30: =IF(INTRO!$E$34<>0,INTRO!$E$34,"") -> Cameroon | B30: CENTRE | C30: EVODOULA | D30: 20433 | E30: =IF(INTRO!$E$48="","",ROUND($D30*INTRO!$E$48,0)) -> 2640 | F30: =IF(INTRO!$E$49="","",ROUND($D30*INTRO!$E$49,0)) -> 5456 | G30: =IF(INTRO!$E$50="","",ROUND($D30*INTRO!$E$50,0)) -> 11524 | H30: 1 | I30: 1 | J30: 2 | K30: 0 | L30: 1 | M30: =IF(INTRO!$E$38="Endémique", IF($H30>0, IF($H30=4,"Inconnu", IF($H30=99,"Interrompu", $D30)), 0),"Non requis") -> 20433 | N30: =IF(INTRO!$E$40="Endémique", IF($I30>0, IF($I30=4,"Inconnu",IF($I30=99,"Interrompu", $D30)), 0),"Non requis") -> 20433 | O30: =IF(INTRO!$E$42="Endémique", IF(AND($J30>1,$J30<5), IF($J30=4, "Inconnu", E30+F30), 0),"Non requis") -> 8096 | P30: =IF(INTRO!$E$44="Endémique", IF(AND($K30>0,$K30<5), IF($K30=4,"Inconnu", IF($K30=1, $F30*0.33, IF($K30=2, $F30*0.5+$G30*0.2, SUM(F30:G30)))), 0),"Non requis") -> 0 | Q30: 1 | R30: 1 | S30: 1 | T30: 0 | U30: MDA1 (IVM+ALB) | W30: 7441 | X30: EVODOULA | Z30: TRUE
A31: =IF(INTRO!$E$34<>0,INTRO!$E$34,"") -> Cameroon | B31: CENTRE | C31: MBALMAYO | D31: 122113 | E31: =IF(INTRO!$E$48="","",ROUND($D31*INTRO!$E$48,0)) -> 15777 | F31: =IF(INTRO!$E$49="","",ROUND($D31*INTRO!$E$49,0)) -> 32604 | G31: =IF(INTRO!$E$50="","",ROUND($D31*INTRO!$E$50,0)) -> 68872 | H31: 0 | I31: 4 | J31: 2 | K31: 2 | L31: 1 | M31: =IF(INTRO!$E$38="Endémique", IF($H31>0, IF($H31=4,"Inconnu", IF($H31=99,"Interrompu", $D31)), 0),"Non requis") -> 0 | N31: =IF(INTRO!$E$40="Endémique", IF($I31>0, IF($I31=4,"Inconnu",IF($I31=99,"Interrompu", $D31)), 0),"Non requis") -> Inconnu | O31: =IF(INTRO!$E$42="Endémique", IF(AND($J31>1,$J31<5), IF($J31=4, "Inconnu", E31+F31), 0),"Non requis") -> 48381 | P31: =IF(INTRO!$E$44="Endémique", IF(AND($K31>0,$K31<5), IF($K31=4,"Inconnu", IF($K31=1, $F31*0.33, IF($K31=2, $F31*0.5+$G31*0.2, SUM(F31:G31)))), 0),"Non requis") -> 30076.4 | Q31: 0 | R31: 0 | S31: 1 | T31: 1 | W31: 7442 | X31: MBALMAYO | Z31: TRUE
A32: =IF(INTRO!$E$34<>0,INTRO!$E$34,"") -> Cameroon | B32: CENTRE | C32: MBANDJOCK | D32: 59438 | E32: =IF(INTRO!$E$48="","",ROUND($D32*INTRO!$E$48,0)) -> 7679 | F32: =IF(INTRO!$E$49="","",ROUND($D32*INTRO!$E$49,0)) -> 15870 | G32: =IF(INTRO!$E$50="","",ROUND($D32*INTRO!$E$50,0)) -> 33523 | H32: 99 | I32: 1 | J32: 2 | K32: 0 | L32: 1 | M32: =IF(INTRO!$E$38="Endémique", IF($H32>0, IF($H32=4,"Inconnu", IF($H32=99,"Interrompu", $D32)), 0),"Non requis") -> Interrompu | N32: =IF(INTRO!$E$40="Endémique", IF($I32>0, IF($I32=4,"Inconnu",IF($I32=99,"Interrompu", $D32)), 0),"Non requis") -> 59438 | O32: =IF(INTRO!$E$42="Endémique", IF(AND($J32>1,$J32<5), IF($J32=4, "Inconnu", E32+F32), 0),"Non requis") -> 23549 | P32: =IF(INTRO!$E$44="Endémique", IF(AND($K32>0,$K32<5), IF($K32=4,"Inconnu", IF($K32=1, $F32*0.33, IF($K32=2, $F32*0.5+$G32*0.2, SUM(F32:G32)))), 0),"Non requis") -> 0 | Q32: 0 | R32: 1 | S32: 1 | T32: 0 | U32: MDA3 (IVM) | W32: 7443 | X32: MBANDJOCK | Z32: TRUE
A33: =IF(INTRO!$E$34<>0,INTRO!$E$34,"") -> Cameroon | B33: CENTRE | C33: MBANKOMO | D33: 31442 | E33: =IF(INTRO!$E$48="","",ROUND($D33*INTRO!$E$48,0)) -> 4062 | F33: =IF(INTRO!$E$49="","",ROUND($D33*INTRO!$E$49,0)) -> 8395 | G33: =IF(INTRO!$E$50="","",ROUND($D33*INTRO!$E$50,0)) -> 17733 | H33: 0 | I33: 4 | J33: 2 | K33: 2 | L33: 1 | M33: =IF(INTRO!$E$38="Endémique", IF($H33>0, IF($H33=4,"Inconnu", IF($H33=99,"Interrompu", $D33)), 0),"Non requis") -> 0 | N33: =IF(INTRO!$E$40="Endémique", IF($I33>0, IF($I33=4,"Inconnu",IF($I33=99,"Interrompu", $D33)), 0),"Non requis") -> Inconnu | O33: =IF(INTRO!$E$42="Endémique", IF(AND($J33>1,$J33<5), IF($J33=4, "Inconnu", E33+F33), 0),"Non requis") -> 12457 | P33: =IF(INTRO!$E$44="Endémique", IF(AND($K33>0,$K33<5), IF($K33=4,"Inconnu", IF($K33=1, $F33*0.33, IF($K33=2, $F33*0.5+$G33*0.2, SUM(F33:G33)))), 0),"Non requis") -> 7744.1 | Q33: 0 | R33: 0 | S33: 1 | T33: 1 | W33: 7444 | X33: MBANKOMO | Z33: TRUE
A34: =IF(INTRO!$E$34<>0,INTRO!$E$34,"") -> Cameroon | B34: CENTRE | C34: MFOU | D34: 103427 | E34: =IF(INTRO!$E$48="","",ROUND($D34*INTRO!$E$48,0)) -> 13363 | F34: =IF(INTRO!$E$49="","",ROUND($D34*INTRO!$E$49,0)) -> 27615 | G34: =IF(INTRO!$E$50="","",ROUND($D34*INTRO!$E$50,0)) -> 58333 | H34: 0 | I34: 4 | J34: 2 | K34: 2 | L34: 1 | M34: =IF(INTRO!$E$38="Endémique", IF($H34>0, IF($H34=4,"Inconnu", IF($H34=99,"Interrompu", $D34)), 0),"Non requis") -> 0 | N34: =IF(INTRO!$E$40="Endémique", IF($I34>0, IF($I34=4,"Inconnu",IF($I34=99,"Interrompu", $D34)), 0),"Non requis") -> Inconnu | O34: =IF(INTRO!$E$42="Endémique", IF(AND($J34>1,$J34<5), IF($J34=4, "Inconnu", E34+F34), 0),"Non requis") -> 40978 | P34: =IF(INTRO!$E$44="Endémique", IF(AND($K34>0,$K34<5), IF($K34=4,"Inconnu", IF($K34=1, $F34*0.33, IF($K34=2, $F34*0.5+$G34*0.2, SUM(F34:G34)))), 0),"Non requis") -> 25474.1 | Q34: 0 | R34: 0 | S34: 1 | T34: 1 | W34: 7445 | X34: MFOU | Z34: TRUE
A35: =IF(INTRO!$E$34<>0,INTRO!$E$34,"") -> Cameroon | B35: CENTRE | C35: MONATELE | D35: 49279 | E35: =IF(INTRO!$E$48="","",ROUND($D35*INTRO!$E$48,0)) -> 6367 | F35: =IF(INTRO!$E$49="","",ROUND($D35*INTRO!$E$49,0)) -> 13157 | G35: =IF(INTRO!$E$50="","",ROUND($D35*INTRO!$E$50,0)) -> 27793 | H35: 99 | I35: 1 | J35: 2 | K35: 0 | L35: 1 | M35: =IF(INTRO!$E$38="Endémique", IF($H35>0, IF($H35=4,"Inconnu", IF($H35=99,"Interrompu", $D35)), 0),"Non requis") -> Interrompu | N35: =IF(INTRO!$E$40="Endémique", IF($I35>0, IF($I35=4,"Inconnu",IF($I35=99,"Interrompu", $D35)), 0),"Non requis") -> 49279 | O35: =IF(INTRO!$E$42="Endémique", IF(AND($J35>1,$J35<5), IF($J35=4, "Inconnu", E35+F35), 0),"Non requis") -> 19524 | P35: =IF(INTRO!$E$44="Endémique", IF(AND($K35>0,$K35<5), IF($K35=4,"Inconnu", IF($K35=1, $F35*0.33, IF($K35=2, $F35*0.5+$G35*0.2, SUM(F35:G35)))), 0),"Non requis") -> 0 | Q35: 0 | R35: 1 | S35: 1 | T35: 0 | U35: MDA3 (IVM) | W35: 7446 | X35: MONATELE | Z35: TRUE
A36: =IF(INTRO!$E$34<>0,INTRO!$E$34,"") -> Cameroon | B36: CENTRE | C36: NANGA EBOKO | D36: 64094 | E36: =IF(INTRO!$E$48="","",ROUND($D36*INTRO!$E$48,0)) -> 8281 | F36: =IF(INTRO!$E$49="","",ROUND($D36*INTRO!$E$49,0)) -> 17113 | G36: =IF(INTRO!$E$50="","",ROUND($D36*INTRO!$E$50,0)) -> 36149 | H36: 1 | I36: 1 | J36: 2 | K36: 0 | L36: 1 | M36: =IF(INTRO!$E$38="Endémique", IF($H36>0, IF($H36=4,"Inconnu", IF($H36=99,"Interrompu", $D36)), 0),"Non requis") -> 64094 | N36: =IF(INTRO!$E$40="Endémique", IF($I36>0, IF($I36=4,"Inconnu",IF($I36=99,"Interrompu", $D36)), 0),"Non requis") -> 64094 | O36: =IF(INTRO!$E$42="Endémique", IF(AND($J36>1,$J36<5), IF($J36=4, "Inconnu", E36+F36), 0),"Non requis") -> 25394 | P36: =IF(INTRO!$E$44="Endémique", IF(AND($K36>0,$K36<5), IF($K36=4,"Inconnu", IF($K36=1, $F36*0.33, IF($K36=2, $F36*0.5+$G36*0.2, SUM(F36:G36)))), 0),"Non requis") -> 0 | Q36: 1 | R36: 1 | S36: 1 | T36: 0 | U36: MDA1 (IVM+ALB) | W36: 7447 | X36: NANGA EBOKO | Z36: TRUE
A37: =IF(INTRO!$E$34<>0,INTRO!$E$34,"") -> Cameroon | B37: CENTRE | C37: NDIKINIMEKI | D37: 45237 | E37: =IF(INTRO!$E$48="","",ROUND($D37*INTRO!$E$48,0)) -> 5845 | F37: =IF(INTRO!$E$49="","",ROUND($D37*INTRO!$E$49,0)) -> 12078 | G37: =IF(INTRO!$E$50="","",ROUND($D37*INTRO!$E$50,0)) -> 25514 | H37: 99 | I37: 1 | J37: 2 | K37: 3 | L37: 1 | M37: =IF(INTRO!$E$38="Endémique", IF($H37>0, IF($H37=4,"Inconnu", IF($H37=99,"Interrompu", $D37)), 0),"Non requis") -> Interrompu | N37: =IF(INTRO!$E$40="Endémique", IF($I37>0, IF($I37=4,"Inconnu",IF($I37=99,"Interrompu", $D37)), 0),"Non requis") -> 45237 | O37: =IF(INTRO!$E$42="Endémique", IF(AND($J37>1,$J37<5), IF($J37=4, "Inconnu", E37+F37), 0),"Non requis") -> 17923 | P37: =IF(INTRO!$E$44="Endémique", IF(AND($K37>0,$K37<5), IF($K37=4,"Inconnu", IF($K37=1, $F37*0.33, IF($K37=2, $F37*0.5+$G37*0.2, SUM(F37:G37)))), 0),"Non requis") -> 37592 | Q37: 0 | R37: 1 | S37: 1 | T37: 1 | U37: MDA3 (IVM) | V37: T2 (PZQ) | W37: 7448 | X37: NDIKINIMEKI | Z37: TRUE
A38: =IF(INTRO!$E$34<>0,INTRO!$E$34,"") -> Cameroon | B38: CENTRE | C38: NGOG MAPUBI | D38: 54033 | E38: =IF(INTRO!$E$48="","",ROUND($D38*INTRO!$E$48,0)) -> 6981 | F38: =IF(INTRO!$E$49="","",ROUND($D38*INTRO!$E$49,0)) -> 14427 | G38: =IF(INTRO!$E$50="","",ROUND($D38*INTRO!$E$50,0)) -> 30475 | H38: 1 | I38: 1 | J38: 2 | K38: 0 | L38: 1 | M38: =IF(INTRO!$E$38="Endémique", IF($H38>0, IF($H38=4,"Inconnu", IF($H38=99,"Interrompu", $D38)), 0),"Non requis") -> 54033 | N38: =IF(INTRO!$E$40="Endémique", IF($I38>0, IF($I38=4,"Inconnu",IF($I38=99,"Interrompu", $D38)), 0),"Non requis") -> 54033 | O38: =IF(INTRO!$E$42="Endémique", IF(AND($J38>1,$J38<5), IF($J38=4, "Inconnu", E38+F38), 0),"Non requis") -> 21408 | P38: =IF(INTRO!$E$44="Endémique", IF(AND($K38>0,$K38<5), IF($K38=4,"Inconnu", IF($K38=1, $F38*0.33, IF($K38=2, $F38*0.5+$G38*0.2, SUM(F38:G38)))), 0),"Non requis") -> 0 | Q38: 1 | R38: 1 | S38: 1 | T38: 0 | U38: MDA1 (IVM+ALB) | W38: 7449 | X38: NGOG MAPUBI | Z38: TRUE
A39: =IF(INTRO!$E$34<>0,INTRO!$E$34,"") -> Cameroon | B39: CENTRE | C39: NGOUMOU | D39: 43919 | E39: =IF(INTRO!$E$48="","",ROUND($D39*INTRO!$E$48,0)) -> 5674 | F39: =IF(INTRO!$E$49="","",ROUND($D39*INTRO!$E$49,0)) -> 11726 | G39: =IF(INTRO!$E$50="","",ROUND($D39*INTRO!$E$50,0)) -> 24770 | H39: 0 | I39: 4 | J39: 2 | K39: 2 | L39: 1 | M39: =IF(INTRO!$E$38="Endémique", IF($H39>0, IF($H39=4,"Inconnu", IF($H39=99,"Interrompu", $D39)), 0),"Non requis") -> 0 | N39: =IF(INTRO!$E$40="Endémique", IF($I39>0, IF($I39=4,"Inconnu",IF($I39=99,"Interrompu", $D39)), 0),"Non requis") -> Inconnu | O39: =IF(INTRO!$E$42="Endémique", IF(AND($J39>1,$J39<5), IF($J39=4, "Inconnu", E39+F39), 0),"Non requis") -> 17400 | P39: =IF(INTRO!$E$44="Endémique", IF(AND($K39>0,$K39<5), IF($K39=4,"Inconnu", IF($K39=1, $F39*0.33, IF($K39=2, $F39*0.5+$G39*0.2, SUM(F39:G39)))), 0),"Non requis") -> 10817 | Q39: 0 | R39: 0 | S39: 1 | T39: 1 | W39: 7450 | X39: NGOUMOU | Z39: TRUE
A40: =IF(INTRO!$E$34<>0,INTRO!$E$34,"") -> Cameroon | B40: CENTRE | C40: NKOLBISSON | D40: 166092 | E40: =IF(INTRO!$E$48="","",ROUND($D40*INTRO!$E$48,0)) -> 21459 | F40: =IF(INTRO!$E$49="","",ROUND($D40*INTRO!$E$49,0)) -> 44347 | G40: =IF(INTRO!$E$50="","",ROUND($D40*INTRO!$E$50,0)) -> 93676 | H40: 0 | I40: 4 | J40: 2 | K40: 2 | L40: 1 | M40: =IF(INTRO!$E$38="Endémique", IF($H40>0, IF($H40=4,"Inconnu", IF($H40=99,"Interrompu", $D40)), 0),"Non requis") -> 0 | N40: =IF(INTRO!$E$40="Endémique", IF($I40>0, IF($I40=4,"Inconnu",IF($I40=99,"Interrompu", $D40)), 0),"Non requis") -> Inconnu | O40: =IF(INTRO!$E$42="Endémique", IF(AND($J40>1,$J40<5), IF($J40=4, "Inconnu", E40+F40), 0),"Non requis") -> 65806 | P40: =IF(INTRO!$E$44="Endémique", IF(AND($K40>0,$K40<5), IF($K40=4,"Inconnu", IF($K40=1, $F40*0.33, IF($K40=2, $F40*0.5+$G40*0.2, SUM(F40:G40)))), 0),"Non requis") -> 40908.7 | Q40: 0 | R40: 0 | S40: 1 | T40: 1 | V40: T2 (PZQ) | W40: 7451 | X40: NKOLBISSON | Z40: TRUE
A41: =IF(INTRO!$E$34<>0,INTRO!$E$34,"") -> Cameroon | B41: CENTRE | C41: NKOLNDONGO | D41: 832311 | E41: =IF(INTRO!$E$48="","",ROUND($D41*INTRO!$E$48,0)) -> 107535 | F41: =IF(INTRO!$E$49="","",ROUND($D41*INTRO!$E$49,0)) -> 222227 | G41: =IF(INTRO!$E$50="","",ROUND($D41*INTRO!$E$50,0)) -> 469423 | H41: 0 | I41: 4 | J41: 2 | K41: 2 | L41: 1 | M41: =IF(INTRO!$E$38="Endémique", IF($H41>0, IF($H41=4,"Inconnu", IF($H41=99,"Interrompu", $D41)), 0),"Non requis") -> 0 | N41: =IF(INTRO!$E$40="Endémique", IF($I41>0, IF($I41=4,"Inconnu",IF($I41=99,"Interrompu", $D41)), 0),"Non requis") -> Inconnu | O41: =IF(INTRO!$E$42="Endémique", IF(AND($J41>1,$J41<5), IF($J41=4, "Inconnu", E41+F41), 0),"Non requis") -> 329762 | P41: =IF(INTRO!$E$44="Endémique", IF(AND($K41>0,$K41<5), IF($K41=4,"Inconnu", IF($K41=1, $F41*0.33, IF($K41=2, $F41*0.5+$G41*0.2, SUM(F41:G41)))), 0),"Non requis") -> 204998.1 | Q41: 0 | R41: 0 | S41: 1 | T41: 1 | W41: 7452 | X41: NKOLNDONGO | Z41: TRUE
A42: =IF(INTRO!$E$34<>0,INTRO!$E$34,"") -> Cameroon | B42: CENTRE | C42: NTUI | D42: 130343 | E42: =IF(INTRO!$E$48="","",ROUND($D42*INTRO!$E$48,0)) -> 16840 | F42: =IF(INTRO!$E$49="","",ROUND($D42*INTRO!$E$49,0)) -> 34802 | G42: =IF(INTRO!$E$50="","",ROUND($D42*INTRO!$E$50,0)) -> 73513 | H42: 99 | I42: 1 | J42: 2 | K42: 2 | L42: 1 | M42: =IF(INTRO!$E$38="Endémique", IF($H42>0, IF($H42=4,"Inconnu", IF($H42=99,"Interrompu", $D42)), 0),"Non requis") -> Interrompu | N42: =IF(INTRO!$E$40="Endémique", IF($I42>0, IF($I42=4,"Inconnu",IF($I42=99,"Interrompu", $D42)), 0),"Non requis") -> 130343 | O42: =IF(INTRO!$E$42="Endémique", IF(AND($J42>1,$J42<5), IF($J42=4, "Inconnu", E42+F42), 0),"Non requis") -> 51642 | P42: =IF(INTRO!$E$44="Endémique", IF(AND($K42>0,$K42<5), IF($K42=4,"Inconnu", IF($K42=1, $F42*0.33, IF($K42=2, $F42*0.5+$G42*0.2, SUM(F42:G42)))), 0),"Non requis") -> 32103.6 | Q42: 0 | R42: 1 | S42: 1 | T42: 1 | U42: MDA3 (IVM) | W42: 7453 | X42: NTUI | Z42: TRUE
A43: =IF(INTRO!$E$34<>0,INTRO!$E$34,"") -> Cameroon | B43: CENTRE | C43: OBALA | D43: 136001 | E43: =IF(INTRO!$E$48="","",ROUND($D43*INTRO!$E$48,0)) -> 17571 | F43: =IF(INTRO!$E$49="","",ROUND($D43*INTRO!$E$49,0)) -> 36312 | G43: =IF(INTRO!$E$50="","",ROUND($D43*INTRO!$E$50,0)) -> 76705 | H43: 99 | I43: 1 | J43: 2 | K43: 0 | L43: 1 | M43: =IF(INTRO!$E$38="Endémique", IF($H43>0, IF($H43=4,"Inconnu", IF($H43=99,"Interrompu", $D43)), 0),"Non requis") -> Interrompu | N43: =IF(INTRO!$E$40="Endémique", IF($I43>0, IF($I43=4,"Inconnu",IF($I43=99,"Interrompu", $D43)), 0),"Non requis") -> 136001 | O43: =IF(INTRO!$E$42="Endémique", IF(AND($J43>1,$J43<5), IF($J43=4, "Inconnu", E43+F43), 0),"Non requis") -> 53883 | P43: =IF(INTRO!$E$44="Endémique", IF(AND($K43>0,$K43<5), IF($K43=4,"Inconnu", IF($K43=1, $F43*0.33, IF($K43=2, $F43*0.5+$G43*0.2, SUM(F43:G43)))), 0),"Non requis") -> 0 | Q43: 0 | R43: 1 | S43: 1 | T43: 0 | U43: MDA3 (IVM) | W43: 7454 | X43: OBALA | Z43: TRUE
A44: =IF(INTRO!$E$34<>0,INTRO!$E$34,"") -> Cameroon | B44: CENTRE | C44: OKOLA | D44: 55754 | E44: =IF(INTRO!$E$48="","",ROUND($D44*INTRO!$E$48,0)) -> 7203 | F44: =IF(INTRO!$E$49="","",ROUND($D44*INTRO!$E$49,0)) -> 14886 | G44: =IF(INTRO!$E$50="","",ROUND($D44*INTRO!$E$50,0)) -> 31445 | H44: 1 | I44: 1 | J44: 2 | K44: 0 | L44: 1 | M44: =IF(INTRO!$E$38="Endémique", IF($H44>0, IF($H44=4,"Inconnu", IF($H44=99,"Interrompu", $D44)), 0),"Non requis") -> 55754 | N44: =IF(INTRO!$E$40="Endémique", IF($I44>0, IF($I44=4,"Inconnu",IF($I44=99,"Interrompu", $D44)), 0),"Non requis") -> 55754 | O44: =IF(INTRO!$E$42="Endémique", IF(AND($J44>1,$J44<5), IF($J44=4, "Inconnu", E44+F44), 0),"Non requis") -> 22089 | P44: =IF(INTRO!$E$44="Endémique", IF(AND($K44>0,$K44<5), IF($K44=4,"Inconnu", IF($K44=1, $F44*0.33, IF($K44=2, $F44*0.5+$G44*0.2, SUM(F44:G44)))), 0),"Non requis") -> 0 | Q44: 1 | R44: 1 | S44: 1 | T44: 0 | U44: MDA1 (IVM+ALB) | W44: 7455 | X44: OKOLA | Z44: TRUE
A45: =IF(INTRO!$E$34<>0,INTRO!$E$34,"") -> Cameroon | B45: CENTRE | C45: SAA | D45: 70936 | E45: =IF(INTRO!$E$48="","",ROUND($D45*INTRO!$E$48,0)) -> 9165 | F45: =IF(INTRO!$E$49="","",ROUND($D45*INTRO!$E$49,0)) -> 18940 | G45: =IF(INTRO!$E$50="","",ROUND($D45*INTRO!$E$50,0)) -> 40008 | H45: 99 | I45: 1 | J45: 2 | K45: 0 | L45: 1 | M45: =IF(INTRO!$E$38="Endémique", IF($H45>0, IF($H45=4,"Inconnu", IF($H45=99,"Interrompu", $D45)), 0),"Non requis") -> Interrompu | N45: =IF(INTRO!$E$40="Endémique", IF($I45>0, IF($I45=4,"Inconnu",IF($I45=99,"Interrompu", $D45)), 0),"Non requis") -> 70936 | O45: =IF(INTRO!$E$42="Endémique", IF(AND($J45>1,$J45<5), IF($J45=4, "Inconnu", E45+F45), 0),"Non requis") -> 28105 | P45: =IF(INTRO!$E$44="Endémique", IF(AND($K45>0,$K45<5), IF($K45=4,"Inconnu", IF($K45=1, $F45*0.33, IF($K45=2, $F45*0.5+$G45*0.2, SUM(F45:G45)))), 0),"Non requis") -> 0 | Q45: 0 | R45: 1 | S45: 1 | T45: 0 | U45: MDA3 (IVM) | W45: 7456 | X45: SAA | Z45: TRUE
A46: =IF(INTRO!$E$34<>0,INTRO!$E$34,"") -> Cameroon | B46: CENTRE | C46: SOA | D46: 45504 | E46: =IF(INTRO!$E$48="","",ROUND($D46*INTRO!$E$48,0)) -> 5879 | F46: =IF(INTRO!$E$49="","",ROUND($D46*INTRO!$E$49,0)) -> 12150 | G46: =IF(INTRO!$E$50="","",ROUND($D46*INTRO!$E$50,0)) -> 25664 | H46: 0 | I46: 4 | J46: 2 | K46: 1 | L46: 1 | M46: =IF(INTRO!$E$38="Endémique", IF($H46>0, IF($H46=4,"Inconnu", IF($H46=99,"Interrompu", $D46)), 0),"Non requis") -> 0 | N46: =IF(INTRO!$E$40="Endémique", IF($I46>0, IF($I46=4,"Inconnu",IF($I46=99,"Interrompu", $D46)), 0),"Non requis") -> Inconnu | O46: =IF(INTRO!$E$42="Endémique", IF(AND($J46>1,$J46<5), IF($J46=4, "Inconnu", E46+F46), 0),"Non requis") -> 18029 | P46: =IF(INTRO!$E$44="Endémique", IF(AND($K46>0,$K46<5), IF($K46=4,"Inconnu", IF($K46=1, $F46*0.33, IF($K46=2, $F46*0.5+$G46*0.2, SUM(F46:G46)))), 0),"Non requis") -> 4009.5 | Q46: 0 | R46: 0 | S46: 1 | T46: 0 | W46: 7457 | X46: SOA | Z46: TRUE
A47: =IF(INTRO!$E$34<>0,INTRO!$E$34,"") -> Cameroon | B47: CENTRE | C47: YOKO | D47: 43162 | E47: =IF(INTRO!$E$48="","",ROUND($D47*INTRO!$E$48,0)) -> 5577 | F47: =IF(INTRO!$E$49="","",ROUND($D47*INTRO!$E$49,0)) -> 11524 | G47: =IF(INTRO!$E$50="","",ROUND($D47*INTRO!$E$50,0)) -> 24343 | H47: 99 | I47: 1 | J47: 2 | K47: 0 | L47: 1 | M47: =IF(INTRO!$E$38="Endémique", IF($H47>0, IF($H47=4,"Inconnu", IF($H47=99,"Interrompu", $D47)), 0),"Non requis") -> Interrompu | N47: =IF(INTRO!$E$40="Endémique", IF($I47>0, IF($I47=4,"Inconnu",IF($I47=99,"Interrompu", $D47)), 0),"Non requis") -> 43162 | O47: =IF(INTRO!$E$42="Endémique", IF(AND($J47>1,$J47<5), IF($J47=4, "Inconnu", E47+F47), 0),"Non requis") -> 17101 | P47: =IF(INTRO!$E$44="Endémique", IF(AND($K47>0,$K47<5), IF($K47=4,"Inconnu", IF($K47=1, $F47*0.33, IF($K47=2, $F47*0.5+$G47*0.2, SUM(F47:G47)))), 0),"Non requis") -> 0 | Q47: 0 | R47: 1 | S47: 1 | T47: 0 | U47: MDA3 (IVM) | W47: 7458 | X47: YOKO | Z47: TRUE
A48: =IF(INTRO!$E$34<>0,INTRO!$E$34,"") -> Cameroon | B48: EAST | C48: ABONG MBANG | D48: 84225 | E48: =IF(INTRO!$E$48="","",ROUND($D48*INTRO!$E$48,0)) -> 10882 | F48: =IF(INTRO!$E$49="","",ROUND($D48*INTRO!$E$49,0)) -> 22488 | G48: =IF(INTRO!$E$50="","",ROUND($D48*INTRO!$E$50,0)) -> 47503 | H48: 0 | I48: 4 | J48: 2 | K48: 0 | L48: 1 | M48: =IF(INTRO!$E$38="Endémique", IF($H48>0, IF($H48=4,"Inconnu", IF($H48=99,"Interrompu", $D48)), 0),"Non requis") -> 0 | N48: =IF(INTRO!$E$40="Endémique", IF($I48>0, IF($I48=4,"Inconnu",IF($I48=99,"Interrompu", $D48)), 0),"Non requis") -> Inconnu | O48: =IF(INTRO!$E$42="Endémique", IF(AND($J48>1,$J48<5), IF($J48=4, "Inconnu", E48+F48), 0),"Non requis") -> 33370 | P48: =IF(INTRO!$E$44="Endémique", IF(AND($K48>0,$K48<5), IF($K48=4,"Inconnu", IF($K48=1, $F48*0.33, IF($K48=2, $F48*0.5+$G48*0.2, SUM(F48:G48)))), 0),"Non requis") -> 0 | Q48: 0 | R48: 0 | S48: 1 | T48: 0 | W48: 7459 | X48: ABONG MBANG | Z48: TRUE
A49: =IF(INTRO!$E$34<>0,INTRO!$E$34,"") -> Cameroon | B49: EAST | C49: BATOURI | D49: 105048 | E49: =IF(INTRO!$E$48="","",ROUND($D49*INTRO!$E$48,0)) -> 13572 | F49: =IF(INTRO!$E$49="","",ROUND($D49*INTRO!$E$49,0)) -> 28048 | G49: =IF(INTRO!$E$50="","",ROUND($D49*INTRO!$E$50,0)) -> 59247 | H49: 0 | I49: 4 | J49: 2 | K49: 0 | L49: 1 | M49: =IF(INTRO!$E$38="Endémique", IF($H49>0, IF($H49=4,"Inconnu", IF($H49=99,"Interrompu", $D49)), 0),"Non requis") -> 0 | N49: =IF(INTRO!$E$40="Endémique", IF($I49>0, IF($I49=4,"Inconnu",IF($I49=99,"Interrompu", $D49)), 0),"Non requis") -> Inconnu | O49: =IF(INTRO!$E$42="Endémique", IF(AND($J49>1,$J49<5), IF($J49=4, "Inconnu", E49+F49), 0),"Non requis") -> 41620 | P49: =IF(INTRO!$E$44="Endémique", IF(AND($K49>0,$K49<5), IF($K49=4,"Inconnu", IF($K49=1, $F49*0.33, IF($K49=2, $F49*0.5+$G49*0.2, SUM(F49:G49)))), 0),"Non requis") -> 0 | Q49: 0 | R49: 0 | S49: 1 | T49: 0 | W49: 7460 | X49: BATOURI | Z49: TRUE
A50: =IF(INTRO!$E$34<>0,INTRO!$E$34,"") -> Cameroon | B50: EAST | C50: BERTOUA | D50: 280291 | E50: =IF(INTRO!$E$48="","",ROUND($D50*INTRO!$E$48,0)) -> 36214 | F50: =IF(INTRO!$E$49="","",ROUND($D50*INTRO!$E$49,0)) -> 74838 | G50: =IF(INTRO!$E$50="","",ROUND($D50*INTRO!$E$50,0)) -> 158084 | H50: 1 | I50: 1 | J50: 2 | K50: 2 | L50: 1 | M50: =IF(INTRO!$E$38="Endémique", IF($H50>0, IF($H50=4,"Inconnu", IF($H50=99,"Interrompu", $D50)), 0),"Non requis") -> 280291 | N50: =IF(INTRO!$E$40="Endémique", IF($I50>0, IF($I50=4,"Inconnu",IF($I50=99,"Interrompu", $D50)), 0),"Non requis") -> 280291 | O50: =IF(INTRO!$E$42="Endémique", IF(AND($J50>1,$J50<5), IF($J50=4, "Inconnu", E50+F50), 0),"Non requis") -> 111052 | P50: =IF(INTRO!$E$44="Endémique", IF(AND($K50>0,$K50<5), IF($K50=4,"Inconnu", IF($K50=1, $F50*0.33, IF($K50=2, $F50*0.5+$G50*0.2, SUM(F50:G50)))), 0),"Non requis") -> 69035.8 | Q50: 1 | R50: 1 | S50: 1 | T50: 1 | U50: MDA1 (IVM+ALB) | V50: T2 (PZQ) | W50: 7461 | X50: BERTOUA | Z50: TRUE
A51: =IF(INTRO!$E$34<>0,INTRO!$E$34,"") -> Cameroon | B51: EAST | C51: BETARE OYA | D51: 108140 | E51: =IF(INTRO!$E$48="","",ROUND($D51*INTRO!$E$48,0)) -> 13972 | F51: =IF(INTRO!$E$49="","",ROUND($D51*INTRO!$E$49,0)) -> 28873 | G51: =IF(INTRO!$E$50="","",ROUND($D51*INTRO!$E$50,0)) -> 60991 | H51: 1 | I51: 1 | J51: 2 | K51: 0 | L51: 1 | M51: =IF(INTRO!$E$38="Endémique", IF($H51>0, IF($H51=4,"Inconnu", IF($H51=99,"Interrompu", $D51)), 0),"Non requis") -> 108140 | N51: =IF(INTRO!$E$40="Endémique", IF($I51>0, IF($I51=4,"Inconnu",IF($I51=99,"Interrompu", $D51)), 0),"Non requis") -> 108140 | O51: =IF(INTRO!$E$42="Endémique", IF(AND($J51>1,$J51<5), IF($J51=4, "Inconnu", E51+F51), 0),"Non requis") -> 42845 | P51: =IF(INTRO!$E$44="Endémique", IF(AND($K51>0,$K51<5), IF($K51=4,"Inconnu", IF($K51=1, $F51*0.33, IF($K51=2, $F51*0.5+$G51*0.2, SUM(F51:G51)))), 0),"Non requis") -> 0 | Q51: 1 | R51: 1 | S51: 1 | T51: 0 | U51: MDA1 (IVM+ALB) | W51: 7462 | X51: BETARE OYA | Z51: TRUE
A52: =IF(INTRO!$E$34<>0,INTRO!$E$34,"") -> Cameroon | B52: EAST | C52: DOUME | D52: 50161 | E52: =IF(INTRO!$E$48="","",ROUND($D52*INTRO!$E$48,0)) -> 6481 | F52: =IF(INTRO!$E$49="","",ROUND($D52*INTRO!$E$49,0)) -> 13393 | G52: =IF(INTRO!$E$50="","",ROUND($D52*INTRO!$E$50,0)) -> 28291 | H52: 0 | I52: 4 | J52: 2 | K52: 2 | L52: 1 | M52: =IF(INTRO!$E$38="Endémique", IF($H52>0, IF($H52=4,"Inconnu", IF($H52=99,"Interrompu", $D52)), 0),"Non requis") -> 0 | N52: =IF(INTRO!$E$40="Endémique", IF($I52>0, IF($I52=4,"Inconnu",IF($I52=99,"Interrompu", $D52)), 0),"Non requis") -> Inconnu | O52: =IF(INTRO!$E$42="Endémique", IF(AND($J52>1,$J52<5), IF($J52=4, "Inconnu", E52+F52), 0),"Non requis") -> 19874 | P52: =IF(INTRO!$E$44="Endémique", IF(AND($K52>0,$K52<5), IF($K52=4,"Inconnu", IF($K52=1, $F52*0.33, IF($K52=2, $F52*0.5+$G52*0.2, SUM(F52:G52)))), 0),"Non requis") -> 12354.7 | Q52: 0 | R52: 0 | S52: 1 | T52: 1 | W52: 7463 | X52: DOUME | Z52: TRUE
A53: =IF(INTRO!$E$34<>0,INTRO!$E$34,"") -> Cameroon | B53: EAST | C53: GAROUA BOULAI | D53: 62410 | E53: =IF(INTRO!$E$48="","",ROUND($D53*INTRO!$E$48,0)) -> 8063 | F53: =IF(INTRO!$E$49="","",ROUND($D53*INTRO!$E$49,0)) -> 16663 | G53: =IF(INTRO!$E$50="","",ROUND($D53*INTRO!$E$50,0)) -> 35199 | H53: 0 | I53: 4 | J53: 2 | K53: 0 | L53: 1 | M53: =IF(INTRO!$E$38="Endémique", IF($H53>0, IF($H53=4,"Inconnu", IF($H53=99,"Interrompu", $D53)), 0),"Non requis") -> 0 | N53: =IF(INTRO!$E$40="Endémique", IF($I53>0, IF($I53=4,"Inconnu",IF($I53=99,"Interrompu", $D53)), 0),"Non requis") -> Inconnu | O53: =IF(INTRO!$E$42="Endémique", IF(AND($J53>1,$J53<5), IF($J53=4, "Inconnu", E53+F53), 0),"Non requis") -> 24726 | P53: =IF(INTRO!$E$44="Endémique", IF(AND($K53>0,$K53<5), IF($K53=4,"Inconnu", IF($K53=1, $F53*0.33, IF($K53=2, $F53*0.5+$G53*0.2, SUM(F53:G53)))), 0),"Non requis") -> 0 | Q53: 0 | R53: 0 | S53: 1 | T53: 0 | W53: 7464 | X53: GAROUA BOULAI | Z53: TRUE
A54: =IF(INTRO!$E$34<>0,INTRO!$E$34,"") -> Cameroon | B54: EAST | C54: KETTE | D54: 63258 | E54: =IF(INTRO!$E$48="","",ROUND($D54*INTRO!$E$48,0)) -> 8173 | F54: =IF(INTRO!$E$49="","",ROUND($D54*INTRO!$E$49,0)) -> 16890 | G54: =IF(INTRO!$E$50="","",ROUND($D54*INTRO!$E$50,0)) -> 35678 | H54: 0 | I54: 4 | J54: 2 | K54: 2 | L54: 1 | M54: =IF(INTRO!$E$38="Endémique", IF($H54>0, IF($H54=4,"Inconnu", IF($H54=99,"Interrompu", $D54)), 0),"Non requis") -> 0 | N54: =IF(INTRO!$E$40="Endémique", IF($I54>0, IF($I54=4,"Inconnu",IF($I54=99,"Interrompu", $D54)), 0),"Non requis") -> Inconnu | O54: =IF(INTRO!$E$42="Endémique", IF(AND($J54>1,$J54<5), IF($J54=4, "Inconnu", E54+F54), 0),"Non requis") -> 25063 | P54: =IF(INTRO!$E$44="Endémique", IF(AND($K54>0,$K54<5), IF($K54=4,"Inconnu", IF($K54=1, $F54*0.33, IF($K54=2, $F54*0.5+$G54*0.2, SUM(F54:G54)))), 0),"Non requis") -> 15580.6 | Q54: 0 | R54: 0 | S54: 1 | T54: 1 | W54: 7465 | X54: KETTE | Z54: TRUE
A55: =IF(INTRO!$E$34<>0,INTRO!$E$34,"") -> Cameroon | B55: EAST | C55: LOMIE | D55: 35181 | E55: =IF(INTRO!$E$48="","",ROUND($D55*INTRO!$E$48,0)) -> 4545 | F55: =IF(INTRO!$E$49="","",ROUND($D55*INTRO!$E$49,0)) -> 9393 | G55: =IF(INTRO!$E$50="","",ROUND($D55*INTRO!$E$50,0)) -> 19842 | H55: 1 | I55: 1 | J55: 2 | K55: 0 | L55: 1 | M55: =IF(INTRO!$E$38="Endémique", IF($H55>0, IF($H55=4,"Inconnu", IF($H55=99,"Interrompu", $D55)), 0),"Non requis") -> 35181 | N55: =IF(INTRO!$E$40="Endémique", IF($I55>0, IF($I55=4,"Inconnu",IF($I55=99,"Interrompu", $D55)), 0),"Non requis") -> 35181 | O55: =IF(INTRO!$E$42="Endémique", IF(AND($J55>1,$J55<5), IF($J55=4, "Inconnu", E55+F55), 0),"Non requis") -> 13938 | P55: =IF(INTRO!$E$44="Endémique", IF(AND($K55>0,$K55<5), IF($K55=4,"Inconnu", IF($K55=1, $F55*0.33, IF($K55=2, $F55*0.5+$G55*0.2, SUM(F55:G55)))), 0),"Non requis") -> 0 | Q55: 1 | R55: 1 | S55: 1 | T55: 0 | U55: MDA1 (IVM+ALB) | W55: 7466 | X55: LOMIE | Z55: TRUE
A56: =IF(INTRO!$E$34<>0,INTRO!$E$34,"") -> Cameroon | B56: EAST | C56: MBANG | D56: 30809 | E56: =IF(INTRO!$E$48="","",ROUND($D56*INTRO!$E$48,0)) -> 3981 | F56: =IF(INTRO!$E$49="","",ROUND($D56*INTRO!$E$49,0)) -> 8226 | G56: =IF(INTRO!$E$50="","",ROUND($D56*INTRO!$E$50,0)) -> 17376 | H56: 0 | I56: 4 | J56: 2 | K56: 0 | L56: 1 | M56: =IF(INTRO!$E$38="Endémique", IF($H56>0, IF($H56=4,"Inconnu", IF($H56=99,"Interrompu", $D56)), 0),"Non requis") -> 0 | N56: =IF(INTRO!$E$40="Endémique", IF($I56>0, IF($I56=4,"Inconnu",IF($I56=99,"Interrompu", $D56)), 0),"Non requis") -> Inconnu | O56: =IF(INTRO!$E$42="Endémique", IF(AND($J56>1,$J56<5), IF($J56=4, "Inconnu", E56+F56), 0),"Non requis") -> 12207 | P56: =IF(INTRO!$E$44="Endémique", IF(AND($K56>0,$K56<5), IF($K56=4,"Inconnu", IF($K56=1, $F56*0.33, IF($K56=2, $F56*0.5+$G56*0.2, SUM(F56:G56)))), 0),"Non requis") -> 0 | Q56: 0 | R56: 0 | S56: 1 | T56: 0 | W56: 7467 | X56: MBANG | Z56: TRUE
A57: =IF(INTRO!$E$34<>0,INTRO!$E$34,"") -> Cameroon | B57: EAST | C57: MESSAMENA | D57: 27944 | E57: =IF(INTRO!$E$48="","",ROUND($D57*INTRO!$E$48,0)) -> 3610 | F57: =IF(INTRO!$E$49="","",ROUND($D57*INTRO!$E$49,0)) -> 7461 | G57: =IF(INTRO!$E$50="","",ROUND($D57*INTRO!$E$50,0)) -> 15760 | H57: 99 | I57: 1 | J57: 2 | K57: 0 | L57: 1 | M57: =IF(INTRO!$E$38="Endémique", IF($H57>0, IF($H57=4,"Inconnu", IF($H57=99,"Interrompu", $D57)), 0),"Non requis") -> Interrompu | N57: =IF(INTRO!$E$40="Endémique", IF($I57>0, IF($I57=4,"Inconnu",IF($I57=99,"Interrompu", $D57)), 0),"Non requis") -> 27944 | O57: =IF(INTRO!$E$42="Endémique", IF(AND($J57>1,$J57<5), IF($J57=4, "Inconnu", E57+F57), 0),"Non requis") -> 11071 | P57: =IF(INTRO!$E$44="Endémique", IF(AND($K57>0,$K57<5), IF($K57=4,"Inconnu", IF($K57=1, $F57*0.33, IF($K57=2, $F57*0.5+$G57*0.2, SUM(F57:G57)))), 0),"Non requis") -> 0 | Q57: 0 | R57: 1 | S57: 1 | T57: 0 | U57: MDA3 (IVM) | W57: 7468 | X57: MESSAMENA | Z57: TRUE
A58: =IF(INTRO!$E$34<>0,INTRO!$E$34,"") -> Cameroon | B58: EAST | C58: MOLOUNDOU | D58: 45058 | E58: =IF(INTRO!$E$48="","",ROUND($D58*INTRO!$E$48,0)) -> 5821 | F58: =IF(INTRO!$E$49="","",ROUND($D58*INTRO!$E$49,0)) -> 12030 | G58: =IF(INTRO!$E$50="","",ROUND($D58*INTRO!$E$50,0)) -> 25413 | H58: 0 | I58: 4 | J58: 2 | K58: 0 | L58: 1 | M58: =IF(INTRO!$E$38="Endémique", IF($H58>0, IF($H58=4,"Inconnu", IF($H58=99,"Interrompu", $D58)), 0),"Non requis") -> 0 | N58: =IF(INTRO!$E$40="Endémique", IF($I58>0, IF($I58=4,"Inconnu",IF($I58=99,"Interrompu", $D58)), 0),"Non requis") -> Inconnu | O58: =IF(INTRO!$E$42="Endémique", IF(AND($J58>1,$J58<5), IF($J58=4, "Inconnu", E58+F58), 0),"Non requis") -> 17851 | P58: =IF(INTRO!$E$44="Endémique", IF(AND($K58>0,$K58<5), IF($K58=4,"Inconnu", IF($K58=1, $F58*0.33, IF($K58=2, $F58*0.5+$G58*0.2, SUM(F58:G58)))), 0),"Non requis") -> 0 | Q58: 0 | R58: 0 | S58: 1 | T58: 0 | W58: 7469 | X58: MOLOUNDOU | Z58: TRUE
A59: =IF(INTRO!$E$34<>0,INTRO!$E$34,"") -> Cameroon | B59: EAST | C59: NDELELE | D59: 61835 | E59: =IF(INTRO!$E$48="","",ROUND($D59*INTRO!$E$48,0)) -> 7989 | F59: =IF(INTRO!$E$49="","",ROUND($D59*INTRO!$E$49,0)) -> 16510 | G59: =IF(INTRO!$E$50="","",ROUND($D59*INTRO!$E$50,0)) -> 34875 | H59: 0 | I59: 4 | J59: 2 | K59: 2 | L59: 1 | M59: =IF(INTRO!$E$38="Endémique", IF($H59>0, IF($H59=4,"Inconnu", IF($H59=99,"Interrompu", $D59)), 0),"Non requis") -> 0 | N59: =IF(INTRO!$E$40="Endémique", IF($I59>0, IF($I59=4,"Inconnu",IF($I59=99,"Interrompu", $D59)), 0),"Non requis") -> Inconnu | O59: =IF(INTRO!$E$42="Endémique", IF(AND($J59>1,$J59<5), IF($J59=4, "Inconnu", E59+F59), 0),"Non requis") -> 24499 | P59: =IF(INTRO!$E$44="Endémique", IF(AND($K59>0,$K59<5), IF($K59=4,"Inconnu", IF($K59=1, $F59*0.33, IF($K59=2, $F59*0.5+$G59*0.2, SUM(F59:G59)))), 0),"Non requis") -> 15230 | Q59: 0 | R59: 0 | S59: 1 | T59: 1 | W59: 7470 | X59: NDELELE | Z59: TRUE
A60: =IF(INTRO!$E$34<>0,INTRO!$E$34,"") -> Cameroon | B60: EAST | C60: NGUELEMENDOUKA | D60: 35477 | E60: =IF(INTRO!$E$48="","",ROUND($D60*INTRO!$E$48,0)) -> 4584 | F60: =IF(INTRO!$E$49="","",ROUND($D60*INTRO!$E$49,0)) -> 9472 | G60: =IF(INTRO!$E$50="","",ROUND($D60*INTRO!$E$50,0)) -> 20009 | H60: 0 | I60: 4 | J60: 2 | K60: 0 | L60: 1 | M60: =IF(INTRO!$E$38="Endémique", IF($H60>0, IF($H60=4,"Inconnu", IF($H60=99,"Interrompu", $D60)), 0),"Non requis") -> 0 | N60: =IF(INTRO!$E$40="Endémique", IF($I60>0, IF($I60=4,"Inconnu",IF($I60=99,"Interrompu", $D60)), 0),"Non requis") -> Inconnu | O60: =IF(INTRO!$E$42="Endémique", IF(AND($J60>1,$J60<5), IF($J60=4, "Inconnu", E60+F60), 0),"Non requis") -> 14056 | P60: =IF(INTRO!$E$44="Endémique", IF(AND($K60>0,$K60<5), IF($K60=4,"Inconnu", IF($K60=1, $F60*0.33, IF($K60=2, $F60*0.5+$G60*0.2, SUM(F60:G60)))), 0),"Non requis") -> 0 | Q60: 0 | R60: 0 | S60: 1 | T60: 0 | W60: 7471 | X60: NGUELEMENDOUKA | Z60: TRUE
A61: =IF(INTRO!$E$34<>0,INTRO!$E$34,"") -> Cameroon | B61: EAST | C61: YOKADOUMA | D61: 105330 | E61: =IF(INTRO!$E$48="","",ROUND($D61*INTRO!$E$48,0)) -> 13609 | F61: =IF(INTRO!$E$49="","",ROUND($D61*INTRO!$E$49,0)) -> 28123 | G61: =IF(INTRO!$E$50="","",ROUND($D61*INTRO!$E$50,0)) -> 59406 | H61: 0 | I61: 4 | J61: 2 | K61: 0 | L61: 1 | M61: =IF(INTRO!$E$38="Endémique", IF($H61>0, IF($H61=4,"Inconnu", IF($H61=99,"Interrompu", $D61)), 0),"Non requis") -> 0 | N61: =IF(INTRO!$E$40="Endémique", IF($I61>0, IF($I61=4,"Inconnu",IF($I61=99,"Interrompu", $D61)), 0),"Non requis") -> Inconnu | O61: =IF(INTRO!$E$42="Endémique", IF(AND($J61>1,$J61<5), IF($J61=4, "Inconnu", E61+F61), 0),"Non requis") -> 41732 | P61: =IF(INTRO!$E$44="Endémique", IF(AND($K61>0,$K61<5), IF($K61=4,"Inconnu", IF($K61=1, $F61*0.33, IF($K61=2, $F61*0.5+$G61*0.2, SUM(F61:G61)))), 0),"Non requis") -> 0 | Q61: 0 | R61: 0 | S61: 1 | T61: 0 | W61: 7472 | X61: YOKADOUMA | Z61: TRUE
A62: =IF(INTRO!$E$34<>0,INTRO!$E$34,"") -> Cameroon | B62: FAR-NORTH | C62: BOGO | D62: 119459 | E62: =IF(INTRO!$E$48="","",ROUND($D62*INTRO!$E$48,0)) -> 15434 | F62: =IF(INTRO!$E$49="","",ROUND($D62*INTRO!$E$49,0)) -> 31896 | G62: =IF(INTRO!$E$50="","",ROUND($D62*INTRO!$E$50,0)) -> 67375 | H62: 99 | I62: 4 | J62: 2 | K62: 2 | L62: 0 | M62: =IF(INTRO!$E$38="Endémique", IF($H62>0, IF($H62=4,"Inconnu", IF($H62=99,"Interrompu", $D62)), 0),"Non requis") -> Interrompu | N62: =IF(INTRO!$E$40="Endémique", IF($I62>0, IF($I62=4,"Inconnu",IF($I62=99,"Interrompu", $D62)), 0),"Non requis") -> Inconnu | O62: =IF(INTRO!$E$42="Endémique", IF(AND($J62>1,$J62<5), IF($J62=4, "Inconnu", E62+F62), 0),"Non requis") -> 47330 | P62: =IF(INTRO!$E$44="Endémique", IF(AND($K62>0,$K62<5), IF($K62=4,"Inconnu", IF($K62=1, $F62*0.33, IF($K62=2, $F62*0.5+$G62*0.2, SUM(F62:G62)))), 0),"Non requis") -> 29423 | Q62: 0 | R62: 0 | S62: 1 | T62: 1 | W62: 7473 | X62: BOGO | Z62: TRUE
A63: =IF(INTRO!$E$34<>0,INTRO!$E$34,"") -> Cameroon | B63: FAR-NORTH | C63: BOURHA | D63: 76945 | E63: =IF(INTRO!$E$48="","",ROUND($D63*INTRO!$E$48,0)) -> 9941 | F63: =IF(INTRO!$E$49="","",ROUND($D63*INTRO!$E$49,0)) -> 20544 | G63: =IF(INTRO!$E$50="","",ROUND($D63*INTRO!$E$50,0)) -> 43397 | H63: 99 | I63: 4 | J63: 2 | K63: 2 | L63: 4 | M63: =IF(INTRO!$E$38="Endémique", IF($H63>0, IF($H63=4,"Inconnu", IF($H63=99,"Interrompu", $D63)), 0),"Non requis") -> Interrompu | N63: =IF(INTRO!$E$40="Endémique", IF($I63>0, IF($I63=4,"Inconnu",IF($I63=99,"Interrompu", $D63)), 0),"Non requis") -> Inconnu | O63: =IF(INTRO!$E$42="Endémique", IF(AND($J63>1,$J63<5), IF($J63=4, "Inconnu", E63+F63), 0),"Non requis") -> 30485 | P63: =IF(INTRO!$E$44="Endémique", IF(AND($K63>0,$K63<5), IF($K63=4,"Inconnu", IF($K63=1, $F63*0.33, IF($K63=2, $F63*0.5+$G63*0.2, SUM(F63:G63)))), 0),"Non requis") -> 18951.4 | Q63: 0 | R63: 0 | S63: 1 | T63: 1 | W63: 7474 | X63: BOURHA | Z63: TRUE
A64: =IF(INTRO!$E$34<>0,INTRO!$E$34,"") -> Cameroon | B64: FAR-NORTH | C64: GAZAWA | D64: 70563 | E64: =IF(INTRO!$E$48="","",ROUND($D64*INTRO!$E$48,0)) -> 9117 | F64: =IF(INTRO!$E$49="","",ROUND($D64*INTRO!$E$49,0)) -> 18840 | G64: =IF(INTRO!$E$50="","",ROUND($D64*INTRO!$E$50,0)) -> 39798 | H64: 99 | I64: 4 | J64: 2 | K64: 2 | L64: 0 | M64: =IF(INTRO!$E$38="Endémique", IF($H64>0, IF($H64=4,"Inconnu", IF($H64=99,"Interrompu", $D64)), 0),"Non requis") -> Interrompu | N64: =IF(INTRO!$E$40="Endémique", IF($I64>0, IF($I64=4,"Inconnu",IF($I64=99,"Interrompu", $D64)), 0),"Non requis") -> Inconnu | O64: =IF(INTRO!$E$42="Endémique", IF(AND($J64>1,$J64<5), IF($J64=4, "Inconnu", E64+F64), 0),"Non requis") -> 27957 | P64: =IF(INTRO!$E$44="Endémique", IF(AND($K64>0,$K64<5), IF($K64=4,"Inconnu", IF($K64=1, $F64*0.33, IF($K64=2, $F64*0.5+$G64*0.2, SUM(F64:G64)))), 0),"Non requis") -> 17379.6 | Q64: 0 | R64: 0 | S64: 1 | T64: 1 | W64: 7475 | X64: GAZAWA | Z64: TRUE
A65: =IF(INTRO!$E$34<>0,INTRO!$E$34,"") -> Cameroon | B65: FAR-NORTH | C65: GOULFEY | D65: 101416 | E65: =IF(INTRO!$E$48="","",ROUND($D65*INTRO!$E$48,0)) -> 13103 | F65: =IF(INTRO!$E$49="","",ROUND($D65*INTRO!$E$49,0)) -> 27078 | G65: =IF(INTRO!$E$50="","",ROUND($D65*INTRO!$E$50,0)) -> 57199 | H65: 99 | I65: 4 | J65: 2 | K65: 2 | L65: 0 | M65: =IF(INTRO!$E$38="Endémique", IF($H65>0, IF($H65=4,"Inconnu", IF($H65=99,"Interrompu", $D65)), 0),"Non requis") -> Interrompu | N65: =IF(INTRO!$E$40="Endémique", IF($I65>0, IF($I65=4,"Inconnu",IF($I65=99,"Interrompu", $D65)), 0),"Non requis") -> Inconnu | O65: =IF(INTRO!$E$42="Endémique", IF(AND($J65>1,$J65<5), IF($J65=4, "Inconnu", E65+F65), 0),"Non requis") -> 40181 | P65: =IF(INTRO!$E$44="Endémique", IF(AND($K65>0,$K65<5), IF($K65=4,"Inconnu", IF($K65=1, $F65*0.33, IF($K65=2, $F65*0.5+$G65*0.2, SUM(F65:G65)))), 0),"Non requis") -> 24978.8 | Q65: 0 | R65: 0 | S65: 1 | T65: 1 | W65: 7476 | X65: GOULFEY | Z65: TRUE
A66: =IF(INTRO!$E$34<>0,INTRO!$E$34,"") -> Cameroon | B66: FAR-NORTH | C66: GUERE | D66: 122053 | E66: =IF(INTRO!$E$48="","",ROUND($D66*INTRO!$E$48,0)) -> 15769 | F66: =IF(INTRO!$E$49="","",ROUND($D66*INTRO!$E$49,0)) -> 32588 | G66: =IF(INTRO!$E$50="","",ROUND($D66*INTRO!$E$50,0)) -> 68838 | H66: 99 | I66: 4 | J66: 2 | K66: 2 | L66: 1 | M66: =IF(INTRO!$E$38="Endémique", IF($H66>0, IF($H66=4,"Inconnu", IF($H66=99,"Interrompu", $D66)), 0),"Non requis") -> Interrompu | N66: =IF(INTRO!$E$40="Endémique", IF($I66>0, IF($I66=4,"Inconnu",IF($I66=99,"Interrompu", $D66)), 0),"Non requis") -> Inconnu | O66: =IF(INTRO!$E$42="Endémique", IF(AND($J66>1,$J66<5), IF($J66=4, "Inconnu", E66+F66), 0),"Non requis") -> 48357 | P66: =IF(INTRO!$E$44="Endémique", IF(AND($K66>0,$K66<5), IF($K66=4,"Inconnu", IF($K66=1, $F66*0.33, IF($K66=2, $F66*0.5+$G66*0.2, SUM(F66:G66)))), 0),"Non requis") -> 30061.6 | Q66: 0 | R66: 0 | S66: 1 | T66: 1 | W66: 7477 | X66: GUERE | Z66: TRUE
A67: =IF(INTRO!$E$34<>0,INTRO!$E$34,"") -> Cameroon | B67: FAR-NORTH | C67: GUIDIGUIS | D67: 172835 | E67: =IF(INTRO!$E$48="","",ROUND($D67*INTRO!$E$48,0)) -> 22330 | F67: =IF(INTRO!$E$49="","",ROUND($D67*INTRO!$E$49,0)) -> 46147 | G67: =IF(INTRO!$E$50="","",ROUND($D67*INTRO!$E$50,0)) -> 97479 | H67: 99 | I67: 4 | J67: 2 | K67: 2 | L67: 0 | M67: =IF(INTRO!$E$38="Endémique", IF($H67>0, IF($H67=4,"Inconnu", IF($H67=99,"Interrompu", $D67)), 0),"Non requis") -> Interrompu | N67: =IF(INTRO!$E$40="Endémique", IF($I67>0, IF($I67=4,"Inconnu",IF($I67=99,"Interrompu", $D67)), 0),"Non requis") -> Inconnu | O67: =IF(INTRO!$E$42="Endémique", IF(AND($J67>1,$J67<5), IF($J67=4, "Inconnu", E67+F67), 0),"Non requis") -> 68477 | P67: =IF(INTRO!$E$44="Endémique", IF(AND($K67>0,$K67<5), IF($K67=4,"Inconnu", IF($K67=1, $F67*0.33, IF($K67=2, $F67*0.5+$G67*0.2, SUM(F67:G67)))), 0),"Non requis") -> 42569.3 | Q67: 0 | R67: 0 | S67: 1 | T67: 1 | W67: 7478 | X67: GUIDIGUIS | Z67: TRUE
A68: =IF(INTRO!$E$34<>0,INTRO!$E$34,"") -> Cameroon | B68: FAR-NORTH | C68: HINA | D68: 132492 | E68: =IF(INTRO!$E$48="","",ROUND($D68*INTRO!$E$48,0)) -> 17118 | F68: =IF(INTRO!$E$49="","",ROUND($D68*INTRO!$E$49,0)) -> 35375 | G68: =IF(INTRO!$E$50="","",ROUND($D68*INTRO!$E$50,0)) -> 74725 | H68: 99 | I68: 4 | J68: 2 | K68: 2 | L68: 4 | M68: =IF(INTRO!$E$38="Endémique", IF($H68>0, IF($H68=4,"Inconnu", IF($H68=99,"Interrompu", $D68)), 0),"Non requis") -> Interrompu | N68: =IF(INTRO!$E$40="Endémique", IF($I68>0, IF($I68=4,"Inconnu",IF($I68=99,"Interrompu", $D68)), 0),"Non requis") -> Inconnu | O68: =IF(INTRO!$E$42="Endémique", IF(AND($J68>1,$J68<5), IF($J68=4, "Inconnu", E68+F68), 0),"Non requis") -> 52493 | P68: =IF(INTRO!$E$44="Endémique", IF(AND($K68>0,$K68<5), IF($K68=4,"Inconnu", IF($K68=1, $F68*0.33, IF($K68=2, $F68*0.5+$G68*0.2, SUM(F68:G68)))), 0),"Non requis") -> 32632.5 | Q68: 0 | R68: 0 | S68: 1 | T68: 1 | W68: 7479 | X68: HINA | Z68: TRUE
A69: =IF(INTRO!$E$34<>0,INTRO!$E$34,"") -> Cameroon | B69: FAR-NORTH | C69: KAELE | D69: 114200 | E69: =IF(INTRO!$E$48="","",ROUND($D69*INTRO!$E$48,0)) -> 14755 | F69: =IF(INTRO!$E$49="","",ROUND($D69*INTRO!$E$49,0)) -> 30491 | G69: =IF(INTRO!$E$50="","",ROUND($D69*INTRO!$E$50,0)) -> 64409 | H69: 99 | I69: 4 | J69: 2 | K69: 2 | L69: 0 | M69: =IF(INTRO!$E$38="Endémique", IF($H69>0, IF($H69=4,"Inconnu", IF($H69=99,"Interrompu", $D69)), 0),"Non requis") -> Interrompu | N69: =IF(INTRO!$E$40="Endémique", IF($I69>0, IF($I69=4,"Inconnu",IF($I69=99,"Interrompu", $D69)), 0),"Non requis") -> Inconnu | O69: =IF(INTRO!$E$42="Endémique", IF(AND($J69>1,$J69<5), IF($J69=4, "Inconnu", E69+F69), 0),"Non requis") -> 45246 | P69: =IF(INTRO!$E$44="Endémique", IF(AND($K69>0,$K69<5), IF($K69=4,"Inconnu", IF($K69=1, $F69*0.33, IF($K69=2, $F69*0.5+$G69*0.2, SUM(F69:G69)))), 0),"Non requis") -> 28127.3 | Q69: 0 | R69: 0 | S69: 1 | T69: 1 | W69: 7480 | X69: KAELE | Z69: TRUE
A70: =IF(INTRO!$E$34<>0,INTRO!$E$34,"") -> Cameroon | B70: FAR-NORTH | C70: KAR HAY | D70: 127716 | E70: =IF(INTRO!$E$48="","",ROUND($D70*INTRO!$E$48,0)) -> 16501 | F70: =IF(INTRO!$E$49="","",ROUND($D70*INTRO!$E$49,0)) -> 34100 | G70: =IF(INTRO!$E$50="","",ROUND($D70*INTRO!$E$50,0)) -> 72032 | H70: 99 | I70: 4 | J70: 2 | K70: 2 | L70: 0 | M70: =IF(INTRO!$E$38="Endémique", IF($H70>0, IF($H70=4,"Inconnu", IF($H70=99,"Interrompu", $D70)), 0),"Non requis") -> Interrompu | N70: =IF(INTRO!$E$40="Endémique", IF($I70>0, IF($I70=4,"Inconnu",IF($I70=99,"Interrompu", $D70)), 0),"Non requis") -> Inconnu | O70: =IF(INTRO!$E$42="Endémique", IF(AND($J70>1,$J70<5), IF($J70=4, "Inconnu", E70+F70), 0),"Non requis") -> 50601 | P70: =IF(INTRO!$E$44="Endémique", IF(AND($K70>0,$K70<5), IF($K70=4,"Inconnu", IF($K70=1, $F70*0.33, IF($K70=2, $F70*0.5+$G70*0.2, SUM(F70:G70)))), 0),"Non requis") -> 31456.4 | Q70: 0 | R70: 0 | S70: 1 | T70: 1 | W70: 7481 | X70: KAR HAY | Z70: TRUE
A71: =IF(INTRO!$E$34<>0,INTRO!$E$34,"") -> Cameroon | B71: FAR-NORTH | C71: KOLOFATA | D71: 123518 | E71: =IF(INTRO!$E$48="","",ROUND($D71*INTRO!$E$48,0)) -> 15959 | F71: =IF(INTRO!$E$49="","",ROUND($D71*INTRO!$E$49,0)) -> 32979 | G71: =IF(INTRO!$E$50="","",ROUND($D71*INTRO!$E$50,0)) -> 69664 | H71: 99 | I71: 4 | J71: 2 | K71: 2 | L71: 4 | M71: =IF(INTRO!$E$38="Endémique", IF($H71>0, IF($H71=4,"Inconnu", IF($H71=99,"Interrompu", $D71)), 0),"Non requis") -> Interrompu | N71: =IF(INTRO!$E$40="Endémique", IF($I71>0, IF($I71=4,"Inconnu",IF($I71=99,"Interrompu", $D71)), 0),"Non requis") -> Inconnu | O71: =IF(INTRO!$E$42="Endémique", IF(AND($J71>1,$J71<5), IF($J71=4, "Inconnu", E71+F71), 0),"Non requis") -> 48938 | P71: =IF(INTRO!$E$44="Endémique", IF(AND($K71>0,$K71<5), IF($K71=4,"Inconnu", IF($K71=1, $F71*0.33, IF($K71=2, $F71*0.5+$G71*0.2, SUM(F71:G71)))), 0),"Non requis") -> 30422.3 | Q71: 0 | R71: 0 | S71: 1 | T71: 1 | W71: 7482 | X71: KOLOFATA | Z71: TRUE
A72: =IF(INTRO!$E$34<>0,INTRO!$E$34,"") -> Cameroon | B72: FAR-NORTH | C72: KOUSSERI | D72: 372386 | E72: =IF(INTRO!$E$48="","",ROUND($D72*INTRO!$E$48,0)) -> 48112 | F72: =IF(INTRO!$E$49="","",ROUND($D72*INTRO!$E$49,0)) -> 99427 | G72: =IF(INTRO!$E$50="","",ROUND($D72*INTRO!$E$50,0)) -> 210026 | H72: 99 | I72: 4 | J72: 2 | K72: 2 | L72: 0 | M72: =IF(INTRO!$E$38="Endémique", IF($H72>0, IF($H72=4,"Inconnu", IF($H72=99,"Interrompu", $D72)), 0),"Non requis") -> Interrompu | N72: =IF(INTRO!$E$40="Endémique", IF($I72>0, IF($I72=4,"Inconnu",IF($I72=99,"Interrompu", $D72)), 0),"Non requis") -> Inconnu | O72: =IF(INTRO!$E$42="Endémique", IF(AND($J72>1,$J72<5), IF($J72=4, "Inconnu", E72+F72), 0),"Non requis") -> 147539 | P72: =IF(INTRO!$E$44="Endémique", IF(AND($K72>0,$K72<5), IF($K72=4,"Inconnu", IF($K72=1, $F72*0.33, IF($K72=2, $F72*0.5+$G72*0.2, SUM(F72:G72)))), 0),"Non requis") -> 91718.7 | Q72: 0 | R72: 0 | S72: 1 | T72: 1 | W72: 7483 | X72: KOUSSERI | Z72: TRUE
A73: =IF(INTRO!$E$34<>0,INTRO!$E$34,"") -> Cameroon | B73: FAR-NORTH | C73: KOZA | D73: 193503 | E73: =IF(INTRO!$E$48="","",ROUND($D73*INTRO!$E$48,0)) -> 25001 | F73: =IF(INTRO!$E$49="","",ROUND($D73*INTRO!$E$49,0)) -> 51665 | G73: =IF(INTRO!$E$50="","",ROUND($D73*INTRO!$E$50,0)) -> 109136 | H73: 99 | I73: 1 | J73: 2 | K73: 2 | L73: 4 | M73: =IF(INTRO!$E$38="Endémique", IF($H73>0, IF($H73=4,"Inconnu", IF($H73=99,"Interrompu", $D73)), 0),"Non requis") -> Interrompu | N73: =IF(INTRO!$E$40="Endémique", IF($I73>0, IF($I73=4,"Inconnu",IF($I73=99,"Interrompu", $D73)), 0),"Non requis") -> 193503 | O73: =IF(INTRO!$E$42="Endémique", IF(AND($J73>1,$J73<5), IF($J73=4, "Inconnu", E73+F73), 0),"Non requis") -> 76666 | P73: =IF(INTRO!$E$44="Endémique", IF(AND($K73>0,$K73<5), IF($K73=4,"Inconnu", IF($K73=1, $F73*0.33, IF($K73=2, $F73*0.5+$G73*0.2, SUM(F73:G73)))), 0),"Non requis") -> 47659.7 | Q73: 0 | R73: 1 | S73: 1 | T73: 1 | U73: MDA3 (IVM) | W73: 7484 | X73: KOZA | Z73: TRUE
A74: =IF(INTRO!$E$34<>0,INTRO!$E$34,"") -> Cameroon | B74: FAR-NORTH | C74: MADA | D74: 152592 | E74: =IF(INTRO!$E$48="","",ROUND($D74*INTRO!$E$48,0)) -> 19715 | F74: =IF(INTRO!$E$49="","",ROUND($D74*INTRO!$E$49,0)) -> 40742 | G74: =IF(INTRO!$E$50="","",ROUND($D74*INTRO!$E$50,0)) -> 86062 | H74: 99 | I74: 4 | J74: 2 | K74: 2 | L74: 0 | M74: =IF(INTRO!$E$38="Endémique", IF($H74>0, IF($H74=4,"Inconnu", IF($H74=99,"Interrompu", $D74)), 0),"Non requis") -> Interrompu | N74: =IF(INTRO!$E$40="Endémique", IF($I74>0, IF($I74=4,"Inconnu",IF($I74=99,"Interrompu", $D74)), 0),"Non requis") -> Inconnu | O74: =IF(INTRO!$E$42="Endémique", IF(AND($J74>1,$J74<5), IF($J74=4, "Inconnu", E74+F74), 0),"Non requis") -> 60457 | P74: =IF(INTRO!$E$44="Endémique", IF(AND($K74>0,$K74<5), IF($K74=4,"Inconnu", IF($K74=1, $F74*0.33, IF($K74=2, $F74*0.5+$G74*0.2, SUM(F74:G74)))), 0),"Non requis") -> 37583.4 | Q74: 0 | R74: 0 | S74: 1 | T74: 1 | W74: 7485 | X74: MADA | Z74: =X74=C74 -> TRUE
A75: =IF(INTRO!$E$34<>0,INTRO!$E$34,"") -> Cameroon | B75: FAR-NORTH | C75: MAGA | D75: 180544 | E75: =IF(INTRO!$E$48="","",ROUND($D75*INTRO!$E$48,0)) -> 23326 | F75: =IF(INTRO!$E$49="","",ROUND($D75*INTRO!$E$49,0)) -> 48205 | G75: =IF(INTRO!$E$50="","",ROUND($D75*INTRO!$E$50,0)) -> 101827 | H75: 99 | I75: 4 | J75: 2 | K75: 2 | L75: 0 | M75: =IF(INTRO!$E$38="Endémique", IF($H75>0, IF($H75=4,"Inconnu", IF($H75=99,"Interrompu", $D75)), 0),"Non requis") -> Interrompu | N75: =IF(INTRO!$E$40="Endémique", IF($I75>0, IF($I75=4,"Inconnu",IF($I75=99,"Interrompu", $D75)), 0),"Non requis") -> Inconnu | O75: =IF(INTRO!$E$42="Endémique", IF(AND($J75>1,$J75<5), IF($J75=4, "Inconnu", E75+F75), 0),"Non requis") -> 71531 | P75: =IF(INTRO!$E$44="Endémique", IF(AND($K75>0,$K75<5), IF($K75=4,"Inconnu", IF($K75=1, $F75*0.33, IF($K75=2, $F75*0.5+$G75*0.2, SUM(F75:G75)))), 0),"Non requis") -> 44467.9 | Q75: 0 | R75: 0 | S75: 1 | T75: 1 | V75: T2 (PZQ) | W75: 7486 | X75: MAGA | Z75: TRUE
A76: =IF(INTRO!$E$34<>0,INTRO!$E$34,"") -> Cameroon | B76: FAR-NORTH | C76: MAKARY | D76: 208835 | E76: =IF(INTRO!$E$48="","",ROUND($D76*INTRO!$E$48,0)) -> 26981 | F76: =IF(INTRO!$E$49="","",ROUND($D76*INTRO!$E$49,0)) -> 55759 | G76: =IF(INTRO!$E$50="","",ROUND($D76*INTRO!$E$50,0)) -> 117783 | H76: 99 | I76: 4 | J76: 2 | K76: 2 | L76: 0 | M76: =IF(INTRO!$E$38="Endémique", IF($H76>0, IF($H76=4,"Inconnu", IF($H76=99,"Interrompu", $D76)), 0),"Non requis") -> Interrompu | N76: =IF(INTRO!$E$40="Endémique", IF($I76>0, IF($I76=4,"Inconnu",IF($I76=99,"Interrompu", $D76)), 0),"Non requis") -> Inconnu | O76: =IF(INTRO!$E$42="Endémique", IF(AND($J76>1,$J76<5), IF($J76=4, "Inconnu", E76+F76), 0),"Non requis") -> 82740 | P76: =IF(INTRO!$E$44="Endémique", IF(AND($K76>0,$K76<5), IF($K76=4,"Inconnu", IF($K76=1, $F76*0.33, IF($K76=2, $F76*0.5+$G76*0.2, SUM(F76:G76)))), 0),"Non requis") -> 51436.1 | Q76: 0 | R76: 0 | S76: 1 | T76: 1 | W76: 7487 | X76: MAKARY | Z76: TRUE
A77: =IF(INTRO!$E$34<>0,INTRO!$E$34,"") -> Cameroon | B77: FAR-NORTH | C77: MAROUA 1 | D77: 178198 | E77: =IF(INTRO!$E$48="","",ROUND($D77*INTRO!$E$48,0)) -> 23023 | F77: =IF(INTRO!$E$49="","",ROUND($D77*INTRO!$E$49,0)) -> 47579 | G77: =IF(INTRO!$E$50="","",ROUND($D77*INTRO!$E$50,0)) -> 100504 | H77: 99 | I77: 4 | J77: 2 | K77: 2 | L77: 0 | M77: =IF(INTRO!$E$38="Endémique", IF($H77>0, IF($H77=4,"Inconnu", IF($H77=99,"Interrompu", $D77)), 0),"Non requis") -> Interrompu | N77: =IF(INTRO!$E$40="Endémique", IF($I77>0, IF($I77=4,"Inconnu",IF($I77=99,"Interrompu", $D77)), 0),"Non requis") -> Inconnu | O77: =IF(INTRO!$E$42="Endémique", IF(AND($J77>1,$J77<5), IF($J77=4, "Inconnu", E77+F77), 0),"Non requis") -> 70602 | P77: =IF(INTRO!$E$44="Endémique", IF(AND($K77>0,$K77<5), IF($K77=4,"Inconnu", IF($K77=1, $F77*0.33, IF($K77=2, $F77*0.5+$G77*0.2, SUM(F77:G77)))), 0),"Non requis") -> 43890.3 | Q77: 0 | R77: 0 | S77: 1 | T77: 1 | W77: 7488 | X77: MAROUA 1 | Z77: TRUE
A78: =IF(INTRO!$E$34<>0,INTRO!$E$34,"") -> Cameroon | B78: FAR-NORTH | C78: MAROUA 2 | D78: 184217 | E78: =IF(INTRO!$E$48="","",ROUND($D78*INTRO!$E$48,0)) -> 23801 | F78: =IF(INTRO!$E$49="","",ROUND($D78*INTRO!$E$49,0)) -> 49186 | G78: =IF(INTRO!$E$50="","",ROUND($D78*INTRO!$E$50,0)) -> 103898 | H78: 99 | I78: 4 | J78: 2 | K78: 2 | L78: 4 | M78: =IF(INTRO!$E$38="Endémique", IF($H78>0, IF($H78=4,"Inconnu", IF($H78=99,"Interrompu", $D78)), 0),"Non requis") -> Interrompu | N78: =IF(INTRO!$E$40="Endémique", IF($I78>0, IF($I78=4,"Inconnu",IF($I78=99,"Interrompu", $D78)), 0),"Non requis") -> Inconnu | O78: =IF(INTRO!$E$42="Endémique", IF(AND($J78>1,$J78<5), IF($J78=4, "Inconnu", E78+F78), 0),"Non requis") -> 72987 | P78: =IF(INTRO!$E$44="Endémique", IF(AND($K78>0,$K78<5), IF($K78=4,"Inconnu", IF($K78=1, $F78*0.33, IF($K78=2, $F78*0.5+$G78*0.2, SUM(F78:G78)))), 0),"Non requis") -> 45372.6 | Q78: 0 | R78: 0 | S78: 1 | T78: 1 | W78: 7489 | X78: MAROUA 2 | Z78: TRUE
A79: =IF(INTRO!$E$34<>0,INTRO!$E$34,"") -> Cameroon | B79: FAR-NORTH | C79: MAROUA 3 | D79: 148635 | E79: =IF(INTRO!$E$48="","",ROUND($D79*INTRO!$E$48,0)) -> 19204 | F79: =IF(INTRO!$E$49="","",ROUND($D79*INTRO!$E$49,0)) -> 39686 | G79: =IF(INTRO!$E$50="","",ROUND($D79*INTRO!$E$50,0)) -> 83830 | H79: 99 | I79: 4 | J79: 2 | K79: 2 | L79: 0 | M79: =IF(INTRO!$E$38="Endémique", IF($H79>0, IF($H79=4,"Inconnu", IF($H79=99,"Interrompu", $D79)), 0),"Non requis") -> Interrompu | N79: =IF(INTRO!$E$40="Endémique", IF($I79>0, IF($I79=4,"Inconnu",IF($I79=99,"Interrompu", $D79)), 0),"Non requis") -> Inconnu | O79: =IF(INTRO!$E$42="Endémique", IF(AND($J79>1,$J79<5), IF($J79=4, "Inconnu", E79+F79), 0),"Non requis") -> 58890 | P79: =IF(INTRO!$E$44="Endémique", IF(AND($K79>0,$K79<5), IF($K79=4,"Inconnu", IF($K79=1, $F79*0.33, IF($K79=2, $F79*0.5+$G79*0.2, SUM(F79:G79)))), 0),"Non requis") -> 36609 | Q79: 0 | R79: 0 | S79: 1 | T79: 1 | W79: 7490 | X79: MAROUA 3 | Z79: TRUE
A80: =IF(INTRO!$E$34<>0,INTRO!$E$34,"") -> Cameroon | B80: FAR-NORTH | C80: MERI | D80: 165111 | E80: =IF(INTRO!$E$48="","",ROUND($D80*INTRO!$E$48,0)) -> 21332 | F80: =IF(INTRO!$E$49="","",ROUND($D80*INTRO!$E$49,0)) -> 44085 | G80: =IF(INTRO!$E$50="","",ROUND($D80*INTRO!$E$50,0)) -> 93123 | H80: 99 | I80: 4 | J80: 2 | K80: 2 | L80: 4 | M80: =IF(INTRO!$E$38="Endémique", IF($H80>0, IF($H80=4,"Inconnu", IF($H80=99,"Interrompu", $D80)), 0),"Non requis") -> Interrompu | N80: =IF(INTRO!$E$40="Endémique", IF($I80>0, IF($I80=4,"Inconnu",IF($I80=99,"Interrompu", $D80)), 0),"Non requis") -> Inconnu | O80: =IF(INTRO!$E$42="Endémique", IF(AND($J80>1,$J80<5), IF($J80=4, "Inconnu", E80+F80), 0),"Non requis") -> 65417 | P80: =IF(INTRO!$E$44="Endémique", IF(AND($K80>0,$K80<5), IF($K80=4,"Inconnu", IF($K80=1, $F80*0.33, IF($K80=2, $F80*0.5+$G80*0.2, SUM(F80:G80)))), 0),"Non requis") -> 40667.1 | Q80: 0 | R80: 0 | S80: 1 | T80: 1 | W80: 7491 | X80: MERI | Z80: TRUE
A81: =IF(INTRO!$E$34<>0,INTRO!$E$34,"") -> Cameroon | B81: FAR-NORTH | C81: MINDIF | D81: 58807 | E81: =IF(INTRO!$E$48="","",ROUND($D81*INTRO!$E$48,0)) -> 7598 | F81: =IF(INTRO!$E$49="","",ROUND($D81*INTRO!$E$49,0)) -> 15701 | G81: =IF(INTRO!$E$50="","",ROUND($D81*INTRO!$E$50,0)) -> 33167 | H81: 99 | I81: 4 | J81: 2 | K81: 2 | L81: 0 | M81: =IF(INTRO!$E$38="Endémique", IF($H81>0, IF($H81=4,"Inconnu", IF($H81=99,"Interrompu", $D81)), 0),"Non requis") -> Interrompu | N81: =IF(INTRO!$E$40="Endémique", IF($I81>0, IF($I81=4,"Inconnu",IF($I81=99,"Interrompu", $D81)), 0),"Non requis") -> Inconnu | O81: =IF(INTRO!$E$42="Endémique", IF(AND($J81>1,$J81<5), IF($J81=4, "Inconnu", E81+F81), 0),"Non requis") -> 23299 | P81: =IF(INTRO!$E$44="Endémique", IF(AND($K81>0,$K81<5), IF($K81=4,"Inconnu", IF($K81=1, $F81*0.33, IF($K81=2, $F81*0.5+$G81*0.2, SUM(F81:G81)))), 0),"Non requis") -> 14483.9 | Q81: 0 | R81: 0 | S81: 1 | T81: 1 | W81: 7492 | X81: MINDIF | Z81: TRUE
A82: =IF(INTRO!$E$34<>0,INTRO!$E$34,"") -> Cameroon | B82: FAR-NORTH | C82: MOGODE | D82: 115968 | E82: =IF(INTRO!$E$48="","",ROUND($D82*INTRO!$E$48,0)) -> 14983 | F82: =IF(INTRO!$E$49="","",ROUND($D82*INTRO!$E$49,0)) -> 30963 | G82: =IF(INTRO!$E$50="","",ROUND($D82*INTRO!$E$50,0)) -> 65406 | H82: 99 | I82: 4 | J82: 2 | K82: 2 | L82: 4 | M82: =IF(INTRO!$E$38="Endémique", IF($H82>0, IF($H82=4,"Inconnu", IF($H82=99,"Interrompu", $D82)), 0),"Non requis") -> Interrompu | N82: =IF(INTRO!$E$40="Endémique", IF($I82>0, IF($I82=4,"Inconnu",IF($I82=99,"Interrompu", $D82)), 0),"Non requis") -> Inconnu | O82: =IF(INTRO!$E$42="Endémique", IF(AND($J82>1,$J82<5), IF($J82=4, "Inconnu", E82+F82), 0),"Non requis") -> 45946 | P82: =IF(INTRO!$E$44="Endémique", IF(AND($K82>0,$K82<5), IF($K82=4,"Inconnu", IF($K82=1, $F82*0.33, IF($K82=2, $F82*0.5+$G82*0.2, SUM(F82:G82)))), 0),"Non requis") -> 28562.7 | Q82: 0 | R82: 0 | S82: 1 | T82: 1 | W82: 7493 | X82: MOGODE | Z82: TRUE
A83: =IF(INTRO!$E$34<>0,INTRO!$E$34,"") -> Cameroon | B83: FAR-NORTH | C83: MOKOLO | D83: 236377 | E83: =IF(INTRO!$E$48="","",ROUND($D83*INTRO!$E$48,0)) -> 30540 | F83: =IF(INTRO!$E$49="","",ROUND($D83*INTRO!$E$49,0)) -> 63113 | G83: =IF(INTRO!$E$50="","",ROUND($D83*INTRO!$E$50,0)) -> 133317 | H83: 99 | I83: 1 | J83: 2 | K83: 2 | L83: 4 | M83: =IF(INTRO!$E$38="Endémique", IF($H83>0, IF($H83=4,"Inconnu", IF($H83=99,"Interrompu", $D83)), 0),"Non requis") -> Interrompu | N83: =IF(INTRO!$E$40="Endémique", IF($I83>0, IF($I83=4,"Inconnu",IF($I83=99,"Interrompu", $D83)), 0),"Non requis") -> 236377 | O83: =IF(INTRO!$E$42="Endémique", IF(AND($J83>1,$J83<5), IF($J83=4, "Inconnu", E83+F83), 0),"Non requis") -> 93653 | P83: =IF(INTRO!$E$44="Endémique", IF(AND($K83>0,$K83<5), IF($K83=4,"Inconnu", IF($K83=1, $F83*0.33, IF($K83=2, $F83*0.5+$G83*0.2, SUM(F83:G83)))), 0),"Non requis") -> 58219.9 | Q83: 0 | R83: 1 | S83: 1 | T83: 1 | U83: MDA3 (IVM) | V83: T2 (PZQ) | W83: 7494 | X83: MOKOLO | Z83: TRUE
A84: =IF(INTRO!$E$34<>0,INTRO!$E$34,"") -> Cameroon | B84: FAR-NORTH | C84: MORA | D84: 262785 | E84: =IF(INTRO!$E$48="","",ROUND($D84*INTRO!$E$48,0)) -> 33952 | F84: =IF(INTRO!$E$49="","",ROUND($D84*INTRO!$E$49,0)) -> 70164 | G84: =IF(INTRO!$E$50="","",ROUND($D84*INTRO!$E$50,0)) -> 148211 | H84: 99 | I84: 4 | J84: 2 | K84: 2 | L84: 4 | M84: =IF(INTRO!$E$38="Endémique", IF($H84>0, IF($H84=4,"Inconnu", IF($H84=99,"Interrompu", $D84)), 0),"Non requis") -> Interrompu | N84: =IF(INTRO!$E$40="Endémique", IF($I84>0, IF($I84=4,"Inconnu",IF($I84=99,"Interrompu", $D84)), 0),"Non requis") -> Inconnu | O84: =IF(INTRO!$E$42="Endémique", IF(AND($J84>1,$J84<5), IF($J84=4, "Inconnu", E84+F84), 0),"Non requis") -> 104116 | P84: =IF(INTRO!$E$44="Endémique", IF(AND($K84>0,$K84<5), IF($K84=4,"Inconnu", IF($K84=1, $F84*0.33, IF($K84=2, $F84*0.5+$G84*0.2, SUM(F84:G84)))), 0),"Non requis") -> 64724.2 | Q84: 0 | R84: 0 | S84: 1 | T84: 1 | W84: 7495 | X84: MORA | Z84: TRUE
A85: =IF(INTRO!$E$34<>0,INTRO!$E$34,"") -> Cameroon | B85: FAR-NORTH | C85: MOULVOUDAYE | D85: 144596 | E85: =IF(INTRO!$E$48="","",ROUND($D85*INTRO!$E$48,0)) -> 18682 | F85: =IF(INTRO!$E$49="","",ROUND($D85*INTRO!$E$49,0)) -> 38607 | G85: =IF(INTRO!$E$50="","",ROUND($D85*INTRO!$E$50,0)) -> 81552 | H85: 99 | I85: 4 | J85: 2 | K85: 2 | L85: 0 | M85: =IF(INTRO!$E$38="Endémique", IF($H85>0, IF($H85=4,"Inconnu", IF($H85=99,"Interrompu", $D85)), 0),"Non requis") -> Interrompu | N85: =IF(INTRO!$E$40="Endémique", IF($I85>0, IF($I85=4,"Inconnu",IF($I85=99,"Interrompu", $D85)), 0),"Non requis") -> Inconnu | O85: =IF(INTRO!$E$42="Endémique", IF(AND($J85>1,$J85<5), IF($J85=4, "Inconnu", E85+F85), 0),"Non requis") -> 57289 | P85: =IF(INTRO!$E$44="Endémique", IF(AND($K85>0,$K85<5), IF($K85=4,"Inconnu", IF($K85=1, $F85*0.33, IF($K85=2, $F85*0.5+$G85*0.2, SUM(F85:G85)))), 0),"Non requis") -> 35613.9 | Q85: 0 | R85: 0 | S85: 1 | T85: 1 | W85: 7496 | X85: MOULVOUDAYE | Z85: TRUE
A86: =IF(INTRO!$E$34<>0,INTRO!$E$34,"") -> Cameroon | B86: FAR-NORTH | C86: MOUTOURWA | D86: 51891 | E86: =IF(INTRO!$E$48="","",ROUND($D86*INTRO!$E$48,0)) -> 6704 | F86: =IF(INTRO!$E$49="","",ROUND($D86*INTRO!$E$49,0)) -> 13855 | G86: =IF(INTRO!$E$50="","",ROUND($D86*INTRO!$E$50,0)) -> 29267 | H86: 99 | I86: 4 | J86: 2 | K86: 2 | L86: 0 | M86: =IF(INTRO!$E$38="Endémique", IF($H86>0, IF($H86=4,"Inconnu", IF($H86=99,"Interrompu", $D86)), 0),"Non requis") -> Interrompu | N86: =IF(INTRO!$E$40="Endémique", IF($I86>0, IF($I86=4,"Inconnu",IF($I86=99,"Interrompu", $D86)), 0),"Non requis") -> Inconnu | O86: =IF(INTRO!$E$42="Endémique", IF(AND($J86>1,$J86<5), IF($J86=4, "Inconnu", E86+F86), 0),"Non requis") -> 20559 | P86: =IF(INTRO!$E$44="Endémique", IF(AND($K86>0,$K86<5), IF($K86=4,"Inconnu", IF($K86=1, $F86*0.33, IF($K86=2, $F86*0.5+$G86*0.2, SUM(F86:G86)))), 0),"Non requis") -> 12780.9 | Q86: 0 | R86: 0 | S86: 1 | T86: 1 | W86: 7497 | X86: MOUTOURWA | Z86: TRUE
A87: =IF(INTRO!$E$34<>0,INTRO!$E$34,"") -> Cameroon | B87: FAR-NORTH | C87: PETTE | D87: 58195 | E87: =IF(INTRO!$E$48="","",ROUND($D87*INTRO!$E$48,0)) -> 7519 | F87: =IF(INTRO!$E$49="","",ROUND($D87*INTRO!$E$49,0)) -> 15538 | G87: =IF(INTRO!$E$50="","",ROUND($D87*INTRO!$E$50,0)) -> 32822 | H87: 99 | I87: 4 | J87: 2 | K87: 2 | L87: 4 | M87: =IF(INTRO!$E$38="Endémique", IF($H87>0, IF($H87=4,"Inconnu", IF($H87=99,"Interrompu", $D87)), 0),"Non requis") -> Interrompu | N87: =IF(INTRO!$E$40="Endémique", IF($I87>0, IF($I87=4,"Inconnu",IF($I87=99,"Interrompu", $D87)), 0),"Non requis") -> Inconnu | O87: =IF(INTRO!$E$42="Endémique", IF(AND($J87>1,$J87<5), IF($J87=4, "Inconnu", E87+F87), 0),"Non requis") -> 23057 | P87: =IF(INTRO!$E$44="Endémique", IF(AND($K87>0,$K87<5), IF($K87=4,"Inconnu", IF($K87=1, $F87*0.33, IF($K87=2, $F87*0.5+$G87*0.2, SUM(F87:G87)))), 0),"Non requis") -> 14333.4 | Q87: 0 | R87: 0 | S87: 1 | T87: 1 | W87: 7498 | X87: PETTE | Z87: TRUE
A88: =IF(INTRO!$E$34<>0,INTRO!$E$34,"") -> Cameroon | B88: FAR-NORTH | C88: ROUA | D88: 91735 | E88: =IF(INTRO!$E$48="","",ROUND($D88*INTRO!$E$48,0)) -> 11852 | F88: =IF(INTRO!$E$49="","",ROUND($D88*INTRO!$E$49,0)) -> 24493 | G88: =IF(INTRO!$E$50="","",ROUND($D88*INTRO!$E$50,0)) -> 51739 | H88: 99 | I88: 1 | J88: 2 | K88: 2 | L88: 4 | M88: =IF(INTRO!$E$38="Endémique", IF($H88>0, IF($H88=4,"Inconnu", IF($H88=99,"Interrompu", $D88)), 0),"Non requis") -> Interrompu | N88: =IF(INTRO!$E$40="Endémique", IF($I88>0, IF($I88=4,"Inconnu",IF($I88=99,"Interrompu", $D88)), 0),"Non requis") -> 91735 | O88: =IF(INTRO!$E$42="Endémique", IF(AND($J88>1,$J88<5), IF($J88=4, "Inconnu", E88+F88), 0),"Non requis") -> 36345 | P88: =IF(INTRO!$E$44="Endémique", IF(AND($K88>0,$K88<5), IF($K88=4,"Inconnu", IF($K88=1, $F88*0.33, IF($K88=2, $F88*0.5+$G88*0.2, SUM(F88:G88)))), 0),"Non requis") -> 22594.3 | Q88: 0 | R88: 1 | S88: 1 | T88: 1 | U88: MDA3 (IVM) | W88: 7499 | X88: ROUA | Z88: TRUE
A89: =IF(INTRO!$E$34<>0,INTRO!$E$34,"") -> Cameroon | B89: FAR-NORTH | C89: TOKOMBERE | D89: 145198 | E89: =IF(INTRO!$E$48="","",ROUND($D89*INTRO!$E$48,0)) -> 18760 | F89: 48000 | G89: =IF(INTRO!$E$50="","",ROUND($D89*INTRO!$E$50,0)) -> 81892 | H89: 99 | I89: 4 | J89: 2 | K89: 2 | L89: 4 | M89: =IF(INTRO!$E$38="Endémique", IF($H89>0, IF($H89=4,"Inconnu", IF($H89=99,"Interrompu", $D89)), 0),"Non requis") -> Interrompu | N89: =IF(INTRO!$E$40="Endémique", IF($I89>0, IF($I89=4,"Inconnu",IF($I89=99,"Interrompu", $D89)), 0),"Non requis") -> Inconnu | O89: =IF(INTRO!$E$42="Endémique", IF(AND($J89>1,$J89<5), IF($J89=4, "Inconnu", E89+F89), 0),"Non requis") -> 66760 | P89: =IF(INTRO!$E$44="Endémique", IF(AND($K89>0,$K89<5), IF($K89=4,"Inconnu", IF($K89=1, $F89*0.33, IF($K89=2, $F89*0.5+$G89*0.2, SUM(F89:G89)))), 0),"Non requis") -> 40378.4 | Q89: 0 | R89: 0 | S89: 1 | T89: 1 | W89: 7500 | X89: TOKOMBERE | Z89: TRUE
A90: =IF(INTRO!$E$34<>0,INTRO!$E$34,"") -> Cameroon | B90: FAR-NORTH | C90: VELE | D90: 108086 | E90: =IF(INTRO!$E$48="","",ROUND($D90*INTRO!$E$48,0)) -> 13965 | F90: 48000 | G90: 71599 | H90: 99 | I90: 4 | J90: 2 | K90: 2 | L90: 0 | M90: =IF(INTRO!$E$38="Endémique", IF($H90>0, IF($H90=4,"Inconnu", IF($H90=99,"Interrompu", $D90)), 0),"Non requis") -> Interrompu | N90: =IF(INTRO!$E$40="Endémique", IF($I90>0, IF($I90=4,"Inconnu",IF($I90=99,"Interrompu", $D90)), 0),"Non requis") -> Inconnu | O90: =IF(INTRO!$E$42="Endémique", IF(AND($J90>1,$J90<5), IF($J90=4, "Inconnu", E90+F90), 0),"Non requis") -> 61965 | P90: =IF(INTRO!$E$44="Endémique", IF(AND($K90>0,$K90<5), IF($K90=4,"Inconnu", IF($K90=1, $F90*0.33, IF($K90=2, $F90*0.5+$G90*0.2, SUM(F90:G90)))), 0),"Non requis") -> 38319.8 | Q90: 0 | R90: 0 | S90: 1 | T90: 1 | V90: T2 (PZQ) | W90: 7501 | X90: VELE | Z90: TRUE
A91: =IF(INTRO!$E$34<>0,INTRO!$E$34,"") -> Cameroon | B91: FAR-NORTH | C91: YAGOUA | D91: 241191 | E91: =IF(INTRO!$E$48="","",ROUND($D91*INTRO!$E$48,0)) -> 31162 | F91: =IF(INTRO!$E$49="","",ROUND($D91*INTRO!$E$49,0)) -> 64398 | G91: =IF(INTRO!$E$50="","",ROUND($D91*INTRO!$E$50,0)) -> 136032 | H91: 99 | I91: 4 | J91: 2 | K91: 2 | L91: 0 | M91: =IF(INTRO!$E$38="Endémique", IF($H91>0, IF($H91=4,"Inconnu", IF($H91=99,"Interrompu", $D91)), 0),"Non requis") -> Interrompu | N91: =IF(INTRO!$E$40="Endémique", IF($I91>0, IF($I91=4,"Inconnu",IF($I91=99,"Interrompu", $D91)), 0),"Non requis") -> Inconnu | O91: =IF(INTRO!$E$42="Endémique", IF(AND($J91>1,$J91<5), IF($J91=4, "Inconnu", E91+F91), 0),"Non requis") -> 95560 | P91: =IF(INTRO!$E$44="Endémique", IF(AND($K91>0,$K91<5), IF($K91=4,"Inconnu", IF($K91=1, $F91*0.33, IF($K91=2, $F91*0.5+$G91*0.2, SUM(F91:G91)))), 0),"Non requis") -> 59405.4 | Q91: 0 | R91: 0 | S91: 1 | T91: 1 | V91: T2 (PZQ) | W91: 7502 | X91: YAGOUA | Z91: TRUE
A92: =IF(INTRO!$E$34<>0,INTRO!$E$34,"") -> Cameroon | B92: LITTORAL | C92: ABO | D92: 29928 | E92: =IF(INTRO!$E$48="","",ROUND($D92*INTRO!$E$48,0)) -> 3867 | F92: =IF(INTRO!$E$49="","",ROUND($D92*INTRO!$E$49,0)) -> 7991 | G92: =IF(INTRO!$E$50="","",ROUND($D92*INTRO!$E$50,0)) -> 16879 | H92: 0 | I92: 4 | J92: 2 | K92: 0 | L92: 1 | M92: =IF(INTRO!$E$38="Endémique", IF($H92>0, IF($H92=4,"Inconnu", IF($H92=99,"Interrompu", $D92)), 0),"Non requis") -> 0 | N92: =IF(INTRO!$E$40="Endémique", IF($I92>0, IF($I92=4,"Inconnu",IF($I92=99,"Interrompu", $D92)), 0),"Non requis") -> Inconnu | O92: =IF(INTRO!$E$42="Endémique", IF(AND($J92>1,$J92<5), IF($J92=4, "Inconnu", E92+F92), 0),"Non requis") -> 11858 | P92: =IF(INTRO!$E$44="Endémique", IF(AND($K92>0,$K92<5), IF($K92=4,"Inconnu", IF($K92=1, $F92*0.33, IF($K92=2, $F92*0.5+$G92*0.2, SUM(F92:G92)))), 0),"Non requis") -> 0 | Q92: 0 | R92: 0 | S92: 1 | T92: 0 | W92: 7503 | X92: ABO | Z92: TRUE
A93: =IF(INTRO!$E$34<>0,INTRO!$E$34,"") -> Cameroon | B93: LITTORAL | C93: BANGUE | D93: 322822 | E93: =IF(INTRO!$E$48="","",ROUND($D93*INTRO!$E$48,0)) -> 41709 | F93: =IF(INTRO!$E$49="","",ROUND($D93*INTRO!$E$49,0)) -> 86193 | G93: =IF(INTRO!$E$50="","",ROUND($D93*INTRO!$E$50,0)) -> 182072 | H93: 0 | I93: 4 | J93: 2 | K93: 1 | L93: 1 | M93: =IF(INTRO!$E$38="Endémique", IF($H93>0, IF($H93=4,"Inconnu", IF($H93=99,"Interrompu", $D93)), 0),"Non requis") -> 0 | N93: =IF(INTRO!$E$40="Endémique", IF($I93>0, IF($I93=4,"Inconnu",IF($I93=99,"Interrompu", $D93)), 0),"Non requis") -> Inconnu | O93: =IF(INTRO!$E$42="Endémique", IF(AND($J93>1,$J93<5), IF($J93=4, "Inconnu", E93+F93), 0),"Non requis") -> 127902 | P93: =IF(INTRO!$E$44="Endémique", IF(AND($K93>0,$K93<5), IF($K93=4,"Inconnu", IF($K93=1, $F93*0.33, IF($K93=2, $F93*0.5+$G93*0.2, SUM(F93:G93)))), 0),"Non requis") -> 28443.69 | Q93: 0 | R93: 0 | S93: 1 | T93: 0 | W93: 7516 | X93: MBANGUE | Z93: FALSE
A94: =IF(INTRO!$E$34<>0,INTRO!$E$34,"") -> Cameroon | B94: LITTORAL | C94: BOKO | D94: 355448 | E94: =IF(INTRO!$E$48="","",ROUND($D94*INTRO!$E$48,0)) -> 45924 | F94: =IF(INTRO!$E$49="","",ROUND($D94*INTRO!$E$49,0)) -> 94905 | G94: =IF(INTRO!$E$50="","",ROUND($D94*INTRO!$E$50,0)) -> 200473 | H94: 0 | I94: 4 | J94: 2 | K94: 1 | L94: 1 | M94: =IF(INTRO!$E$38="Endémique", IF($H94>0, IF($H94=4,"Inconnu", IF($H94=99,"Interrompu", $D94)), 0),"Non requis") -> 0 | N94: =IF(INTRO!$E$40="Endémique", IF($I94>0, IF($I94=4,"Inconnu",IF($I94=99,"Interrompu", $D94)), 0),"Non requis") -> Inconnu | O94: =IF(INTRO!$E$42="Endémique", IF(AND($J94>1,$J94<5), IF($J94=4, "Inconnu", E94+F94), 0),"Non requis") -> 140829 | P94: =IF(INTRO!$E$44="Endémique", IF(AND($K94>0,$K94<5), IF($K94=4,"Inconnu", IF($K94=1, $F94*0.33, IF($K94=2, $F94*0.5+$G94*0.2, SUM(F94:G94)))), 0),"Non requis") -> 31318.65 | Q94: 0 | R94: 0 | S94: 1 | T94: 0 | W94: 7504 | X94: BOKO | Z94: TRUE
A95: =IF(INTRO!$E$34<>0,INTRO!$E$34,"") -> Cameroon | B95: LITTORAL | C95: BONASSAMA | D95: 429666 | E95: =IF(INTRO!$E$48="","",ROUND($D95*INTRO!$E$48,0)) -> 55513 | F95: =IF(INTRO!$E$49="","",ROUND($D95*INTRO!$E$49,0)) -> 114721 | G95: =IF(INTRO!$E$50="","",ROUND($D95*INTRO!$E$50,0)) -> 242332 | H95: 0 | I95: 4 | J95: 2 | K95: 1 | L95: 1 | M95: =IF(INTRO!$E$38="Endémique", IF($H95>0, IF($H95=4,"Inconnu", IF($H95=99,"Interrompu", $D95)), 0),"Non requis") -> 0 | N95: =IF(INTRO!$E$40="Endémique", IF($I95>0, IF($I95=4,"Inconnu",IF($I95=99,"Interrompu", $D95)), 0),"Non requis") -> Inconnu | O95: =IF(INTRO!$E$42="Endémique", IF(AND($J95>1,$J95<5), IF($J95=4, "Inconnu", E95+F95), 0),"Non requis") -> 170234 | P95: =IF(INTRO!$E$44="Endémique", IF(AND($K95>0,$K95<5), IF($K95=4,"Inconnu", IF($K95=1, $F95*0.33, IF($K95=2, $F95*0.5+$G95*0.2, SUM(F95:G95)))), 0),"Non requis") -> 37857.93 | Q95: 0 | R95: 0 | S95: 1 | T95: 0 | W95: 7505 | X95: BONASSAMA | Z95: TRUE
A96: =IF(INTRO!$E$34<>0,INTRO!$E$34,"") -> Cameroon | B96: LITTORAL | C96: CITE PALMIERS | D96: 323463 | E96: =IF(INTRO!$E$48="","",ROUND($D96*INTRO!$E$48,0)) -> 41791 | F96: =IF(INTRO!$E$49="","",ROUND($D96*INTRO!$E$49,0)) -> 86365 | G96: =IF(INTRO!$E$50="","",ROUND($D96*INTRO!$E$50,0)) -> 182433 | H96: 0 | I96: 4 | J96: 2 | K96: 1 | L96: 1 | M96: =IF(INTRO!$E$38="Endémique", IF($H96>0, IF($H96=4,"Inconnu", IF($H96=99,"Interrompu", $D96)), 0),"Non requis") -> 0 | N96: =IF(INTRO!$E$40="Endémique", IF($I96>0, IF($I96=4,"Inconnu",IF($I96=99,"Interrompu", $D96)), 0),"Non requis") -> Inconnu | O96: =IF(INTRO!$E$42="Endémique", IF(AND($J96>1,$J96<5), IF($J96=4, "Inconnu", E96+F96), 0),"Non requis") -> 128156 | P96: =IF(INTRO!$E$44="Endémique", IF(AND($K96>0,$K96<5), IF($K96=4,"Inconnu", IF($K96=1, $F96*0.33, IF($K96=2, $F96*0.5+$G96*0.2, SUM(F96:G96)))), 0),"Non requis") -> 28500.45 | Q96: 0 | R96: 0 | S96: 1 | T96: 0 | W96: 7506 | X96: CITE PALMIERS | Z96: TRUE
A97: =IF(INTRO!$E$34<>0,INTRO!$E$34,"") -> Cameroon | B97: LITTORAL | C97: DEIDO | D97: 605411 | E97: =IF(INTRO!$E$48="","",ROUND($D97*INTRO!$E$48,0)) -> 78219 | F97: =IF(INTRO!$E$49="","",ROUND($D97*INTRO!$E$49,0)) -> 161645 | G97: =IF(INTRO!$E$50="","",ROUND($D97*INTRO!$E$50,0)) -> 341452 | H97: 0 | I97: 4 | J97: 2 | K97: 1 | L97: 1 | M97: =IF(INTRO!$E$38="Endémique", IF($H97>0, IF($H97=4,"Inconnu", IF($H97=99,"Interrompu", $D97)), 0),"Non requis") -> 0 | N97: =IF(INTRO!$E$40="Endémique", IF($I97>0, IF($I97=4,"Inconnu",IF($I97=99,"Interrompu", $D97)), 0),"Non requis") -> Inconnu | O97: =IF(INTRO!$E$42="Endémique", IF(AND($J97>1,$J97<5), IF($J97=4, "Inconnu", E97+F97), 0),"Non requis") -> 239864 | P97: =IF(INTRO!$E$44="Endémique", IF(AND($K97>0,$K97<5), IF($K97=4,"Inconnu", IF($K97=1, $F97*0.33, IF($K97=2, $F97*0.5+$G97*0.2, SUM(F97:G97)))), 0),"Non requis") -> 53342.85 | Q97: 0 | R97: 0 | S97: 1 | T97: 0 | W97: 7507 | X97: DEIDO | Z97: TRUE
A98: =IF(INTRO!$E$34<>0,INTRO!$E$34,"") -> Cameroon | B98: LITTORAL | C98: DIBOMBARI | D98: 21686 | E98: =IF(INTRO!$E$48="","",ROUND($D98*INTRO!$E$48,0)) -> 2802 | F98: =IF(INTRO!$E$49="","",ROUND($D98*INTRO!$E$49,0)) -> 5790 | G98: =IF(INTRO!$E$50="","",ROUND($D98*INTRO!$E$50,0)) -> 12231 | H98: 0 | I98: 4 | J98: 2 | K98: 0 | L98: 1 | M98: =IF(INTRO!$E$38="Endémique", IF($H98>0, IF($H98=4,"Inconnu", IF($H98=99,"Interrompu", $D98)), 0),"Non requis") -> 0 | N98: =IF(INTRO!$E$40="Endémique", IF($I98>0, IF($I98=4,"Inconnu",IF($I98=99,"Interrompu", $D98)), 0),"Non requis") -> Inconnu | O98: =IF(INTRO!$E$42="Endémique", IF(AND($J98>1,$J98<5), IF($J98=4, "Inconnu", E98+F98), 0),"Non requis") -> 8592 | P98: =IF(INTRO!$E$44="Endémique", IF(AND($K98>0,$K98<5), IF($K98=4,"Inconnu", IF($K98=1, $F98*0.33, IF($K98=2, $F98*0.5+$G98*0.2, SUM(F98:G98)))), 0),"Non requis") -> 0 | Q98: 0 | R98: 0 | S98: 1 | T98: 0 | W98: 7508 | X98: DIBOMBARI | Z98: TRUE
A99: =IF(INTRO!$E$34<>0,INTRO!$E$34,"") -> Cameroon | B99: LITTORAL | C99: EDEA | D99: 128702 | E99: =IF(INTRO!$E$48="","",ROUND($D99*INTRO!$E$48,0)) -> 16628 | F99: =IF(INTRO!$E$49="","",ROUND($D99*INTRO!$E$49,0)) -> 34363 | G99: =IF(INTRO!$E$50="","",ROUND($D99*INTRO!$E$50,0)) -> 72588 | H99: 99 | I99: 1 | J99: 2 | K99: 2 | L99: 1 | M99: =IF(INTRO!$E$38="Endémique", IF($H99>0, IF($H99=4,"Inconnu", IF($H99=99,"Interrompu", $D99)), 0),"Non requis") -> Interrompu | N99: =IF(INTRO!$E$40="Endémique", IF($I99>0, IF($I99=4,"Inconnu",IF($I99=99,"Interrompu", $D99)), 0),"Non requis") -> 128702 | O99: =IF(INTRO!$E$42="Endémique", IF(AND($J99>1,$J99<5), IF($J99=4, "Inconnu", E99+F99), 0),"Non requis") -> 50991 | P99: =IF(INTRO!$E$44="Endémique", IF(AND($K99>0,$K99<5), IF($K99=4,"Inconnu", IF($K99=1, $F99*0.33, IF($K99=2, $F99*0.5+$G99*0.2, SUM(F99:G99)))), 0),"Non requis") -> 31699.1 | Q99: 0 | R99: 1 | S99: 1 | T99: 1 | U99: MDA3 (IVM) | V99: T2 (PZQ) | W99: 7509 | X99: EDEA | Z99: TRUE
A100: =IF(INTRO!$E$34<>0,INTRO!$E$34,"") -> Cameroon | B100: LITTORAL | C100: JAPOMA | D100: 144894 | E100: =IF(INTRO!$E$48="","",ROUND($D100*INTRO!$E$48,0)) -> 18720 | F100: =IF(INTRO!$E$49="","",ROUND($D100*INTRO!$E$49,0)) -> 38687 | G100: =IF(INTRO!$E$50="","",ROUND($D100*INTRO!$E$50,0)) -> 81720 | H100: 0 | I100: 4 | J100: 2 | K100: 1 | L100: 1 | M100: =IF(INTRO!$E$38="Endémique", IF($H100>0, IF($H100=4,"Inconnu", IF($H100=99,"Interrompu", $D100)), 0),"Non requis") -> 0 | N100: =IF(INTRO!$E$40="Endémique", IF($I100>0, IF($I100=4,"Inconnu",IF($I100=99,"Interrompu", $D100)), 0),"Non requis") -> Inconnu | O100: =IF(INTRO!$E$42="Endémique", IF(AND($J100>1,$J100<5), IF($J100=4, "Inconnu", E100+F100), 0),"Non requis") -> 57407 | P100: =IF(INTRO!$E$44="Endémique", IF(AND($K100>0,$K100<5), IF($K100=4,"Inconnu", IF($K100=1, $F100*0.33, IF($K100=2, $F100*0.5+$G100*0.2, SUM(F100:G100)))), 0),"Non requis") -> 12766.71 | Q100: 0 | R100: 0 | S100: 1 | T100: 0 | W100: 7510 | X100: JAPOMA | Z100: TRUE
A101: =IF(INTRO!$E$34<>0,INTRO!$E$34,"") -> Cameroon | B101: LITTORAL | C101: LOGBABA | D101: 232232 | E101: =IF(INTRO!$E$48="","",ROUND($D101*INTRO!$E$48,0)) -> 30004 | F101: =IF(INTRO!$E$49="","",ROUND($D101*INTRO!$E$49,0)) -> 62006 | G101: =IF(INTRO!$E$50="","",ROUND($D101*INTRO!$E$50,0)) -> 130979 | H101: 0 | I101: 4 | J101: 2 | K101: 1 | L101: 1 | M101: =IF(INTRO!$E$38="Endémique", IF($H101>0, IF($H101=4,"Inconnu", IF($H101=99,"Interrompu", $D101)), 0),"Non requis") -> 0 | N101: =IF(INTRO!$E$40="Endémique", IF($I101>0, IF($I101=4,"Inconnu",IF($I101=99,"Interrompu", $D101)), 0),"Non requis") -> Inconnu | O101: =IF(INTRO!$E$42="Endémique", IF(AND($J101>1,$J101<5), IF($J101=4, "Inconnu", E101+F101), 0),"Non requis") -> 92010 | P101: =IF(INTRO!$E$44="Endémique", IF(AND($K101>0,$K101<5), IF($K101=4,"Inconnu", IF($K101=1, $F101*0.33, IF($K101=2, $F101*0.5+$G101*0.2, SUM(F101:G101)))), 0),"Non requis") -> 20461.98 | Q101: 0 | R101: 0 | S101: 1 | T101: 0 | W101: 7511 | X101: LOGBABA | Z101: TRUE
A102: =IF(INTRO!$E$34<>0,INTRO!$E$34,"") -> Cameroon | B102: LITTORAL | C102: LOUM | D102: 53299 | E102: =IF(INTRO!$E$48="","",ROUND($D102*INTRO!$E$48,0)) -> 6886 | F102: =IF(INTRO!$E$49="","",ROUND($D102*INTRO!$E$49,0)) -> 14231 | G102: =IF(INTRO!$E$50="","",ROUND($D102*INTRO!$E$50,0)) -> 30061 | H102: 99 | I102: 1 | J102: 2 | K102: 3 | L102: 1 | M102: =IF(INTRO!$E$38="Endémique", IF($H102>0, IF($H102=4,"Inconnu", IF($H102=99,"Interrompu", $D102)), 0),"Non requis") -> Interrompu | N102: =IF(INTRO!$E$40="Endémique", IF($I102>0, IF($I102=4,"Inconnu",IF($I102=99,"Interrompu", $D102)), 0),"Non requis") -> 53299 | O102: =IF(INTRO!$E$42="Endémique", IF(AND($J102>1,$J102<5), IF($J102=4, "Inconnu", E102+F102), 0),"Non requis") -> 21117 | P102: =IF(INTRO!$E$44="Endémique", IF(AND($K102>0,$K102<5), IF($K102=4,"Inconnu", IF($K102=1, $F102*0.33, IF($K102=2, $F102*0.5+$G102*0.2, SUM(F102:G102)))), 0),"Non requis") -> 44292 | Q102: 0 | R102: 1 | S102: 1 | T102: 1 | U102: MDA3 (IVM) | V102: T2 (PZQ) | W102: 7512 | X102: LOUM | Z102: TRUE
A103: =IF(INTRO!$E$34<>0,INTRO!$E$34,"") -> Cameroon | B103: LITTORAL | C103: MANJO | D103: 37276 | E103: =IF(INTRO!$E$48="","",ROUND($D103*INTRO!$E$48,0)) -> 4816 | F103: =IF(INTRO!$E$49="","",ROUND($D103*INTRO!$E$49,0)) -> 9953 | G103: =IF(INTRO!$E$50="","",ROUND($D103*INTRO!$E$50,0)) -> 21024 | H103: 99 | I103: 1 | J103: 2 | K103: 1 | L103: 1 | M103: =IF(INTRO!$E$38="Endémique", IF($H103>0, IF($H103=4,"Inconnu", IF($H103=99,"Interrompu", $D103)), 0),"Non requis") -> Interrompu | N103: =IF(INTRO!$E$40="Endémique", IF($I103>0, IF($I103=4,"Inconnu",IF($I103=99,"Interrompu", $D103)), 0),"Non requis") -> 37276 | O103: =IF(INTRO!$E$42="Endémique", IF(AND($J103>1,$J103<5), IF($J103=4, "Inconnu", E103+F103), 0),"Non requis") -> 14769 | P103: =IF(INTRO!$E$44="Endémique", IF(AND($K103>0,$K103<5), IF($K103=4,"Inconnu", IF($K103=1, $F103*0.33, IF($K103=2, $F103*0.5+$G103*0.2, SUM(F103:G103)))), 0),"Non requis") -> 3284.49 | Q103: 0 | R103: 1 | S103: 1 | T103: 0 | U103: MDA3 (IVM) | W103: 7513 | X103: MANJO | Z103: TRUE
A104: =IF(INTRO!$E$34<>0,INTRO!$E$34,"") -> Cameroon | B104: LITTORAL | C104: MANOKA | D104: 19696 | E104: =IF(INTRO!$E$48="","",ROUND($D104*INTRO!$E$48,0)) -> 2545 | F104: =IF(INTRO!$E$49="","",ROUND($D104*INTRO!$E$49,0)) -> 5259 | G104: =IF(INTRO!$E$50="","",ROUND($D104*INTRO!$E$50,0)) -> 11109 | H104: 0 | I104: 4 | J104: 2 | K104: 0 | L104: 1 | M104: =IF(INTRO!$E$38="Endémique", IF($H104>0, IF($H104=4,"Inconnu", IF($H104=99,"Interrompu", $D104)), 0),"Non requis") -> 0 | N104: =IF(INTRO!$E$40="Endémique", IF($I104>0, IF($I104=4,"Inconnu",IF($I104=99,"Interrompu", $D104)), 0),"Non requis") -> Inconnu | O104: =IF(INTRO!$E$42="Endémique", IF(AND($J104>1,$J104<5), IF($J104=4, "Inconnu", E104+F104), 0),"Non requis") -> 7804 | P104: =IF(INTRO!$E$44="Endémique", IF(AND($K104>0,$K104<5), IF($K104=4,"Inconnu", IF($K104=1, $F104*0.33, IF($K104=2, $F104*0.5+$G104*0.2, SUM(F104:G104)))), 0),"Non requis") -> 0 | Q104: 0 | R104: 0 | S104: 1 | T104: 0 | W104: 7514 | X104: MANOKA | Z104: TRUE
A105: =IF(INTRO!$E$34<>0,INTRO!$E$34,"") -> Cameroon | B105: LITTORAL | C105: MBANGA | D105: 65043 | E105: =IF(INTRO!$E$48="","",ROUND($D105*INTRO!$E$48,0)) -> 8404 | F105: =IF(INTRO!$E$49="","",ROUND($D105*INTRO!$E$49,0)) -> 17366 | G105: =IF(INTRO!$E$50="","",ROUND($D105*INTRO!$E$50,0)) -> 36684 | H105: 99 | I105: 1 | J105: 2 | K105: 1 | L105: 1 | M105: =IF(INTRO!$E$38="Endémique", IF($H105>0, IF($H105=4,"Inconnu", IF($H105=99,"Interrompu", $D105)), 0),"Non requis") -> Interrompu | N105: =IF(INTRO!$E$40="Endémique", IF($I105>0, IF($I105=4,"Inconnu",IF($I105=99,"Interrompu", $D105)), 0),"Non requis") -> 65043 | O105: =IF(INTRO!$E$42="Endémique", IF(AND($J105>1,$J105<5), IF($J105=4, "Inconnu", E105+F105), 0),"Non requis") -> 25770 | P105: =IF(INTRO!$E$44="Endémique", IF(AND($K105>0,$K105<5), IF($K105=4,"Inconnu", IF($K105=1, $F105*0.33, IF($K105=2, $F105*0.5+$G105*0.2, SUM(F105:G105)))), 0),"Non requis") -> 5730.78 | Q105: 0 | R105: 1 | S105: 1 | T105: 0 | U105: MDA3 (IVM) | W105: 7515 | X105: MBANGA | Z105: TRUE
A106: =IF(INTRO!$E$34<>0,INTRO!$E$34,"") -> Cameroon | B106: LITTORAL | C106: MELONG | D106: 77542 | E106: =IF(INTRO!$E$48="","",ROUND($D106*INTRO!$E$48,0)) -> 10018 | F106: =IF(INTRO!$E$49="","",ROUND($D106*INTRO!$E$49,0)) -> 20704 | G106: =IF(INTRO!$E$50="","",ROUND($D106*INTRO!$E$50,0)) -> 43734 | H106: 99 | I106: 1 | J106: 2 | K106: 2 | L106: 1 | M106: =IF(INTRO!$E$38="Endémique", IF($H106>0, IF($H106=4,"Inconnu", IF($H106=99,"Interrompu", $D106)), 0),"Non requis") -> Interrompu | N106: =IF(INTRO!$E$40="Endémique", IF($I106>0, IF($I106=4,"Inconnu",IF($I106=99,"Interrompu", $D106)), 0),"Non requis") -> 77542 | O106: =IF(INTRO!$E$42="Endémique", IF(AND($J106>1,$J106<5), IF($J106=4, "Inconnu", E106+F106), 0),"Non requis") -> 30722 | P106: =IF(INTRO!$E$44="Endémique", IF(AND($K106>0,$K106<5), IF($K106=4,"Inconnu", IF($K106=1, $F106*0.33, IF($K106=2, $F106*0.5+$G106*0.2, SUM(F106:G106)))), 0),"Non requis") -> 19098.8 | Q106: 0 | R106: 1 | S106: 1 | T106: 1 | U106: MDA3 (IVM) | W106: 7517 | X106: MELONG | Z106: TRUE
A107: =IF(INTRO!$E$34<>0,INTRO!$E$34,"") -> Cameroon | B107: LITTORAL | C107: NDOM | D107: 25877 | E107: =IF(INTRO!$E$48="","",ROUND($D107*INTRO!$E$48,0)) -> 3343 | F107: =IF(INTRO!$E$49="","",ROUND($D107*INTRO!$E$49,0)) -> 6909 | G107: =IF(INTRO!$E$50="","",ROUND($D107*INTRO!$E$50,0)) -> 14595 | H107: 99 | I107: 1 | J107: 2 | K107: 0 | L107: 1 | M107: =IF(INTRO!$E$38="Endémique", IF($H107>0, IF($H107=4,"Inconnu", IF($H107=99,"Interrompu", $D107)), 0),"Non requis") -> Interrompu | N107: =IF(INTRO!$E$40="Endémique", IF($I107>0, IF($I107=4,"Inconnu",IF($I107=99,"Interrompu", $D107)), 0),"Non requis") -> 25877 | O107: =IF(INTRO!$E$42="Endémique", IF(AND($J107>1,$J107<5), IF($J107=4, "Inconnu", E107+F107), 0),"Non requis") -> 10252 | P107: =IF(INTRO!$E$44="Endémique", IF(AND($K107>0,$K107<5), IF($K107=4,"Inconnu", IF($K107=1, $F107*0.33, IF($K107=2, $F107*0.5+$G107*0.2, SUM(F107:G107)))), 0),"Non requis") -> 0 | Q107: 0 | R107: 1 | S107: 1 | T107: 0 | U107: MDA3 (IVM) | W107: 7518 | X107: NDOM | Z107: TRUE
A108: =IF(INTRO!$E$34<>0,INTRO!$E$34,"") -> Cameroon | B108: LITTORAL | C108: NEW BELL | D108: 303301 | E108: =IF(INTRO!$E$48="","",ROUND($D108*INTRO!$E$48,0)) -> 39186 | F108: =IF(INTRO!$E$49="","",ROUND($D108*INTRO!$E$49,0)) -> 80981 | G108: =IF(INTRO!$E$50="","",ROUND($D108*INTRO!$E$50,0)) -> 171062 | H108: 0 | I108: 4 | J108: 2 | K108: 0 | L108: 1 | M108: =IF(INTRO!$E$38="Endémique", IF($H108>0, IF($H108=4,"Inconnu", IF($H108=99,"Interrompu", $D108)), 0),"Non requis") -> 0 | N108: =IF(INTRO!$E$40="Endémique", IF($I108>0, IF($I108=4,"Inconnu",IF($I108=99,"Interrompu", $D108)), 0),"Non requis") -> Inconnu | O108: =IF(INTRO!$E$42="Endémique", IF(AND($J108>1,$J108<5), IF($J108=4, "Inconnu", E108+F108), 0),"Non requis") -> 120167 | P108: =IF(INTRO!$E$44="Endémique", IF(AND($K108>0,$K108<5), IF($K108=4,"Inconnu", IF($K108=1, $F108*0.33, IF($K108=2, $F108*0.5+$G108*0.2, SUM(F108:G108)))), 0),"Non requis") -> 0 | Q108: 0 | R108: 0 | S108: 1 | T108: 0 | W108: 7519 | X108: NEW BELL | Z108: TRUE
A109: =IF(INTRO!$E$34<>0,INTRO!$E$34,"") -> Cameroon | B109: LITTORAL | C109: NGAMBE | D109: 10512 | E109: =IF(INTRO!$E$48="","",ROUND($D109*INTRO!$E$48,0)) -> 1358 | F109: =IF(INTRO!$E$49="","",ROUND($D109*INTRO!$E$49,0)) -> 2807 | G109: =IF(INTRO!$E$50="","",ROUND($D109*INTRO!$E$50,0)) -> 5929 | H109: 99 | I109: 1 | J109: 2 | K109: 1 | L109: 1 | M109: =IF(INTRO!$E$38="Endémique", IF($H109>0, IF($H109=4,"Inconnu", IF($H109=99,"Interrompu", $D109)), 0),"Non requis") -> Interrompu | N109: =IF(INTRO!$E$40="Endémique", IF($I109>0, IF($I109=4,"Inconnu",IF($I109=99,"Interrompu", $D109)), 0),"Non requis") -> 10512 | O109: =IF(INTRO!$E$42="Endémique", IF(AND($J109>1,$J109<5), IF($J109=4, "Inconnu", E109+F109), 0),"Non requis") -> 4165 | P109: =IF(INTRO!$E$44="Endémique", IF(AND($K109>0,$K109<5), IF($K109=4,"Inconnu", IF($K109=1, $F109*0.33, IF($K109=2, $F109*0.5+$G109*0.2, SUM(F109:G109)))), 0),"Non requis") -> 926.31 | Q109: 0 | R109: 1 | S109: 1 | T109: 0 | U109: MDA3 (IVM) | W109: 7520 | X109: NGAMBE | Z109: TRUE
A110: =IF(INTRO!$E$34<>0,INTRO!$E$34,"") -> Cameroon | B110: LITTORAL | C110: NJOMBE PENJA | D110: 49442 | E110: =IF(INTRO!$E$48="","",ROUND($D110*INTRO!$E$48,0)) -> 6388 | F110: =IF(INTRO!$E$49="","",ROUND($D110*INTRO!$E$49,0)) -> 13201 | G110: =IF(INTRO!$E$50="","",ROUND($D110*INTRO!$E$50,0)) -> 27885 | H110: 99 | I110: 1 | J110: 2 | K110: 3 | L110: 1 | M110: =IF(INTRO!$E$38="Endémique", IF($H110>0, IF($H110=4,"Inconnu", IF($H110=99,"Interrompu", $D110)), 0),"Non requis") -> Interrompu | N110: =IF(INTRO!$E$40="Endémique", IF($I110>0, IF($I110=4,"Inconnu",IF($I110=99,"Interrompu", $D110)), 0),"Non requis") -> 49442 | O110: =IF(INTRO!$E$42="Endémique", IF(AND($J110>1,$J110<5), IF($J110=4, "Inconnu", E110+F110), 0),"Non requis") -> 19589 | P110: =IF(INTRO!$E$44="Endémique", IF(AND($K110>0,$K110<5), IF($K110=4,"Inconnu", IF($K110=1, $F110*0.33, IF($K110=2, $F110*0.5+$G110*0.2, SUM(F110:G110)))), 0),"Non requis") -> 41086 | Q110: 0 | R110: 1 | S110: 1 | T110: 1 | U110: MDA3 (IVM) | W110: 7521 | X110: NJOMBE PENJA | Z110: TRUE
A111: =IF(INTRO!$E$34<>0,INTRO!$E$34,"") -> Cameroon | B111: LITTORAL | C111: NKONDJOCK | D111: 21488 | E111: =IF(INTRO!$E$48="","",ROUND($D111*INTRO!$E$48,0)) -> 2776 | F111: =IF(INTRO!$E$49="","",ROUND($D111*INTRO!$E$49,0)) -> 5737 | G111: =IF(INTRO!$E$50="","",ROUND($D111*INTRO!$E$50,0)) -> 12119 | H111: 99 | I111: 1 | J111: 2 | K111: 0 | L111: 1 | M111: =IF(INTRO!$E$38="Endémique", IF($H111>0, IF($H111=4,"Inconnu", IF($H111=99,"Interrompu", $D111)), 0),"Non requis") -> Interrompu | N111: =IF(INTRO!$E$40="Endémique", IF($I111>0, IF($I111=4,"Inconnu",IF($I111=99,"Interrompu", $D111)), 0),"Non requis") -> 21488 | O111: =IF(INTRO!$E$42="Endémique", IF(AND($J111>1,$J111<5), IF($J111=4, "Inconnu", E111+F111), 0),"Non requis") -> 8513 | P111: =IF(INTRO!$E$44="Endémique", IF(AND($K111>0,$K111<5), IF($K111=4,"Inconnu", IF($K111=1, $F111*0.33, IF($K111=2, $F111*0.5+$G111*0.2, SUM(F111:G111)))), 0),"Non requis") -> 0 | Q111: 0 | R111: 1 | S111: 1 | T111: 0 | U111: MDA3 (IVM) | W111: 7522 | X111: NKONDJOCK | Z111: TRUE
A112: =IF(INTRO!$E$34<>0,INTRO!$E$34,"") -> Cameroon | B112: LITTORAL | C112: NKONGSAMBA | D112: 88549 | E112: =IF(INTRO!$E$48="","",ROUND($D112*INTRO!$E$48,0)) -> 11441 | F112: =IF(INTRO!$E$49="","",ROUND($D112*INTRO!$E$49,0)) -> 23643 | G112: =IF(INTRO!$E$50="","",ROUND($D112*INTRO!$E$50,0)) -> 49942 | H112: 99 | I112: 1 | J112: 2 | K112: 0 | L112: 1 | M112: =IF(INTRO!$E$38="Endémique", IF($H112>0, IF($H112=4,"Inconnu", IF($H112=99,"Interrompu", $D112)), 0),"Non requis") -> Interrompu | N112: =IF(INTRO!$E$40="Endémique", IF($I112>0, IF($I112=4,"Inconnu",IF($I112=99,"Interrompu", $D112)), 0),"Non requis") -> 88549 | O112: =IF(INTRO!$E$42="Endémique", IF(AND($J112>1,$J112<5), IF($J112=4, "Inconnu", E112+F112), 0),"Non requis") -> 35084 | P112: =IF(INTRO!$E$44="Endémique", IF(AND($K112>0,$K112<5), IF($K112=4,"Inconnu", IF($K112=1, $F112*0.33, IF($K112=2, $F112*0.5+$G112*0.2, SUM(F112:G112)))), 0),"Non requis") -> 0 | Q112: 0 | R112: 1 | S112: 1 | T112: 0 | U112: MDA3 (IVM) | W112: 7523 | X112: NKONGSAMBA | Z112: TRUE
A113: =IF(INTRO!$E$34<>0,INTRO!$E$34,"") -> Cameroon | B113: LITTORAL | C113: NYLON | D113: 415646 | E113: =IF(INTRO!$E$48="","",ROUND($D113*INTRO!$E$48,0)) -> 53701 | F113: =IF(INTRO!$E$49="","",ROUND($D113*INTRO!$E$49,0)) -> 110977 | G113: =IF(INTRO!$E$50="","",ROUND($D113*INTRO!$E$50,0)) -> 234424 | H113: 0 | I113: 4 | J113: 2 | K113: 0 | L113: 1 | M113: =IF(INTRO!$E$38="Endémique", IF($H113>0, IF($H113=4,"Inconnu", IF($H113=99,"Interrompu", $D113)), 0),"Non requis") -> 0 | N113: =IF(INTRO!$E$40="Endémique", IF($I113>0, IF($I113=4,"Inconnu",IF($I113=99,"Interrompu", $D113)), 0),"Non requis") -> Inconnu | O113: =IF(INTRO!$E$42="Endémique", IF(AND($J113>1,$J113<5), IF($J113=4, "Inconnu", E113+F113), 0),"Non requis") -> 164678 | P113: =IF(INTRO!$E$44="Endémique", IF(AND($K113>0,$K113<5), IF($K113=4,"Inconnu", IF($K113=1, $F113*0.33, IF($K113=2, $F113*0.5+$G113*0.2, SUM(F113:G113)))), 0),"Non requis") -> 0 | Q113: 0 | R113: 0 | S113: 1 | T113: 0 | W113: 7524 | X113: NYLON | Z113: TRUE
A114: =IF(INTRO!$E$34<>0,INTRO!$E$34,"") -> Cameroon | B114: LITTORAL | C114: POUMA | D114: 13127 | E114: =IF(INTRO!$E$48="","",ROUND($D114*INTRO!$E$48,0)) -> 1696 | F114: =IF(INTRO!$E$49="","",ROUND($D114*INTRO!$E$49,0)) -> 3505 | G114: =IF(INTRO!$E$50="","",ROUND($D114*INTRO!$E$50,0)) -> 7404 | H114: 99 | I114: 1 | J114: 2 | K114: 0 | L114: 1 | M114: =IF(INTRO!$E$38="Endémique", IF($H114>0, IF($H114=4,"Inconnu", IF($H114=99,"Interrompu", $D114)), 0),"Non requis") -> Interrompu | N114: =IF(INTRO!$E$40="Endémique", IF($I114>0, IF($I114=4,"Inconnu",IF($I114=99,"Interrompu", $D114)), 0),"Non requis") -> 13127 | O114: =IF(INTRO!$E$42="Endémique", IF(AND($J114>1,$J114<5), IF($J114=4, "Inconnu", E114+F114), 0),"Non requis") -> 5201 | P114: =IF(INTRO!$E$44="Endémique", IF(AND($K114>0,$K114<5), IF($K114=4,"Inconnu", IF($K114=1, $F114*0.33, IF($K114=2, $F114*0.5+$G114*0.2, SUM(F114:G114)))), 0),"Non requis") -> 0 | Q114: 0 | R114: 1 | S114: 1 | T114: 0 | U114: MDA3 (IVM) | W114: 7525 | X114: POUMA | Z114: TRUE
A115: =IF(INTRO!$E$34<>0,INTRO!$E$34,"") -> Cameroon | B115: LITTORAL | C115: YABASSI | D115: 14623 | E115: =IF(INTRO!$E$48="","",ROUND($D115*INTRO!$E$48,0)) -> 1889 | F115: =IF(INTRO!$E$49="","",ROUND($D115*INTRO!$E$49,0)) -> 3904 | G115: =IF(INTRO!$E$50="","",ROUND($D115*INTRO!$E$50,0)) -> 8247 | H115: 99 | I115: 1 | J115: 2 | K115: 2 | L115: 1 | M115: =IF(INTRO!$E$38="Endémique", IF($H115>0, IF($H115=4,"Inconnu", IF($H115=99,"Interrompu", $D115)), 0),"Non requis") -> Interrompu | N115: =IF(INTRO!$E$40="Endémique", IF($I115>0, IF($I115=4,"Inconnu",IF($I115=99,"Interrompu", $D115)), 0),"Non requis") -> 14623 | O115: =IF(INTRO!$E$42="Endémique", IF(AND($J115>1,$J115<5), IF($J115=4, "Inconnu", E115+F115), 0),"Non requis") -> 5793 | P115: =IF(INTRO!$E$44="Endémique", IF(AND($K115>0,$K115<5), IF($K115=4,"Inconnu", IF($K115=1, $F115*0.33, IF($K115=2, $F115*0.5+$G115*0.2, SUM(F115:G115)))), 0),"Non requis") -> 3601.4 | Q115: 0 | R115: 1 | S115: 1 | T115: 1 | U115: MDA3 (IVM) | W115: 7526 | X115: YABASSI | Z115: TRUE
A116: =IF(INTRO!$E$34<>0,INTRO!$E$34,"") -> Cameroon | B116: NORTH | C116: BIBEMI | D116: 158087 | E116: =IF(INTRO!$E$48="","",ROUND($D116*INTRO!$E$48,0)) -> 20425 | F116: =IF(INTRO!$E$49="","",ROUND($D116*INTRO!$E$49,0)) -> 42209 | G116: =IF(INTRO!$E$50="","",ROUND($D116*INTRO!$E$50,0)) -> 89161 | H116: 99 | I116: 4 | J116: 2 | K116: 2 | L116: 0 | M116: =IF(INTRO!$E$38="Endémique", IF($H116>0, IF($H116=4,"Inconnu", IF($H116=99,"Interrompu", $D116)), 0),"Non requis") -> Interrompu | N116: =IF(INTRO!$E$40="Endémique", IF($I116>0, IF($I116=4,"Inconnu",IF($I116=99,"Interrompu", $D116)), 0),"Non requis") -> Inconnu | O116: =IF(INTRO!$E$42="Endémique", IF(AND($J116>1,$J116<5), IF($J116=4, "Inconnu", E116+F116), 0),"Non requis") -> 62634 | P116: =IF(INTRO!$E$44="Endémique", IF(AND($K116>0,$K116<5), IF($K116=4,"Inconnu", IF($K116=1, $F116*0.33, IF($K116=2, $F116*0.5+$G116*0.2, SUM(F116:G116)))), 0),"Non requis") -> 38936.7 | Q116: 0 | R116: 0 | S116: 1 | T116: 1 | W116: 7527 | X116: BIBEMI | Z116: TRUE
A117: =IF(INTRO!$E$34<>0,INTRO!$E$34,"") -> Cameroon | B117: NORTH | C117: FIGUIL | D117: 98820 | E117: =IF(INTRO!$E$48="","",ROUND($D117*INTRO!$E$48,0)) -> 12768 | F117: =IF(INTRO!$E$49="","",ROUND($D117*INTRO!$E$49,0)) -> 26385 | G117: =IF(INTRO!$E$50="","",ROUND($D117*INTRO!$E$50,0)) -> 55734 | H117: 99 | I117: 4 | J117: 2 | K117: 2 | L117: 0 | M117: =IF(INTRO!$E$38="Endémique", IF($H117>0, IF($H117=4,"Inconnu", IF($H117=99,"Interrompu", $D117)), 0),"Non requis") -> Interrompu | N117: =IF(INTRO!$E$40="Endémique", IF($I117>0, IF($I117=4,"Inconnu",IF($I117=99,"Interrompu", $D117)), 0),"Non requis") -> Inconnu | O117: =IF(INTRO!$E$42="Endémique", IF(AND($J117>1,$J117<5), IF($J117=4, "Inconnu", E117+F117), 0),"Non requis") -> 39153 | P117: =IF(INTRO!$E$44="Endémique", IF(AND($K117>0,$K117<5), IF($K117=4,"Inconnu", IF($K117=1, $F117*0.33, IF($K117=2, $F117*0.5+$G117*0.2, SUM(F117:G117)))), 0),"Non requis") -> 24339.3 | Q117: 0 | R117: 0 | S117: 1 | T117: 1 | V117: T2 (PZQ) | W117: 7528 | X117: FIGUIL | Z117: TRUE
A118: =IF(INTRO!$E$34<>0,INTRO!$E$34,"") -> Cameroon | B118: NORTH | C118: GAROUA I | D118: 297294 | E118: =IF(INTRO!$E$48="","",ROUND($D118*INTRO!$E$48,0)) -> 38410 | F118: =IF(INTRO!$E$49="","",ROUND($D118*INTRO!$E$49,0)) -> 79377 | G118: =IF(INTRO!$E$50="","",ROUND($D118*INTRO!$E$50,0)) -> 167674 | H118: 99 | I118: 4 | J118: 2 | K118: 2 | L118: 0 | M118: =IF(INTRO!$E$38="Endémique", IF($H118>0, IF($H118=4,"Inconnu", IF($H118=99,"Interrompu", $D118)), 0),"Non requis") -> Interrompu | N118: =IF(INTRO!$E$40="Endémique", IF($I118>0, IF($I118=4,"Inconnu",IF($I118=99,"Interrompu", $D118)), 0),"Non requis") -> Inconnu | O118: =IF(INTRO!$E$42="Endémique", IF(AND($J118>1,$J118<5), IF($J118=4, "Inconnu", E118+F118), 0),"Non requis") -> 117787 | P118: =IF(INTRO!$E$44="Endémique", IF(AND($K118>0,$K118<5), IF($K118=4,"Inconnu", IF($K118=1, $F118*0.33, IF($K118=2, $F118*0.5+$G118*0.2, SUM(F118:G118)))), 0),"Non requis") -> 73223.3 | Q118: 0 | R118: 0 | S118: 1 | T118: 1 | W118: 7529 | X118: GAROUA I | Z118: TRUE
A119: =IF(INTRO!$E$34<>0,INTRO!$E$34,"") -> Cameroon | B119: NORTH | C119: GAROUA II | D119: 307402 | E119: =IF(INTRO!$E$48="","",ROUND($D119*INTRO!$E$48,0)) -> 39716 | F119: =IF(INTRO!$E$49="","",ROUND($D119*INTRO!$E$49,0)) -> 82076 | G119: =IF(INTRO!$E$50="","",ROUND($D119*INTRO!$E$50,0)) -> 173375 | H119: 99 | I119: 4 | J119: 2 | K119: 2 | L119: 0 | M119: =IF(INTRO!$E$38="Endémique", IF($H119>0, IF($H119=4,"Inconnu", IF($H119=99,"Interrompu", $D119)), 0),"Non requis") -> Interrompu | N119: =IF(INTRO!$E$40="Endémique", IF($I119>0, IF($I119=4,"Inconnu",IF($I119=99,"Interrompu", $D119)), 0),"Non requis") -> Inconnu | O119: =IF(INTRO!$E$42="Endémique", IF(AND($J119>1,$J119<5), IF($J119=4, "Inconnu", E119+F119), 0),"Non requis") -> 121792 | P119: =IF(INTRO!$E$44="Endémique", IF(AND($K119>0,$K119<5), IF($K119=4,"Inconnu", IF($K119=1, $F119*0.33, IF($K119=2, $F119*0.5+$G119*0.2, SUM(F119:G119)))), 0),"Non requis") -> 75713 | Q119: 0 | R119: 0 | S119: 1 | T119: 1 | W119: 7530 | X119: GAROUA II | Z119: TRUE
A120: =IF(INTRO!$E$34<>0,INTRO!$E$34,"") -> Cameroon | B120: NORTH | C120: GASCHIGA | D120: 131915 | E120: =IF(INTRO!$E$48="","",ROUND($D120*INTRO!$E$48,0)) -> 17043 | F120: =IF(INTRO!$E$49="","",ROUND($D120*INTRO!$E$49,0)) -> 35221 | G120: =IF(INTRO!$E$50="","",ROUND($D120*INTRO!$E$50,0)) -> 74400 | H120: 99 | I120: 4 | J120: 2 | K120: 2 | L120: 0 | M120: =IF(INTRO!$E$38="Endémique", IF($H120>0, IF($H120=4,"Inconnu", IF($H120=99,"Interrompu", $D120)), 0),"Non requis") -> Interrompu | N120: =IF(INTRO!$E$40="Endémique", IF($I120>0, IF($I120=4,"Inconnu",IF($I120=99,"Interrompu", $D120)), 0),"Non requis") -> Inconnu | O120: =IF(INTRO!$E$42="Endémique", IF(AND($J120>1,$J120<5), IF($J120=4, "Inconnu", E120+F120), 0),"Non requis") -> 52264 | P120: =IF(INTRO!$E$44="Endémique", IF(AND($K120>0,$K120<5), IF($K120=4,"Inconnu", IF($K120=1, $F120*0.33, IF($K120=2, $F120*0.5+$G120*0.2, SUM(F120:G120)))), 0),"Non requis") -> 32490.5 | Q120: 0 | R120: 0 | S120: 1 | T120: 1 | W120: 7531 | X120: GASCHIGA | Z120: TRUE
A121: =IF(INTRO!$E$34<>0,INTRO!$E$34,"") -> Cameroon | B121: NORTH | C121: GOLOMBE | D121: 65286 | E121: =IF(INTRO!$E$48="","",ROUND($D121*INTRO!$E$48,0)) -> 8435 | F121: =IF(INTRO!$E$49="","",ROUND($D121*INTRO!$E$49,0)) -> 17431 | G121: =IF(INTRO!$E$50="","",ROUND($D121*INTRO!$E$50,0)) -> 36821 | H121: 99 | I121: 4 | J121: 2 | K121: 2 | L121: 0 | M121: =IF(INTRO!$E$38="Endémique", IF($H121>0, IF($H121=4,"Inconnu", IF($H121=99,"Interrompu", $D121)), 0),"Non requis") -> Interrompu | N121: =IF(INTRO!$E$40="Endémique", IF($I121>0, IF($I121=4,"Inconnu",IF($I121=99,"Interrompu", $D121)), 0),"Non requis") -> Inconnu | O121: =IF(INTRO!$E$42="Endémique", IF(AND($J121>1,$J121<5), IF($J121=4, "Inconnu", E121+F121), 0),"Non requis") -> 25866 | P121: =IF(INTRO!$E$44="Endémique", IF(AND($K121>0,$K121<5), IF($K121=4,"Inconnu", IF($K121=1, $F121*0.33, IF($K121=2, $F121*0.5+$G121*0.2, SUM(F121:G121)))), 0),"Non requis") -> 16079.7 | Q121: 0 | R121: 0 | S121: 1 | T121: 1 | W121: 7532 | X121: GOLOMBE | Z121: TRUE
A122: =IF(INTRO!$E$34<>0,INTRO!$E$34,"") -> Cameroon | B122: NORTH | C122: GUIDER | D122: 241236 | E122: =IF(INTRO!$E$48="","",ROUND($D122*INTRO!$E$48,0)) -> 31168 | F122: =IF(INTRO!$E$49="","",ROUND($D122*INTRO!$E$49,0)) -> 64410 | G122: =IF(INTRO!$E$50="","",ROUND($D122*INTRO!$E$50,0)) -> 136057 | H122: 99 | I122: 4 | J122: 2 | K122: 2 | L122: 0 | M122: =IF(INTRO!$E$38="Endémique", IF($H122>0, IF($H122=4,"Inconnu", IF($H122=99,"Interrompu", $D122)), 0),"Non requis") -> Interrompu | N122: =IF(INTRO!$E$40="Endémique", IF($I122>0, IF($I122=4,"Inconnu",IF($I122=99,"Interrompu", $D122)), 0),"Non requis") -> Inconnu | O122: =IF(INTRO!$E$42="Endémique", IF(AND($J122>1,$J122<5), IF($J122=4, "Inconnu", E122+F122), 0),"Non requis") -> 95578 | P122: =IF(INTRO!$E$44="Endémique", IF(AND($K122>0,$K122<5), IF($K122=4,"Inconnu", IF($K122=1, $F122*0.33, IF($K122=2, $F122*0.5+$G122*0.2, SUM(F122:G122)))), 0),"Non requis") -> 59416.4 | Q122: 0 | R122: 0 | S122: 1 | T122: 1 | V122: T2 (PZQ) | W122: 7533 | X122: GUIDER | Z122: TRUE
A123: =IF(INTRO!$E$34<>0,INTRO!$E$34,"") -> Cameroon | B123: NORTH | C123: LAGDO | D123: 202073 | E123: =IF(INTRO!$E$48="","",ROUND($D123*INTRO!$E$48,0)) -> 26108 | F123: =IF(INTRO!$E$49="","",ROUND($D123*INTRO!$E$49,0)) -> 53953 | G123: =IF(INTRO!$E$50="","",ROUND($D123*INTRO!$E$50,0)) -> 113969 | H123: 99 | I123: 1 | J123: 2 | K123: 2 | L123: 0 | M123: =IF(INTRO!$E$38="Endémique", IF($H123>0, IF($H123=4,"Inconnu", IF($H123=99,"Interrompu", $D123)), 0),"Non requis") -> Interrompu | N123: =IF(INTRO!$E$40="Endémique", IF($I123>0, IF($I123=4,"Inconnu",IF($I123=99,"Interrompu", $D123)), 0),"Non requis") -> 202073 | O123: =IF(INTRO!$E$42="Endémique", IF(AND($J123>1,$J123<5), IF($J123=4, "Inconnu", E123+F123), 0),"Non requis") -> 80061 | P123: =IF(INTRO!$E$44="Endémique", IF(AND($K123>0,$K123<5), IF($K123=4,"Inconnu", IF($K123=1, $F123*0.33, IF($K123=2, $F123*0.5+$G123*0.2, SUM(F123:G123)))), 0),"Non requis") -> 49770.3 | Q123: 0 | R123: 1 | S123: 1 | T123: 1 | U123: MDA3 (IVM) | V123: T2 (PZQ) | W123: 7534 | X123: LAGDO | Z123: TRUE
A124: =IF(INTRO!$E$34<>0,INTRO!$E$34,"") -> Cameroon | B124: NORTH | C124: MAYO OULO | D124: 137214 | E124: =IF(INTRO!$E$48="","",ROUND($D124*INTRO!$E$48,0)) -> 17728 | F124: =IF(INTRO!$E$49="","",ROUND($D124*INTRO!$E$49,0)) -> 36636 | G124: =IF(INTRO!$E$50="","",ROUND($D124*INTRO!$E$50,0)) -> 77389 | H124: 99 | I124: 4 | J124: 2 | K124: 2 | L124: 0 | M124: =IF(INTRO!$E$38="Endémique", IF($H124>0, IF($H124=4,"Inconnu", IF($H124=99,"Interrompu", $D124)), 0),"Non requis") -> Interrompu | N124: =IF(INTRO!$E$40="Endémique", IF($I124>0, IF($I124=4,"Inconnu",IF($I124=99,"Interrompu", $D124)), 0),"Non requis") -> Inconnu | O124: =IF(INTRO!$E$42="Endémique", IF(AND($J124>1,$J124<5), IF($J124=4, "Inconnu", E124+F124), 0),"Non requis") -> 54364 | P124: =IF(INTRO!$E$44="Endémique", IF(AND($K124>0,$K124<5), IF($K124=4,"Inconnu", IF($K124=1, $F124*0.33, IF($K124=2, $F124*0.5+$G124*0.2, SUM(F124:G124)))), 0),"Non requis") -> 33795.8 | Q124: 0 | R124: 0 | S124: 1 | T124: 1 | W124: 7535 | X124: MAYO OULO | Z124: TRUE
A125: =IF(INTRO!$E$34<>0,INTRO!$E$34,"") -> Cameroon | B125: NORTH | C125: NGONG | D125: 248926 | E125: =IF(INTRO!$E$48="","",ROUND($D125*INTRO!$E$48,0)) -> 32161 | F125: =IF(INTRO!$E$49="","",ROUND($D125*INTRO!$E$49,0)) -> 66463 | G125: =IF(INTRO!$E$50="","",ROUND($D125*INTRO!$E$50,0)) -> 140394 | H125: 99 | I125: 1 | J125: 2 | K125: 2 | L125: 0 | M125: =IF(INTRO!$E$38="Endémique", IF($H125>0, IF($H125=4,"Inconnu", IF($H125=99,"Interrompu", $D125)), 0),"Non requis") -> Interrompu | N125: =IF(INTRO!$E$40="Endémique", IF($I125>0, IF($I125=4,"Inconnu",IF($I125=99,"Interrompu", $D125)), 0),"Non requis") -> 248926 | O125: =IF(INTRO!$E$42="Endémique", IF(AND($J125>1,$J125<5), IF($J125=4, "Inconnu", E125+F125), 0),"Non requis") -> 98624 | P125: =IF(INTRO!$E$44="Endémique", IF(AND($K125>0,$K125<5), IF($K125=4,"Inconnu", IF($K125=1, $F125*0.33, IF($K125=2, $F125*0.5+$G125*0.2, SUM(F125:G125)))), 0),"Non requis") -> 61310.3 | Q125: 0 | R125: 1 | S125: 1 | T125: 1 | U125: MDA3 (IVM) | W125: 7536 | X125: NGONG | Z125: TRUE
A126: =IF(INTRO!$E$34<>0,INTRO!$E$34,"") -> Cameroon | B126: NORTH | C126: PITOA | D126: 156191 | E126: =IF(INTRO!$E$48="","",ROUND($D126*INTRO!$E$48,0)) -> 20180 | F126: =IF(INTRO!$E$49="","",ROUND($D126*INTRO!$E$49,0)) -> 41703 | G126: =IF(INTRO!$E$50="","",ROUND($D126*INTRO!$E$50,0)) -> 88092 | H126: 99 | I126: 4 | J126: 2 | K126: 2 | L126: 0 | M126: =IF(INTRO!$E$38="Endémique", IF($H126>0, IF($H126=4,"Inconnu", IF($H126=99,"Interrompu", $D126)), 0),"Non requis") -> Interrompu | N126: =IF(INTRO!$E$40="Endémique", IF($I126>0, IF($I126=4,"Inconnu",IF($I126=99,"Interrompu", $D126)), 0),"Non requis") -> Inconnu | O126: =IF(INTRO!$E$42="Endémique", IF(AND($J126>1,$J126<5), IF($J126=4, "Inconnu", E126+F126), 0),"Non requis") -> 61883 | P126: =IF(INTRO!$E$44="Endémique", IF(AND($K126>0,$K126<5), IF($K126=4,"Inconnu", IF($K126=1, $F126*0.33, IF($K126=2, $F126*0.5+$G126*0.2, SUM(F126:G126)))), 0),"Non requis") -> 38469.9 | Q126: 0 | R126: 0 | S126: 1 | T126: 1 | W126: 7537 | X126: PITOA | Z126: TRUE
A127: =IF(INTRO!$E$34<>0,INTRO!$E$34,"") -> Cameroon | B127: NORTH | C127: POLI | D127: 106921 | E127: =IF(INTRO!$E$48="","",ROUND($D127*INTRO!$E$48,0)) -> 13814 | F127: =IF(INTRO!$E$49="","",ROUND($D127*INTRO!$E$49,0)) -> 28548 | G127: =IF(INTRO!$E$50="","",ROUND($D127*INTRO!$E$50,0)) -> 60303 | H127: 99 | I127: 1 | J127: 2 | K127: 2 | L127: 0 | M127: =IF(INTRO!$E$38="Endémique", IF($H127>0, IF($H127=4,"Inconnu", IF($H127=99,"Interrompu", $D127)), 0),"Non requis") -> Interrompu | N127: =IF(INTRO!$E$40="Endémique", IF($I127>0, IF($I127=4,"Inconnu",IF($I127=99,"Interrompu", $D127)), 0),"Non requis") -> 106921 | O127: =IF(INTRO!$E$42="Endémique", IF(AND($J127>1,$J127<5), IF($J127=4, "Inconnu", E127+F127), 0),"Non requis") -> 42362 | P127: =IF(INTRO!$E$44="Endémique", IF(AND($K127>0,$K127<5), IF($K127=4,"Inconnu", IF($K127=1, $F127*0.33, IF($K127=2, $F127*0.5+$G127*0.2, SUM(F127:G127)))), 0),"Non requis") -> 26334.6 | Q127: 0 | R127: 1 | S127: 1 | T127: 1 | U127: MDA3 (IVM) | W127: 7538 | X127: POLI | Z127: TRUE
A128: =IF(INTRO!$E$34<>0,INTRO!$E$34,"") -> Cameroon | B128: NORTH | C128: REY BOUBA | D128: 170268 | E128: =IF(INTRO!$E$48="","",ROUND($D128*INTRO!$E$48,0)) -> 21999 | F128: =IF(INTRO!$E$49="","",ROUND($D128*INTRO!$E$49,0)) -> 45462 | G128: =IF(INTRO!$E$50="","",ROUND($D128*INTRO!$E$50,0)) -> 96031 | H128: 99 | I128: 1 | J128: 2 | K128: 2 | L128: 1 | M128: =IF(INTRO!$E$38="Endémique", IF($H128>0, IF($H128=4,"Inconnu", IF($H128=99,"Interrompu", $D128)), 0),"Non requis") -> Interrompu | N128: =IF(INTRO!$E$40="Endémique", IF($I128>0, IF($I128=4,"Inconnu",IF($I128=99,"Interrompu", $D128)), 0),"Non requis") -> 170268 | O128: =IF(INTRO!$E$42="Endémique", IF(AND($J128>1,$J128<5), IF($J128=4, "Inconnu", E128+F128), 0),"Non requis") -> 67461 | P128: =IF(INTRO!$E$44="Endémique", IF(AND($K128>0,$K128<5), IF($K128=4,"Inconnu", IF($K128=1, $F128*0.33, IF($K128=2, $F128*0.5+$G128*0.2, SUM(F128:G128)))), 0),"Non requis") -> 41937.2 | Q128: 0 | R128: 1 | S128: 1 | T128: 1 | U128: MDA3 (IVM) | V128: T2 (PZQ) | W128: 7539 | X128: REY BOUBA | Z128: TRUE
A129: =IF(INTRO!$E$34<>0,INTRO!$E$34,"") -> Cameroon | B129: NORTH | C129: TCHOLLIRE | D129: 171800 | E129: =IF(INTRO!$E$48="","",ROUND($D129*INTRO!$E$48,0)) -> 22197 | F129: =IF(INTRO!$E$49="","",ROUND($D129*INTRO!$E$49,0)) -> 45871 | G129: =IF(INTRO!$E$50="","",ROUND($D129*INTRO!$E$50,0)) -> 96895 | H129: 99 | I129: 1 | J129: 2 | K129: 2 | L129: 1 | M129: =IF(INTRO!$E$38="Endémique", IF($H129>0, IF($H129=4,"Inconnu", IF($H129=99,"Interrompu", $D129)), 0),"Non requis") -> Interrompu | N129: =IF(INTRO!$E$40="Endémique", IF($I129>0, IF($I129=4,"Inconnu",IF($I129=99,"Interrompu", $D129)), 0),"Non requis") -> 171800 | O129: =IF(INTRO!$E$42="Endémique", IF(AND($J129>1,$J129<5), IF($J129=4, "Inconnu", E129+F129), 0),"Non requis") -> 68068 | P129: =IF(INTRO!$E$44="Endémique", IF(AND($K129>0,$K129<5), IF($K129=4,"Inconnu", IF($K129=1, $F129*0.33, IF($K129=2, $F129*0.5+$G129*0.2, SUM(F129:G129)))), 0),"Non requis") -> 42314.5 | Q129: 0 | R129: 1 | S129: 1 | T129: 1 | U129: MDA3 (IVM) | W129: 7540 | X129: TCHOLLIRE | Z129: TRUE
A130: =IF(INTRO!$E$34<>0,INTRO!$E$34,"") -> Cameroon | B130: NORTH | C130: TOUBORO | D130: 258817 | E130: =IF(INTRO!$E$48="","",ROUND($D130*INTRO!$E$48,0)) -> 33439 | F130: =IF(INTRO!$E$49="","",ROUND($D130*INTRO!$E$49,0)) -> 69104 | G130: =IF(INTRO!$E$50="","",ROUND($D130*INTRO!$E$50,0)) -> 145973 | H130: 99 | I130: 1 | J130: 2 | K130: 2 | L130: 1 | M130: =IF(INTRO!$E$38="Endémique", IF($H130>0, IF($H130=4,"Inconnu", IF($H130=99,"Interrompu", $D130)), 0),"Non requis") -> Interrompu | N130: =IF(INTRO!$E$40="Endémique", IF($I130>0, IF($I130=4,"Inconnu",IF($I130=99,"Interrompu", $D130)), 0),"Non requis") -> 258817 | O130: =IF(INTRO!$E$42="Endémique", IF(AND($J130>1,$J130<5), IF($J130=4, "Inconnu", E130+F130), 0),"Non requis") -> 102543 | P130: =IF(INTRO!$E$44="Endémique", IF(AND($K130>0,$K130<5), IF($K130=4,"Inconnu", IF($K130=1, $F130*0.33, IF($K130=2, $F130*0.5+$G130*0.2, SUM(F130:G130)))), 0),"Non requis") -> 63746.6 | Q130: 0 | R130: 1 | S130: 1 | T130: 1 | U130: MDA3 (IVM) | W130: 7541 | X130: TOUBORO | Z130: TRUE
A131: =IF(INTRO!$E$34<>0,INTRO!$E$34,"") -> Cameroon | B131: NORTH-WEST | C131: AKO | D131: 57980 | E131: =IF(INTRO!$E$48="","",ROUND($D131*INTRO!$E$48,0)) -> 7491 | F131: =IF(INTRO!$E$49="","",ROUND($D131*INTRO!$E$49,0)) -> 15481 | G131: =IF(INTRO!$E$50="","",ROUND($D131*INTRO!$E$50,0)) -> 32701 | H131: 99 | I131: 1 | J131: 2 | K131: 2 | L131: 1 | M131: =IF(INTRO!$E$38="Endémique", IF($H131>0, IF($H131=4,"Inconnu", IF($H131=99,"Interrompu", $D131)), 0),"Non requis") -> Interrompu | N131: =IF(INTRO!$E$40="Endémique", IF($I131>0, IF($I131=4,"Inconnu",IF($I131=99,"Interrompu", $D131)), 0),"Non requis") -> 57980 | O131: =IF(INTRO!$E$42="Endémique", IF(AND($J131>1,$J131<5), IF($J131=4, "Inconnu", E131+F131), 0),"Non requis") -> 22972 | P131: =IF(INTRO!$E$44="Endémique", IF(AND($K131>0,$K131<5), IF($K131=4,"Inconnu", IF($K131=1, $F131*0.33, IF($K131=2, $F131*0.5+$G131*0.2, SUM(F131:G131)))), 0),"Non requis") -> 14280.7 | Q131: 0 | R131: 1 | S131: 1 | T131: 1 | U131: MDA3 (IVM) | V131: T2 (PZQ) | W131: 7542 | X131: AKO | Z131: TRUE
A132: =IF(INTRO!$E$34<>0,INTRO!$E$34,"") -> Cameroon | B132: NORTH-WEST | C132: BAFUT | D132: 59931 | E132: =IF(INTRO!$E$48="","",ROUND($D132*INTRO!$E$48,0)) -> 7743 | F132: =IF(INTRO!$E$49="","",ROUND($D132*INTRO!$E$49,0)) -> 16002 | G132: =IF(INTRO!$E$50="","",ROUND($D132*INTRO!$E$50,0)) -> 33801 | H132: 99 | I132: 1 | J132: 2 | K132: 1 | L132: 1 | M132: =IF(INTRO!$E$38="Endémique", IF($H132>0, IF($H132=4,"Inconnu", IF($H132=99,"Interrompu", $D132)), 0),"Non requis") -> Interrompu | N132: =IF(INTRO!$E$40="Endémique", IF($I132>0, IF($I132=4,"Inconnu",IF($I132=99,"Interrompu", $D132)), 0),"Non requis") -> 59931 | O132: =IF(INTRO!$E$42="Endémique", IF(AND($J132>1,$J132<5), IF($J132=4, "Inconnu", E132+F132), 0),"Non requis") -> 23745 | P132: =IF(INTRO!$E$44="Endémique", IF(AND($K132>0,$K132<5), IF($K132=4,"Inconnu", IF($K132=1, $F132*0.33, IF($K132=2, $F132*0.5+$G132*0.2, SUM(F132:G132)))), 0),"Non requis") -> 5280.66 | Q132: 0 | R132: 1 | S132: 1 | T132: 0 | U132: MDA3 (IVM) | W132: 7543 | X132: BAFUT | Z132: TRUE
A133: =IF(INTRO!$E$34<>0,INTRO!$E$34,"") -> Cameroon | B133: NORTH-WEST | C133: BALI | D133: 36547 | E133: =IF(INTRO!$E$48="","",ROUND($D133*INTRO!$E$48,0)) -> 4722 | F133: =IF(INTRO!$E$49="","",ROUND($D133*INTRO!$E$49,0)) -> 9758 | G133: =IF(INTRO!$E$50="","",ROUND($D133*INTRO!$E$50,0)) -> 20613 | H133: 99 | I133: 1 | J133: 2 | K133: 0 | L133: 1 | M133: =IF(INTRO!$E$38="Endémique", IF($H133>0, IF($H133=4,"Inconnu", IF($H133=99,"Interrompu", $D133)), 0),"Non requis") -> Interrompu | N133: =IF(INTRO!$E$40="Endémique", IF($I133>0, IF($I133=4,"Inconnu",IF($I133=99,"Interrompu", $D133)), 0),"Non requis") -> 36547 | O133: =IF(INTRO!$E$42="Endémique", IF(AND($J133>1,$J133<5), IF($J133=4, "Inconnu", E133+F133), 0),"Non requis") -> 14480 | P133: =IF(INTRO!$E$44="Endémique", IF(AND($K133>0,$K133<5), IF($K133=4,"Inconnu", IF($K133=1, $F133*0.33, IF($K133=2, $F133*0.5+$G133*0.2, SUM(F133:G133)))), 0),"Non requis") -> 0 | Q133: 0 | R133: 1 | S133: 1 | T133: 0 | U133: MDA3 (IVM) | W133: 7544 | X133: BALI | Z133: TRUE
A134: =IF(INTRO!$E$34<>0,INTRO!$E$34,"") -> Cameroon | B134: NORTH-WEST | C134: BAMENDA | D134: 422982 | E134: =IF(INTRO!$E$48="","",ROUND($D134*INTRO!$E$48,0)) -> 54649 | F134: =IF(INTRO!$E$49="","",ROUND($D134*INTRO!$E$49,0)) -> 112936 | G134: =IF(INTRO!$E$50="","",ROUND($D134*INTRO!$E$50,0)) -> 238562 | H134: 99 | I134: 1 | J134: 2 | K134: 1 | L134: 1 | M134: =IF(INTRO!$E$38="Endémique", IF($H134>0, IF($H134=4,"Inconnu", IF($H134=99,"Interrompu", $D134)), 0),"Non requis") -> Interrompu | N134: =IF(INTRO!$E$40="Endémique", IF($I134>0, IF($I134=4,"Inconnu",IF($I134=99,"Interrompu", $D134)), 0),"Non requis") -> 422982 | O134: =IF(INTRO!$E$42="Endémique", IF(AND($J134>1,$J134<5), IF($J134=4, "Inconnu", E134+F134), 0),"Non requis") -> 167585 | P134: =IF(INTRO!$E$44="Endémique", IF(AND($K134>0,$K134<5), IF($K134=4,"Inconnu", IF($K134=1, $F134*0.33, IF($K134=2, $F134*0.5+$G134*0.2, SUM(F134:G134)))), 0),"Non requis") -> 37268.88 | Q134: 0 | R134: 1 | S134: 1 | T134: 0 | U134: MDA3 (IVM) | W134: 7545 | X134: BAMENDA | Z134: TRUE
A135: =IF(INTRO!$E$34<>0,INTRO!$E$34,"") -> Cameroon | B135: NORTH-WEST | C135: BATIBO | D135: 93723 | E135: =IF(INTRO!$E$48="","",ROUND($D135*INTRO!$E$48,0)) -> 12109 | F135: =IF(INTRO!$E$49="","",ROUND($D135*INTRO!$E$49,0)) -> 25024 | G135: =IF(INTRO!$E$50="","",ROUND($D135*INTRO!$E$50,0)) -> 52860 | H135: 99 | I135: 1 | J135: 2 | K135: 0 | L135: 1 | M135: =IF(INTRO!$E$38="Endémique", IF($H135>0, IF($H135=4,"Inconnu", IF($H135=99,"Interrompu", $D135)), 0),"Non requis") -> Interrompu | N135: =IF(INTRO!$E$40="Endémique", IF($I135>0, IF($I135=4,"Inconnu",IF($I135=99,"Interrompu", $D135)), 0),"Non requis") -> 93723 | O135: =IF(INTRO!$E$42="Endémique", IF(AND($J135>1,$J135<5), IF($J135=4, "Inconnu", E135+F135), 0),"Non requis") -> 37133 | P135: =IF(INTRO!$E$44="Endémique", IF(AND($K135>0,$K135<5), IF($K135=4,"Inconnu", IF($K135=1, $F135*0.33, IF($K135=2, $F135*0.5+$G135*0.2, SUM(F135:G135)))), 0),"Non requis") -> 0 | Q135: 0 | R135: 1 | S135: 1 | T135: 0 | U135: MDA3 (IVM) | W135: 7546 | X135: BATIBO | Z135: TRUE
A136: =IF(INTRO!$E$34<>0,INTRO!$E$34,"") -> Cameroon | B136: NORTH-WEST | C136: BENAKUMA | D136: 59882 | E136: =IF(INTRO!$E$48="","",ROUND($D136*INTRO!$E$48,0)) -> 7737 | F136: =IF(INTRO!$E$49="","",ROUND($D136*INTRO!$E$49,0)) -> 15988 | G136: =IF(INTRO!$E$50="","",ROUND($D136*INTRO!$E$50,0)) -> 33773 | H136: 99 | I136: 1 | J136: 2 | K136: 1 | L136: 1 | M136: =IF(INTRO!$E$38="Endémique", IF($H136>0, IF($H136=4,"Inconnu", IF($H136=99,"Interrompu", $D136)), 0),"Non requis") -> Interrompu | N136: =IF(INTRO!$E$40="Endémique", IF($I136>0, IF($I136=4,"Inconnu",IF($I136=99,"Interrompu", $D136)), 0),"Non requis") -> 59882 | O136: =IF(INTRO!$E$42="Endémique", IF(AND($J136>1,$J136<5), IF($J136=4, "Inconnu", E136+F136), 0),"Non requis") -> 23725 | P136: =IF(INTRO!$E$44="Endémique", IF(AND($K136>0,$K136<5), IF($K136=4,"Inconnu", IF($K136=1, $F136*0.33, IF($K136=2, $F136*0.5+$G136*0.2, SUM(F136:G136)))), 0),"Non requis") -> 5276.04 | Q136: 0 | R136: 1 | S136: 1 | T136: 0 | U136: MDA3 (IVM) | W136: 7547 | X136: BENAKUMA | Z136: TRUE
A137: =IF(INTRO!$E$34<>0,INTRO!$E$34,"") -> Cameroon | B137: NORTH-WEST | C137: FUNDONG | D137: 155871 | E137: =IF(INTRO!$E$48="","",ROUND($D137*INTRO!$E$48,0)) -> 20139 | F137: =IF(INTRO!$E$49="","",ROUND($D137*INTRO!$E$49,0)) -> 41618 | G137: =IF(INTRO!$E$50="","",ROUND($D137*INTRO!$E$50,0)) -> 87911 | H137: 99 | I137: 1 | J137: 2 | K137: 0 | L137: 1 | M137: =IF(INTRO!$E$38="Endémique", IF($H137>0, IF($H137=4,"Inconnu", IF($H137=99,"Interrompu", $D137)), 0),"Non requis") -> Interrompu | N137: =IF(INTRO!$E$40="Endémique", IF($I137>0, IF($I137=4,"Inconnu",IF($I137=99,"Interrompu", $D137)), 0),"Non requis") -> 155871 | O137: =IF(INTRO!$E$42="Endémique", IF(AND($J137>1,$J137<5), IF($J137=4, "Inconnu", E137+F137), 0),"Non requis") -> 61757 | P137: =IF(INTRO!$E$44="Endémique", IF(AND($K137>0,$K137<5), IF($K137=4,"Inconnu", IF($K137=1, $F137*0.33, IF($K137=2, $F137*0.5+$G137*0.2, SUM(F137:G137)))), 0),"Non requis") -> 0 | Q137: 0 | R137: 1 | S137: 1 | T137: 0 | U137: MDA3 (IVM) | W137: 7548 | X137: FUNDONG | Z137: TRUE
A138: =IF(INTRO!$E$34<>0,INTRO!$E$34,"") -> Cameroon | B138: NORTH-WEST | C138: KUMBO EAST | D138: 157162 | E138: =IF(INTRO!$E$48="","",ROUND($D138*INTRO!$E$48,0)) -> 20305 | F138: =IF(INTRO!$E$49="","",ROUND($D138*INTRO!$E$49,0)) -> 41962 | G138: =IF(INTRO!$E$50="","",ROUND($D138*INTRO!$E$50,0)) -> 88639 | H138: 99 | I138: 1 | J138: 2 | K138: 2 | L138: 1 | M138: =IF(INTRO!$E$38="Endémique", IF($H138>0, IF($H138=4,"Inconnu", IF($H138=99,"Interrompu", $D138)), 0),"Non requis") -> Interrompu | N138: =IF(INTRO!$E$40="Endémique", IF($I138>0, IF($I138=4,"Inconnu",IF($I138=99,"Interrompu", $D138)), 0),"Non requis") -> 157162 | O138: =IF(INTRO!$E$42="Endémique", IF(AND($J138>1,$J138<5), IF($J138=4, "Inconnu", E138+F138), 0),"Non requis") -> 62267 | P138: =IF(INTRO!$E$44="Endémique", IF(AND($K138>0,$K138<5), IF($K138=4,"Inconnu", IF($K138=1, $F138*0.33, IF($K138=2, $F138*0.5+$G138*0.2, SUM(F138:G138)))), 0),"Non requis") -> 38708.8 | Q138: 0 | R138: 1 | S138: 1 | T138: 1 | U138: MDA3 (IVM) | W138: 7549 | X138: KUMBO EAST | Z138: =X138=C138 -> TRUE
A139: =IF(INTRO!$E$34<>0,INTRO!$E$34,"") -> Cameroon | B139: NORTH-WEST | C139: KUMBO WEST | D139: 111806 | E139: =IF(INTRO!$E$48="","",ROUND($D139*INTRO!$E$48,0)) -> 14445 | F139: =IF(INTRO!$E$49="","",ROUND($D139*INTRO!$E$49,0)) -> 29852 | G139: =IF(INTRO!$E$50="","",ROUND($D139*INTRO!$E$50,0)) -> 63059 | H139: 99 | I139: 1 | J139: 2 | K139: 0 | L139: 1 | M139: =IF(INTRO!$E$38="Endémique", IF($H139>0, IF($H139=4,"Inconnu", IF($H139=99,"Interrompu", $D139)), 0),"Non requis") -> Interrompu | N139: =IF(INTRO!$E$40="Endémique", IF($I139>0, IF($I139=4,"Inconnu",IF($I139=99,"Interrompu", $D139)), 0),"Non requis") -> 111806 | O139: =IF(INTRO!$E$42="Endémique", IF(AND($J139>1,$J139<5), IF($J139=4, "Inconnu", E139+F139), 0),"Non requis") -> 44297 | P139: =IF(INTRO!$E$44="Endémique", IF(AND($K139>0,$K139<5), IF($K139=4,"Inconnu", IF($K139=1, $F139*0.33, IF($K139=2, $F139*0.5+$G139*0.2, SUM(F139:G139)))), 0),"Non requis") -> 0 | Q139: 0 | R139: 1 | S139: 1 | T139: 0 | U139: MDA3 (IVM) | W139: 7550 | X139: KUMBO WEST | Z139: TRUE
A140: =IF(INTRO!$E$34<>0,INTRO!$E$34,"") -> Cameroon | B140: NORTH-WEST | C140: MBENGWI | D140: 55623 | E140: =IF(INTRO!$E$48="","",ROUND($D140*INTRO!$E$48,0)) -> 7186 | F140: =IF(INTRO!$E$49="","",ROUND($D140*INTRO!$E$49,0)) -> 14851 | G140: =IF(INTRO!$E$50="","",ROUND($D140*INTRO!$E$50,0)) -> 31371 | H140: 99 | I140: 1 | J140: 2 | K140: 0 | L140: 1 | M140: =IF(INTRO!$E$38="Endémique", IF($H140>0, IF($H140=4,"Inconnu", IF($H140=99,"Interrompu", $D140)), 0),"Non requis") -> Interrompu | N140: =IF(INTRO!$E$40="Endémique", IF($I140>0, IF($I140=4,"Inconnu",IF($I140=99,"Interrompu", $D140)), 0),"Non requis") -> 55623 | O140: =IF(INTRO!$E$42="Endémique", IF(AND($J140>1,$J140<5), IF($J140=4, "Inconnu", E140+F140), 0),"Non requis") -> 22037 | P140: =IF(INTRO!$E$44="Endémique", IF(AND($K140>0,$K140<5), IF($K140=4,"Inconnu", IF($K140=1, $F140*0.33, IF($K140=2, $F140*0.5+$G140*0.2, SUM(F140:G140)))), 0),"Non requis") -> 0 | Q140: 0 | R140: 1 | S140: 1 | T140: 0 | U140: MDA3 (IVM) | W140: 7551 | X140: MBENGWI | Z140: TRUE
A141: =IF(INTRO!$E$34<>0,INTRO!$E$34,"") -> Cameroon | B141: NORTH-WEST | C141: NDOP | D141: 271472 | E141: =IF(INTRO!$E$48="","",ROUND($D141*INTRO!$E$48,0)) -> 35074 | F141: =IF(INTRO!$E$49="","",ROUND($D141*INTRO!$E$49,0)) -> 72483 | G141: =IF(INTRO!$E$50="","",ROUND($D141*INTRO!$E$50,0)) -> 153110 | H141: 99 | I141: 1 | J141: 2 | K141: 0 | L141: 1 | M141: =IF(INTRO!$E$38="Endémique", IF($H141>0, IF($H141=4,"Inconnu", IF($H141=99,"Interrompu", $D141)), 0),"Non requis") -> Interrompu | N141: =IF(INTRO!$E$40="Endémique", IF($I141>0, IF($I141=4,"Inconnu",IF($I141=99,"Interrompu", $D141)), 0),"Non requis") -> 271472 | O141: =IF(INTRO!$E$42="Endémique", IF(AND($J141>1,$J141<5), IF($J141=4, "Inconnu", E141+F141), 0),"Non requis") -> 107557 | P141: =IF(INTRO!$E$44="Endémique", IF(AND($K141>0,$K141<5), IF($K141=4,"Inconnu", IF($K141=1, $F141*0.33, IF($K141=2, $F141*0.5+$G141*0.2, SUM(F141:G141)))), 0),"Non requis") -> 0 | Q141: 0 | R141: 1 | S141: 1 | T141: 0 | U141: MDA3 (IVM) | W141: 7552 | X141: NDOP | Z141: TRUE
A142: =IF(INTRO!$E$34<>0,INTRO!$E$34,"") -> Cameroon | B142: NORTH-WEST | C142: NDU | D142: 94477 | E142: =IF(INTRO!$E$48="","",ROUND($D142*INTRO!$E$48,0)) -> 12206 | F142: =IF(INTRO!$E$49="","",ROUND($D142*INTRO!$E$49,0)) -> 25225 | G142: =IF(INTRO!$E$50="","",ROUND($D142*INTRO!$E$50,0)) -> 53285 | H142: 99 | I142: 1 | J142: 2 | K142: 2 | L142: 1 | M142: =IF(INTRO!$E$38="Endémique", IF($H142>0, IF($H142=4,"Inconnu", IF($H142=99,"Interrompu", $D142)), 0),"Non requis") -> Interrompu | N142: =IF(INTRO!$E$40="Endémique", IF($I142>0, IF($I142=4,"Inconnu",IF($I142=99,"Interrompu", $D142)), 0),"Non requis") -> 94477 | O142: =IF(INTRO!$E$42="Endémique", IF(AND($J142>1,$J142<5), IF($J142=4, "Inconnu", E142+F142), 0),"Non requis") -> 37431 | P142: =IF(INTRO!$E$44="Endémique", IF(AND($K142>0,$K142<5), IF($K142=4,"Inconnu", IF($K142=1, $F142*0.33, IF($K142=2, $F142*0.5+$G142*0.2, SUM(F142:G142)))), 0),"Non requis") -> 23269.5 | Q142: 0 | R142: 1 | S142: 1 | T142: 1 | U142: MDA3 (IVM) | W142: 7553 | X142: NDU | Z142: TRUE
A143: =IF(INTRO!$E$34<>0,INTRO!$E$34,"") -> Cameroon | B143: NORTH-WEST | C143: NJIKWA | D143: 22672 | E143: =IF(INTRO!$E$48="","",ROUND($D143*INTRO!$E$48,0)) -> 2929 | F143: =IF(INTRO!$E$49="","",ROUND($D143*INTRO!$E$49,0)) -> 6053 | G143: =IF(INTRO!$E$50="","",ROUND($D143*INTRO!$E$50,0)) -> 12787 | H143: 99 | I143: 1 | J143: 2 | K143: 0 | L143: 1 | M143: =IF(INTRO!$E$38="Endémique", IF($H143>0, IF($H143=4,"Inconnu", IF($H143=99,"Interrompu", $D143)), 0),"Non requis") -> Interrompu | N143: =IF(INTRO!$E$40="Endémique", IF($I143>0, IF($I143=4,"Inconnu",IF($I143=99,"Interrompu", $D143)), 0),"Non requis") -> 22672 | O143: =IF(INTRO!$E$42="Endémique", IF(AND($J143>1,$J143<5), IF($J143=4, "Inconnu", E143+F143), 0),"Non requis") -> 8982 | P143: =IF(INTRO!$E$44="Endémique", IF(AND($K143>0,$K143<5), IF($K143=4,"Inconnu", IF($K143=1, $F143*0.33, IF($K143=2, $F143*0.5+$G143*0.2, SUM(F143:G143)))), 0),"Non requis") -> 0 | Q143: 0 | R143: 1 | S143: 1 | T143: 0 | U143: MDA3 (IVM) | W143: 7554 | X143: NJIKWA | Z143: TRUE
A144: =IF(INTRO!$E$34<>0,INTRO!$E$34,"") -> Cameroon | B144: NORTH-WEST | C144: NKAMBE | D144: 145750 | E144: =IF(INTRO!$E$48="","",ROUND($D144*INTRO!$E$48,0)) -> 18831 | F144: =IF(INTRO!$E$49="","",ROUND($D144*INTRO!$E$49,0)) -> 38915 | G144: =IF(INTRO!$E$50="","",ROUND($D144*INTRO!$E$50,0)) -> 82203 | H144: 99 | I144: 1 | J144: 2 | K144: 1 | L144: 1 | M144: =IF(INTRO!$E$38="Endémique", IF($H144>0, IF($H144=4,"Inconnu", IF($H144=99,"Interrompu", $D144)), 0),"Non requis") -> Interrompu | N144: =IF(INTRO!$E$40="Endémique", IF($I144>0, IF($I144=4,"Inconnu",IF($I144=99,"Interrompu", $D144)), 0),"Non requis") -> 145750 | O144: =IF(INTRO!$E$42="Endémique", IF(AND($J144>1,$J144<5), IF($J144=4, "Inconnu", E144+F144), 0),"Non requis") -> 57746 | P144: =IF(INTRO!$E$44="Endémique", IF(AND($K144>0,$K144<5), IF($K144=4,"Inconnu", IF($K144=1, $F144*0.33, IF($K144=2, $F144*0.5+$G144*0.2, SUM(F144:G144)))), 0),"Non requis") -> 12841.95 | Q144: 0 | R144: 1 | S144: 1 | T144: 0 | U144: MDA3 (IVM) | W144: 7555 | X144: NKAMBE | Z144: TRUE
A145: =IF(INTRO!$E$34<>0,INTRO!$E$34,"") -> Cameroon | B145: NORTH-WEST | C145: NWA | D145: 64616 | E145: =IF(INTRO!$E$48="","",ROUND($D145*INTRO!$E$48,0)) -> 8348 | F145: =IF(INTRO!$E$49="","",ROUND($D145*INTRO!$E$49,0)) -> 17252 | G145: =IF(INTRO!$E$50="","",ROUND($D145*INTRO!$E$50,0)) -> 36443 | H145: 99 | I145: 1 | J145: 2 | K145: 0 | L145: 1 | M145: =IF(INTRO!$E$38="Endémique", IF($H145>0, IF($H145=4,"Inconnu", IF($H145=99,"Interrompu", $D145)), 0),"Non requis") -> Interrompu | N145: =IF(INTRO!$E$40="Endémique", IF($I145>0, IF($I145=4,"Inconnu",IF($I145=99,"Interrompu", $D145)), 0),"Non requis") -> 64616 | O145: =IF(INTRO!$E$42="Endémique", IF(AND($J145>1,$J145<5), IF($J145=4, "Inconnu", E145+F145), 0),"Non requis") -> 25600 | P145: =IF(INTRO!$E$44="Endémique", IF(AND($K145>0,$K145<5), IF($K145=4,"Inconnu", IF($K145=1, $F145*0.33, IF($K145=2, $F145*0.5+$G145*0.2, SUM(F145:G145)))), 0),"Non requis") -> 0 | Q145: 0 | R145: 1 | S145: 1 | T145: 0 | U145: MDA3 (IVM) | W145: 7556 | X145: NWA | Z145: TRUE
A146: =IF(INTRO!$E$34<>0,INTRO!$E$34,"") -> Cameroon | B146: NORTH-WEST | C146: OKU | D146: 100015 | E146: =IF(INTRO!$E$48="","",ROUND($D146*INTRO!$E$48,0)) -> 12922 | F146: =IF(INTRO!$E$49="","",ROUND($D146*INTRO!$E$49,0)) -> 26704 | G146: =IF(INTRO!$E$50="","",ROUND($D146*INTRO!$E$50,0)) -> 56408 | H146: 99 | I146: 1 | J146: 2 | K146: 0 | L146: 1 | M146: =IF(INTRO!$E$38="Endémique", IF($H146>0, IF($H146=4,"Inconnu", IF($H146=99,"Interrompu", $D146)), 0),"Non requis") -> Interrompu | N146: =IF(INTRO!$E$40="Endémique", IF($I146>0, IF($I146=4,"Inconnu",IF($I146=99,"Interrompu", $D146)), 0),"Non requis") -> 100015 | O146: =IF(INTRO!$E$42="Endémique", IF(AND($J146>1,$J146<5), IF($J146=4, "Inconnu", E146+F146), 0),"Non requis") -> 39626 | P146: =IF(INTRO!$E$44="Endémique", IF(AND($K146>0,$K146<5), IF($K146=4,"Inconnu", IF($K146=1, $F146*0.33, IF($K146=2, $F146*0.5+$G146*0.2, SUM(F146:G146)))), 0),"Non requis") -> 0 | Q146: 0 | R146: 1 | S146: 1 | T146: 0 | U146: MDA3 (IVM) | W146: 7557 | X146: OKU | Z146: TRUE
A147: =IF(INTRO!$E$34<>0,INTRO!$E$34,"") -> Cameroon | B147: NORTH-WEST | C147: SANTA | D147: 99659 | E147: =IF(INTRO!$E$48="","",ROUND($D147*INTRO!$E$48,0)) -> 12876 | F147: =IF(INTRO!$E$49="","",ROUND($D147*INTRO!$E$49,0)) -> 26609 | G147: =IF(INTRO!$E$50="","",ROUND($D147*INTRO!$E$50,0)) -> 56208 | H147: 99 | I147: 1 | J147: 2 | K147: 1 | L147: 1 | M147: =IF(INTRO!$E$38="Endémique", IF($H147>0, IF($H147=4,"Inconnu", IF($H147=99,"Interrompu", $D147)), 0),"Non requis") -> Interrompu | N147: =IF(INTRO!$E$40="Endémique", IF($I147>0, IF($I147=4,"Inconnu",IF($I147=99,"Interrompu", $D147)), 0),"Non requis") -> 99659 | O147: =IF(INTRO!$E$42="Endémique", IF(AND($J147>1,$J147<5), IF($J147=4, "Inconnu", E147+F147), 0),"Non requis") -> 39485 | P147: =IF(INTRO!$E$44="Endémique", IF(AND($K147>0,$K147<5), IF($K147=4,"Inconnu", IF($K147=1, $F147*0.33, IF($K147=2, $F147*0.5+$G147*0.2, SUM(F147:G147)))), 0),"Non requis") -> 8780.97 | Q147: 0 | R147: 1 | S147: 1 | T147: 0 | U147: MDA3 (IVM) | W147: 7558 | X147: SANTA | Z147: TRUE
A148: =IF(INTRO!$E$34<>0,INTRO!$E$34,"") -> Cameroon | B148: NORTH-WEST | C148: TUBAH | D148: 68949 | E148: =IF(INTRO!$E$48="","",ROUND($D148*INTRO!$E$48,0)) -> 8908 | F148: =IF(INTRO!$E$49="","",ROUND($D148*INTRO!$E$49,0)) -> 18409 | G148: =IF(INTRO!$E$50="","",ROUND($D148*INTRO!$E$50,0)) -> 38887 | H148: 99 | I148: 1 | J148: 2 | K148: 0 | L148: 1 | M148: =IF(INTRO!$E$38="Endémique", IF($H148>0, IF($H148=4,"Inconnu", IF($H148=99,"Interrompu", $D148)), 0),"Non requis") -> Interrompu | N148: =IF(INTRO!$E$40="Endémique", IF($I148>0, IF($I148=4,"Inconnu",IF($I148=99,"Interrompu", $D148)), 0),"Non requis") -> 68949 | O148: =IF(INTRO!$E$42="Endémique", IF(AND($J148>1,$J148<5), IF($J148=4, "Inconnu", E148+F148), 0),"Non requis") -> 27317 | P148: =IF(INTRO!$E$44="Endémique", IF(AND($K148>0,$K148<5), IF($K148=4,"Inconnu", IF($K148=1, $F148*0.33, IF($K148=2, $F148*0.5+$G148*0.2, SUM(F148:G148)))), 0),"Non requis") -> 0 | Q148: 0 | R148: 1 | S148: 1 | T148: 0 | U148: MDA3 (IVM) | W148: 7559 | X148: TUBAH | Z148: TRUE
A149: =IF(INTRO!$E$34<>0,INTRO!$E$34,"") -> Cameroon | B149: NORTH-WEST | C149: WUM | D149: 133514 | E149: =IF(INTRO!$E$48="","",ROUND($D149*INTRO!$E$48,0)) -> 17250 | F149: =IF(INTRO!$E$49="","",ROUND($D149*INTRO!$E$49,0)) -> 35648 | G149: =IF(INTRO!$E$50="","",ROUND($D149*INTRO!$E$50,0)) -> 75302 | H149: 99 | I149: 1 | J149: 2 | K149: 1 | L149: 1 | M149: =IF(INTRO!$E$38="Endémique", IF($H149>0, IF($H149=4,"Inconnu", IF($H149=99,"Interrompu", $D149)), 0),"Non requis") -> Interrompu | N149: =IF(INTRO!$E$40="Endémique", IF($I149>0, IF($I149=4,"Inconnu",IF($I149=99,"Interrompu", $D149)), 0),"Non requis") -> 133514 | O149: =IF(INTRO!$E$42="Endémique", IF(AND($J149>1,$J149<5), IF($J149=4, "Inconnu", E149+F149), 0),"Non requis") -> 52898 | P149: =IF(INTRO!$E$44="Endémique", IF(AND($K149>0,$K149<5), IF($K149=4,"Inconnu", IF($K149=1, $F149*0.33, IF($K149=2, $F149*0.5+$G149*0.2, SUM(F149:G149)))), 0),"Non requis") -> 11763.84 | Q149: 0 | R149: 1 | S149: 1 | T149: 0 | U149: MDA3 (IVM) | W149: 7560 | X149: WUM | Z149: TRUE
A150: =IF(INTRO!$E$34<>0,INTRO!$E$34,"") -> Cameroon | B150: WEST | C150: BAFANG | D150: 81021 | E150: =IF(INTRO!$E$48="","",ROUND($D150*INTRO!$E$48,0)) -> 10468 | F150: =IF(INTRO!$E$49="","",ROUND($D150*INTRO!$E$49,0)) -> 21633 | G150: =IF(INTRO!$E$50="","",ROUND($D150*INTRO!$E$50,0)) -> 45696 | H150: 99 | I150: 1 | J150: 2 | K150: 0 | L150: 1 | M150: =IF(INTRO!$E$38="Endémique", IF($H150>0, IF($H150=4,"Inconnu", IF($H150=99,"Interrompu", $D150)), 0),"Non requis") -> Interrompu | N150: =IF(INTRO!$E$40="Endémique", IF($I150>0, IF($I150=4,"Inconnu",IF($I150=99,"Interrompu", $D150)), 0),"Non requis") -> 81021 | O150: =IF(INTRO!$E$42="Endémique", IF(AND($J150>1,$J150<5), IF($J150=4, "Inconnu", E150+F150), 0),"Non requis") -> 32101 | P150: =IF(INTRO!$E$44="Endémique", IF(AND($K150>0,$K150<5), IF($K150=4,"Inconnu", IF($K150=1, $F150*0.33, IF($K150=2, $F150*0.5+$G150*0.2, SUM(F150:G150)))), 0),"Non requis") -> 0 | Q150: 0 | R150: 1 | S150: 1 | T150: 0 | U150: MDA3 (IVM) | W150: 7561 | X150: BAFANG | Z150: TRUE
A151: =IF(INTRO!$E$34<>0,INTRO!$E$34,"") -> Cameroon | B151: WEST | C151: BAHAM | D151: 38215 | E151: =IF(INTRO!$E$48="","",ROUND($D151*INTRO!$E$48,0)) -> 4937 | F151: =IF(INTRO!$E$49="","",ROUND($D151*INTRO!$E$49,0)) -> 10203 | G151: =IF(INTRO!$E$50="","",ROUND($D151*INTRO!$E$50,0)) -> 21553 | H151: 99 | I151: 1 | J151: 2 | K151: 0 | L151: 1 | M151: =IF(INTRO!$E$38="Endémique", IF($H151>0, IF($H151=4,"Inconnu", IF($H151=99,"Interrompu", $D151)), 0),"Non requis") -> Interrompu | N151: =IF(INTRO!$E$40="Endémique", IF($I151>0, IF($I151=4,"Inconnu",IF($I151=99,"Interrompu", $D151)), 0),"Non requis") -> 38215 | O151: =IF(INTRO!$E$42="Endémique", IF(AND($J151>1,$J151<5), IF($J151=4, "Inconnu", E151+F151), 0),"Non requis") -> 15140 | P151: =IF(INTRO!$E$44="Endémique", IF(AND($K151>0,$K151<5), IF($K151=4,"Inconnu", IF($K151=1, $F151*0.33, IF($K151=2, $F151*0.5+$G151*0.2, SUM(F151:G151)))), 0),"Non requis") -> 0 | Q151: 0 | R151: 1 | S151: 1 | T151: 0 | U151: MDA3 (IVM) | W151: 7562 | X151: BAHAM | Z151: TRUE
A152: =IF(INTRO!$E$34<>0,INTRO!$E$34,"") -> Cameroon | B152: WEST | C152: BAMENDJOU | D152: 41342 | E152: =IF(INTRO!$E$48="","",ROUND($D152*INTRO!$E$48,0)) -> 5341 | F152: =IF(INTRO!$E$49="","",ROUND($D152*INTRO!$E$49,0)) -> 11038 | G152: =IF(INTRO!$E$50="","",ROUND($D152*INTRO!$E$50,0)) -> 23317 | H152: 99 | I152: 1 | J152: 2 | K152: 0 | L152: 1 | M152: =IF(INTRO!$E$38="Endémique", IF($H152>0, IF($H152=4,"Inconnu", IF($H152=99,"Interrompu", $D152)), 0),"Non requis") -> Interrompu | N152: =IF(INTRO!$E$40="Endémique", IF($I152>0, IF($I152=4,"Inconnu",IF($I152=99,"Interrompu", $D152)), 0),"Non requis") -> 41342 | O152: =IF(INTRO!$E$42="Endémique", IF(AND($J152>1,$J152<5), IF($J152=4, "Inconnu", E152+F152), 0),"Non requis") -> 16379 | P152: =IF(INTRO!$E$44="Endémique", IF(AND($K152>0,$K152<5), IF($K152=4,"Inconnu", IF($K152=1, $F152*0.33, IF($K152=2, $F152*0.5+$G152*0.2, SUM(F152:G152)))), 0),"Non requis") -> 0 | Q152: 0 | R152: 1 | S152: 1 | T152: 0 | U152: MDA3 (IVM) | W152: 7563 | X152: BAMENDJOU | Z152: TRUE
A153: =IF(INTRO!$E$34<>0,INTRO!$E$34,"") -> Cameroon | B153: WEST | C153: BANDJA | D153: 28922 | E153: =IF(INTRO!$E$48="","",ROUND($D153*INTRO!$E$48,0)) -> 3737 | F153: =IF(INTRO!$E$49="","",ROUND($D153*INTRO!$E$49,0)) -> 7722 | G153: =IF(INTRO!$E$50="","",ROUND($D153*INTRO!$E$50,0)) -> 16312 | H153: 99 | I153: 1 | J153: 2 | K153: 0 | L153: 1 | M153: =IF(INTRO!$E$38="Endémique", IF($H153>0, IF($H153=4,"Inconnu", IF($H153=99,"Interrompu", $D153)), 0),"Non requis") -> Interrompu | N153: =IF(INTRO!$E$40="Endémique", IF($I153>0, IF($I153=4,"Inconnu",IF($I153=99,"Interrompu", $D153)), 0),"Non requis") -> 28922 | O153: =IF(INTRO!$E$42="Endémique", IF(AND($J153>1,$J153<5), IF($J153=4, "Inconnu", E153+F153), 0),"Non requis") -> 11459 | P153: =IF(INTRO!$E$44="Endémique", IF(AND($K153>0,$K153<5), IF($K153=4,"Inconnu", IF($K153=1, $F153*0.33, IF($K153=2, $F153*0.5+$G153*0.2, SUM(F153:G153)))), 0),"Non requis") -> 0 | Q153: 0 | R153: 1 | S153: 1 | T153: 0 | U153: MDA3 (IVM) | W153: 7564 | X153: BANDJA | Z153: TRUE
A154: =IF(INTRO!$E$34<>0,INTRO!$E$34,"") -> Cameroon | B154: WEST | C154: BANDJOUN | D154: 88098 | E154: =IF(INTRO!$E$48="","",ROUND($D154*INTRO!$E$48,0)) -> 11382 | F154: =IF(INTRO!$E$49="","",ROUND($D154*INTRO!$E$49,0)) -> 23522 | G154: =IF(INTRO!$E$50="","",ROUND($D154*INTRO!$E$50,0)) -> 49687 | H154: 99 | I154: 1 | J154: 2 | K154: 0 | L154: 1 | M154: =IF(INTRO!$E$38="Endémique", IF($H154>0, IF($H154=4,"Inconnu", IF($H154=99,"Interrompu", $D154)), 0),"Non requis") -> Interrompu | N154: =IF(INTRO!$E$40="Endémique", IF($I154>0, IF($I154=4,"Inconnu",IF($I154=99,"Interrompu", $D154)), 0),"Non requis") -> 88098 | O154: =IF(INTRO!$E$42="Endémique", IF(AND($J154>1,$J154<5), IF($J154=4, "Inconnu", E154+F154), 0),"Non requis") -> 34904 | P154: =IF(INTRO!$E$44="Endémique", IF(AND($K154>0,$K154<5), IF($K154=4,"Inconnu", IF($K154=1, $F154*0.33, IF($K154=2, $F154*0.5+$G154*0.2, SUM(F154:G154)))), 0),"Non requis") -> 0 | Q154: 0 | R154: 1 | S154: 1 | T154: 0 | U154: MDA3 (IVM) | W154: 7565 | X154: BANDJOUN | Z154: TRUE
A155: =IF(INTRO!$E$34<>0,INTRO!$E$34,"") -> Cameroon | B155: WEST | C155: BANGANGTE | D155: 97646 | E155: =IF(INTRO!$E$48="","",ROUND($D155*INTRO!$E$48,0)) -> 12616 | F155: =IF(INTRO!$E$49="","",ROUND($D155*INTRO!$E$49,0)) -> 26071 | G155: =IF(INTRO!$E$50="","",ROUND($D155*INTRO!$E$50,0)) -> 55072 | H155: 99 | I155: 1 | J155: 2 | K155: 0 | L155: 1 | M155: =IF(INTRO!$E$38="Endémique", IF($H155>0, IF($H155=4,"Inconnu", IF($H155=99,"Interrompu", $D155)), 0),"Non requis") -> Interrompu | N155: =IF(INTRO!$E$40="Endémique", IF($I155>0, IF($I155=4,"Inconnu",IF($I155=99,"Interrompu", $D155)), 0),"Non requis") -> 97646 | O155: =IF(INTRO!$E$42="Endémique", IF(AND($J155>1,$J155<5), IF($J155=4, "Inconnu", E155+F155), 0),"Non requis") -> 38687 | P155: =IF(INTRO!$E$44="Endémique", IF(AND($K155>0,$K155<5), IF($K155=4,"Inconnu", IF($K155=1, $F155*0.33, IF($K155=2, $F155*0.5+$G155*0.2, SUM(F155:G155)))), 0),"Non requis") -> 0 | Q155: 0 | R155: 1 | S155: 1 | T155: 0 | U155: MDA3 (IVM) | W155: 7566 | X155: BANGANGTE | Z155: TRUE
A156: =IF(INTRO!$E$34<>0,INTRO!$E$34,"") -> Cameroon | B156: WEST | C156: BANGOURAIN | D156: 44426 | E156: =IF(INTRO!$E$48="","",ROUND($D156*INTRO!$E$48,0)) -> 5740 | F156: =IF(INTRO!$E$49="","",ROUND($D156*INTRO!$E$49,0)) -> 11862 | G156: =IF(INTRO!$E$50="","",ROUND($D156*INTRO!$E$50,0)) -> 25056 | H156: 99 | I156: 1 | J156: 2 | K156: 0 | L156: 1 | M156: =IF(INTRO!$E$38="Endémique", IF($H156>0, IF($H156=4,"Inconnu", IF($H156=99,"Interrompu", $D156)), 0),"Non requis") -> Interrompu | N156: =IF(INTRO!$E$40="Endémique", IF($I156>0, IF($I156=4,"Inconnu",IF($I156=99,"Interrompu", $D156)), 0),"Non requis") -> 44426 | O156: =IF(INTRO!$E$42="Endémique", IF(AND($J156>1,$J156<5), IF($J156=4, "Inconnu", E156+F156), 0),"Non requis") -> 17602 | P156: =IF(INTRO!$E$44="Endémique", IF(AND($K156>0,$K156<5), IF($K156=4,"Inconnu", IF($K156=1, $F156*0.33, IF($K156=2, $F156*0.5+$G156*0.2, SUM(F156:G156)))), 0),"Non requis") -> 0 | Q156: 0 | R156: 1 | S156: 1 | T156: 0 | U156: MDA3 (IVM) | W156: 7567 | X156: BANGOURAIN | Z156: TRUE
A157: =IF(INTRO!$E$34<>0,INTRO!$E$34,"") -> Cameroon | B157: WEST | C157: BATCHAM | D157: 84988 | E157: =IF(INTRO!$E$48="","",ROUND($D157*INTRO!$E$48,0)) -> 10980 | F157: =IF(INTRO!$E$49="","",ROUND($D157*INTRO!$E$49,0)) -> 22692 | G157: =IF(INTRO!$E$50="","",ROUND($D157*INTRO!$E$50,0)) -> 47933 | H157: 99 | I157: 1 | J157: 2 | K157: 1 | L157: 1 | M157: =IF(INTRO!$E$38="Endémique", IF($H157>0, IF($H157=4,"Inconnu", IF($H157=99,"Interrompu", $D157)), 0),"Non requis") -> Interrompu | N157: =IF(INTRO!$E$40="Endémique", IF($I157>0, IF($I157=4,"Inconnu",IF($I157=99,"Interrompu", $D157)), 0),"Non requis") -> 84988 | O157: =IF(INTRO!$E$42="Endémique", IF(AND($J157>1,$J157<5), IF($J157=4, "Inconnu", E157+F157), 0),"Non requis") -> 33672 | P157: =IF(INTRO!$E$44="Endémique", IF(AND($K157>0,$K157<5), IF($K157=4,"Inconnu", IF($K157=1, $F157*0.33, IF($K157=2, $F157*0.5+$G157*0.2, SUM(F157:G157)))), 0),"Non requis") -> 7488.36 | Q157: 0 | R157: 1 | S157: 1 | T157: 0 | U157: MDA3 (IVM) | W157: 7568 | X157: BATCHAM | Z157: TRUE
A158: =IF(INTRO!$E$34<>0,INTRO!$E$34,"") -> Cameroon | B158: WEST | C158: DSCHANG | D158: 226964 | E158: =IF(INTRO!$E$48="","",ROUND($D158*INTRO!$E$48,0)) -> 29324 | F158: =IF(INTRO!$E$49="","",ROUND($D158*INTRO!$E$49,0)) -> 60599 | G158: =IF(INTRO!$E$50="","",ROUND($D158*INTRO!$E$50,0)) -> 128008 | H158: 99 | I158: 1 | J158: 2 | K158: 0 | L158: 1 | M158: =IF(INTRO!$E$38="Endémique", IF($H158>0, IF($H158=4,"Inconnu", IF($H158=99,"Interrompu", $D158)), 0),"Non requis") -> Interrompu | N158: =IF(INTRO!$E$40="Endémique", IF($I158>0, IF($I158=4,"Inconnu",IF($I158=99,"Interrompu", $D158)), 0),"Non requis") -> 226964 | O158: =IF(INTRO!$E$42="Endémique", IF(AND($J158>1,$J158<5), IF($J158=4, "Inconnu", E158+F158), 0),"Non requis") -> 89923 | P158: =IF(INTRO!$E$44="Endémique", IF(AND($K158>0,$K158<5), IF($K158=4,"Inconnu", IF($K158=1, $F158*0.33, IF($K158=2, $F158*0.5+$G158*0.2, SUM(F158:G158)))), 0),"Non requis") -> 0 | Q158: 0 | R158: 1 | S158: 1 | T158: 0 | U158: MDA3 (IVM) | W158: 7569 | X158: DSCHANG | Z158: TRUE
A159: =IF(INTRO!$E$34<>0,INTRO!$E$34,"") -> Cameroon | B159: WEST | C159: FOUMBAN | D159: 235828 | E159: =IF(INTRO!$E$48="","",ROUND($D159*INTRO!$E$48,0)) -> 30469 | F159: =IF(INTRO!$E$49="","",ROUND($D159*INTRO!$E$49,0)) -> 62966 | G159: =IF(INTRO!$E$50="","",ROUND($D159*INTRO!$E$50,0)) -> 133007 | H159: 0 | I159: 1 | J159: 2 | K159: 2 | L159: 1 | M159: =IF(INTRO!$E$38="Endémique", IF($H159>0, IF($H159=4,"Inconnu", IF($H159=99,"Interrompu", $D159)), 0),"Non requis") -> 0 | N159: =IF(INTRO!$E$40="Endémique", IF($I159>0, IF($I159=4,"Inconnu",IF($I159=99,"Interrompu", $D159)), 0),"Non requis") -> 235828 | O159: =IF(INTRO!$E$42="Endémique", IF(AND($J159>1,$J159<5), IF($J159=4, "Inconnu", E159+F159), 0),"Non requis") -> 93435 | P159: =IF(INTRO!$E$44="Endémique", IF(AND($K159>0,$K159<5), IF($K159=4,"Inconnu", IF($K159=1, $F159*0.33, IF($K159=2, $F159*0.5+$G159*0.2, SUM(F159:G159)))), 0),"Non requis") -> 58084.4 | Q159: 0 | R159: 1 | S159: 1 | T159: 1 | U159: MDA3 (IVM) | W159: 7570 | X159: FOUMBAN | Z159: TRUE
A160: =IF(INTRO!$E$34<>0,INTRO!$E$34,"") -> Cameroon | B160: WEST | C160: FOUMBOT | D160: 108000 | E160: =IF(INTRO!$E$48="","",ROUND($D160*INTRO!$E$48,0)) -> 13954 | F160: =IF(INTRO!$E$49="","",ROUND($D160*INTRO!$E$49,0)) -> 28836 | G160: =IF(INTRO!$E$50="","",ROUND($D160*INTRO!$E$50,0)) -> 60912 | H160: 0 | I160: 1 | J160: 2 | K160: 2 | L160: 1 | M160: =IF(INTRO!$E$38="Endémique", IF($H160>0, IF($H160=4,"Inconnu", IF($H160=99,"Interrompu", $D160)), 0),"Non requis") -> 0 | N160: =IF(INTRO!$E$40="Endémique", IF($I160>0, IF($I160=4,"Inconnu",IF($I160=99,"Interrompu", $D160)), 0),"Non requis") -> 108000 | O160: =IF(INTRO!$E$42="Endémique", IF(AND($J160>1,$J160<5), IF($J160=4, "Inconnu", E160+F160), 0),"Non requis") -> 42790 | P160: =IF(INTRO!$E$44="Endémique", IF(AND($K160>0,$K160<5), IF($K160=4,"Inconnu", IF($K160=1, $F160*0.33, IF($K160=2, $F160*0.5+$G160*0.2, SUM(F160:G160)))), 0),"Non requis") -> 26600.4 | Q160: 0 | R160: 1 | S160: 1 | T160: 1 | U160: MDA3 (IVM) | W160: 7571 | X160: FOUMBOT | Z160: TRUE
A161: =IF(INTRO!$E$34<>0,INTRO!$E$34,"") -> Cameroon | B161: WEST | C161: GALIM | D161: 48540 | E161: =IF(INTRO!$E$48="","",ROUND($D161*INTRO!$E$48,0)) -> 6271 | F161: =IF(INTRO!$E$49="","",ROUND($D161*INTRO!$E$49,0)) -> 12960 | G161: =IF(INTRO!$E$50="","",ROUND($D161*INTRO!$E$50,0)) -> 27377 | H161: 99 | I161: 1 | J161: 2 | K161: 2 | L161: 1 | M161: =IF(INTRO!$E$38="Endémique", IF($H161>0, IF($H161=4,"Inconnu", IF($H161=99,"Interrompu", $D161)), 0),"Non requis") -> Interrompu | N161: =IF(INTRO!$E$40="Endémique", IF($I161>0, IF($I161=4,"Inconnu",IF($I161=99,"Interrompu", $D161)), 0),"Non requis") -> 48540 | O161: =IF(INTRO!$E$42="Endémique", IF(AND($J161>1,$J161<5), IF($J161=4, "Inconnu", E161+F161), 0),"Non requis") -> 19231 | P161: 20456 | Q161: 0 | R161: 1 | S161: 1 | T161: 1 | U161: MDA3 (IVM) | V161: T2 (PZQ) | W161: 7572 | X161: GALIM | Z161: TRUE
A162: =IF(INTRO!$E$34<>0,INTRO!$E$34,"") -> Cameroon | B162: WEST | C162: KEKEM | D162: 41743 | E162: =IF(INTRO!$E$48="","",ROUND($D162*INTRO!$E$48,0)) -> 5393 | F162: =IF(INTRO!$E$49="","",ROUND($D162*INTRO!$E$49,0)) -> 11145 | G162: =IF(INTRO!$E$50="","",ROUND($D162*INTRO!$E$50,0)) -> 23543 | H162: 99 | I162: 1 | J162: 2 | K162: 1 | L162: 1 | M162: =IF(INTRO!$E$38="Endémique", IF($H162>0, IF($H162=4,"Inconnu", IF($H162=99,"Interrompu", $D162)), 0),"Non requis") -> Interrompu | N162: =IF(INTRO!$E$40="Endémique", IF($I162>0, IF($I162=4,"Inconnu",IF($I162=99,"Interrompu", $D162)), 0),"Non requis") -> 41743 | O162: =IF(INTRO!$E$42="Endémique", IF(AND($J162>1,$J162<5), IF($J162=4, "Inconnu", E162+F162), 0),"Non requis") -> 16538 | P162: =IF(INTRO!$E$44="Endémique", IF(AND($K162>0,$K162<5), IF($K162=4,"Inconnu", IF($K162=1, $F162*0.33, IF($K162=2, $F162*0.5+$G162*0.2, SUM(F162:G162)))), 0),"Non requis") -> 3677.85 | Q162: 0 | R162: 1 | S162: 1 | T162: 0 | U162: MDA3 (IVM) | W162: 7573 | X162: KEKEM | Z162: TRUE
A163: =IF(INTRO!$E$34<>0,INTRO!$E$34,"") -> Cameroon | B163: WEST | C163: KOUOPTAMO | D163: 56627 | E163: =IF(INTRO!$E$48="","",ROUND($D163*INTRO!$E$48,0)) -> 7316 | F163: =IF(INTRO!$E$49="","",ROUND($D163*INTRO!$E$49,0)) -> 15119 | G163: =IF(INTRO!$E$50="","",ROUND($D163*INTRO!$E$50,0)) -> 31938 | H163: 0 | I163: 1 | J163: 2 | K163: 2 | L163: 1 | M163: =IF(INTRO!$E$38="Endémique", IF($H163>0, IF($H163=4,"Inconnu", IF($H163=99,"Interrompu", $D163)), 0),"Non requis") -> 0 | N163: =IF(INTRO!$E$40="Endémique", IF($I163>0, IF($I163=4,"Inconnu",IF($I163=99,"Interrompu", $D163)), 0),"Non requis") -> 56627 | O163: =IF(INTRO!$E$42="Endémique", IF(AND($J163>1,$J163<5), IF($J163=4, "Inconnu", E163+F163), 0),"Non requis") -> 22435 | P163: 17989 | Q163: 0 | R163: 1 | S163: 1 | T163: 1 | U163: MDA3 (IVM) | V163: T2 (PZQ) | W163: 7574 | X163: KOUOPTAMO | Z163: TRUE
A164: =IF(INTRO!$E$34<>0,INTRO!$E$34,"") -> Cameroon | B164: WEST | C164: MALENTOUEN | D164: 127096 | E164: =IF(INTRO!$E$48="","",ROUND($D164*INTRO!$E$48,0)) -> 16421 | F164: =IF(INTRO!$E$49="","",ROUND($D164*INTRO!$E$49,0)) -> 33935 | G164: =IF(INTRO!$E$50="","",ROUND($D164*INTRO!$E$50,0)) -> 71682 | H164: 99 | I164: 1 | J164: 2 | K164: 3 | L164: 1 | M164: =IF(INTRO!$E$38="Endémique", IF($H164>0, IF($H164=4,"Inconnu", IF($H164=99,"Interrompu", $D164)), 0),"Non requis") -> Interrompu | N164: =IF(INTRO!$E$40="Endémique", IF($I164>0, IF($I164=4,"Inconnu",IF($I164=99,"Interrompu", $D164)), 0),"Non requis") -> 127096 | O164: =IF(INTRO!$E$42="Endémique", IF(AND($J164>1,$J164<5), IF($J164=4, "Inconnu", E164+F164), 0),"Non requis") -> 50356 | P164: =IF(INTRO!$E$44="Endémique", IF(AND($K164>0,$K164<5), IF($K164=4,"Inconnu", IF($K164=1, $F164*0.33, IF($K164=2, $F164*0.5+$G164*0.2, SUM(F164:G164)))), 0),"Non requis") -> 105617 | Q164: 0 | R164: 1 | S164: 1 | T164: 1 | U164: MDA3 (IVM) | V164: T2 (PZQ) | W164: 7575 | X164: MALENTOUEN | Z164: TRUE
A165: =IF(INTRO!$E$34<>0,INTRO!$E$34,"") -> Cameroon | B165: WEST | C165: MASSANGAM | D165: 47127 | E165: =IF(INTRO!$E$48="","",ROUND($D165*INTRO!$E$48,0)) -> 6089 | F165: =IF(INTRO!$E$49="","",ROUND($D165*INTRO!$E$49,0)) -> 12583 | G165: =IF(INTRO!$E$50="","",ROUND($D165*INTRO!$E$50,0)) -> 26580 | H165: 99 | I165: 1 | J165: 2 | K165: 1 | L165: 1 | M165: =IF(INTRO!$E$38="Endémique", IF($H165>0, IF($H165=4,"Inconnu", IF($H165=99,"Interrompu", $D165)), 0),"Non requis") -> Interrompu | N165: =IF(INTRO!$E$40="Endémique", IF($I165>0, IF($I165=4,"Inconnu",IF($I165=99,"Interrompu", $D165)), 0),"Non requis") -> 47127 | O165: =IF(INTRO!$E$42="Endémique", IF(AND($J165>1,$J165<5), IF($J165=4, "Inconnu", E165+F165), 0),"Non requis") -> 18672 | P165: =IF(INTRO!$E$44="Endémique", IF(AND($K165>0,$K165<5), IF($K165=4,"Inconnu", IF($K165=1, $F165*0.33, IF($K165=2, $F165*0.5+$G165*0.2, SUM(F165:G165)))), 0),"Non requis") -> 4152.39 | Q165: 0 | R165: 1 | S165: 1 | T165: 0 | U165: MDA3 (IVM) | W165: 7576 | X165: MASSANGAM | Z165: TRUE
A166: =IF(INTRO!$E$34<>0,INTRO!$E$34,"") -> Cameroon | B166: WEST | C166: MBOUDA | D166: 191717 | E166: =IF(INTRO!$E$48="","",ROUND($D166*INTRO!$E$48,0)) -> 24770 | F166: =IF(INTRO!$E$49="","",ROUND($D166*INTRO!$E$49,0)) -> 51188 | G166: =IF(INTRO!$E$50="","",ROUND($D166*INTRO!$E$50,0)) -> 108128 | H166: 99 | I166: 1 | J166: 2 | K166: 1 | L166: 1 | M166: =IF(INTRO!$E$38="Endémique", IF($H166>0, IF($H166=4,"Inconnu", IF($H166=99,"Interrompu", $D166)), 0),"Non requis") -> Interrompu | N166: =IF(INTRO!$E$40="Endémique", IF($I166>0, IF($I166=4,"Inconnu",IF($I166=99,"Interrompu", $D166)), 0),"Non requis") -> 191717 | O166: =IF(INTRO!$E$42="Endémique", IF(AND($J166>1,$J166<5), IF($J166=4, "Inconnu", E166+F166), 0),"Non requis") -> 75958 | P166: =IF(INTRO!$E$44="Endémique", IF(AND($K166>0,$K166<5), IF($K166=4,"Inconnu", IF($K166=1, $F166*0.33, IF($K166=2, $F166*0.5+$G166*0.2, SUM(F166:G166)))), 0),"Non requis") -> 16892.04 | Q166: 0 | R166: 1 | S166: 1 | T166: 0 | U166: MDA3 (IVM) | W166: 7577 | X166: MBOUDA | Z166: TRUE
A167: =IF(INTRO!$E$34<>0,INTRO!$E$34,"") -> Cameroon | B167: WEST | C167: MIFI | D167: 366561 | E167: =IF(INTRO!$E$48="","",ROUND($D167*INTRO!$E$48,0)) -> 47360 | F167: =IF(INTRO!$E$49="","",ROUND($D167*INTRO!$E$49,0)) -> 97872 | G167: =IF(INTRO!$E$50="","",ROUND($D167*INTRO!$E$50,0)) -> 206740 | H167: 99 | I167: 1 | J167: 2 | K167: 1 | L167: 1 | M167: =IF(INTRO!$E$38="Endémique", IF($H167>0, IF($H167=4,"Inconnu", IF($H167=99,"Interrompu", $D167)), 0),"Non requis") -> Interrompu | N167: =IF(INTRO!$E$40="Endémique", IF($I167>0, IF($I167=4,"Inconnu",IF($I167=99,"Interrompu", $D167)), 0),"Non requis") -> 366561 | O167: =IF(INTRO!$E$42="Endémique", IF(AND($J167>1,$J167<5), IF($J167=4, "Inconnu", E167+F167), 0),"Non requis") -> 145232 | P167: =IF(INTRO!$E$44="Endémique", IF(AND($K167>0,$K167<5), IF($K167=4,"Inconnu", IF($K167=1, $F167*0.33, IF($K167=2, $F167*0.5+$G167*0.2, SUM(F167:G167)))), 0),"Non requis") -> 32297.76 | Q167: 0 | R167: 1 | S167: 1 | T167: 0 | U167: MDA3 (IVM) | W167: 7578 | X167: MIFI | Z167: TRUE
A168: =IF(INTRO!$E$34<>0,INTRO!$E$34,"") -> Cameroon | B168: WEST | C168: PENKA MICHEL | D168: 79922 | E168: =IF(INTRO!$E$48="","",ROUND($D168*INTRO!$E$48,0)) -> 10326 | F168: =IF(INTRO!$E$49="","",ROUND($D168*INTRO!$E$49,0)) -> 21339 | G168: =IF(INTRO!$E$50="","",ROUND($D168*INTRO!$E$50,0)) -> 45076 | H168: 99 | I168: 1 | J168: 2 | K168: 0 | L168: 1 | M168: =IF(INTRO!$E$38="Endémique", IF($H168>0, IF($H168=4,"Inconnu", IF($H168=99,"Interrompu", $D168)), 0),"Non requis") -> Interrompu | N168: =IF(INTRO!$E$40="Endémique", IF($I168>0, IF($I168=4,"Inconnu",IF($I168=99,"Interrompu", $D168)), 0),"Non requis") -> 79922 | O168: =IF(INTRO!$E$42="Endémique", IF(AND($J168>1,$J168<5), IF($J168=4, "Inconnu", E168+F168), 0),"Non requis") -> 31665 | P168: =IF(INTRO!$E$44="Endémique", IF(AND($K168>0,$K168<5), IF($K168=4,"Inconnu", IF($K168=1, $F168*0.33, IF($K168=2, $F168*0.5+$G168*0.2, SUM(F168:G168)))), 0),"Non requis") -> 0 | Q168: 0 | R168: 1 | S168: 1 | T168: 0 | U168: MDA3 (IVM) | W168: 7579 | X168: PENKA MICHEL | Z168: TRUE
A169: =IF(INTRO!$E$34<>0,INTRO!$E$34,"") -> Cameroon | B169: WEST | C169: SANTCHOU | D169: 30382 | E169: =IF(INTRO!$E$48="","",ROUND($D169*INTRO!$E$48,0)) -> 3925 | F169: =IF(INTRO!$E$49="","",ROUND($D169*INTRO!$E$49,0)) -> 8112 | G169: =IF(INTRO!$E$50="","",ROUND($D169*INTRO!$E$50,0)) -> 17135 | H169: 0 | I169: 1 | J169: 2 | K169: 0 | L169: 1 | M169: =IF(INTRO!$E$38="Endémique", IF($H169>0, IF($H169=4,"Inconnu", IF($H169=99,"Interrompu", $D169)), 0),"Non requis") -> 0 | N169: =IF(INTRO!$E$40="Endémique", IF($I169>0, IF($I169=4,"Inconnu",IF($I169=99,"Interrompu", $D169)), 0),"Non requis") -> 30382 | O169: =IF(INTRO!$E$42="Endémique", IF(AND($J169>1,$J169<5), IF($J169=4, "Inconnu", E169+F169), 0),"Non requis") -> 12037 | P169: =IF(INTRO!$E$44="Endémique", IF(AND($K169>0,$K169<5), IF($K169=4,"Inconnu", IF($K169=1, $F169*0.33, IF($K169=2, $F169*0.5+$G169*0.2, SUM(F169:G169)))), 0),"Non requis") -> 0 | Q169: 0 | R169: 1 | S169: 1 | T169: 0 | U169: MDA3 (IVM) | W169: 7580 | X169: SANTCHOU | Z169: TRUE
A170: =IF(INTRO!$E$34<>0,INTRO!$E$34,"") -> Cameroon | B170: SOUTH | C170: AMBAM | D170: 93374 | E170: =IF(INTRO!$E$48="","",ROUND($D170*INTRO!$E$48,0)) -> 12064 | F170: =IF(INTRO!$E$49="","",ROUND($D170*INTRO!$E$49,0)) -> 24931 | G170: =IF(INTRO!$E$50="","",ROUND($D170*INTRO!$E$50,0)) -> 52663 | H170: 1 | I170: 1 | J170: 2 | K170: 0 | L170: 1 | M170: =IF(INTRO!$E$38="Endémique", IF($H170>0, IF($H170=4,"Inconnu", IF($H170=99,"Interrompu", $D170)), 0),"Non requis") -> 93374 | N170: =IF(INTRO!$E$40="Endémique", IF($I170>0, IF($I170=4,"Inconnu",IF($I170=99,"Interrompu", $D170)), 0),"Non requis") -> 93374 | O170: =IF(INTRO!$E$42="Endémique", IF(AND($J170>1,$J170<5), IF($J170=4, "Inconnu", E170+F170), 0),"Non requis") -> 36995 | P170: =IF(INTRO!$E$44="Endémique", IF(AND($K170>0,$K170<5), IF($K170=4,"Inconnu", IF($K170=1, $F170*0.33, IF($K170=2, $F170*0.5+$G170*0.2, SUM(F170:G170)))), 0),"Non requis") -> 0 | Q170: 1 | R170: 1 | S170: 1 | T170: 0 | U170: MDA1 (IVM+ALB) | W170: 7581 | X170: AMBAM | Z170: TRUE
A171: =IF(INTRO!$E$34<>0,INTRO!$E$34,"") -> Cameroon | B171: SOUTH | C171: DJOUM | D171: 42604 | E171: =IF(INTRO!$E$48="","",ROUND($D171*INTRO!$E$48,0)) -> 5504 | F171: =IF(INTRO!$E$49="","",ROUND($D171*INTRO!$E$49,0)) -> 11375 | G171: =IF(INTRO!$E$50="","",ROUND($D171*INTRO!$E$50,0)) -> 24029 | H171: 1 | I171: 1 | J171: 2 | K171: 0 | L171: 1 | M171: =IF(INTRO!$E$38="Endémique", IF($H171>0, IF($H171=4,"Inconnu", IF($H171=99,"Interrompu", $D171)), 0),"Non requis") -> 42604 | N171: =IF(INTRO!$E$40="Endémique", IF($I171>0, IF($I171=4,"Inconnu",IF($I171=99,"Interrompu", $D171)), 0),"Non requis") -> 42604 | O171: =IF(INTRO!$E$42="Endémique", IF(AND($J171>1,$J171<5), IF($J171=4, "Inconnu", E171+F171), 0),"Non requis") -> 16879 | P171: =IF(INTRO!$E$44="Endémique", IF(AND($K171>0,$K171<5), IF($K171=4,"Inconnu", IF($K171=1, $F171*0.33, IF($K171=2, $F171*0.5+$G171*0.2, SUM(F171:G171)))), 0),"Non requis") -> 0 | Q171: 1 | R171: 1 | S171: 1 | T171: 0 | U171: MDA1 (IVM+ALB) | W171: 7582 | X171: DJOUM | Z171: TRUE
A172: =IF(INTRO!$E$34<>0,INTRO!$E$34,"") -> Cameroon | B172: SOUTH | C172: EBOLOWA | D172: 209971 | E172: =IF(INTRO!$E$48="","",ROUND($D172*INTRO!$E$48,0)) -> 27128 | F172: =IF(INTRO!$E$49="","",ROUND($D172*INTRO!$E$49,0)) -> 56062 | G172: =IF(INTRO!$E$50="","",ROUND($D172*INTRO!$E$50,0)) -> 118424 | H172: 0 | I172: 4 | J172: 2 | K172: 1 | L172: 1 | M172: =IF(INTRO!$E$38="Endémique", IF($H172>0, IF($H172=4,"Inconnu", IF($H172=99,"Interrompu", $D172)), 0),"Non requis") -> 0 | N172: =IF(INTRO!$E$40="Endémique", IF($I172>0, IF($I172=4,"Inconnu",IF($I172=99,"Interrompu", $D172)), 0),"Non requis") -> Inconnu | O172: =IF(INTRO!$E$42="Endémique", IF(AND($J172>1,$J172<5), IF($J172=4, "Inconnu", E172+F172), 0),"Non requis") -> 83190 | P172: =IF(INTRO!$E$44="Endémique", IF(AND($K172>0,$K172<5), IF($K172=4,"Inconnu", IF($K172=1, $F172*0.33, IF($K172=2, $F172*0.5+$G172*0.2, SUM(F172:G172)))), 0),"Non requis") -> 18500.46 | Q172: 0 | R172: 0 | S172: 1 | T172: 0 | W172: 7583 | X172: EBOLOWA | Z172: TRUE
A173: =IF(INTRO!$E$34<>0,INTRO!$E$34,"") -> Cameroon | B173: SOUTH | C173: KRIBI | D173: 149747 | E173: =IF(INTRO!$E$48="","",ROUND($D173*INTRO!$E$48,0)) -> 19347 | F173: =IF(INTRO!$E$49="","",ROUND($D173*INTRO!$E$49,0)) -> 39982 | G173: =IF(INTRO!$E$50="","",ROUND($D173*INTRO!$E$50,0)) -> 84457 | H173: 0 | I173: 4 | J173: 2 | K173: 0 | L173: 1 | M173: =IF(INTRO!$E$38="Endémique", IF($H173>0, IF($H173=4,"Inconnu", IF($H173=99,"Interrompu", $D173)), 0),"Non requis") -> 0 | N173: =IF(INTRO!$E$40="Endémique", IF($I173>0, IF($I173=4,"Inconnu",IF($I173=99,"Interrompu", $D173)), 0),"Non requis") -> Inconnu | O173: =IF(INTRO!$E$42="Endémique", IF(AND($J173>1,$J173<5), IF($J173=4, "Inconnu", E173+F173), 0),"Non requis") -> 59329 | P173: =IF(INTRO!$E$44="Endémique", IF(AND($K173>0,$K173<5), IF($K173=4,"Inconnu", IF($K173=1, $F173*0.33, IF($K173=2, $F173*0.5+$G173*0.2, SUM(F173:G173)))), 0),"Non requis") -> 0 | Q173: 0 | R173: 0 | S173: 1 | T173: 0 | W173: 7584 | X173: KRIBI | Z173: TRUE
A174: =IF(INTRO!$E$34<>0,INTRO!$E$34,"") -> Cameroon | B174: SOUTH | C174: LOLODORF | D174: 42229 | E174: =IF(INTRO!$E$48="","",ROUND($D174*INTRO!$E$48,0)) -> 5456 | F174: =IF(INTRO!$E$49="","",ROUND($D174*INTRO!$E$49,0)) -> 11275 | G174: =IF(INTRO!$E$50="","",ROUND($D174*INTRO!$E$50,0)) -> 23817 | H174: 0 | I174: 4 | J174: 2 | K174: 0 | L174: 1 | M174: =IF(INTRO!$E$38="Endémique", IF($H174>0, IF($H174=4,"Inconnu", IF($H174=99,"Interrompu", $D174)), 0),"Non requis") -> 0 | N174: =IF(INTRO!$E$40="Endémique", IF($I174>0, IF($I174=4,"Inconnu",IF($I174=99,"Interrompu", $D174)), 0),"Non requis") -> Inconnu | O174: =IF(INTRO!$E$42="Endémique", IF(AND($J174>1,$J174<5), IF($J174=4, "Inconnu", E174+F174), 0),"Non requis") -> 16731 | P174: =IF(INTRO!$E$44="Endémique", IF(AND($K174>0,$K174<5), IF($K174=4,"Inconnu", IF($K174=1, $F174*0.33, IF($K174=2, $F174*0.5+$G174*0.2, SUM(F174:G174)))), 0),"Non requis") -> 0 | Q174: 0 | R174: 0 | S174: 1 | T174: 0 | W174: 7585 | X174: LOLODORF | Z174: TRUE
A175: =IF(INTRO!$E$34<>0,INTRO!$E$34,"") -> Cameroon | B175: SOUTH | C175: MEYOMESSALA | D175: 56564 | E175: =IF(INTRO!$E$48="","",ROUND($D175*INTRO!$E$48,0)) -> 7308 | F175: =IF(INTRO!$E$49="","",ROUND($D175*INTRO!$E$49,0)) -> 15103 | G175: =IF(INTRO!$E$50="","",ROUND($D175*INTRO!$E$50,0)) -> 31902 | H175: 1 | I175: 1 | J175: 2 | K175: 0 | L175: 1 | M175: =IF(INTRO!$E$38="Endémique", IF($H175>0, IF($H175=4,"Inconnu", IF($H175=99,"Interrompu", $D175)), 0),"Non requis") -> 56564 | N175: =IF(INTRO!$E$40="Endémique", IF($I175>0, IF($I175=4,"Inconnu",IF($I175=99,"Interrompu", $D175)), 0),"Non requis") -> 56564 | O175: =IF(INTRO!$E$42="Endémique", IF(AND($J175>1,$J175<5), IF($J175=4, "Inconnu", E175+F175), 0),"Non requis") -> 22411 | P175: =IF(INTRO!$E$44="Endémique", IF(AND($K175>0,$K175<5), IF($K175=4,"Inconnu", IF($K175=1, $F175*0.33, IF($K175=2, $F175*0.5+$G175*0.2, SUM(F175:G175)))), 0),"Non requis") -> 0 | Q175: 1 | R175: 1 | S175: 1 | T175: 0 | U175: MDA1 (IVM+ALB) | W175: 7586 | X175: MEYOMESSALA | Z175: TRUE
A176: =IF(INTRO!$E$34<>0,INTRO!$E$34,"") -> Cameroon | B176: SOUTH | C176: MVANGAN | D176: 37897 | E176: =IF(INTRO!$E$48="","",ROUND($D176*INTRO!$E$48,0)) -> 4896 | F176: =IF(INTRO!$E$49="","",ROUND($D176*INTRO!$E$49,0)) -> 10118 | G176: =IF(INTRO!$E$50="","",ROUND($D176*INTRO!$E$50,0)) -> 21374 | H176: 0 | I176: 4 | J176: 2 | K176: 0 | L176: 1 | M176: =IF(INTRO!$E$38="Endémique", IF($H176>0, IF($H176=4,"Inconnu", IF($H176=99,"Interrompu", $D176)), 0),"Non requis") -> 0 | N176: =IF(INTRO!$E$40="Endémique", IF($I176>0, IF($I176=4,"Inconnu",IF($I176=99,"Interrompu", $D176)), 0),"Non requis") -> Inconnu | O176: =IF(INTRO!$E$42="Endémique", IF(AND($J176>1,$J176<5), IF($J176=4, "Inconnu", E176+F176), 0),"Non requis") -> 15014 | P176: =IF(INTRO!$E$44="Endémique", IF(AND($K176>0,$K176<5), IF($K176=4,"Inconnu", IF($K176=1, $F176*0.33, IF($K176=2, $F176*0.5+$G176*0.2, SUM(F176:G176)))), 0),"Non requis") -> 0 | Q176: 0 | R176: 0 | S176: 1 | T176: 0 | W176: 7587 | X176: MVANGAN | Z176: TRUE
A177: =IF(INTRO!$E$34<>0,INTRO!$E$34,"") -> Cameroon | B177: SOUTH | C177: OLAMZE | D177: 15717 | E177: =IF(INTRO!$E$48="","",ROUND($D177*INTRO!$E$48,0)) -> 2031 | F177: =IF(INTRO!$E$49="","",ROUND($D177*INTRO!$E$49,0)) -> 4196 | G177: =IF(INTRO!$E$50="","",ROUND($D177*INTRO!$E$50,0)) -> 8864 | H177: 1 | I177: 1 | J177: 2 | K177: 1 | L177: 1 | M177: =IF(INTRO!$E$38="Endémique", IF($H177>0, IF($H177=4,"Inconnu", IF($H177=99,"Interrompu", $D177)), 0),"Non requis") -> 15717 | N177: =IF(INTRO!$E$40="Endémique", IF($I177>0, IF($I177=4,"Inconnu",IF($I177=99,"Interrompu", $D177)), 0),"Non requis") -> 15717 | O177: =IF(INTRO!$E$42="Endémique", IF(AND($J177>1,$J177<5), IF($J177=4, "Inconnu", E177+F177), 0),"Non requis") -> 6227 | P177: =IF(INTRO!$E$44="Endémique", IF(AND($K177>0,$K177<5), IF($K177=4,"Inconnu", IF($K177=1, $F177*0.33, IF($K177=2, $F177*0.5+$G177*0.2, SUM(F177:G177)))), 0),"Non requis") -> 1384.68 | Q177: 1 | R177: 1 | S177: 1 | T177: 0 | U177: MDA1 (IVM+ALB) | W177: 7588 | X177: OLAMZE | Z177: TRUE
A178: =IF(INTRO!$E$34<>0,INTRO!$E$34,"") -> Cameroon | B178: SOUTH | C178: SANGMELIMA | D178: 101656 | E178: =IF(INTRO!$E$48="","",ROUND($D178*INTRO!$E$48,0)) -> 13134 | F178: =IF(INTRO!$E$49="","",ROUND($D178*INTRO!$E$49,0)) -> 27142 | G178: =IF(INTRO!$E$50="","",ROUND($D178*INTRO!$E$50,0)) -> 57334 | H178: 1 | I178: 1 | J178: 2 | K178: 0 | L178: 1 | M178: =IF(INTRO!$E$38="Endémique", IF($H178>0, IF($H178=4,"Inconnu", IF($H178=99,"Interrompu", $D178)), 0),"Non requis") -> 101656 | N178: =IF(INTRO!$E$40="Endémique", IF($I178>0, IF($I178=4,"Inconnu",IF($I178=99,"Interrompu", $D178)), 0),"Non requis") -> 101656 | O178: =IF(INTRO!$E$42="Endémique", IF(AND($J178>1,$J178<5), IF($J178=4, "Inconnu", E178+F178), 0),"Non requis") -> 40276 | P178: =IF(INTRO!$E$44="Endémique", IF(AND($K178>0,$K178<5), IF($K178=4,"Inconnu", IF($K178=1, $F178*0.33, IF($K178=2, $F178*0.5+$G178*0.2, SUM(F178:G178)))), 0),"Non requis") -> 0 | Q178: 1 | R178: 1 | S178: 1 | T178: 0 | U178: MDA1 (IVM+ALB) | W178: 7589 | X178: SANGMELIMA | Z178: TRUE
A179: =IF(INTRO!$E$34<>0,INTRO!$E$34,"") -> Cameroon | B179: SOUTH | C179: ZOETELE | D179: 43925 | E179: =IF(INTRO!$E$48="","",ROUND($D179*INTRO!$E$48,0)) -> 5675 | F179: =IF(INTRO!$E$49="","",ROUND($D179*INTRO!$E$49,0)) -> 11728 | G179: =IF(INTRO!$E$50="","",ROUND($D179*INTRO!$E$50,0)) -> 24774 | H179: 1 | I179: 1 | J179: 2 | K179: 0 | L179: 1 | M179: =IF(INTRO!$E$38="Endémique", IF($H179>0, IF($H179=4,"Inconnu", IF($H179=99,"Interrompu", $D179)), 0),"Non requis") -> 43925 | N179: =IF(INTRO!$E$40="Endémique", IF($I179>0, IF($I179=4,"Inconnu",IF($I179=99,"Interrompu", $D179)), 0),"Non requis") -> 43925 | O179: =IF(INTRO!$E$42="Endémique", IF(AND($J179>1,$J179<5), IF($J179=4, "Inconnu", E179+F179), 0),"Non requis") -> 17403 | P179: =IF(INTRO!$E$44="Endémique", IF(AND($K179>0,$K179<5), IF($K179=4,"Inconnu", IF($K179=1, $F179*0.33, IF($K179=2, $F179*0.5+$G179*0.2, SUM(F179:G179)))), 0),"Non requis") -> 0 | Q179: 1 | R179: 1 | S179: 1 | T179: 0 | U179: MDA1 (IVM+ALB) | W179: 7590 | X179: ZOETELE | Z179: TRUE
A180: =IF(INTRO!$E$34<>0,INTRO!$E$34,"") -> Cameroon | B180: SOUTH-WEST | C180: AKWAYA | D180: 57005 | E180: =IF(INTRO!$E$48="","",ROUND($D180*INTRO!$E$48,0)) -> 7365 | F180: =IF(INTRO!$E$49="","",ROUND($D180*INTRO!$E$49,0)) -> 15220 | G180: =IF(INTRO!$E$50="","",ROUND($D180*INTRO!$E$50,0)) -> 32151 | H180: 1 | I180: 1 | J180: 2 | K180: 0 | L180: 1 | M180: =IF(INTRO!$E$38="Endémique", IF($H180>0, IF($H180=4,"Inconnu", IF($H180=99,"Interrompu", $D180)), 0),"Non requis") -> 57005 | N180: =IF(INTRO!$E$40="Endémique", IF($I180>0, IF($I180=4,"Inconnu",IF($I180=99,"Interrompu", $D180)), 0),"Non requis") -> 57005 | O180: =IF(INTRO!$E$42="Endémique", IF(AND($J180>1,$J180<5), IF($J180=4, "Inconnu", E180+F180), 0),"Non requis") -> 22585 | P180: =IF(INTRO!$E$44="Endémique", IF(AND($K180>0,$K180<5), IF($K180=4,"Inconnu", IF($K180=1, $F180*0.33, IF($K180=2, $F180*0.5+$G180*0.2, SUM(F180:G180)))), 0),"Non requis") -> 0 | Q180: 0 | R180: 1 | S180: 1 | T180: 0 | U180: MDA1 (IVM+ALB) | W180: 7591 | X180: AKWAYA | Z180: TRUE
A181: =IF(INTRO!$E$34<>0,INTRO!$E$34,"") -> Cameroon | B181: SOUTH-WEST | C181: BAKASSI | D181: 34458 | E181: =IF(INTRO!$E$48="","",ROUND($D181*INTRO!$E$48,0)) -> 4452 | F181: =IF(INTRO!$E$49="","",ROUND($D181*INTRO!$E$49,0)) -> 9200 | G181: =IF(INTRO!$E$50="","",ROUND($D181*INTRO!$E$50,0)) -> 19434 | H181: 0 | I181: 1 | J181: 2 | K181: 0 | L181: 1 | M181: =IF(INTRO!$E$38="Endémique", IF($H181>0, IF($H181=4,"Inconnu", IF($H181=99,"Interrompu", $D181)), 0),"Non requis") -> 0 | N181: =IF(INTRO!$E$40="Endémique", IF($I181>0, IF($I181=4,"Inconnu",IF($I181=99,"Interrompu", $D181)), 0),"Non requis") -> 34458 | O181: =IF(INTRO!$E$42="Endémique", IF(AND($J181>1,$J181<5), IF($J181=4, "Inconnu", E181+F181), 0),"Non requis") -> 13652 | P181: =IF(INTRO!$E$44="Endémique", IF(AND($K181>0,$K181<5), IF($K181=4,"Inconnu", IF($K181=1, $F181*0.33, IF($K181=2, $F181*0.5+$G181*0.2, SUM(F181:G181)))), 0),"Non requis") -> 0 | Q181: 0 | R181: 1 | S181: 1 | T181: 0 | U181: MDA3 (IVM) | W181: 7592 | X181: BAKASSI | Z181: TRUE
A182: =IF(INTRO!$E$34<>0,INTRO!$E$34,"") -> Cameroon | B182: SOUTH-WEST | C182: BANGEM | D182: 24938 | E182: =IF(INTRO!$E$48="","",ROUND($D182*INTRO!$E$48,0)) -> 3222 | F182: =IF(INTRO!$E$49="","",ROUND($D182*INTRO!$E$49,0)) -> 6658 | G182: =IF(INTRO!$E$50="","",ROUND($D182*INTRO!$E$50,0)) -> 14065 | H182: 99 | I182: 1 | J182: 2 | K182: 0 | L182: 1 | M182: =IF(INTRO!$E$38="Endémique", IF($H182>0, IF($H182=4,"Inconnu", IF($H182=99,"Interrompu", $D182)), 0),"Non requis") -> Interrompu | N182: =IF(INTRO!$E$40="Endémique", IF($I182>0, IF($I182=4,"Inconnu",IF($I182=99,"Interrompu", $D182)), 0),"Non requis") -> 24938 | O182: =IF(INTRO!$E$42="Endémique", IF(AND($J182>1,$J182<5), IF($J182=4, "Inconnu", E182+F182), 0),"Non requis") -> 9880 | P182: =IF(INTRO!$E$44="Endémique", IF(AND($K182>0,$K182<5), IF($K182=4,"Inconnu", IF($K182=1, $F182*0.33, IF($K182=2, $F182*0.5+$G182*0.2, SUM(F182:G182)))), 0),"Non requis") -> 0 | Q182: 0 | R182: 1 | S182: 1 | T182: 0 | U182: MDA3 (IVM) | W182: 7593 | X182: BANGEM | Z182: TRUE
A183: =IF(INTRO!$E$34<>0,INTRO!$E$34,"") -> Cameroon | B183: SOUTH-WEST | C183: BUEA | D183: 173526 | E183: =IF(INTRO!$E$48="","",ROUND($D183*INTRO!$E$48,0)) -> 22420 | F183: =IF(INTRO!$E$49="","",ROUND($D183*INTRO!$E$49,0)) -> 46331 | G183: =IF(INTRO!$E$50="","",ROUND($D183*INTRO!$E$50,0)) -> 97869 | H183: 99 | I183: 1 | J183: 2 | K183: 2 | L183: 1 | M183: =IF(INTRO!$E$38="Endémique", IF($H183>0, IF($H183=4,"Inconnu", IF($H183=99,"Interrompu", $D183)), 0),"Non requis") -> Interrompu | N183: =IF(INTRO!$E$40="Endémique", IF($I183>0, IF($I183=4,"Inconnu",IF($I183=99,"Interrompu", $D183)), 0),"Non requis") -> 173526 | O183: =IF(INTRO!$E$42="Endémique", IF(AND($J183>1,$J183<5), IF($J183=4, "Inconnu", E183+F183), 0),"Non requis") -> 68751 | P183: =IF(INTRO!$E$44="Endémique", IF(AND($K183>0,$K183<5), IF($K183=4,"Inconnu", IF($K183=1, $F183*0.33, IF($K183=2, $F183*0.5+$G183*0.2, SUM(F183:G183)))), 0),"Non requis") -> 42739.3 | Q183: 0 | R183: 1 | S183: 1 | T183: 1 | U183: MDA3 (IVM) | W183: 7594 | X183: BUEA | Z183: TRUE
A184: =IF(INTRO!$E$34<>0,INTRO!$E$34,"") -> Cameroon | B184: SOUTH-WEST | C184: EKONDO TITI | D184: 56245 | E184: =IF(INTRO!$E$48="","",ROUND($D184*INTRO!$E$48,0)) -> 7267 | F184: =IF(INTRO!$E$49="","",ROUND($D184*INTRO!$E$49,0)) -> 15017 | G184: =IF(INTRO!$E$50="","",ROUND($D184*INTRO!$E$50,0)) -> 31722 | H184: 99 | I184: 1 | J184: 2 | K184: 2 | L184: 1 | M184: =IF(INTRO!$E$38="Endémique", IF($H184>0, IF($H184=4,"Inconnu", IF($H184=99,"Interrompu", $D184)), 0),"Non requis") -> Interrompu | N184: =IF(INTRO!$E$40="Endémique", IF($I184>0, IF($I184=4,"Inconnu",IF($I184=99,"Interrompu", $D184)), 0),"Non requis") -> 56245 | O184: =IF(INTRO!$E$42="Endémique", IF(AND($J184>1,$J184<5), IF($J184=4, "Inconnu", E184+F184), 0),"Non requis") -> 22284 | P184: =IF(INTRO!$E$44="Endémique", IF(AND($K184>0,$K184<5), IF($K184=4,"Inconnu", IF($K184=1, $F184*0.33, IF($K184=2, $F184*0.5+$G184*0.2, SUM(F184:G184)))), 0),"Non requis") -> 13852.9 | Q184: 0 | R184: 1 | S184: 1 | T184: 1 | U184: MDA3 (IVM) | W184: 7595 | X184: EKONDO TITI | Z184: TRUE
A185: =IF(INTRO!$E$34<>0,INTRO!$E$34,"") -> Cameroon | B185: SOUTH-WEST | C185: EYUMODJOCK | D185: 41636 | E185: =IF(INTRO!$E$48="","",ROUND($D185*INTRO!$E$48,0)) -> 5379 | F185: =IF(INTRO!$E$49="","",ROUND($D185*INTRO!$E$49,0)) -> 11117 | G185: =IF(INTRO!$E$50="","",ROUND($D185*INTRO!$E$50,0)) -> 23483 | H185: 99 | I185: 1 | J185: 2 | K185: 1 | L185: 1 | M185: =IF(INTRO!$E$38="Endémique", IF($H185>0, IF($H185=4,"Inconnu", IF($H185=99,"Interrompu", $D185)), 0),"Non requis") -> Interrompu | N185: =IF(INTRO!$E$40="Endémique", IF($I185>0, IF($I185=4,"Inconnu",IF($I185=99,"Interrompu", $D185)), 0),"Non requis") -> 41636 | O185: =IF(INTRO!$E$42="Endémique", IF(AND($J185>1,$J185<5), IF($J185=4, "Inconnu", E185+F185), 0),"Non requis") -> 16496 | P185: =IF(INTRO!$E$44="Endémique", IF(AND($K185>0,$K185<5), IF($K185=4,"Inconnu", IF($K185=1, $F185*0.33, IF($K185=2, $F185*0.5+$G185*0.2, SUM(F185:G185)))), 0),"Non requis") -> 3668.61 | Q185: 0 | R185: 1 | S185: 1 | T185: 1 | U185: MDA3 (IVM) | W185: 7596 | X185: EYUMODJOCK | Z185: TRUE
A186: =IF(INTRO!$E$34<>0,INTRO!$E$34,"") -> Cameroon | B186: SOUTH-WEST | C186: FONTEM | D186: 122744 | E186: =IF(INTRO!$E$48="","",ROUND($D186*INTRO!$E$48,0)) -> 15859 | F186: =IF(INTRO!$E$49="","",ROUND($D186*INTRO!$E$49,0)) -> 32773 | G186: =IF(INTRO!$E$50="","",ROUND($D186*INTRO!$E$50,0)) -> 69228 | H186: 99 | I186: 1 | J186: 2 | K186: 0 | L186: 1 | M186: =IF(INTRO!$E$38="Endémique", IF($H186>0, IF($H186=4,"Inconnu", IF($H186=99,"Interrompu", $D186)), 0),"Non requis") -> Interrompu | N186: =IF(INTRO!$E$40="Endémique", IF($I186>0, IF($I186=4,"Inconnu",IF($I186=99,"Interrompu", $D186)), 0),"Non requis") -> 122744 | O186: =IF(INTRO!$E$42="Endémique", IF(AND($J186>1,$J186<5), IF($J186=4, "Inconnu", E186+F186), 0),"Non requis") -> 48632 | P186: =IF(INTRO!$E$44="Endémique", IF(AND($K186>0,$K186<5), IF($K186=4,"Inconnu", IF($K186=1, $F186*0.33, IF($K186=2, $F186*0.5+$G186*0.2, SUM(F186:G186)))), 0),"Non requis") -> 0 | Q186: 0 | R186: 1 | S186: 1 | T186: 0 | U186: MDA3 (IVM) | W186: 7597 | X186: FONTEM | Z186: TRUE
A187: =IF(INTRO!$E$34<>0,INTRO!$E$34,"") -> Cameroon | B187: SOUTH-WEST | C187: KONYE | D187: 130200 | E187: =IF(INTRO!$E$48="","",ROUND($D187*INTRO!$E$48,0)) -> 16822 | F187: =IF(INTRO!$E$49="","",ROUND($D187*INTRO!$E$49,0)) -> 34763 | G187: =IF(INTRO!$E$50="","",ROUND($D187*INTRO!$E$50,0)) -> 73433 | H187: 99 | I187: 1 | J187: 2 | K187: 2 | L187: 1 | M187: =IF(INTRO!$E$38="Endémique", IF($H187>0, IF($H187=4,"Inconnu", IF($H187=99,"Interrompu", $D187)), 0),"Non requis") -> Interrompu | N187: =IF(INTRO!$E$40="Endémique", IF($I187>0, IF($I187=4,"Inconnu",IF($I187=99,"Interrompu", $D187)), 0),"Non requis") -> 130200 | O187: =IF(INTRO!$E$42="Endémique", IF(AND($J187>1,$J187<5), IF($J187=4, "Inconnu", E187+F187), 0),"Non requis") -> 51585 | P187: =IF(INTRO!$E$44="Endémique", IF(AND($K187>0,$K187<5), IF($K187=4,"Inconnu", IF($K187=1, $F187*0.33, IF($K187=2, $F187*0.5+$G187*0.2, SUM(F187:G187)))), 0),"Non requis") -> 32068.1 | Q187: 0 | R187: 1 | S187: 1 | T187: 1 | U187: MDA3 (IVM) | W187: 7598 | X187: KONYE | Z187: TRUE
A188: =IF(INTRO!$E$34<>0,INTRO!$E$34,"") -> Cameroon | B188: SOUTH-WEST | C188: KUMBA | D188: 363775 | E188: =IF(INTRO!$E$48="","",ROUND($D188*INTRO!$E$48,0)) -> 47000 | F188: =IF(INTRO!$E$49="","",ROUND($D188*INTRO!$E$49,0)) -> 97128 | G188: =IF(INTRO!$E$50="","",ROUND($D188*INTRO!$E$50,0)) -> 205169 | H188: 99 | I188: 1 | J188: 2 | K188: 2 | L188: 1 | M188: =IF(INTRO!$E$38="Endémique", IF($H188>0, IF($H188=4,"Inconnu", IF($H188=99,"Interrompu", $D188)), 0),"Non requis") -> Interrompu | N188: =IF(INTRO!$E$40="Endémique", IF($I188>0, IF($I188=4,"Inconnu",IF($I188=99,"Interrompu", $D188)), 0),"Non requis") -> 363775 | O188: =IF(INTRO!$E$42="Endémique", IF(AND($J188>1,$J188<5), IF($J188=4, "Inconnu", E188+F188), 0),"Non requis") -> 144128 | P188: =IF(INTRO!$E$44="Endémique", IF(AND($K188>0,$K188<5), IF($K188=4,"Inconnu", IF($K188=1, $F188*0.33, IF($K188=2, $F188*0.5+$G188*0.2, SUM(F188:G188)))), 0),"Non requis") -> 89597.8 | Q188: 0 | R188: 1 | S188: 1 | T188: 1 | U188: MDA3 (IVM) | V188: T2 (PZQ) | W188: 7599 | X188: KUMBA | Z188: TRUE
A189: =IF(INTRO!$E$34<>0,INTRO!$E$34,"") -> Cameroon | B189: SOUTH-WEST | C189: LIMBE | D189: 198516 | E189: =IF(INTRO!$E$48="","",ROUND($D189*INTRO!$E$48,0)) -> 25648 | F189: =IF(INTRO!$E$49="","",ROUND($D189*INTRO!$E$49,0)) -> 53004 | G189: =IF(INTRO!$E$50="","",ROUND($D189*INTRO!$E$50,0)) -> 111963 | H189: 99 | I189: 1 | J189: 2 | K189: 0 | L189: 1 | M189: =IF(INTRO!$E$38="Endémique", IF($H189>0, IF($H189=4,"Inconnu", IF($H189=99,"Interrompu", $D189)), 0),"Non requis") -> Interrompu | N189: =IF(INTRO!$E$40="Endémique", IF($I189>0, IF($I189=4,"Inconnu",IF($I189=99,"Interrompu", $D189)), 0),"Non requis") -> 198516 | O189: =IF(INTRO!$E$42="Endémique", IF(AND($J189>1,$J189<5), IF($J189=4, "Inconnu", E189+F189), 0),"Non requis") -> 78652 | P189: =IF(INTRO!$E$44="Endémique", IF(AND($K189>0,$K189<5), IF($K189=4,"Inconnu", IF($K189=1, $F189*0.33, IF($K189=2, $F189*0.5+$G189*0.2, SUM(F189:G189)))), 0),"Non requis") -> 0 | Q189: 0 | R189: 1 | S189: 1 | T189: 0 | U189: MDA3 (IVM) | W189: 7600 | X189: LIMBE | Z189: TRUE
A190: =IF(INTRO!$E$34<>0,INTRO!$E$34,"") -> Cameroon | B190: SOUTH-WEST | C190: MAMFE | D190: 82028 | E190: =IF(INTRO!$E$48="","",ROUND($D190*INTRO!$E$48,0)) -> 10598 | F190: =IF(INTRO!$E$49="","",ROUND($D190*INTRO!$E$49,0)) -> 21901 | G190: =IF(INTRO!$E$50="","",ROUND($D190*INTRO!$E$50,0)) -> 46264 | H190: 99 | I190: 1 | J190: 2 | K190: 0 | L190: 1 | M190: =IF(INTRO!$E$38="Endémique", IF($H190>0, IF($H190=4,"Inconnu", IF($H190=99,"Interrompu", $D190)), 0),"Non requis") -> Interrompu | N190: =IF(INTRO!$E$40="Endémique", IF($I190>0, IF($I190=4,"Inconnu",IF($I190=99,"Interrompu", $D190)), 0),"Non requis") -> 82028 | O190: =IF(INTRO!$E$42="Endémique", IF(AND($J190>1,$J190<5), IF($J190=4, "Inconnu", E190+F190), 0),"Non requis") -> 32499 | P190: =IF(INTRO!$E$44="Endémique", IF(AND($K190>0,$K190<5), IF($K190=4,"Inconnu", IF($K190=1, $F190*0.33, IF($K190=2, $F190*0.5+$G190*0.2, SUM(F190:G190)))), 0),"Non requis") -> 0 | Q190: 0 | R190: 1 | S190: 1 | T190: 0 | U190: MDA3 (IVM) | W190: 7601 | X190: MAMFE | Z190: TRUE
A191: =IF(INTRO!$E$34<>0,INTRO!$E$34,"") -> Cameroon | B191: SOUTH-WEST | C191: MBONGE | D191: 90314 | E191: =IF(INTRO!$E$48="","",ROUND($D191*INTRO!$E$48,0)) -> 11669 | F191: =IF(INTRO!$E$49="","",ROUND($D191*INTRO!$E$49,0)) -> 24114 | G191: =IF(INTRO!$E$50="","",ROUND($D191*INTRO!$E$50,0)) -> 50937 | H191: 99 | I191: 1 | J191: 2 | K191: 2 | L191: 1 | M191: =IF(INTRO!$E$38="Endémique", IF($H191>0, IF($H191=4,"Inconnu", IF($H191=99,"Interrompu", $D191)), 0),"Non requis") -> Interrompu | N191: =IF(INTRO!$E$40="Endémique", IF($I191>0, IF($I191=4,"Inconnu",IF($I191=99,"Interrompu", $D191)), 0),"Non requis") -> 90314 | O191: =IF(INTRO!$E$42="Endémique", IF(AND($J191>1,$J191<5), IF($J191=4, "Inconnu", E191+F191), 0),"Non requis") -> 35783 | P191: =IF(INTRO!$E$44="Endémique", IF(AND($K191>0,$K191<5), IF($K191=4,"Inconnu", IF($K191=1, $F191*0.33, IF($K191=2, $F191*0.5+$G191*0.2, SUM(F191:G191)))), 0),"Non requis") -> 22244.4 | Q191: 0 | R191: 1 | S191: 1 | T191: 1 | U191: MDA3 (IVM) | V191: T2 (PZQ) | W191: 7602 | X191: MBONGE | Z191: TRUE
A192: =IF(INTRO!$E$34<>0,INTRO!$E$34,"") -> Cameroon | B192: SOUTH-WEST | C192: MUNDEMBA | D192: 21442 | E192: =IF(INTRO!$E$48="","",ROUND($D192*INTRO!$E$48,0)) -> 2770 | F192: =IF(INTRO!$E$49="","",ROUND($D192*INTRO!$E$49,0)) -> 5725 | G192: =IF(INTRO!$E$50="","",ROUND($D192*INTRO!$E$50,0)) -> 12093 | H192: 99 | I192: 1 | J192: 2 | K192: 0 | L192: 1 | M192: =IF(INTRO!$E$38="Endémique", IF($H192>0, IF($H192=4,"Inconnu", IF($H192=99,"Interrompu", $D192)), 0),"Non requis") -> Interrompu | N192: =IF(INTRO!$E$40="Endémique", IF($I192>0, IF($I192=4,"Inconnu",IF($I192=99,"Interrompu", $D192)), 0),"Non requis") -> 21442 | O192: =IF(INTRO!$E$42="Endémique", IF(AND($J192>1,$J192<5), IF($J192=4, "Inconnu", E192+F192), 0),"Non requis") -> 8495 | P192: =IF(INTRO!$E$44="Endémique", IF(AND($K192>0,$K192<5), IF($K192=4,"Inconnu", IF($K192=1, $F192*0.33, IF($K192=2, $F192*0.5+$G192*0.2, SUM(F192:G192)))), 0),"Non requis") -> 0 | Q192: 0 | R192: 1 | S192: 1 | T192: 0 | U192: MDA3 (IVM) | W192: 7603 | X192: MUNDEMBA | Z192: TRUE
A193: =IF(INTRO!$E$34<>0,INTRO!$E$34,"") -> Cameroon | B193: SOUTH-WEST | C193: MUYUKA | D193: 113491 | E193: =IF(INTRO!$E$48="","",ROUND($D193*INTRO!$E$48,0)) -> 14663 | F193: =IF(INTRO!$E$49="","",ROUND($D193*INTRO!$E$49,0)) -> 30302 | G193: =IF(INTRO!$E$50="","",ROUND($D193*INTRO!$E$50,0)) -> 64009 | H193: 99 | I193: 1 | J193: 2 | K193: 2 | L193: 1 | M193: =IF(INTRO!$E$38="Endémique", IF($H193>0, IF($H193=4,"Inconnu", IF($H193=99,"Interrompu", $D193)), 0),"Non requis") -> Interrompu | N193: =IF(INTRO!$E$40="Endémique", IF($I193>0, IF($I193=4,"Inconnu",IF($I193=99,"Interrompu", $D193)), 0),"Non requis") -> 113491 | O193: =IF(INTRO!$E$42="Endémique", IF(AND($J193>1,$J193<5), IF($J193=4, "Inconnu", E193+F193), 0),"Non requis") -> 44965 | P193: =IF(INTRO!$E$44="Endémique", IF(AND($K193>0,$K193<5), IF($K193=4,"Inconnu", IF($K193=1, $F193*0.33, IF($K193=2, $F193*0.5+$G193*0.2, SUM(F193:G193)))), 0),"Non requis") -> 27952.8 | Q193: 0 | R193: 1 | S193: 1 | T193: 1 | W193: 7604 | X193: MUYUKA | Z193: TRUE
A194: =IF(INTRO!$E$34<>0,INTRO!$E$34,"") -> Cameroon | B194: SOUTH-WEST | C194: NGUTI | D194: 32122 | E194: =IF(INTRO!$E$48="","",ROUND($D194*INTRO!$E$48,0)) -> 4150 | F194: =IF(INTRO!$E$49="","",ROUND($D194*INTRO!$E$49,0)) -> 8577 | G194: =IF(INTRO!$E$50="","",ROUND($D194*INTRO!$E$50,0)) -> 18117 | H194: 99 | I194: 1 | J194: 2 | K194: 2 | L194: 1 | M194: =IF(INTRO!$E$38="Endémique", IF($H194>0, IF($H194=4,"Inconnu", IF($H194=99,"Interrompu", $D194)), 0),"Non requis") -> Interrompu | N194: =IF(INTRO!$E$40="Endémique", IF($I194>0, IF($I194=4,"Inconnu",IF($I194=99,"Interrompu", $D194)), 0),"Non requis") -> 32122 | O194: =IF(INTRO!$E$42="Endémique", IF(AND($J194>1,$J194<5), IF($J194=4, "Inconnu", E194+F194), 0),"Non requis") -> 12727 | P194: =IF(INTRO!$E$44="Endémique", IF(AND($K194>0,$K194<5), IF($K194=4,"Inconnu", IF($K194=1, $F194*0.33, IF($K194=2, $F194*0.5+$G194*0.2, SUM(F194:G194)))), 0),"Non requis") -> 7911.9 | Q194: 0 | R194: 1 | S194: 1 | T194: 1 | U194: MDA3 (IVM) | W194: 7605 | X194: NGUTI | Z194: TRUE
A195: =IF(INTRO!$E$34<>0,INTRO!$E$34,"") -> Cameroon | B195: SOUTH-WEST | C195: TIKO | D195: 151400 | E195: =IF(INTRO!$E$48="","",ROUND($D195*INTRO!$E$48,0)) -> 19561 | F195: =IF(INTRO!$E$49="","",ROUND($D195*INTRO!$E$49,0)) -> 40424 | G195: =IF(INTRO!$E$50="","",ROUND($D195*INTRO!$E$50,0)) -> 85390 | H195: 99 | I195: 1 | J195: 2 | K195: 2 | L195: 1 | M195: =IF(INTRO!$E$38="Endémique", IF($H195>0, IF($H195=4,"Inconnu", IF($H195=99,"Interrompu", $D195)), 0),"Non requis") -> Interrompu | N195: =IF(INTRO!$E$40="Endémique", IF($I195>0, IF($I195=4,"Inconnu",IF($I195=99,"Interrompu", $D195)), 0),"Non requis") -> 151400 | O195: =IF(INTRO!$E$42="Endémique", IF(AND($J195>1,$J195<5), IF($J195=4, "Inconnu", E195+F195), 0),"Non requis") -> 59985 | P195: =IF(INTRO!$E$44="Endémique", IF(AND($K195>0,$K195<5), IF($K195=4,"Inconnu", IF($K195=1, $F195*0.33, IF($K195=2, $F195*0.5+$G195*0.2, SUM(F195:G195)))), 0),"Non requis") -> 37290 | Q195: 0 | R195: 1 | S195: 1 | T195: 1 | U195: MDA3 (IVM) | W195: 7606 | X195: TIKO | Z195: TRUE
A196: =IF(INTRO!$E$34<>0,INTRO!$E$34,"") -> Cameroon | B196: SOUTH-WEST | C196: TOMBEL | D196: 78974 | E196: =IF(INTRO!$E$48="","",ROUND($D196*INTRO!$E$48,0)) -> 10203 | F196: =IF(INTRO!$E$49="","",ROUND($D196*INTRO!$E$49,0)) -> 21086 | G196: =IF(INTRO!$E$50="","",ROUND($D196*INTRO!$E$50,0)) -> 44541 | H196: 99 | I196: 1 | J196: 2 | K196: 0 | L196: 1 | M196: =IF(INTRO!$E$38="Endémique", IF($H196>0, IF($H196=4,"Inconnu", IF($H196=99,"Interrompu", $D196)), 0),"Non requis") -> Interrompu | N196: =IF(INTRO!$E$40="Endémique", IF($I196>0, IF($I196=4,"Inconnu",IF($I196=99,"Interrompu", $D196)), 0),"Non requis") -> 78974 | O196: =IF(INTRO!$E$42="Endémique", IF(AND($J196>1,$J196<5), IF($J196=4, "Inconnu", E196+F196), 0),"Non requis") -> 31289 | P196: =IF(INTRO!$E$44="Endémique", IF(AND($K196>0,$K196<5), IF($K196=4,"Inconnu", IF($K196=1, $F196*0.33, IF($K196=2, $F196*0.5+$G196*0.2, SUM(F196:G196)))), 0),"Non requis") -> 0 | Q196: 0 | R196: 1 | S196: 1 | T196: 0 | U196: MDA3 (IVM) | W196: 7607 | X196: TOMBEL | Z196: TRUE
A197: =IF(INTRO!$E$34<>0,INTRO!$E$34,"") -> Cameroon | B197: SOUTH-WEST | C197: WABANE | D197: 44853 | E197: =IF(INTRO!$E$48="","",ROUND($D197*INTRO!$E$48,0)) -> 5795 | F197: =IF(INTRO!$E$49="","",ROUND($D197*INTRO!$E$49,0)) -> 11976 | G197: =IF(INTRO!$E$50="","",ROUND($D197*INTRO!$E$50,0)) -> 25297 | H197: 0 | I197: 1 | J197: 2 | K197: 0 | L197: 1 | M197: =IF(INTRO!$E$38="Endémique", IF($H197>0, IF($H197=4,"Inconnu", IF($H197=99,"Interrompu", $D197)), 0),"Non requis") -> 0 | N197: =IF(INTRO!$E$40="Endémique", IF($I197>0, IF($I197=4,"Inconnu",IF($I197=99,"Interrompu", $D197)), 0),"Non requis") -> 44853 | O197: =IF(INTRO!$E$42="Endémique", IF(AND($J197>1,$J197<5), IF($J197=4, "Inconnu", E197+F197), 0),"Non requis") -> 17771 | P197: =IF(INTRO!$E$44="Endémique", IF(AND($K197>0,$K197<5), IF($K197=4,"Inconnu", IF($K197=1, $F197*0.33, IF($K197=2, $F197*0.5+$G197*0.2, SUM(F197:G197)))), 0),"Non requis") -> 0 | Q197: 0 | R197: 1 | S197: 1 | T197: 0 | U197: MDA3 (IVM) | W197: 7608 | X197: WABANE | Z197: TRUE

Sheet MDA1
A1: MDA 1 - Ivermectine (IVM) et Albendazole (ALB)
A2: Structure administrative, population nécessitant une chimioprévention par groupe d'âge, population traitée par groupe d'âge et couverture
A4: TOTAL | G4: =SUM(G$9:G$1000) -> 432957 | H4: =SUM(H$9:H$1000) -> 914565 | I4: =SUM(I$9:I$1000) -> 1347522 | K4: =SUM(K$9:K$1000) -> 299331.7401 | L4: =SUM(L$9:L$1000) -> 632296.2599 | M4: =SUM(M$9:M$1000) -> 931628 | O4: =IF(G4<>0, IF(K4/G4*100=0, "-", K4/G4*100), " ") -> 69.13659788 | P4: =IF(H4<>0, IF(L4/H4*100=0, "-", L4/H4*100), " ") -> 69.13628446 | Q4: =IF(I4<>0, IF(M4/I4*100=0, "-", M4/I4*100), " ") -> 69.13638516
A6: Structure administrative du pays | D6: Mise en oeuvre de la CP | E6: Date | F6: Population ciblée pour MDA 1 | J6: Population traitée | N6: Couverture du Programme (%)
A7: Pays | B7: Région/Département | C7: District | F7: EAPréS | G7: EAS | H7: Adultes | I7: Total | J7: EAPréS | K7: EAS | L7: Adultes | M7: Total | N7: EAPréS | O7: EAS | P7: Adultes | Q7: Total
A9: =IF(COUNTRY_INFO!A9=0," ",COUNTRY_INFO!A9) -> Cameroon | B9: =IF(COUNTRY_INFO!B9=0," ",COUNTRY_INFO!B9) -> ADAMAOUA | C9: =IF(COUNTRY_INFO!C9=0," ",COUNTRY_INFO!C9) -> BANKIM | D9: =IF(COUNTRY_INFO!$U$9:$U$1000="MDA1 (IVM+ALB)", COUNTRY_INFO!$U$9:$U$1000, " ") ->  | I9: =SUM(F9:H9) -> 0 | M9: =SUM(J9:L9) -> 0 | O9: =IF(G9<>0, IF(K9/G9*100=0, "-", K9/G9*100), " ") ->  | P9: =IF(H9<>0, IF(L9/H9*100=0, "-", L9/H9*100), " ") -> 
A10: =IF(COUNTRY_INFO!A10=0," ",COUNTRY_INFO!A10) -> Cameroon | B10: =IF(COUNTRY_INFO!B10=0," ",COUNTRY_INFO!B10) -> ADAMAOUA | C10: =IF(COUNTRY_INFO!C10=0," ",COUNTRY_INFO!C10) -> BANYO | D10: =IF(COUNTRY_INFO!$U$9:$U$1000="MDA1 (IVM+ALB)", COUNTRY_INFO!$U$9:$U$1000, " ") ->  | I10: =SUM(F10:H10) -> 0 | M10: =SUM(J10:L10) -> 0 | O10: =IF(G10<>0, IF(K10/G10*100=0, "-", K10/G10*100), " ") ->  | P10: =IF(H10<>0, IF(L10/H10*100=0, "-", L10/H10*100), " ") ->  | Q10: =IF(I10<>0, IF(M10/I10*100=0, "-", M10/I10*100), " ") -> 
A11: =IF(COUNTRY_INFO!A11=0," ",COUNTRY_INFO!A11) -> Cameroon | B11: =IF(COUNTRY_INFO!B11=0," ",COUNTRY_INFO!B11) -> ADAMAOUA | C11: =IF(COUNTRY_INFO!C11=0," ",COUNTRY_INFO!C11) -> DJOHONG | D11: =IF(COUNTRY_INFO!$U$9:$U$1000="MDA1 (IVM+ALB)", COUNTRY_INFO!$U$9:$U$1000, " ") ->  | I11: 0 | M11: 0
A12: =IF(COUNTRY_INFO!A12=0," ",COUNTRY_INFO!A12) -> Cameroon | B12: =IF(COUNTRY_INFO!B12=0," ",COUNTRY_INFO!B12) -> ADAMAOUA | C12: =IF(COUNTRY_INFO!C12=0," ",COUNTRY_INFO!C12) -> MEIGANGA | D12: =IF(COUNTRY_INFO!$U$9:$U$1000="MDA1 (IVM+ALB)", COUNTRY_INFO!$U$9:$U$1000, " ") -> MDA1 (IVM+ALB) | E12: Août 2018 | G12: 40392 | H12: 85323 | I12: 125715 | K12: 33375.3213 | L12: 70500.6787 | M12: 103876 | O12: 82.62854352 | P12: 82.62798858 | Q12: 82.62816689
A13: =IF(COUNTRY_INFO!A13=0," ",COUNTRY_INFO!A13) -> Cameroon | B13: =IF(COUNTRY_INFO!B13=0," ",COUNTRY_INFO!B13) -> ADAMAOUA | C13: =IF(COUNTRY_INFO!C13=0," ",COUNTRY_INFO!C13) -> NGAOUNDAL | D13: =IF(COUNTRY_INFO!$U$9:$U$1000="MDA1 (IVM+ALB)", COUNTRY_INFO!$U$9:$U$1000, " ") ->  | I13: 0 | M13: 0
A14: =IF(COUNTRY_INFO!A14=0," ",COUNTRY_INFO!A14) -> Cameroon | B14: =IF(COUNTRY_INFO!B14=0," ",COUNTRY_INFO!B14) -> ADAMAOUA | C14: =IF(COUNTRY_INFO!C14=0," ",COUNTRY_INFO!C14) -> NGAOUNDERE RURAL | D14: =IF(COUNTRY_INFO!$U$9:$U$1000="MDA1 (IVM+ALB)", COUNTRY_INFO!$U$9:$U$1000, " ") ->  | I14: 0
A15: =IF(COUNTRY_INFO!A15=0," ",COUNTRY_INFO!A15) -> Cameroon | B15: =IF(COUNTRY_INFO!B15=0," ",COUNTRY_INFO!B15) -> ADAMAOUA | C15: =IF(COUNTRY_INFO!C15=0," ",COUNTRY_INFO!C15) -> NGAOUNDERE URBAIN | D15: =IF(COUNTRY_INFO!$U$9:$U$1000="MDA1 (IVM+ALB)", COUNTRY_INFO!$U$9:$U$1000, " ") -> MDA1 (IVM+ALB) | E15: Août 2018 | G15: 78679 | H15: 166199 | I15: 244878 | K15: 52172.63538 | L15: 110207.3646 | M15: 162380 | O15: 66.31075049 | P15: 66.310486 | Q15: 66.31057098
A16: =IF(COUNTRY_INFO!A16=0," ",COUNTRY_INFO!A16) -> Cameroon | B16: =IF(COUNTRY_INFO!B16=0," ",COUNTRY_INFO!B16) -> ADAMAOUA | C16: =IF(COUNTRY_INFO!C16=0," ",COUNTRY_INFO!C16) -> TIBATI | D16: =IF(COUNTRY_INFO!$U$9:$U$1000="MDA1 (IVM+ALB)", COUNTRY_INFO!$U$9:$U$1000, " ") ->  | I16: 0 | M16: 0
A17: =IF(COUNTRY_INFO!A17=0," ",COUNTRY_INFO!A17) -> Cameroon | B17: =IF(COUNTRY_INFO!B17=0," ",COUNTRY_INFO!B17) -> ADAMAOUA | C17: =IF(COUNTRY_INFO!C17=0," ",COUNTRY_INFO!C17) -> TIGNERE | D17: =IF(COUNTRY_INFO!$U$9:$U$1000="MDA1 (IVM+ALB)", COUNTRY_INFO!$U$9:$U$1000, " ") -> MDA1 (IVM+ALB) | E17: Août 2018 | G17: 32239 | H17: 68101 | I17: 100340 | K17: 34547.42238 | L17: 72976.57762 | M17: 107524 | O17: 107.1603411 | P17: 107.1593334 | Q17: 107.1596572
A18: =IF(COUNTRY_INFO!A18=0," ",COUNTRY_INFO!A18) -> Cameroon | B18: =IF(COUNTRY_INFO!B18=0," ",COUNTRY_INFO!B18) -> CENTRE | C18: =IF(COUNTRY_INFO!C18=0," ",COUNTRY_INFO!C18) -> AKONOLINGA | D18: =IF(COUNTRY_INFO!$U$9:$U$1000="MDA1 (IVM+ALB)", COUNTRY_INFO!$U$9:$U$1000, " ") ->  | I18: 0 | M18: 0
A19: =IF(COUNTRY_INFO!A19=0," ",COUNTRY_INFO!A19) -> Cameroon | B19: =IF(COUNTRY_INFO!B19=0," ",COUNTRY_INFO!B19) -> CENTRE | C19: =IF(COUNTRY_INFO!C19=0," ",COUNTRY_INFO!C19) -> AWAE | D19: =IF(COUNTRY_INFO!$U$9:$U$1000="MDA1 (IVM+ALB)", COUNTRY_INFO!$U$9:$U$1000, " ") ->  | I19: 0 | M19: 0
A20: =IF(COUNTRY_INFO!A20=0," ",COUNTRY_INFO!A20) -> Cameroon | B20: =IF(COUNTRY_INFO!B20=0," ",COUNTRY_INFO!B20) -> CENTRE | C20: =IF(COUNTRY_INFO!C20=0," ",COUNTRY_INFO!C20) -> AYOS | D20: =IF(COUNTRY_INFO!$U$9:$U$1000="MDA1 (IVM+ALB)", COUNTRY_INFO!$U$9:$U$1000, " ") ->  | I20: 0 | M20: 0
A21: =IF(COUNTRY_INFO!A21=0," ",COUNTRY_INFO!A21) -> Cameroon | B21: =IF(COUNTRY_INFO!B21=0," ",COUNTRY_INFO!B21) -> CENTRE | C21: =IF(COUNTRY_INFO!C21=0," ",COUNTRY_INFO!C21) -> BAFIA | D21: =IF(COUNTRY_INFO!$U$9:$U$1000="MDA1 (IVM+ALB)", COUNTRY_INFO!$U$9:$U$1000, " ") ->  | I21: 0 | M21: 0
A22: =IF(COUNTRY_INFO!A22=0," ",COUNTRY_INFO!A22) -> Cameroon | B22: =IF(COUNTRY_INFO!B22=0," ",COUNTRY_INFO!B22) -> CENTRE | C22: =IF(COUNTRY_INFO!C22=0," ",COUNTRY_INFO!C22) -> BIYEM ASSI | D22: =IF(COUNTRY_INFO!$U$9:$U$1000="MDA1 (IVM+ALB)", COUNTRY_INFO!$U$9:$U$1000, " ") ->  | I22: 0 | M22: 0
A23: =IF(COUNTRY_INFO!A23=0," ",COUNTRY_INFO!A23) -> Cameroon | B23: =IF(COUNTRY_INFO!B23=0," ",COUNTRY_INFO!B23) -> CENTRE | C23: =IF(COUNTRY_INFO!C23=0," ",COUNTRY_INFO!C23) -> CITE VERTE | D23: =IF(COUNTRY_INFO!$U$9:$U$1000="MDA1 (IVM+ALB)", COUNTRY_INFO!$U$9:$U$1000, " ") ->  | I23: 0 | M23: 0
A24: =IF(COUNTRY_INFO!A24=0," ",COUNTRY_INFO!A24) -> Cameroon | B24: =IF(COUNTRY_INFO!B24=0," ",COUNTRY_INFO!B24) -> CENTRE | C24: =IF(COUNTRY_INFO!C24=0," ",COUNTRY_INFO!C24) -> DJOUNGOLO | D24: =IF(COUNTRY_INFO!$U$9:$U$1000="MDA1 (IVM+ALB)", COUNTRY_INFO!$U$9:$U$1000, " ") ->  | I24: 0 | M24: 0
A25: =IF(COUNTRY_INFO!A25=0," ",COUNTRY_INFO!A25) -> Cameroon | B25: =IF(COUNTRY_INFO!B25=0," ",COUNTRY_INFO!B25) -> CENTRE | C25: =IF(COUNTRY_INFO!C25=0," ",COUNTRY_INFO!C25) -> EBEBDA | D25: =IF(COUNTRY_INFO!$U$9:$U$1000="MDA1 (IVM+ALB)", COUNTRY_INFO!$U$9:$U$1000, " ") ->  | I25: 0 | M25: 0
A26: =IF(COUNTRY_INFO!A26=0," ",COUNTRY_INFO!A26) -> Cameroon | B26: =IF(COUNTRY_INFO!B26=0," ",COUNTRY_INFO!B26) -> CENTRE | C26: =IF(COUNTRY_INFO!C26=0," ",COUNTRY_INFO!C26) -> EFOULAN | D26: =IF(COUNTRY_INFO!$U$9:$U$1000="MDA1 (IVM+ALB)", COUNTRY_INFO!$U$9:$U$1000, " ") ->  | I26: 0 | M26: 0
A27: =IF(COUNTRY_INFO!A27=0," ",COUNTRY_INFO!A27) -> Cameroon | B27: =IF(COUNTRY_INFO!B27=0," ",COUNTRY_INFO!B27) -> CENTRE | C27: =IF(COUNTRY_INFO!C27=0," ",COUNTRY_INFO!C27) -> ELIG MFOMO | D27: =IF(COUNTRY_INFO!$U$9:$U$1000="MDA1 (IVM+ALB)", COUNTRY_INFO!$U$9:$U$1000, " ") ->  | I27: 0 | M27: 0
A28: =IF(COUNTRY_INFO!A28=0," ",COUNTRY_INFO!A28) -> Cameroon | B28: =IF(COUNTRY_INFO!B28=0," ",COUNTRY_INFO!B28) -> CENTRE | C28: =IF(COUNTRY_INFO!C28=0," ",COUNTRY_INFO!C28) -> ESEKA | D28: =IF(COUNTRY_INFO!$U$9:$U$1000="MDA1 (IVM+ALB)", COUNTRY_INFO!$U$9:$U$1000, " ") ->  | I28: 0 | M28: 0
A29: =IF(COUNTRY_INFO!A29=0," ",COUNTRY_INFO!A29) -> Cameroon | B29: =IF(COUNTRY_INFO!B29=0," ",COUNTRY_INFO!B29) -> CENTRE | C29: =IF(COUNTRY_INFO!C29=0," ",COUNTRY_INFO!C29) -> ESSE | D29: =IF(COUNTRY_INFO!$U$9:$U$1000="MDA1 (IVM+ALB)", COUNTRY_INFO!$U$9:$U$1000, " ") -> MDA1 (IVM+ALB) | E29: Août 2018 | G29: 6966 | H29: 14715 | I29: 21681 | K29: 3868.126354 | L29: 8170.873646 | M29: 12039 | O29: 55.52865854 | P29: 55.52751374 | Q29: 55.52788156
A30: =IF(COUNTRY_INFO!A30=0," ",COUNTRY_INFO!A30) -> Cameroon | B30: =IF(COUNTRY_INFO!B30=0," ",COUNTRY_INFO!B30) -> CENTRE | C30: =IF(COUNTRY_INFO!C30=0," ",COUNTRY_INFO!C30) -> EVODOULA | D30: =IF(COUNTRY_INFO!$U$9:$U$1000="MDA1 (IVM+ALB)", COUNTRY_INFO!$U$9:$U$1000, " ") -> MDA1 (IVM+ALB) | E30: Août 2018 | G30: 5456 | H30: 11524 | I30: 16980 | K30: 7113.252708 | L30: 15025.74729 | M30: 22139 | O30: 130.3748663 | P30: 130.386561 | Q30: 130.3828033
A31: =IF(COUNTRY_INFO!A31=0," ",COUNTRY_INFO!A31) -> Cameroon | B31: =IF(COUNTRY_INFO!B31=0," ",COUNTRY_INFO!B31) -> CENTRE | C31: =IF(COUNTRY_INFO!C31=0," ",COUNTRY_INFO!C31) -> MBALMAYO | D31: =IF(COUNTRY_INFO!$U$9:$U$1000="MDA1 (IVM+ALB)", COUNTRY_INFO!$U$9:$U$1000, " ") ->  | I31: 0 | M31: 0
A32: =IF(COUNTRY_INFO!A32=0," ",COUNTRY_INFO!A32) -> Cameroon | B32: =IF(COUNTRY_INFO!B32=0," ",COUNTRY_INFO!B32) -> CENTRE | C32: =IF(COUNTRY_INFO!C32=0," ",COUNTRY_INFO!C32) -> MBANDJOCK | D32: =IF(COUNTRY_INFO!$U$9:$U$1000="MDA1 (IVM+ALB)", COUNTRY_INFO!$U$9:$U$1000, " ") ->  | I32: 0 | M32: 0
A33: =IF(COUNTRY_INFO!A33=0," ",COUNTRY_INFO!A33) -> Cameroon | B33: =IF(COUNTRY_INFO!B33=0," ",COUNTRY_INFO!B33) -> CENTRE | C33: =IF(COUNTRY_INFO!C33=0," ",COUNTRY_INFO!C33) -> MBANKOMO | D33: =IF(COUNTRY_INFO!$U$9:$U$1000="MDA1 (IVM+ALB)", COUNTRY_INFO!$U$9:$U$1000, " ") ->  | I33: 0 | M33: 0
A34: =IF(COUNTRY_INFO!A34=0," ",COUNTRY_INFO!A34) -> Cameroon | B34: =IF(COUNTRY_INFO!B34=0," ",COUNTRY_INFO!B34) -> CENTRE | C34: =IF(COUNTRY_INFO!C34=0," ",COUNTRY_INFO!C34) -> MFOU | D34: =IF(COUNTRY_INFO!$U$9:$U$1000="MDA1 (IVM+ALB)", COUNTRY_INFO!$U$9:$U$1000, " ") ->  | I34: 0 | M34: 0
A35: =IF(COUNTRY_INFO!A35=0," ",COUNTRY_INFO!A35) -> Cameroon | B35: =IF(COUNTRY_INFO!B35=0," ",COUNTRY_INFO!B35) -> CENTRE | C35: =IF(COUNTRY_INFO!C35=0," ",COUNTRY_INFO!C35) -> MONATELE | D35: =IF(COUNTRY_INFO!$U$9:$U$1000="MDA1 (IVM+ALB)", COUNTRY_INFO!$U$9:$U$1000, " ") ->  | I35: 0 | M35: 0
A36: =IF(COUNTRY_INFO!A36=0," ",COUNTRY_INFO!A36) -> Cameroon | B36: =IF(COUNTRY_INFO!B36=0," ",COUNTRY_INFO!B36) -> CENTRE | C36: =IF(COUNTRY_INFO!C36=0," ",COUNTRY_INFO!C36) -> NANGA EBOKO | D36: =IF(COUNTRY_INFO!$U$9:$U$1000="MDA1 (IVM+ALB)", COUNTRY_INFO!$U$9:$U$1000, " ") -> MDA1 (IVM+ALB) | E36: Août 2018 | G36: 17113 | H36: 36149 | I36: 53262 | K36: 21016.20939 | L36: 44393.79061 | M36: 65410 | O36: 122.8084461 | P36: 122.8077972 | Q36: 122.8080057
A37: =IF(COUNTRY_INFO!A37=0," ",COUNTRY_INFO!A37) -> Cameroon | B37: =IF(COUNTRY_INFO!B37=0," ",COUNTRY_INFO!B37) -> CENTRE | C37: =IF(COUNTRY_INFO!C37=0," ",COUNTRY_INFO!C37) -> NDIKINIMEKI | D37: =IF(COUNTRY_INFO!$U$9:$U$1000="MDA1 (IVM+ALB)", COUNTRY_INFO!$U$9:$U$1000, " ") ->  | I37: 0 | M37: 0
A38: =IF(COUNTRY_INFO!A38=0," ",COUNTRY_INFO!A38) -> Cameroon | B38: =IF(COUNTRY_INFO!B38=0," ",COUNTRY_INFO!B38) -> CENTRE | C38: =IF(COUNTRY_INFO!C38=0," ",COUNTRY_INFO!C38) -> NGOG MAPUBI | D38: =IF(COUNTRY_INFO!$U$9:$U$1000="MDA1 (IVM+ALB)", COUNTRY_INFO!$U$9:$U$1000, " ") -> MDA1 (IVM+ALB) | E38: Août 2018 | G38: 14427 | H38: 30475 | I38: 44902 | K38: 15318.92419 | L38: 32359.07581 | M38: 47678 | O38: 106.1823261 | P38: 106.1823653 | Q38: 106.1823527
A39: =IF(COUNTRY_INFO!A39=0," ",COUNTRY_INFO!A39) -> Cameroon | B39: =IF(COUNTRY_INFO!B39=0," ",COUNTRY_INFO!B39) -> CENTRE | C39: =IF(COUNTRY_INFO!C39=0," ",COUNTRY_INFO!C39) -> NGOUMOU | D39: =IF(COUNTRY_INFO!$U$9:$U$1000="MDA1 (IVM+ALB)", COUNTRY_INFO!$U$9:$U$1000, " ") ->  | I39: 0 | M39: 0
A40: =IF(COUNTRY_INFO!A40=0," ",COUNTRY_INFO!A40) -> Cameroon | B40: =IF(COUNTRY_INFO!B40=0," ",COUNTRY_INFO!B40) -> CENTRE | C40: =IF(COUNTRY_INFO!C40=0," ",COUNTRY_INFO!C40) -> NKOLBISSON | D40: =IF(COUNTRY_INFO!$U$9:$U$1000="MDA1 (IVM+ALB)", COUNTRY_INFO!$U$9:$U$1000, " ") ->  | I40: 0 | M40: 0
A41: =IF(COUNTRY_INFO!A41=0," ",COUNTRY_INFO!A41) -> Cameroon | B41: =IF(COUNTRY_INFO!B41=0," ",COUNTRY_INFO!B41) -> CENTRE | C41: =IF(COUNTRY_INFO!C41=0," ",COUNTRY_INFO!C41) -> NKOLNDONGO | D41: =IF(COUNTRY_INFO!$U$9:$U$1000="MDA1 (IVM+ALB)", COUNTRY_INFO!$U$9:$U$1000, " ") ->  | I41: 0 | M41: 0
A42: =IF(COUNTRY_INFO!A42=0," ",COUNTRY_INFO!A42) -> Cameroon | B42: =IF(COUNTRY_INFO!B42=0," ",COUNTRY_INFO!B42) -> CENTRE | C42: =IF(COUNTRY_INFO!C42=0," ",COUNTRY_INFO!C42) -> NTUI | D42: =IF(COUNTRY_INFO!$U$9:$U$1000="MDA1 (IVM+ALB)", COUNTRY_INFO!$U$9:$U$1000, " ") ->  | I42: 0 | M42: 0
A43: =IF(COUNTRY_INFO!A43=0," ",COUNTRY_INFO!A43) -> Cameroon | B43: =IF(COUNTRY_INFO!B43=0," ",COUNTRY_INFO!B43) -> CENTRE | C43: =IF(COUNTRY_INFO!C43=0," ",COUNTRY_INFO!C43) -> OBALA | D43: =IF(COUNTRY_INFO!$U$9:$U$1000="MDA1 (IVM+ALB)", COUNTRY_INFO!$U$9:$U$1000, " ") ->  | I43: 0 | M43: 0
A44: =IF(COUNTRY_INFO!A44=0," ",COUNTRY_INFO!A44) -> Cameroon | B44: =IF(COUNTRY_INFO!B44=0," ",COUNTRY_INFO!B44) -> CENTRE | C44: =IF(COUNTRY_INFO!C44=0," ",COUNTRY_INFO!C44) -> OKOLA | D44: =IF(COUNTRY_INFO!$U$9:$U$1000="MDA1 (IVM+ALB)", COUNTRY_INFO!$U$9:$U$1000, " ") -> MDA1 (IVM+ALB) | E44: Août 2018 | G44: 14886 | H44: 31445 | I44: 46331 | K44: 8184.144404 | L44: 17287.8556 | M44: 25472 | O44: 54.97880159 | P44: 54.97807472 | Q44: 54.97830826
A45: =IF(COUNTRY_INFO!A45=0," ",COUNTRY_INFO!A45) -> Cameroon | B45: =IF(COUNTRY_INFO!B45=0," ",COUNTRY_INFO!B45) -> CENTRE | C45: =IF(COUNTRY_INFO!C45=0," ",COUNTRY_INFO!C45) -> SAA | D45: =IF(COUNTRY_INFO!$U$9:$U$1000="MDA1 (IVM+ALB)", COUNTRY_INFO!$U$9:$U$1000, " ") ->  | I45: 0 | M45: 0
A46: =IF(COUNTRY_INFO!A46=0," ",COUNTRY_INFO!A46) -> Cameroon | B46: =IF(COUNTRY_INFO!B46=0," ",COUNTRY_INFO!B46) -> CENTRE | C46: =IF(COUNTRY_INFO!C46=0," ",COUNTRY_INFO!C46) -> SOA | D46: =IF(COUNTRY_INFO!$U$9:$U$1000="MDA1 (IVM+ALB)", COUNTRY_INFO!$U$9:$U$1000, " ") ->  | I46: 0 | M46: 0
A47: =IF(COUNTRY_INFO!A47=0," ",COUNTRY_INFO!A47) -> Cameroon | B47: =IF(COUNTRY_INFO!B47=0," ",COUNTRY_INFO!B47) -> CENTRE | C47: =IF(COUNTRY_INFO!C47=0," ",COUNTRY_INFO!C47) -> YOKO | D47: =IF(COUNTRY_INFO!$U$9:$U$1000="MDA1 (IVM+ALB)", COUNTRY_INFO!$U$9:$U$1000, " ") ->  | I47: 0 | M47: 0
A48: =IF(COUNTRY_INFO!A48=0," ",COUNTRY_INFO!A48) -> Cameroon | B48: =IF(COUNTRY_INFO!B48=0," ",COUNTRY_INFO!B48) -> EAST | C48: =IF(COUNTRY_INFO!C48=0," ",COUNTRY_INFO!C48) -> ABONG MBANG | D48: =IF(COUNTRY_INFO!$U$9:$U$1000="MDA1 (IVM+ALB)", COUNTRY_INFO!$U$9:$U$1000, " ") ->  | I48: 0 | M48: 0
A49: =IF(COUNTRY_INFO!A49=0," ",COUNTRY_INFO!A49) -> Cameroon | B49: =IF(COUNTRY_INFO!B49=0," ",COUNTRY_INFO!B49) -> EAST | C49: =IF(COUNTRY_INFO!C49=0," ",COUNTRY_INFO!C49) -> BATOURI | D49: =IF(COUNTRY_INFO!$U$9:$U$1000="MDA1 (IVM+ALB)", COUNTRY_INFO!$U$9:$U$1000, " ") ->  | I49: 0 | M49: 0
A50: =IF(COUNTRY_INFO!A50=0," ",COUNTRY_INFO!A50) -> Cameroon | B50: =IF(COUNTRY_INFO!B50=0," ",COUNTRY_INFO!B50) -> EAST | C50: =IF(COUNTRY_INFO!C50=0," ",COUNTRY_INFO!C50) -> BERTOUA | D50: =IF(COUNTRY_INFO!$U$9:$U$1000="MDA1 (IVM+ALB)", COUNTRY_INFO!$U$9:$U$1000, " ") -> MDA1 (IVM+ALB) | E50: Mai 2018 | G50: 74838 | H50: 158084 | I50: 232922 | K50: 13950.18773 | L50: 29467.81227 | M50: 43418 | O50: 18.64051381 | P50: 18.6406039 | Q50: 18.64057496
A51: =IF(COUNTRY_INFO!A51=0," ",COUNTRY_INFO!A51) -> Cameroon | B51: =IF(COUNTRY_INFO!B51=0," ",COUNTRY_INFO!B51) -> EAST | C51: =IF(COUNTRY_INFO!C51=0," ",COUNTRY_INFO!C51) -> BETARE OYA | D51: =IF(COUNTRY_INFO!$U$9:$U$1000="MDA1 (IVM+ALB)", COUNTRY_INFO!$U$9:$U$1000, " ") -> MDA1 (IVM+ALB) | E51: Mai 2018 | G51: 28873 | H51: 60991 | I51: 89864 | K51: 9129.407942 | L51: 19284.59206 | M51: 28414 | O51: 31.61918728 | P51: 31.6187504 | Q51: 31.61889077
A52: =IF(COUNTRY_INFO!A52=0," ",COUNTRY_INFO!A52) -> Cameroon | B52: =IF(COUNTRY_INFO!B52=0," ",COUNTRY_INFO!B52) -> EAST | C52: =IF(COUNTRY_INFO!C52=0," ",COUNTRY_INFO!C52) -> DOUME | D52: =IF(COUNTRY_INFO!$U$9:$U$1000="MDA1 (IVM+ALB)", COUNTRY_INFO!$U$9:$U$1000, " ") ->  | I52: 0 | M52: 0
A53: =IF(COUNTRY_INFO!A53=0," ",COUNTRY_INFO!A53) -> Cameroon | B53: =IF(COUNTRY_INFO!B53=0," ",COUNTRY_INFO!B53) -> EAST | C53: =IF(COUNTRY_INFO!C53=0," ",COUNTRY_INFO!C53) -> GAROUA BOULAI | D53: =IF(COUNTRY_INFO!$U$9:$U$1000="MDA1 (IVM+ALB)", COUNTRY_INFO!$U$9:$U$1000, " ") ->  | I53: 0 | M53: 0
A54: =IF(COUNTRY_INFO!A54=0," ",COUNTRY_INFO!A54) -> Cameroon | B54: =IF(COUNTRY_INFO!B54=0," ",COUNTRY_INFO!B54) -> EAST | C54: =IF(COUNTRY_INFO!C54=0," ",COUNTRY_INFO!C54) -> KETTE | D54: =IF(COUNTRY_INFO!$U$9:$U$1000="MDA1 (IVM+ALB)", COUNTRY_INFO!$U$9:$U$1000, " ") ->  | I54: 0 | M54: 0
A55: =IF(COUNTRY_INFO!A55=0," ",COUNTRY_INFO!A55) -> Cameroon | B55: =IF(COUNTRY_INFO!B55=0," ",COUNTRY_INFO!B55) -> EAST | C55: =IF(COUNTRY_INFO!C55=0," ",COUNTRY_INFO!C55) -> LOMIE | D55: =IF(COUNTRY_INFO!$U$9:$U$1000="MDA1 (IVM+ALB)", COUNTRY_INFO!$U$9:$U$1000, " ") -> MDA1 (IVM+ALB) | E55: Mai 2018 | G55: 9393 | H55: 19842 | I55: 29235 | K55: 3247.696751 | L55: 6860.303249 | M55: 10108 | O55: 34.57571331 | P55: 34.57465603 | Q55: 34.57499572
A56: =IF(COUNTRY_INFO!A56=0," ",COUNTRY_INFO!A56) -> Cameroon | B56: =IF(COUNTRY_INFO!B56=0," ",COUNTRY_INFO!B56) -> EAST | C56: =IF(COUNTRY_INFO!C56=0," ",COUNTRY_INFO!C56) -> MBANG | D56: =IF(COUNTRY_INFO!$U$9:$U$1000="MDA1 (IVM+ALB)", COUNTRY_INFO!$U$9:$U$1000, " ") ->  | I56: 0 | M56: 0
A57: =IF(COUNTRY_INFO!A57=0," ",COUNTRY_INFO!A57) -> Cameroon | B57: =IF(COUNTRY_INFO!B57=0," ",COUNTRY_INFO!B57) -> EAST | C57: =IF(COUNTRY_INFO!C57=0," ",COUNTRY_INFO!C57) -> MESSAMENA | D57: =IF(COUNTRY_INFO!$U$9:$U$1000="MDA1 (IVM+ALB)", COUNTRY_INFO!$U$9:$U$1000, " ") ->  | I57: 0 | M57: 0
A58: =IF(COUNTRY_INFO!A58=0," ",COUNTRY_INFO!A58) -> Cameroon | B58: =IF(COUNTRY_INFO!B58=0," ",COUNTRY_INFO!B58) -> EAST | C58: =IF(COUNTRY_INFO!C58=0," ",COUNTRY_INFO!C58) -> MOLOUNDOU | D58: =IF(COUNTRY_INFO!$U$9:$U$1000="MDA1 (IVM+ALB)", COUNTRY_INFO!$U$9:$U$1000, " ") ->  | I58: 0 | M58: 0
A59: =IF(COUNTRY_INFO!A59=0," ",COUNTRY_INFO!A59) -> Cameroon | B59: =IF(COUNTRY_INFO!B59=0," ",COUNTRY_INFO!B59) -> EAST | C59: =IF(COUNTRY_INFO!C59=0," ",COUNTRY_INFO!C59) -> NDELELE | D59: =IF(COUNTRY_INFO!$U$9:$U$1000="MDA1 (IVM+ALB)", COUNTRY_INFO!$U$9:$U$1000, " ") ->  | I59: 0 | M59: 0
A60: =IF(COUNTRY_INFO!A60=0," ",COUNTRY_INFO!A60) -> Cameroon | B60: =IF(COUNTRY_INFO!B60=0," ",COUNTRY_INFO!B60) -> EAST | C60: =IF(COUNTRY_INFO!C60=0," ",COUNTRY_INFO!C60) -> NGUELEMENDOUKA | D60: =IF(COUNTRY_INFO!$U$9:$U$1000="MDA1 (IVM+ALB)", COUNTRY_INFO!$U$9:$U$1000, " ") ->  | I60: 0 | M60: 0
A61: =IF(COUNTRY_INFO!A61=0," ",COUNTRY_INFO!A61) -> Cameroon | B61: =IF(COUNTRY_INFO!B61=0," ",COUNTRY_INFO!B61) -> EAST | C61: =IF(COUNTRY_INFO!C61=0," ",COUNTRY_INFO!C61) -> YOKADOUMA | D61: =IF(COUNTRY_INFO!$U$9:$U$1000="MDA1 (IVM+ALB)", COUNTRY_INFO!$U$9:$U$1000, " ") ->  | I61: 0 | M61: 0
A62: =IF(COUNTRY_INFO!A62=0," ",COUNTRY_INFO!A62) -> Cameroon | B62: =IF(COUNTRY_INFO!B62=0," ",COUNTRY_INFO!B62) -> FAR-NORTH | C62: =IF(COUNTRY_INFO!C62=0," ",COUNTRY_INFO!C62) -> BOGO | D62: =IF(COUNTRY_INFO!$U$9:$U$1000="MDA1 (IVM+ALB)", COUNTRY_INFO!$U$9:$U$1000, " ") ->  | I62: 0 | M62: 0
A63: =IF(COUNTRY_INFO!A63=0," ",COUNTRY_INFO!A63) -> Cameroon | B63: =IF(COUNTRY_INFO!B63=0," ",COUNTRY_INFO!B63) -> FAR-NORTH | C63: =IF(COUNTRY_INFO!C63=0," ",COUNTRY_INFO!C63) -> BOURHA | D63: =IF(COUNTRY_INFO!$U$9:$U$1000="MDA1 (IVM+ALB)", COUNTRY_INFO!$U$9:$U$1000, " ") ->  | I63: 0 | M63: 0
A64: =IF(COUNTRY_INFO!A64=0," ",COUNTRY_INFO!A64) -> Cameroon | B64: =IF(COUNTRY_INFO!B64=0," ",COUNTRY_INFO!B64) -> FAR-NORTH | C64: =IF(COUNTRY_INFO!C64=0," ",COUNTRY_INFO!C64) -> GAZAWA | D64: =IF(COUNTRY_INFO!$U$9:$U$1000="MDA1 (IVM+ALB)", COUNTRY_INFO!$U$9:$U$1000, " ") ->  | I64: 0 | M64: 0
A65: =IF(COUNTRY_INFO!A65=0," ",COUNTRY_INFO!A65) -> Cameroon | B65: =IF(COUNTRY_INFO!B65=0," ",COUNTRY_INFO!B65) -> FAR-NORTH | C65: =IF(COUNTRY_INFO!C65=0," ",COUNTRY_INFO!C65) -> GOULFEY | D65: =IF(COUNTRY_INFO!$U$9:$U$1000="MDA1 (IVM+ALB)", COUNTRY_INFO!$U$9:$U$1000, " ") ->  | I65: 0 | M65: 0
A66: =IF(COUNTRY_INFO!A66=0," ",COUNTRY_INFO!A66) -> Cameroon | B66: =IF(COUNTRY_INFO!B66=0," ",COUNTRY_INFO!B66) -> FAR-NORTH | C66: =IF(COUNTRY_INFO!C66=0," ",COUNTRY_INFO!C66) -> GUERE | D66: =IF(COUNTRY_INFO!$U$9:$U$1000="MDA1 (IVM+ALB)", COUNTRY_INFO!$U$9:$U$1000, " ") ->  | I66: 0 | M66: 0
A67: =IF(COUNTRY_INFO!A67=0," ",COUNTRY_INFO!A67) -> Cameroon | B67: =IF(COUNTRY_INFO!B67=0," ",COUNTRY_INFO!B67) -> FAR-NORTH | C67: =IF(COUNTRY_INFO!C67=0," ",COUNTRY_INFO!C67) -> GUIDIGUIS | D67: =IF(COUNTRY_INFO!$U$9:$U$1000="MDA1 (IVM+ALB)", COUNTRY_INFO!$U$9:$U$1000, " ") ->  | I67: 0 | M67: 0
A68: =IF(COUNTRY_INFO!A68=0," ",COUNTRY_INFO!A68) -> Cameroon | B68: =IF(COUNTRY_INFO!B68=0," ",COUNTRY_INFO!B68) -> FAR-NORTH | C68: =IF(COUNTRY_INFO!C68=0," ",COUNTRY_INFO!C68) -> HINA | D68: =IF(COUNTRY_INFO!$U$9:$U$1000="MDA1 (IVM+ALB)", COUNTRY_INFO!$U$9:$U$1000, " ") ->  | I68: 0 | M68: 0
A69: =IF(COUNTRY_INFO!A69=0," ",COUNTRY_INFO!A69) -> Cameroon | B69: =IF(COUNTRY_INFO!B69=0," ",COUNTRY_INFO!B69) -> FAR-NORTH | C69: =IF(COUNTRY_INFO!C69=0," ",COUNTRY_INFO!C69) -> KAELE | D69: =IF(COUNTRY_INFO!$U$9:$U$1000="MDA1 (IVM+ALB)", COUNTRY_INFO!$U$9:$U$1000, " ") ->  | I69: 0 | M69: 0
A70: =IF(COUNTRY_INFO!A70=0," ",COUNTRY_INFO!A70) -> Cameroon | B70: =IF(COUNTRY_INFO!B70=0," ",COUNTRY_INFO!B70) -> FAR-NORTH | C70: =IF(COUNTRY_INFO!C70=0," ",COUNTRY_INFO!C70) -> KAR HAY | D70: =IF(COUNTRY_INFO!$U$9:$U$1000="MDA1 (IVM+ALB)", COUNTRY_INFO!$U$9:$U$1000, " ") ->  | I70: 0 | M70: 0
A71: =IF(COUNTRY_INFO!A71=0," ",COUNTRY_INFO!A71) -> Cameroon | B71: =IF(COUNTRY_INFO!B71=0," ",COUNTRY_INFO!B71) -> FAR-NORTH | C71: =IF(COUNTRY_INFO!C71=0," ",COUNTRY_INFO!C71) -> KOLOFATA | D71: =IF(COUNTRY_INFO!$U$9:$U$1000="MDA1 (IVM+ALB)", COUNTRY_INFO!$U$9:$U$1000, " ") ->  | I71: 0 | M71: 0
A72: =IF(COUNTRY_INFO!A72=0," ",COUNTRY_INFO!A72) -> Cameroon | B72: =IF(COUNTRY_INFO!B72=0," ",COUNTRY_INFO!B72) -> FAR-NORTH | C72: =IF(COUNTRY_INFO!C72=0," ",COUNTRY_INFO!C72) -> KOUSSERI | D72: =IF(COUNTRY_INFO!$U$9:$U$1000="MDA1 (IVM+ALB)", COUNTRY_INFO!$U$9:$U$1000, " ") ->  | I72: 0 | M72: 0
A73: =IF(COUNTRY_INFO!A73=0," ",COUNTRY_INFO!A73) -> Cameroon | B73: =IF(COUNTRY_INFO!B73=0," ",COUNTRY_INFO!B73) -> FAR-NORTH | C73: =IF(COUNTRY_INFO!C73=0," ",COUNTRY_INFO!C73) -> KOZA | D73: =IF(COUNTRY_INFO!$U$9:$U$1000="MDA1 (IVM+ALB)", COUNTRY_INFO!$U$9:$U$1000, " ") ->  | I73: 0 | M73: 0
A74: =IF(COUNTRY_INFO!A74=0," ",COUNTRY_INFO!A74) -> Cameroon | B74: =IF(COUNTRY_INFO!B74=0," ",COUNTRY_INFO!B74) -> FAR-NORTH | C74: =IF(COUNTRY_INFO!C74=0," ",COUNTRY_INFO!C74) -> MADA | D74: =IF(COUNTRY_INFO!$U$9:$U$1000="MDA1 (IVM+ALB)", COUNTRY_INFO!$U$9:$U$1000, " ") ->  | I74: =SUM(F74:H74) -> 0 | M74: =SUM(J74:L74) -> 0 | O74: =IF(G74<>0, IF(K74/G74*100=0, "-", K74/G74*100), " ") ->  | P74: =IF(H74<>0, IF(L74/H74*100=0, "-", L74/H74*100), " ") ->  | Q74: =IF(I74<>0, IF(M74/I74*100=0, "-", M74/I74*100), " ") -> 
A75: =IF(COUNTRY_INFO!A75=0," ",COUNTRY_INFO!A75) -> Cameroon | B75: =IF(COUNTRY_INFO!B75=0," ",COUNTRY_INFO!B75) -> FAR-NORTH | C75: =IF(COUNTRY_INFO!C75=0," ",COUNTRY_INFO!C75) -> MAGA | D75: =IF(COUNTRY_INFO!$U$9:$U$1000="MDA1 (IVM+ALB)", COUNTRY_INFO!$U$9:$U$1000, " ") ->  | I75: 0 | M75: 0
A76: =IF(COUNTRY_INFO!A76=0," ",COUNTRY_INFO!A76) -> Cameroon | B76: =IF(COUNTRY_INFO!B76=0," ",COUNTRY_INFO!B76) -> FAR-NORTH | C76: =IF(COUNTRY_INFO!C76=0," ",COUNTRY_INFO!C76) -> MAKARY | D76: =IF(COUNTRY_INFO!$U$9:$U$1000="MDA1 (IVM+ALB)", COUNTRY_INFO!$U$9:$U$1000, " ") ->  | I76: 0 | M76: 0
A77: =IF(COUNTRY_INFO!A77=0," ",COUNTRY_INFO!A77) -> Cameroon | B77: =IF(COUNTRY_INFO!B77=0," ",COUNTRY_INFO!B77) -> FAR-NORTH | C77: =IF(COUNTRY_INFO!C77=0," ",COUNTRY_INFO!C77) -> MAROUA 1 | D77: =IF(COUNTRY_INFO!$U$9:$U$1000="MDA1 (IVM+ALB)", COUNTRY_INFO!$U$9:$U$1000, " ") ->  | I77: 0 | M77: 0
A78: =IF(COUNTRY_INFO!A78=0," ",COUNTRY_INFO!A78) -> Cameroon | B78: =IF(COUNTRY_INFO!B78=0," ",COUNTRY_INFO!B78) -> FAR-NORTH | C78: =IF(COUNTRY_INFO!C78=0," ",COUNTRY_INFO!C78) -> MAROUA 2 | D78: =IF(COUNTRY_INFO!$U$9:$U$1000="MDA1 (IVM+ALB)", COUNTRY_INFO!$U$9:$U$1000, " ") ->  | I78: 0 | M78: 0
A79: =IF(COUNTRY_INFO!A79=0," ",COUNTRY_INFO!A79) -> Cameroon | B79: =IF(COUNTRY_INFO!B79=0," ",COUNTRY_INFO!B79) -> FAR-NORTH | C79: =IF(COUNTRY_INFO!C79=0," ",COUNTRY_INFO!C79) -> MAROUA 3 | D79: =IF(COUNTRY_INFO!$U$9:$U$1000="MDA1 (IVM+ALB)", COUNTRY_INFO!$U$9:$U$1000, " ") ->  | I79: 0 | M79: 0
A80: =IF(COUNTRY_INFO!A80=0," ",COUNTRY_INFO!A80) -> Cameroon | B80: =IF(COUNTRY_INFO!B80=0," ",COUNTRY_INFO!B80) -> FAR-NORTH | C80: =IF(COUNTRY_INFO!C80=0," ",COUNTRY_INFO!C80) -> MERI | D80: =IF(COUNTRY_INFO!$U$9:$U$1000="MDA1 (IVM+ALB)", COUNTRY_INFO!$U$9:$U$1000, " ") ->  | I80: 0 | M80: 0
A81: =IF(COUNTRY_INFO!A81=0," ",COUNTRY_INFO!A81) -> Cameroon | B81: =IF(COUNTRY_INFO!B81=0," ",COUNTRY_INFO!B81) -> FAR-NORTH | C81: =IF(COUNTRY_INFO!C81=0," ",COUNTRY_INFO!C81) -> MINDIF | D81: =IF(COUNTRY_INFO!$U$9:$U$1000="MDA1 (IVM+ALB)", COUNTRY_INFO!$U$9:$U$1000, " ") ->  | I81: 0 | M81: 0
A82: =IF(COUNTRY_INFO!A82=0," ",COUNTRY_INFO!A82) -> Cameroon | B82: =IF(COUNTRY_INFO!B82=0," ",COUNTRY_INFO!B82) -> FAR-NORTH | C82: =IF(COUNTRY_INFO!C82=0," ",COUNTRY_INFO!C82) -> MOGODE | D82: =IF(COUNTRY_INFO!$U$9:$U$1000="MDA1 (IVM+ALB)", COUNTRY_INFO!$U$9:$U$1000, " ") ->  | I82: 0 | M82: 0
A83: =IF(COUNTRY_INFO!A83=0," ",COUNTRY_INFO!A83) -> Cameroon | B83: =IF(COUNTRY_INFO!B83=0," ",COUNTRY_INFO!B83) -> FAR-NORTH | C83: =IF(COUNTRY_INFO!C83=0," ",COUNTRY_INFO!C83) -> MOKOLO | D83: =IF(COUNTRY_INFO!$U$9:$U$1000="MDA1 (IVM+ALB)", COUNTRY_INFO!$U$9:$U$1000, " ") ->  | I83: 0 | M83: 0
A84: =IF(COUNTRY_INFO!A84=0," ",COUNTRY_INFO!A84) -> Cameroon | B84: =IF(COUNTRY_INFO!B84=0," ",COUNTRY_INFO!B84) -> FAR-NORTH | C84: =IF(COUNTRY_INFO!C84=0," ",COUNTRY_INFO!C84) -> MORA | D84: =IF(COUNTRY_INFO!$U$9:$U$1000="MDA1 (IVM+ALB)", COUNTRY_INFO!$U$9:$U$1000, " ") ->  | I84: 0 | M84: 0
A85: =IF(COUNTRY_INFO!A85=0," ",COUNTRY_INFO!A85) -> Cameroon | B85: =IF(COUNTRY_INFO!B85=0," ",COUNTRY_INFO!B85) -> FAR-NORTH | C85: =IF(COUNTRY_INFO!C85=0," ",COUNTRY_INFO!C85) -> MOULVOUDAYE | D85: =IF(COUNTRY_INFO!$U$9:$U$1000="MDA1 (IVM+ALB)", COUNTRY_INFO!$U$9:$U$1000, " ") ->  | I85: 0 | M85: 0
A86: =IF(COUNTRY_INFO!A86=0," ",COUNTRY_INFO!A86) -> Cameroon | B86: =IF(COUNTRY_INFO!B86=0," ",COUNTRY_INFO!B86) -> FAR-NORTH | C86: =IF(COUNTRY_INFO!C86=0," ",COUNTRY_INFO!C86) -> MOUTOURWA | D86: =IF(COUNTRY_INFO!$U$9:$U$1000="MDA1 (IVM+ALB)", COUNTRY_INFO!$U$9:$U$1000, " ") ->  | I86: 0 | M86: 0
A87: =IF(COUNTRY_INFO!A87=0," ",COUNTRY_INFO!A87) -> Cameroon | B87: =IF(COUNTRY_INFO!B87=0," ",COUNTRY_INFO!B87) -> FAR-NORTH | C87: =IF(COUNTRY_INFO!C87=0," ",COUNTRY_INFO!C87) -> PETTE | D87: =IF(COUNTRY_INFO!$U$9:$U$1000="MDA1 (IVM+ALB)", COUNTRY_INFO!$U$9:$U$1000, " ") ->  | I87: 0 | M87: 0
A88: =IF(COUNTRY_INFO!A88=0," ",COUNTRY_INFO!A88) -> Cameroon | B88: =IF(COUNTRY_INFO!B88=0," ",COUNTRY_INFO!B88) -> FAR-NORTH | C88: =IF(COUNTRY_INFO!C88=0," ",COUNTRY_INFO!C88) -> ROUA | D88: =IF(COUNTRY_INFO!$U$9:$U$1000="MDA1 (IVM+ALB)", COUNTRY_INFO!$U$9:$U$1000, " ") ->  | I88: 0 | M88: 0
A89: =IF(COUNTRY_INFO!A89=0," ",COUNTRY_INFO!A89) -> Cameroon | B89: =IF(COUNTRY_INFO!B89=0," ",COUNTRY_INFO!B89) -> FAR-NORTH | C89: =IF(COUNTRY_INFO!C89=0," ",COUNTRY_INFO!C89) -> TOKOMBERE | D89: =IF(COUNTRY_INFO!$U$9:$U$1000="MDA1 (IVM+ALB)", COUNTRY_INFO!$U$9:$U$1000, " ") ->  | I89: 0 | M89: 0
A90: =IF(COUNTRY_INFO!A90=0," ",COUNTRY_INFO!A90) -> Cameroon | B90: =IF(COUNTRY_INFO!B90=0," ",COUNTRY_INFO!B90) -> FAR-NORTH | C90: =IF(COUNTRY_INFO!C90=0," ",COUNTRY_INFO!C90) -> VELE | D90: =IF(COUNTRY_INFO!$U$9:$U$1000="MDA1 (IVM+ALB)", COUNTRY_INFO!$U$9:$U$1000, " ") ->  | I90: 0 | M90: 0
A91: =IF(COUNTRY_INFO!A91=0," ",COUNTRY_INFO!A91) -> Cameroon | B91: =IF(COUNTRY_INFO!B91=0," ",COUNTRY_INFO!B91) -> FAR-NORTH | C91: =IF(COUNTRY_INFO!C91=0," ",COUNTRY_INFO!C91) -> YAGOUA | D91: =IF(COUNTRY_INFO!$U$9:$U$1000="MDA1 (IVM+ALB)", COUNTRY_INFO!$U$9:$U$1000, " ") ->  | I91: 0 | M91: 0
A92: =IF(COUNTRY_INFO!A92=0," ",COUNTRY_INFO!A92) -> Cameroon | B92: =IF(COUNTRY_INFO!B92=0," ",COUNTRY_INFO!B92) -> LITTORAL | C92: =IF(COUNTRY_INFO!C92=0," ",COUNTRY_INFO!C92) -> ABO | D92: =IF(COUNTRY_INFO!$U$9:$U$1000="MDA1 (IVM+ALB)", COUNTRY_INFO!$U$9:$U$1000, " ") ->  | I92: 0 | M92: 0
A93: =IF(COUNTRY_INFO!A93=0," ",COUNTRY_INFO!A93) -> Cameroon | B93: =IF(COUNTRY_INFO!B93=0," ",COUNTRY_INFO!B93) -> LITTORAL | C93: =IF(COUNTRY_INFO!C93=0," ",COUNTRY_INFO!C93) -> BANGUE | D93: =IF(COUNTRY_INFO!$U$9:$U$1000="MDA1 (IVM+ALB)", COUNTRY_INFO!$U$9:$U$1000, " ") ->  | I93: 0 | M93: 0
A94: =IF(COUNTRY_INFO!A94=0," ",COUNTRY_INFO!A94) -> Cameroon | B94: =IF(COUNTRY_INFO!B94=0," ",COUNTRY_INFO!B94) -> LITTORAL | C94: =IF(COUNTRY_INFO!C94=0," ",COUNTRY_INFO!C94) -> BOKO | D94: =IF(COUNTRY_INFO!$U$9:$U$1000="MDA1 (IVM+ALB)", COUNTRY_INFO!$U$9:$U$1000, " ") ->  | I94: 0 | M94: 0
A95: =IF(COUNTRY_INFO!A95=0," ",COUNTRY_INFO!A95) -> Cameroon | B95: =IF(COUNTRY_INFO!B95=0," ",COUNTRY_INFO!B95) -> LITTORAL | C95: =IF(COUNTRY_INFO!C95=0," ",COUNTRY_INFO!C95) -> BONASSAMA | D95: =IF(COUNTRY_INFO!$U$9:$U$1000="MDA1 (IVM+ALB)", COUNTRY_INFO!$U$9:$U$1000, " ") ->  | I95: 0 | M95: 0
A96: =IF(COUNTRY_INFO!A96=0," ",COUNTRY_INFO!A96) -> Cameroon | B96: =IF(COUNTRY_INFO!B96=0," ",COUNTRY_INFO!B96) -> LITTORAL | C96: =IF(COUNTRY_INFO!C96=0," ",COUNTRY_INFO!C96) -> CITE PALMIERS | D96: =IF(COUNTRY_INFO!$U$9:$U$1000="MDA1 (IVM+ALB)", COUNTRY_INFO!$U$9:$U$1000, " ") ->  | I96: 0 | M96: 0
A97: =IF(COUNTRY_INFO!A97=0," ",COUNTRY_INFO!A97) -> Cameroon | B97: =IF(COUNTRY_INFO!B97=0," ",COUNTRY_INFO!B97) -> LITTORAL | C97: =IF(COUNTRY_INFO!C97=0," ",COUNTRY_INFO!C97) -> DEIDO | D97: =IF(COUNTRY_INFO!$U$9:$U$1000="MDA1 (IVM+ALB)", COUNTRY_INFO!$U$9:$U$1000, " ") ->  | I97: 0 | M97: 0
A98: =IF(COUNTRY_INFO!A98=0," ",COUNTRY_INFO!A98) -> Cameroon | B98: =IF(COUNTRY_INFO!B98=0," ",COUNTRY_INFO!B98) -> LITTORAL | C98: =IF(COUNTRY_INFO!C98=0," ",COUNTRY_INFO!C98) -> DIBOMBARI | D98: =IF(COUNTRY_INFO!$U$9:$U$1000="MDA1 (IVM+ALB)", COUNTRY_INFO!$U$9:$U$1000, " ") ->  | I98: 0 | M98: 0
A99: =IF(COUNTRY_INFO!A99=0," ",COUNTRY_INFO!A99) -> Cameroon | B99: =IF(COUNTRY_INFO!B99=0," ",COUNTRY_INFO!B99) -> LITTORAL | C99: =IF(COUNTRY_INFO!C99=0," ",COUNTRY_INFO!C99) -> EDEA | D99: =IF(COUNTRY_INFO!$U$9:$U$1000="MDA1 (IVM+ALB)", COUNTRY_INFO!$U$9:$U$1000, " ") ->  | I99: 0 | M99: 0
A100: =IF(COUNTRY_INFO!A100=0," ",COUNTRY_INFO!A100) -> Cameroon | B100: =IF(COUNTRY_INFO!B100=0," ",COUNTRY_INFO!B100) -> LITTORAL | C100: =IF(COUNTRY_INFO!C100=0," ",COUNTRY_INFO!C100) -> JAPOMA | D100: =IF(COUNTRY_INFO!$U$9:$U$1000="MDA1 (IVM+ALB)", COUNTRY_INFO!$U$9:$U$1000, " ") ->  | I100: 0 | M100: 0
A101: =IF(COUNTRY_INFO!A101=0," ",COUNTRY_INFO!A101) -> Cameroon | B101: =IF(COUNTRY_INFO!B101=0," ",COUNTRY_INFO!B101) -> LITTORAL | C101: =IF(COUNTRY_INFO!C101=0," ",COUNTRY_INFO!C101) -> LOGBABA | D101: =IF(COUNTRY_INFO!$U$9:$U$1000="MDA1 (IVM+ALB)", COUNTRY_INFO!$U$9:$U$1000, " ") ->  | I101: 0 | M101: 0
A102: =IF(COUNTRY_INFO!A102=0," ",COUNTRY_INFO!A102) -> Cameroon | B102: =IF(COUNTRY_INFO!B102=0," ",COUNTRY_INFO!B102) -> LITTORAL | C102: =IF(COUNTRY_INFO!C102=0," ",COUNTRY_INFO!C102) -> LOUM | D102: =IF(COUNTRY_INFO!$U$9:$U$1000="MDA1 (IVM+ALB)", COUNTRY_INFO!$U$9:$U$1000, " ") ->  | I102: 0 | M102: 0
A103: =IF(COUNTRY_INFO!A103=0," ",COUNTRY_INFO!A103) -> Cameroon | B103: =IF(COUNTRY_INFO!B103=0," ",COUNTRY_INFO!B103) -> LITTORAL | C103: =IF(COUNTRY_INFO!C103=0," ",COUNTRY_INFO!C103) -> MANJO | D103: =IF(COUNTRY_INFO!$U$9:$U$1000="MDA1 (IVM+ALB)", COUNTRY_INFO!$U$9:$U$1000, " ") ->  | I103: 0 | M103: 0
A104: =IF(COUNTRY_INFO!A104=0," ",COUNTRY_INFO!A104) -> Cameroon | B104: =IF(COUNTRY_INFO!B104=0," ",COUNTRY_INFO!B104) -> LITTORAL | C104: =IF(COUNTRY_INFO!C104=0," ",COUNTRY_INFO!C104) -> MANOKA | D104: =IF(COUNTRY_INFO!$U$9:$U$1000="MDA1 (IVM+ALB)", COUNTRY_INFO!$U$9:$U$1000, " ") ->  | I104: 0 | M104: 0
A105: =IF(COUNTRY_INFO!A105=0," ",COUNTRY_INFO!A105) -> Cameroon | B105: =IF(COUNTRY_INFO!B105=0," ",COUNTRY_INFO!B105) -> LITTORAL | C105: =IF(COUNTRY_INFO!C105=0," ",COUNTRY_INFO!C105) -> MBANGA | D105: =IF(COUNTRY_INFO!$U$9:$U$1000="MDA1 (IVM+ALB)", COUNTRY_INFO!$U$9:$U$1000, " ") ->  | I105: 0 | M105: 0
A106: =IF(COUNTRY_INFO!A106=0," ",COUNTRY_INFO!A106) -> Cameroon | B106: =IF(COUNTRY_INFO!B106=0," ",COUNTRY_INFO!B106) -> LITTORAL | C106: =IF(COUNTRY_INFO!C106=0," ",COUNTRY_INFO!C106) -> MELONG | D106: =IF(COUNTRY_INFO!$U$9:$U$1000="MDA1 (IVM+ALB)", COUNTRY_INFO!$U$9:$U$1000, " ") ->  | I106: 0 | M106: 0
A107: =IF(COUNTRY_INFO!A107=0," ",COUNTRY_INFO!A107) -> Cameroon | B107: =IF(COUNTRY_INFO!B107=0," ",COUNTRY_INFO!B107) -> LITTORAL | C107: =IF(COUNTRY_INFO!C107=0," ",COUNTRY_INFO!C107) -> NDOM | D107: =IF(COUNTRY_INFO!$U$9:$U$1000="MDA1 (IVM+ALB)", COUNTRY_INFO!$U$9:$U$1000, " ") ->  | I107: 0 | M107: 0
A108: =IF(COUNTRY_INFO!A108=0," ",COUNTRY_INFO!A108) -> Cameroon | B108: =IF(COUNTRY_INFO!B108=0," ",COUNTRY_INFO!B108) -> LITTORAL | C108: =IF(COUNTRY_INFO!C108=0," ",COUNTRY_INFO!C108) -> NEW BELL | D108: =IF(COUNTRY_INFO!$U$9:$U$1000="MDA1 (IVM+ALB)", COUNTRY_INFO!$U$9:$U$1000, " ") ->  | I108: 0 | M108: 0
A109: =IF(COUNTRY_INFO!A109=0," ",COUNTRY_INFO!A109) -> Cameroon | B109: =IF(COUNTRY_INFO!B109=0," ",COUNTRY_INFO!B109) -> LITTORAL | C109: =IF(COUNTRY_INFO!C109=0," ",COUNTRY_INFO!C109) -> NGAMBE | D109: =IF(COUNTRY_INFO!$U$9:$U$1000="MDA1 (IVM+ALB)", COUNTRY_INFO!$U$9:$U$1000, " ") ->  | I109: 0 | M109: 0
A110: =IF(COUNTRY_INFO!A110=0," ",COUNTRY_INFO!A110) -> Cameroon | B110: =IF(COUNTRY_INFO!B110=0," ",COUNTRY_INFO!B110) -> LITTORAL | C110: =IF(COUNTRY_INFO!C110=0," ",COUNTRY_INFO!C110) -> NJOMBE PENJA | D110: =IF(COUNTRY_INFO!$U$9:$U$1000="MDA1 (IVM+ALB)", COUNTRY_INFO!$U$9:$U$1000, " ") ->  | I110: 0 | M110: 0
A111: =IF(COUNTRY_INFO!A111=0," ",COUNTRY_INFO!A111) -> Cameroon | B111: =IF(COUNTRY_INFO!B111=0," ",COUNTRY_INFO!B111) -> LITTORAL | C111: =IF(COUNTRY_INFO!C111=0," ",COUNTRY_INFO!C111) -> NKONDJOCK | D111: =IF(COUNTRY_INFO!$U$9:$U$1000="MDA1 (IVM+ALB)", COUNTRY_INFO!$U$9:$U$1000, " ") ->  | I111: 0 | M111: 0
A112: =IF(COUNTRY_INFO!A112=0," ",COUNTRY_INFO!A112) -> Cameroon | B112: =IF(COUNTRY_INFO!B112=0," ",COUNTRY_INFO!B112) -> LITTORAL | C112: =IF(COUNTRY_INFO!C112=0," ",COUNTRY_INFO!C112) -> NKONGSAMBA | D112: =IF(COUNTRY_INFO!$U$9:$U$1000="MDA1 (IVM+ALB)", COUNTRY_INFO!$U$9:$U$1000, " ") ->  | I112: 0 | M112: 0
A113: =IF(COUNTRY_INFO!A113=0," ",COUNTRY_INFO!A113) -> Cameroon | B113: =IF(COUNTRY_INFO!B113=0," ",COUNTRY_INFO!B113) -> LITTORAL | C113: =IF(COUNTRY_INFO!C113=0," ",COUNTRY_INFO!C113) -> NYLON | D113: =IF(COUNTRY_INFO!$U$9:$U$1000="MDA1 (IVM+ALB)", COUNTRY_INFO!$U$9:$U$1000, " ") ->  | I113: 0 | M113: 0
A114: =IF(COUNTRY_INFO!A114=0," ",COUNTRY_INFO!A114) -> Cameroon | B114: =IF(COUNTRY_INFO!B114=0," ",COUNTRY_INFO!B114) -> LITTORAL | C114: =IF(COUNTRY_INFO!C114=0," ",COUNTRY_INFO!C114) -> POUMA | D114: =IF(COUNTRY_INFO!$U$9:$U$1000="MDA1 (IVM+ALB)", COUNTRY_INFO!$U$9:$U$1000, " ") ->  | I114: 0 | M114: 0
A115: =IF(COUNTRY_INFO!A115=0," ",COUNTRY_INFO!A115) -> Cameroon | B115: =IF(COUNTRY_INFO!B115=0," ",COUNTRY_INFO!B115) -> LITTORAL | C115: =IF(COUNTRY_INFO!C115=0," ",COUNTRY_INFO!C115) -> YABASSI | D115: =IF(COUNTRY_INFO!$U$9:$U$1000="MDA1 (IVM+ALB)", COUNTRY_INFO!$U$9:$U$1000, " ") ->  | I115: 0 | M115: 0
A116: =IF(COUNTRY_INFO!A116=0," ",COUNTRY_INFO!A116) -> Cameroon | B116: =IF(COUNTRY_INFO!B116=0," ",COUNTRY_INFO!B116) -> NORTH | C116: =IF(COUNTRY_INFO!C116=0," ",COUNTRY_INFO!C116) -> BIBEMI | D116: =IF(COUNTRY_INFO!$U$9:$U$1000="MDA1 (IVM+ALB)", COUNTRY_INFO!$U$9:$U$1000, " ") ->  | I116: 0 | M116: 0
A117: =IF(COUNTRY_INFO!A117=0," ",COUNTRY_INFO!A117) -> Cameroon | B117: =IF(COUNTRY_INFO!B117=0," ",COUNTRY_INFO!B117) -> NORTH | C117: =IF(COUNTRY_INFO!C117=0," ",COUNTRY_INFO!C117) -> FIGUIL | D117: =IF(COUNTRY_INFO!$U$9:$U$1000="MDA1 (IVM+ALB)", COUNTRY_INFO!$U$9:$U$1000, " ") ->  | I117: 0 | M117: 0
A118: =IF(COUNTRY_INFO!A118=0," ",COUNTRY_INFO!A118) -> Cameroon | B118: =IF(COUNTRY_INFO!B118=0," ",COUNTRY_INFO!B118) -> NORTH | C118: =IF(COUNTRY_INFO!C118=0," ",COUNTRY_INFO!C118) -> GAROUA I | D118: =IF(COUNTRY_INFO!$U$9:$U$1000="MDA1 (IVM+ALB)", COUNTRY_INFO!$U$9:$U$1000, " ") ->  | I118: 0 | M118: 0
A119: =IF(COUNTRY_INFO!A119=0," ",COUNTRY_INFO!A119) -> Cameroon | B119: =IF(COUNTRY_INFO!B119=0," ",COUNTRY_INFO!B119) -> NORTH | C119: =IF(COUNTRY_INFO!C119=0," ",COUNTRY_INFO!C119) -> GAROUA II | D119: =IF(COUNTRY_INFO!$U$9:$U$1000="MDA1 (IVM+ALB)", COUNTRY_INFO!$U$9:$U$1000, " ") ->  | I119: 0 | M119: 0
A120: =IF(COUNTRY_INFO!A120=0," ",COUNTRY_INFO!A120) -> Cameroon | B120: =IF(COUNTRY_INFO!B120=0," ",COUNTRY_INFO!B120) -> NORTH | C120: =IF(COUNTRY_INFO!C120=0," ",COUNTRY_INFO!C120) -> GASCHIGA | D120: =IF(COUNTRY_INFO!$U$9:$U$1000="MDA1 (IVM+ALB)", COUNTRY_INFO!$U$9:$U$1000, " ") ->  | I120: 0 | M120: 0
A121: =IF(COUNTRY_INFO!A121=0," ",COUNTRY_INFO!A121) -> Cameroon | B121: =IF(COUNTRY_INFO!B121=0," ",COUNTRY_INFO!B121) -> NORTH | C121: =IF(COUNTRY_INFO!C121=0," ",COUNTRY_INFO!C121) -> GOLOMBE | D121: =IF(COUNTRY_INFO!$U$9:$U$1000="MDA1 (IVM+ALB)", COUNTRY_INFO!$U$9:$U$1000, " ") ->  | I121: 0 | M121: 0
A122: =IF(COUNTRY_INFO!A122=0," ",COUNTRY_INFO!A122) -> Cameroon | B122: =IF(COUNTRY_INFO!B122=0," ",COUNTRY_INFO!B122) -> NORTH | C122: =IF(COUNTRY_INFO!C122=0," ",COUNTRY_INFO!C122) -> GUIDER | D122: =IF(COUNTRY_INFO!$U$9:$U$1000="MDA1 (IVM+ALB)", COUNTRY_INFO!$U$9:$U$1000, " ") ->  | I122: 0 | M122: 0
A123: =IF(COUNTRY_INFO!A123=0," ",COUNTRY_INFO!A123) -> Cameroon | B123: =IF(COUNTRY_INFO!B123=0," ",COUNTRY_INFO!B123) -> NORTH | C123: =IF(COUNTRY_INFO!C123=0," ",COUNTRY_INFO!C123) -> LAGDO | D123: =IF(COUNTRY_INFO!$U$9:$U$1000="MDA1 (IVM+ALB)", COUNTRY_INFO!$U$9:$U$1000, " ") ->  | I123: 0 | M123: 0
A124: =IF(COUNTRY_INFO!A124=0," ",COUNTRY_INFO!A124) -> Cameroon | B124: =IF(COUNTRY_INFO!B124=0," ",COUNTRY_INFO!B124) -> NORTH | C124: =IF(COUNTRY_INFO!C124=0," ",COUNTRY_INFO!C124) -> MAYO OULO | D124: =IF(COUNTRY_INFO!$U$9:$U$1000="MDA1 (IVM+ALB)", COUNTRY_INFO!$U$9:$U$1000, " ") ->  | I124: 0 | M124: 0
A125: =IF(COUNTRY_INFO!A125=0," ",COUNTRY_INFO!A125) -> Cameroon | B125: =IF(COUNTRY_INFO!B125=0," ",COUNTRY_INFO!B125) -> NORTH | C125: =IF(COUNTRY_INFO!C125=0," ",COUNTRY_INFO!C125) -> NGONG | D125: =IF(COUNTRY_INFO!$U$9:$U$1000="MDA1 (IVM+ALB)", COUNTRY_INFO!$U$9:$U$1000, " ") ->  | I125: 0 | M125: 0
A126: =IF(COUNTRY_INFO!A126=0," ",COUNTRY_INFO!A126) -> Cameroon | B126: =IF(COUNTRY_INFO!B126=0," ",COUNTRY_INFO!B126) -> NORTH | C126: =IF(COUNTRY_INFO!C126=0," ",COUNTRY_INFO!C126) -> PITOA | D126: =IF(COUNTRY_INFO!$U$9:$U$1000="MDA1 (IVM+ALB)", COUNTRY_INFO!$U$9:$U$1000, " ") ->  | I126: 0 | M126: 0
A127: =IF(COUNTRY_INFO!A127=0," ",COUNTRY_INFO!A127) -> Cameroon | B127: =IF(COUNTRY_INFO!B127=0," ",COUNTRY_INFO!B127) -> NORTH | C127: =IF(COUNTRY_INFO!C127=0," ",COUNTRY_INFO!C127) -> POLI | D127: =IF(COUNTRY_INFO!$U$9:$U$1000="MDA1 (IVM+ALB)", COUNTRY_INFO!$U$9:$U$1000, " ") ->  | I127: 0 | M127: 0
A128: =IF(COUNTRY_INFO!A128=0," ",COUNTRY_INFO!A128) -> Cameroon | B128: =IF(COUNTRY_INFO!B128=0," ",COUNTRY_INFO!B128) -> NORTH | C128: =IF(COUNTRY_INFO!C128=0," ",COUNTRY_INFO!C128) -> REY BOUBA | D128: =IF(COUNTRY_INFO!$U$9:$U$1000="MDA1 (IVM+ALB)", COUNTRY_INFO!$U$9:$U$1000, " ") ->  | I128: 0 | M128: 0
A129: =IF(COUNTRY_INFO!A129=0," ",COUNTRY_INFO!A129) -> Cameroon | B129: =IF(COUNTRY_INFO!B129=0," ",COUNTRY_INFO!B129) -> NORTH | C129: =IF(COUNTRY_INFO!C129=0," ",COUNTRY_INFO!C129) -> TCHOLLIRE | D129: =IF(COUNTRY_INFO!$U$9:$U$1000="MDA1 (IVM+ALB)", COUNTRY_INFO!$U$9:$U$1000, " ") ->  | I129: 0 | M129: 0
A130: =IF(COUNTRY_INFO!A130=0," ",COUNTRY_INFO!A130) -> Cameroon | B130: =IF(COUNTRY_INFO!B130=0," ",COUNTRY_INFO!B130) -> NORTH | C130: =IF(COUNTRY_INFO!C130=0," ",COUNTRY_INFO!C130) -> TOUBORO | D130: =IF(COUNTRY_INFO!$U$9:$U$1000="MDA1 (IVM+ALB)", COUNTRY_INFO!$U$9:$U$1000, " ") ->  | I130: 0 | M130: 0
A131: =IF(COUNTRY_INFO!A131=0," ",COUNTRY_INFO!A131) -> Cameroon | B131: =IF(COUNTRY_INFO!B131=0," ",COUNTRY_INFO!B131) -> NORTH-WEST | C131: =IF(COUNTRY_INFO!C131=0," ",COUNTRY_INFO!C131) -> AKO | D131: =IF(COUNTRY_INFO!$U$9:$U$1000="MDA1 (IVM+ALB)", COUNTRY_INFO!$U$9:$U$1000, " ") ->  | I131: 0 | M131: 0
A132: =IF(COUNTRY_INFO!A132=0," ",COUNTRY_INFO!A132) -> Cameroon | B132: =IF(COUNTRY_INFO!B132=0," ",COUNTRY_INFO!B132) -> NORTH-WEST | C132: =IF(COUNTRY_INFO!C132=0," ",COUNTRY_INFO!C132) -> BAFUT | D132: =IF(COUNTRY_INFO!$U$9:$U$1000="MDA1 (IVM+ALB)", COUNTRY_INFO!$U$9:$U$1000, " ") ->  | I132: 0 | M132: 0
A133: =IF(COUNTRY_INFO!A133=0," ",COUNTRY_INFO!A133) -> Cameroon | B133: =IF(COUNTRY_INFO!B133=0," ",COUNTRY_INFO!B133) -> NORTH-WEST | C133: =IF(COUNTRY_INFO!C133=0," ",COUNTRY_INFO!C133) -> BALI | D133: =IF(COUNTRY_INFO!$U$9:$U$1000="MDA1 (IVM+ALB)", COUNTRY_INFO!$U$9:$U$1000, " ") ->  | I133: 0 | M133: 0
A134: =IF(COUNTRY_INFO!A134=0," ",COUNTRY_INFO!A134) -> Cameroon | B134: =IF(COUNTRY_INFO!B134=0," ",COUNTRY_INFO!B134) -> NORTH-WEST | C134: =IF(COUNTRY_INFO!C134=0," ",COUNTRY_INFO!C134) -> BAMENDA | D134: =IF(COUNTRY_INFO!$U$9:$U$1000="MDA1 (IVM+ALB)", COUNTRY_INFO!$U$9:$U$1000, " ") ->  | I134: 0 | M134: 0
A135: =IF(COUNTRY_INFO!A135=0," ",COUNTRY_INFO!A135) -> Cameroon | B135: =IF(COUNTRY_INFO!B135=0," ",COUNTRY_INFO!B135) -> NORTH-WEST | C135: =IF(COUNTRY_INFO!C135=0," ",COUNTRY_INFO!C135) -> BATIBO | D135: =IF(COUNTRY_INFO!$U$9:$U$1000="MDA1 (IVM+ALB)", COUNTRY_INFO!$U$9:$U$1000, " ") ->  | I135: 0 | M135: 0
A136: =IF(COUNTRY_INFO!A136=0," ",COUNTRY_INFO!A136) -> Cameroon | B136: =IF(COUNTRY_INFO!B136=0," ",COUNTRY_INFO!B136) -> NORTH-WEST | C136: =IF(COUNTRY_INFO!C136=0," ",COUNTRY_INFO!C136) -> BENAKUMA | D136: =IF(COUNTRY_INFO!$U$9:$U$1000="MDA1 (IVM+ALB)", COUNTRY_INFO!$U$9:$U$1000, " ") ->  | I136: 0 | M136: 0
A137: =IF(COUNTRY_INFO!A137=0," ",COUNTRY_INFO!A137) -> Cameroon | B137: =IF(COUNTRY_INFO!B137=0," ",COUNTRY_INFO!B137) -> NORTH-WEST | C137: =IF(COUNTRY_INFO!C137=0," ",COUNTRY_INFO!C137) -> FUNDONG | D137: =IF(COUNTRY_INFO!$U$9:$U$1000="MDA1 (IVM+ALB)", COUNTRY_INFO!$U$9:$U$1000, " ") ->  | I137: 0 | M137: 0
A138: =IF(COUNTRY_INFO!A138=0," ",COUNTRY_INFO!A138) -> Cameroon | B138: =IF(COUNTRY_INFO!B138=0," ",COUNTRY_INFO!B138) -> NORTH-WEST | C138: =IF(COUNTRY_INFO!C138=0," ",COUNTRY_INFO!C138) -> KUMBO EAST | D138: =IF(COUNTRY_INFO!$U$9:$U$1000="MDA1 (IVM+ALB)", COUNTRY_INFO!$U$9:$U$1000, " ") ->  | I138: =SUM(F138:H138) -> 0 | M138: =SUM(J138:L138) -> 0 | O138: =IF(G138<>0, IF(K138/G138*100=0, "-", K138/G138*100), " ") ->  | P138: =IF(H138<>0, IF(L138/H138*100=0, "-", L138/H138*100), " ") ->  | Q138: =IF(I138<>0, IF(M138/I138*100=0, "-", M138/I138*100), " ") -> 
A139: =IF(COUNTRY_INFO!A139=0," ",COUNTRY_INFO!A139) -> Cameroon | B139: =IF(COUNTRY_INFO!B139=0," ",COUNTRY_INFO!B139) -> NORTH-WEST | C139: =IF(COUNTRY_INFO!C139=0," ",COUNTRY_INFO!C139) -> KUMBO WEST | D139: =IF(COUNTRY_INFO!$U$9:$U$1000="MDA1 (IVM+ALB)", COUNTRY_INFO!$U$9:$U$1000, " ") ->  | I139: 0 | M139: 0
A140: =IF(COUNTRY_INFO!A140=0," ",COUNTRY_INFO!A140) -> Cameroon | B140: =IF(COUNTRY_INFO!B140=0," ",COUNTRY_INFO!B140) -> NORTH-WEST | C140: =IF(COUNTRY_INFO!C140=0," ",COUNTRY_INFO!C140) -> MBENGWI | D140: =IF(COUNTRY_INFO!$U$9:$U$1000="MDA1 (IVM+ALB)", COUNTRY_INFO!$U$9:$U$1000, " ") ->  | I140: 0 | M140: 0
A141: =IF(COUNTRY_INFO!A141=0," ",COUNTRY_INFO!A141) -> Cameroon | B141: =IF(COUNTRY_INFO!B141=0," ",COUNTRY_INFO!B141) -> NORTH-WEST | C141: =IF(COUNTRY_INFO!C141=0," ",COUNTRY_INFO!C141) -> NDOP | D141: =IF(COUNTRY_INFO!$U$9:$U$1000="MDA1 (IVM+ALB)", COUNTRY_INFO!$U$9:$U$1000, " ") ->  | I141: 0 | M141: 0
A142: =IF(COUNTRY_INFO!A142=0," ",COUNTRY_INFO!A142) -> Cameroon | B142: =IF(COUNTRY_INFO!B142=0," ",COUNTRY_INFO!B142) -> NORTH-WEST | C142: =IF(COUNTRY_INFO!C142=0," ",COUNTRY_INFO!C142) -> NDU | D142: =IF(COUNTRY_INFO!$U$9:$U$1000="MDA1 (IVM+ALB)", COUNTRY_INFO!$U$9:$U$1000, " ") ->  | I142: 0 | M142: 0
A143: =IF(COUNTRY_INFO!A143=0," ",COUNTRY_INFO!A143) -> Cameroon | B143: =IF(COUNTRY_INFO!B143=0," ",COUNTRY_INFO!B143) -> NORTH-WEST | C143: =IF(COUNTRY_INFO!C143=0," ",COUNTRY_INFO!C143) -> NJIKWA | D143: =IF(COUNTRY_INFO!$U$9:$U$1000="MDA1 (IVM+ALB)", COUNTRY_INFO!$U$9:$U$1000, " ") ->  | I143: 0 | M143: 0
A144: =IF(COUNTRY_INFO!A144=0," ",COUNTRY_INFO!A144) -> Cameroon | B144: =IF(COUNTRY_INFO!B144=0," ",COUNTRY_INFO!B144) -> NORTH-WEST | C144: =IF(COUNTRY_INFO!C144=0," ",COUNTRY_INFO!C144) -> NKAMBE | D144: =IF(COUNTRY_INFO!$U$9:$U$1000="MDA1 (IVM+ALB)", COUNTRY_INFO!$U$9:$U$1000, " ") ->  | I144: 0 | M144: 0
A145: =IF(COUNTRY_INFO!A145=0," ",COUNTRY_INFO!A145) -> Cameroon | B145: =IF(COUNTRY_INFO!B145=0," ",COUNTRY_INFO!B145) -> NORTH-WEST | C145: =IF(COUNTRY_INFO!C145=0," ",COUNTRY_INFO!C145) -> NWA | D145: =IF(COUNTRY_INFO!$U$9:$U$1000="MDA1 (IVM+ALB)", COUNTRY_INFO!$U$9:$U$1000, " ") ->  | I145: 0 | M145: 0
A146: =IF(COUNTRY_INFO!A146=0," ",COUNTRY_INFO!A146) -> Cameroon | B146: =IF(COUNTRY_INFO!B146=0," ",COUNTRY_INFO!B146) -> NORTH-WEST | C146: =IF(COUNTRY_INFO!C146=0," ",COUNTRY_INFO!C146) -> OKU | D146: =IF(COUNTRY_INFO!$U$9:$U$1000="MDA1 (IVM+ALB)", COUNTRY_INFO!$U$9:$U$1000, " ") ->  | I146: 0 | M146: 0
A147: =IF(COUNTRY_INFO!A147=0," ",COUNTRY_INFO!A147) -> Cameroon | B147: =IF(COUNTRY_INFO!B147=0," ",COUNTRY_INFO!B147) -> NORTH-WEST | C147: =IF(COUNTRY_INFO!C147=0," ",COUNTRY_INFO!C147) -> SANTA | D147: =IF(COUNTRY_INFO!$U$9:$U$1000="MDA1 (IVM+ALB)", COUNTRY_INFO!$U$9:$U$1000, " ") ->  | I147: 0 | M147: 0
A148: =IF(COUNTRY_INFO!A148=0," ",COUNTRY_INFO!A148) -> Cameroon | B148: =IF(COUNTRY_INFO!B148=0," ",COUNTRY_INFO!B148) -> NORTH-WEST | C148: =IF(COUNTRY_INFO!C148=0," ",COUNTRY_INFO!C148) -> TUBAH | D148: =IF(COUNTRY_INFO!$U$9:$U$1000="MDA1 (IVM+ALB)", COUNTRY_INFO!$U$9:$U$1000, " ") ->  | I148: 0 | M148: 0
A149: =IF(COUNTRY_INFO!A149=0," ",COUNTRY_INFO!A149) -> Cameroon | B149: =IF(COUNTRY_INFO!B149=0," ",COUNTRY_INFO!B149) -> NORTH-WEST | C149: =IF(COUNTRY_INFO!C149=0," ",COUNTRY_INFO!C149) -> WUM | D149: =IF(COUNTRY_INFO!$U$9:$U$1000="MDA1 (IVM+ALB)", COUNTRY_INFO!$U$9:$U$1000, " ") ->  | I149: 0 | M149: 0
A150: =IF(COUNTRY_INFO!A150=0," ",COUNTRY_INFO!A150) -> Cameroon | B150: =IF(COUNTRY_INFO!B150=0," ",COUNTRY_INFO!B150) -> WEST | C150: =IF(COUNTRY_INFO!C150=0," ",COUNTRY_INFO!C150) -> BAFANG | D150: =IF(COUNTRY_INFO!$U$9:$U$1000="MDA1 (IVM+ALB)", COUNTRY_INFO!$U$9:$U$1000, " ") ->  | I150: 0 | M150: 0
A151: =IF(COUNTRY_INFO!A151=0," ",COUNTRY_INFO!A151) -> Cameroon | B151: =IF(COUNTRY_INFO!B151=0," ",COUNTRY_INFO!B151) -> WEST | C151: =IF(COUNTRY_INFO!C151=0," ",COUNTRY_INFO!C151) -> BAHAM | D151: =IF(COUNTRY_INFO!$U$9:$U$1000="MDA1 (IVM+ALB)", COUNTRY_INFO!$U$9:$U$1000, " ") ->  | I151: 0 | M151: 0
A152: =IF(COUNTRY_INFO!A152=0," ",COUNTRY_INFO!A152) -> Cameroon | B152: =IF(COUNTRY_INFO!B152=0," ",COUNTRY_INFO!B152) -> WEST | C152: =IF(COUNTRY_INFO!C152=0," ",COUNTRY_INFO!C152) -> BAMENDJOU | D152: =IF(COUNTRY_INFO!$U$9:$U$1000="MDA1 (IVM+ALB)", COUNTRY_INFO!$U$9:$U$1000, " ") ->  | I152: 0 | M152: 0
A153: =IF(COUNTRY_INFO!A153=0," ",COUNTRY_INFO!A153) -> Cameroon | B153: =IF(COUNTRY_INFO!B153=0," ",COUNTRY_INFO!B153) -> WEST | C153: =IF(COUNTRY_INFO!C153=0," ",COUNTRY_INFO!C153) -> BANDJA | D153: =IF(COUNTRY_INFO!$U$9:$U$1000="MDA1 (IVM+ALB)", COUNTRY_INFO!$U$9:$U$1000, " ") ->  | I153: 0 | M153: 0
A154: =IF(COUNTRY_INFO!A154=0," ",COUNTRY_INFO!A154) -> Cameroon | B154: =IF(COUNTRY_INFO!B154=0," ",COUNTRY_INFO!B154) -> WEST | C154: =IF(COUNTRY_INFO!C154=0," ",COUNTRY_INFO!C154) -> BANDJOUN | D154: =IF(COUNTRY_INFO!$U$9:$U$1000="MDA1 (IVM+ALB)", COUNTRY_INFO!$U$9:$U$1000, " ") ->  | I154: 0 | M154: 0
A155: =IF(COUNTRY_INFO!A155=0," ",COUNTRY_INFO!A155) -> Cameroon | B155: =IF(COUNTRY_INFO!B155=0," ",COUNTRY_INFO!B155) -> WEST | C155: =IF(COUNTRY_INFO!C155=0," ",COUNTRY_INFO!C155) -> BANGANGTE | D155: =IF(COUNTRY_INFO!$U$9:$U$1000="MDA1 (IVM+ALB)", COUNTRY_INFO!$U$9:$U$1000, " ") ->  | I155: 0 | M155: 0
A156: =IF(COUNTRY_INFO!A156=0," ",COUNTRY_INFO!A156) -> Cameroon | B156: =IF(COUNTRY_INFO!B156=0," ",COUNTRY_INFO!B156) -> WEST | C156: =IF(COUNTRY_INFO!C156=0," ",COUNTRY_INFO!C156) -> BANGOURAIN | D156: =IF(COUNTRY_INFO!$U$9:$U$1000="MDA1 (IVM+ALB)", COUNTRY_INFO!$U$9:$U$1000, " ") ->  | I156: 0 | M156: 0
A157: =IF(COUNTRY_INFO!A157=0," ",COUNTRY_INFO!A157) -> Cameroon | B157: =IF(COUNTRY_INFO!B157=0," ",COUNTRY_INFO!B157) -> WEST | C157: =IF(COUNTRY_INFO!C157=0," ",COUNTRY_INFO!C157) -> BATCHAM | D157: =IF(COUNTRY_INFO!$U$9:$U$1000="MDA1 (IVM+ALB)", COUNTRY_INFO!$U$9:$U$1000, " ") ->  | I157: 0 | M157: 0
A158: =IF(COUNTRY_INFO!A158=0," ",COUNTRY_INFO!A158) -> Cameroon | B158: =IF(COUNTRY_INFO!B158=0," ",COUNTRY_INFO!B158) -> WEST | C158: =IF(COUNTRY_INFO!C158=0," ",COUNTRY_INFO!C158) -> DSCHANG | D158: =IF(COUNTRY_INFO!$U$9:$U$1000="MDA1 (IVM+ALB)", COUNTRY_INFO!$U$9:$U$1000, " ") ->  | I158: 0 | M158: 0
A159: =IF(COUNTRY_INFO!A159=0," ",COUNTRY_INFO!A159) -> Cameroon | B159: =IF(COUNTRY_INFO!B159=0," ",COUNTRY_INFO!B159) -> WEST | C159: =IF(COUNTRY_INFO!C159=0," ",COUNTRY_INFO!C159) -> FOUMBAN | D159: =IF(COUNTRY_INFO!$U$9:$U$1000="MDA1 (IVM+ALB)", COUNTRY_INFO!$U$9:$U$1000, " ") ->  | I159: 0 | M159: 0
A160: =IF(COUNTRY_INFO!A160=0," ",COUNTRY_INFO!A160) -> Cameroon | B160: =IF(COUNTRY_INFO!B160=0," ",COUNTRY_INFO!B160) -> WEST | C160: =IF(COUNTRY_INFO!C160=0," ",COUNTRY_INFO!C160) -> FOUMBOT | D160: =IF(COUNTRY_INFO!$U$9:$U$1000="MDA1 (IVM+ALB)", COUNTRY_INFO!$U$9:$U$1000, " ") ->  | I160: 0 | M160: 0
A161: =IF(COUNTRY_INFO!A161=0," ",COUNTRY_INFO!A161) -> Cameroon | B161: =IF(COUNTRY_INFO!B161=0," ",COUNTRY_INFO!B161) -> WEST | C161: =IF(COUNTRY_INFO!C161=0," ",COUNTRY_INFO!C161) -> GALIM | D161: =IF(COUNTRY_INFO!$U$9:$U$1000="MDA1 (IVM+ALB)", COUNTRY_INFO!$U$9:$U$1000, " ") ->  | I161: 0 | M161: 0
A162: =IF(COUNTRY_INFO!A162=0," ",COUNTRY_INFO!A162) -> Cameroon | B162: =IF(COUNTRY_INFO!B162=0," ",COUNTRY_INFO!B162) -> WEST | C162: =IF(COUNTRY_INFO!C162=0," ",COUNTRY_INFO!C162) -> KEKEM | D162: =IF(COUNTRY_INFO!$U$9:$U$1000="MDA1 (IVM+ALB)", COUNTRY_INFO!$U$9:$U$1000, " ") ->  | I162: 0 | M162: 0
A163: =IF(COUNTRY_INFO!A163=0," ",COUNTRY_INFO!A163) -> Cameroon | B163: =IF(COUNTRY_INFO!B163=0," ",COUNTRY_INFO!B163) -> WEST | C163: =IF(COUNTRY_INFO!C163=0," ",COUNTRY_INFO!C163) -> KOUOPTAMO | D163: =IF(COUNTRY_INFO!$U$9:$U$1000="MDA1 (IVM+ALB)", COUNTRY_INFO!$U$9:$U$1000, " ") ->  | I163: 0 | M163: 0
A164: =IF(COUNTRY_INFO!A164=0," ",COUNTRY_INFO!A164) -> Cameroon | B164: =IF(COUNTRY_INFO!B164=0," ",COUNTRY_INFO!B164) -> WEST | C164: =IF(COUNTRY_INFO!C164=0," ",COUNTRY_INFO!C164) -> MALENTOUEN | D164: =IF(COUNTRY_INFO!$U$9:$U$1000="MDA1 (IVM+ALB)", COUNTRY_INFO!$U$9:$U$1000, " ") ->  | I164: 0 | M164: 0
A165: =IF(COUNTRY_INFO!A165=0," ",COUNTRY_INFO!A165) -> Cameroon | B165: =IF(COUNTRY_INFO!B165=0," ",COUNTRY_INFO!B165) -> WEST | C165: =IF(COUNTRY_INFO!C165=0," ",COUNTRY_INFO!C165) -> MASSANGAM | D165: =IF(COUNTRY_INFO!$U$9:$U$1000="MDA1 (IVM+ALB)", COUNTRY_INFO!$U$9:$U$1000, " ") ->  | I165: 0 | M165: 0
A166: =IF(COUNTRY_INFO!A166=0," ",COUNTRY_INFO!A166) -> Cameroon | B166: =IF(COUNTRY_INFO!B166=0," ",COUNTRY_INFO!B166) -> WEST | C166: =IF(COUNTRY_INFO!C166=0," ",COUNTRY_INFO!C166) -> MBOUDA | D166: =IF(COUNTRY_INFO!$U$9:$U$1000="MDA1 (IVM+ALB)", COUNTRY_INFO!$U$9:$U$1000, " ") ->  | I166: 0 | M166: 0
A167: =IF(COUNTRY_INFO!A167=0," ",COUNTRY_INFO!A167) -> Cameroon | B167: =IF(COUNTRY_INFO!B167=0," ",COUNTRY_INFO!B167) -> WEST | C167: =IF(COUNTRY_INFO!C167=0," ",COUNTRY_INFO!C167) -> MIFI | D167: =IF(COUNTRY_INFO!$U$9:$U$1000="MDA1 (IVM+ALB)", COUNTRY_INFO!$U$9:$U$1000, " ") ->  | I167: 0 | M167: 0
A168: =IF(COUNTRY_INFO!A168=0," ",COUNTRY_INFO!A168) -> Cameroon | B168: =IF(COUNTRY_INFO!B168=0," ",COUNTRY_INFO!B168) -> WEST | C168: =IF(COUNTRY_INFO!C168=0," ",COUNTRY_INFO!C168) -> PENKA MICHEL | D168: =IF(COUNTRY_INFO!$U$9:$U$1000="MDA1 (IVM+ALB)", COUNTRY_INFO!$U$9:$U$1000, " ") ->  | I168: 0 | M168: 0
A169: =IF(COUNTRY_INFO!A169=0," ",COUNTRY_INFO!A169) -> Cameroon | B169: =IF(COUNTRY_INFO!B169=0," ",COUNTRY_INFO!B169) -> WEST | C169: =IF(COUNTRY_INFO!C169=0," ",COUNTRY_INFO!C169) -> SANTCHOU | D169: =IF(COUNTRY_INFO!$U$9:$U$1000="MDA1 (IVM+ALB)", COUNTRY_INFO!$U$9:$U$1000, " ") ->  | I169: 0 | M169: 0
A170: =IF(COUNTRY_INFO!A170=0," ",COUNTRY_INFO!A170) -> Cameroon | B170: =IF(COUNTRY_INFO!B170=0," ",COUNTRY_INFO!B170) -> SOUTH | C170: =IF(COUNTRY_INFO!C170=0," ",COUNTRY_INFO!C170) -> AMBAM | D170: =IF(COUNTRY_INFO!$U$9:$U$1000="MDA1 (IVM+ALB)", COUNTRY_INFO!$U$9:$U$1000, " ") -> MDA1 (IVM+ALB) | E170: Avril 2018 | G170: 24931 | H170: 52663 | I170: 77594 | K170: 22060.11191 | L170: 46598.88809 | M170: 68659 | O170: 88.48466533 | P170: 88.48506178 | Q170: 88.4849344
A171: =IF(COUNTRY_INFO!A171=0," ",COUNTRY_INFO!A171) -> Cameroon | B171: =IF(COUNTRY_INFO!B171=0," ",COUNTRY_INFO!B171) -> SOUTH | C171: =IF(COUNTRY_INFO!C171=0," ",COUNTRY_INFO!C171) -> DJOUM | D171: =IF(COUNTRY_INFO!$U$9:$U$1000="MDA1 (IVM+ALB)", COUNTRY_INFO!$U$9:$U$1000, " ") -> MDA1 (IVM+ALB) | E171: Avril 2018 | G171: 11375 | H171: 24029 | I171: 35404 | K171: 11029.89531 | L171: 23299.10469 | M171: 34329 | O171: 96.96611259 | P171: 96.96243994 | Q171: 96.96361993
A172: =IF(COUNTRY_INFO!A172=0," ",COUNTRY_INFO!A172) -> Cameroon | B172: =IF(COUNTRY_INFO!B172=0," ",COUNTRY_INFO!B172) -> SOUTH | C172: =IF(COUNTRY_INFO!C172=0," ",COUNTRY_INFO!C172) -> EBOLOWA | D172: =IF(COUNTRY_INFO!$U$9:$U$1000="MDA1 (IVM+ALB)", COUNTRY_INFO!$U$9:$U$1000, " ") ->  | I172: 0 | M172: 0
A173: =IF(COUNTRY_INFO!A173=0," ",COUNTRY_INFO!A173) -> Cameroon | B173: =IF(COUNTRY_INFO!B173=0," ",COUNTRY_INFO!B173) -> SOUTH | C173: =IF(COUNTRY_INFO!C173=0," ",COUNTRY_INFO!C173) -> KRIBI | D173: =IF(COUNTRY_INFO!$U$9:$U$1000="MDA1 (IVM+ALB)", COUNTRY_INFO!$U$9:$U$1000, " ") ->  | I173: 0 | M173: 0
A174: =IF(COUNTRY_INFO!A174=0," ",COUNTRY_INFO!A174) -> Cameroon | B174: =IF(COUNTRY_INFO!B174=0," ",COUNTRY_INFO!B174) -> SOUTH | C174: =IF(COUNTRY_INFO!C174=0," ",COUNTRY_INFO!C174) -> LOLODORF | D174: =IF(COUNTRY_INFO!$U$9:$U$1000="MDA1 (IVM+ALB)", COUNTRY_INFO!$U$9:$U$1000, " ") ->  | I174: 0 | M174: 0
A175: =IF(COUNTRY_INFO!A175=0," ",COUNTRY_INFO!A175) -> Cameroon | B175: =IF(COUNTRY_INFO!B175=0," ",COUNTRY_INFO!B175) -> SOUTH | C175: =IF(COUNTRY_INFO!C175=0," ",COUNTRY_INFO!C175) -> MEYOMESSALA | D175: =IF(COUNTRY_INFO!$U$9:$U$1000="MDA1 (IVM+ALB)", COUNTRY_INFO!$U$9:$U$1000, " ") -> MDA1 (IVM+ALB) | E175: Avril 2018 | G175: 15103 | H175: 31902 | I175: 47005 | K175: 15726.33213 | L175: 33219.66787 | M175: 48946 | O175: 104.1272074 | P175: 104.1303613 | Q175: 104.1293479
A176: =IF(COUNTRY_INFO!A176=0," ",COUNTRY_INFO!A176) -> Cameroon | B176: =IF(COUNTRY_INFO!B176=0," ",COUNTRY_INFO!B176) -> SOUTH | C176: =IF(COUNTRY_INFO!C176=0," ",COUNTRY_INFO!C176) -> MVANGAN | D176: =IF(COUNTRY_INFO!$U$9:$U$1000="MDA1 (IVM+ALB)", COUNTRY_INFO!$U$9:$U$1000, " ") ->  | I176: 0 | M176: 0
A177: =IF(COUNTRY_INFO!A177=0," ",COUNTRY_INFO!A177) -> Cameroon | B177: =IF(COUNTRY_INFO!B177=0," ",COUNTRY_INFO!B177) -> SOUTH | C177: =IF(COUNTRY_INFO!C177=0," ",COUNTRY_INFO!C177) -> OLAMZE | D177: =IF(COUNTRY_INFO!$U$9:$U$1000="MDA1 (IVM+ALB)", COUNTRY_INFO!$U$9:$U$1000, " ") -> MDA1 (IVM+ALB) | E177: Avril 2018 | G177: 4196 | H177: 8864 | I177: 13060 | K177: 3644.823105 | L177: 7699.176895 | M177: 11344 | O177: 86.86423033 | P177: 86.85894512 | Q177: 86.86064319
A178: =IF(COUNTRY_INFO!A178=0," ",COUNTRY_INFO!A178) -> Cameroon | B178: =IF(COUNTRY_INFO!B178=0," ",COUNTRY_INFO!B178) -> SOUTH | C178: =IF(COUNTRY_INFO!C178=0," ",COUNTRY_INFO!C178) -> SANGMELIMA | D178: =IF(COUNTRY_INFO!$U$9:$U$1000="MDA1 (IVM+ALB)", COUNTRY_INFO!$U$9:$U$1000, " ") -> MDA1 (IVM+ALB) | E178: Avril 2018 | G178: 27142 | H178: 57334 | I178: 84476 | K178: 28171.55235 | L178: 59508.44765 | M178: 87680 | O178: 103.7932074 | P178: 103.7925972 | Q178: 103.7927932
A179: =IF(COUNTRY_INFO!A179=0," ",COUNTRY_INFO!A179) -> Cameroon | B179: =IF(COUNTRY_INFO!B179=0," ",COUNTRY_INFO!B179) -> SOUTH | C179: =IF(COUNTRY_INFO!C179=0," ",COUNTRY_INFO!C179) -> ZOETELE | D179: =IF(COUNTRY_INFO!$U$9:$U$1000="MDA1 (IVM+ALB)", COUNTRY_INFO!$U$9:$U$1000, " ") -> MDA1 (IVM+ALB) | E179: Avril 2018 | G179: 11728 | H179: 24774 | I179: 36502 | K179: 11863.34657 | L179: 25059.65343 | M179: 36923 | O179: 101.1540465 | P179: 101.1530372 | Q179: 101.1533615
A180: =IF(COUNTRY_INFO!A180=0," ",COUNTRY_INFO!A180) -> Cameroon | B180: =IF(COUNTRY_INFO!B180=0," ",COUNTRY_INFO!B180) -> SOUTH-WEST | C180: =IF(COUNTRY_INFO!C180=0," ",COUNTRY_INFO!C180) -> AKWAYA | D180: =IF(COUNTRY_INFO!$U$9:$U$1000="MDA1 (IVM+ALB)", COUNTRY_INFO!$U$9:$U$1000, " ") -> MDA1 (IVM+ALB) | E180: Avril 2018 | G180: 15220 | H180: 32151 | I180: 47371 | K180: 4912.350181 | L180: 10376.64982 | M180: 15289 | O180: 32.27562536 | P180: 32.27473428 | Q180: 32.27502058
A181: =IF(COUNTRY_INFO!A181=0," ",COUNTRY_INFO!A181) -> Cameroon | B181: =IF(COUNTRY_INFO!B181=0," ",COUNTRY_INFO!B181) -> SOUTH-WEST | C181: =IF(COUNTRY_INFO!C181=0," ",COUNTRY_INFO!C181) -> BAKASSI | D181: =IF(COUNTRY_INFO!$U$9:$U$1000="MDA1 (IVM+ALB)", COUNTRY_INFO!$U$9:$U$1000, " ") ->  | I181: 0 | M181: 0
A182: =IF(COUNTRY_INFO!A182=0," ",COUNTRY_INFO!A182) -> Cameroon | B182: =IF(COUNTRY_INFO!B182=0," ",COUNTRY_INFO!B182) -> SOUTH-WEST | C182: =IF(COUNTRY_INFO!C182=0," ",COUNTRY_INFO!C182) -> BANGEM | D182: =IF(COUNTRY_INFO!$U$9:$U$1000="MDA1 (IVM+ALB)", COUNTRY_INFO!$U$9:$U$1000, " ") ->  | I182: 0 | M182: 0
A183: =IF(COUNTRY_INFO!A183=0," ",COUNTRY_INFO!A183) -> Cameroon | B183: =IF(COUNTRY_INFO!B183=0," ",COUNTRY_INFO!B183) -> SOUTH-WEST | C183: =IF(COUNTRY_INFO!C183=0," ",COUNTRY_INFO!C183) -> BUEA | D183: =IF(COUNTRY_INFO!$U$9:$U$1000="MDA1 (IVM+ALB)", COUNTRY_INFO!$U$9:$U$1000, " ") ->  | I183: 0 | M183: 0
A184: =IF(COUNTRY_INFO!A184=0," ",COUNTRY_INFO!A184) -> Cameroon | B184: =IF(COUNTRY_INFO!B184=0," ",COUNTRY_INFO!B184) -> SOUTH-WEST | C184: =IF(COUNTRY_INFO!C184=0," ",COUNTRY_INFO!C184) -> EKONDO TITI | D184: =IF(COUNTRY_INFO!$U$9:$U$1000="MDA1 (IVM+ALB)", COUNTRY_INFO!$U$9:$U$1000, " ") ->  | I184: 0 | M184: 0
A185: =IF(COUNTRY_INFO!A185=0," ",COUNTRY_INFO!A185) -> Cameroon | B185: =IF(COUNTRY_INFO!B185=0," ",COUNTRY_INFO!B185) -> SOUTH-WEST | C185: =IF(COUNTRY_INFO!C185=0," ",COUNTRY_INFO!C185) -> EYUMODJOCK | D185: =IF(COUNTRY_INFO!$U$9:$U$1000="MDA1 (IVM+ALB)", COUNTRY_INFO!$U$9:$U$1000, " ") ->  | I185: 0 | M185: 0
A186: =IF(COUNTRY_INFO!A186=0," ",COUNTRY_INFO!A186) -> Cameroon | B186: =IF(COUNTRY_INFO!B186=0," ",COUNTRY_INFO!B186) -> SOUTH-WEST | C186: =IF(COUNTRY_INFO!C186=0," ",COUNTRY_INFO!C186) -> FONTEM | D186: =IF(COUNTRY_INFO!$U$9:$U$1000="MDA1 (IVM+ALB)", COUNTRY_INFO!$U$9:$U$1000, " ") ->  | I186: 0 | M186: 0
A187: =IF(COUNTRY_INFO!A187=0," ",COUNTRY_INFO!A187) -> Cameroon | B187: =IF(COUNTRY_INFO!B187=0," ",COUNTRY_INFO!B187) -> SOUTH-WEST | C187: =IF(COUNTRY_INFO!C187=0," ",COUNTRY_INFO!C187) -> KONYE | D187: =IF(COUNTRY_INFO!$U$9:$U$1000="MDA1 (IVM+ALB)", COUNTRY_INFO!$U$9:$U$1000, " ") ->  | I187: 0 | M187: 0
A188: =IF(COUNTRY_INFO!A188=0," ",COUNTRY_INFO!A188) -> Cameroon | B188: =IF(COUNTRY_INFO!B188=0," ",COUNTRY_INFO!B188) -> SOUTH-WEST | C188: =IF(COUNTRY_INFO!C188=0," ",COUNTRY_INFO!C188) -> KUMBA | D188: =IF(COUNTRY_INFO!$U$9:$U$1000="MDA1 (IVM+ALB)", COUNTRY_INFO!$U$9:$U$1000, " ") ->  | I188: 0 | M188: 0
A189: =IF(COUNTRY_INFO!A189=0," ",COUNTRY_INFO!A189) -> Cameroon | B189: =IF(COUNTRY_INFO!B189=0," ",COUNTRY_INFO!B189) -> SOUTH-WEST | C189: =IF(COUNTRY_INFO!C189=0," ",COUNTRY_INFO!C189) -> LIMBE | D189: =IF(COUNTRY_INFO!$U$9:$U$1000="MDA1 (IVM+ALB)", COUNTRY_INFO!$U$9:$U$1000, " ") ->  | I189: 0 | M189: 0
A190: =IF(COUNTRY_INFO!A190=0," ",COUNTRY_INFO!A190) -> Cameroon | B190: =IF(COUNTRY_INFO!B190=0," ",COUNTRY_INFO!B190) -> SOUTH-WEST | C190: =IF(COUNTRY_INFO!C190=0," ",COUNTRY_INFO!C190) -> MAMFE | D190: =IF(COUNTRY_INFO!$U$9:$U$1000="MDA1 (IVM+ALB)", COUNTRY_INFO!$U$9:$U$1000, " ") ->  | I190: 0 | M190: 0
A191: =IF(COUNTRY_INFO!A191=0," ",COUNTRY_INFO!A191) -> Cameroon | B191: =IF(COUNTRY_INFO!B191=0," ",COUNTRY_INFO!B191) -> SOUTH-WEST | C191: =IF(COUNTRY_INFO!C191=0," ",COUNTRY_INFO!C191) -> MBONGE | D191: =IF(COUNTRY_INFO!$U$9:$U$1000="MDA1 (IVM+ALB)", COUNTRY_INFO!$U$9:$U$1000, " ") ->  | I191: 0 | M191: 0
A192: =IF(COUNTRY_INFO!A192=0," ",COUNTRY_INFO!A192) -> Cameroon | B192: =IF(COUNTRY_INFO!B192=0," ",COUNTRY_INFO!B192) -> SOUTH-WEST | C192: =IF(COUNTRY_INFO!C192=0," ",COUNTRY_INFO!C192) -> MUNDEMBA | D192: =IF(COUNTRY_INFO!$U$9:$U$1000="MDA1 (IVM+ALB)", COUNTRY_INFO!$U$9:$U$1000, " ") ->  | I192: 0 | M192: 0
A193: =IF(COUNTRY_INFO!A193=0," ",COUNTRY_INFO!A193) -> Cameroon | B193: =IF(COUNTRY_INFO!B193=0," ",COUNTRY_INFO!B193) -> SOUTH-WEST | C193: =IF(COUNTRY_INFO!C193=0," ",COUNTRY_INFO!C193) -> MUYUKA | D193: =IF(COUNTRY_INFO!$U$9:$U$1000="MDA1 (IVM+ALB)", COUNTRY_INFO!$U$9:$U$1000, " ") ->  | I193: 0 | M193: 0
A194: =IF(COUNTRY_INFO!A194=0," ",COUNTRY_INFO!A194) -> Cameroon | B194: =IF(COUNTRY_INFO!B194=0," ",COUNTRY_INFO!B194) -> SOUTH-WEST | C194: =IF(COUNTRY_INFO!C194=0," ",COUNTRY_INFO!C194) -> NGUTI | D194: =IF(COUNTRY_INFO!$U$9:$U$1000="MDA1 (IVM+ALB)", COUNTRY_INFO!$U$9:$U$1000, " ") ->  | I194: 0 | M194: 0
A195: =IF(COUNTRY_INFO!A195=0," ",COUNTRY_INFO!A195) -> Cameroon | B195: =IF(COUNTRY_INFO!B195=0," ",COUNTRY_INFO!B195) -> SOUTH-WEST | C195: =IF(COUNTRY_INFO!C195=0," ",COUNTRY_INFO!C195) -> TIKO | D195: =IF(COUNTRY_INFO!$U$9:$U$1000="MDA1 (IVM+ALB)", COUNTRY_INFO!$U$9:$U$1000, " ") ->  | I195: 0 | M195: 0
A196: =IF(COUNTRY_INFO!A196=0," ",COUNTRY_INFO!A196) -> Cameroon | B196: =IF(COUNTRY_INFO!B196=0," ",COUNTRY_INFO!B196) -> SOUTH-WEST | C196: =IF(COUNTRY_INFO!C196=0," ",COUNTRY_INFO!C196) -> TOMBEL | D196: =IF(COUNTRY_INFO!$U$9:$U$1000="MDA1 (IVM+ALB)", COUNTRY_INFO!$U$9:$U$1000, " ") ->  | I196: 0 | M196: 0
A197: =IF(COUNTRY_INFO!A197=0," ",COUNTRY_INFO!A197) -> Cameroon | B197: =IF(COUNTRY_INFO!B197=0," ",COUNTRY_INFO!B197) -> SOUTH-WEST | C197: =IF(COUNTRY_INFO!C197=0," ",COUNTRY_INFO!C197) -> WABANE | D197: =IF(COUNTRY_INFO!$U$9:$U$1000="MDA1 (IVM+ALB)", COUNTRY_INFO!$U$9:$U$1000, " ") ->  | I197: 0 | M197: 0

Sheet MDA4
A1: MDA 4 - Albendazole (ALB) ou 2 x Albendazole (ALB)
A2: Structure administrative, population nécessitant une chimioprévention par groupe d'âge, population traitée par groupe d'âge et couverture
A4: TOTAL | F4: =SUM(F$9:F$1000) -> 0 | G4: =SUM(G$9:G$1000) -> 0 | H4: 0 | I4: 0 | J4: 0 | K4: 0 | L4: 0 | M4: 0 | N4: 0 | O4: 0 | P4: 0 | Q4: 0 | R4: 0 | S4: 0 | T4: 0 | U4: 0 | V4: =IF(F4<>0, IF(N4/F4*100=0, "-", N4/F4*100), " ") ->  | W4: =IF(G4<>0, IF(O4/G4*100=0, "-", O4/G4*100), " ") ->  | X4: =IF(H4<>0, IF(P4/H4*100=0, "-", P4/H4*100), " ") ->  | Y4: =IF(I4<>0, IF(Q4/I4*100=0, "-", Q4/I4*100), " ") -> 
A6: Structure administrative du pays | D6: Mise en oeuvre de la CP | E6: Date | F6: Population ciblée pour MDA 4 | J6: Population traitée - tournée 1 | N6: Population traitée - tournée 2 | R6: Population traitée | V6: Couverture du Programme (%)
A7: Pays | B7: Région/Département | C7: District | F7: EAPréS | G7: EAS | H7: Adultes | I7: Total | J7: EAPréS | K7: EAS | L7: Adultes | M7: Total | N7: EAPréS | O7: EAS | P7: Adultes | Q7: Total | R7: EAPréS | S7: EAS | T7: Adultes | U7: Total | V7: EAPréS | W7: EAS | X7: Adultes | Y7: Total
A9: =IF(COUNTRY_INFO!A9=0," ",COUNTRY_INFO!A9) -> Cameroon | B9: =IF(COUNTRY_INFO!B9=0," ",COUNTRY_INFO!B9) -> ADAMAOUA | C9: =IF(COUNTRY_INFO!C9=0," ",COUNTRY_INFO!C9) -> BANKIM | D9: =IF(COUNTRY_INFO!$U$9:$U$1000="MDA4 (ALB/2*ALB)", COUNTRY_INFO!$U$9:$U$1000, " ") ->  | I9: =SUM(F9:H9) -> 0 | M9: =SUM(J9:L9) -> 0 | Q9: =SUM(N9:P9) -> 0 | R9: =MAX(J9,N9) -> 0 | S9: =MAX(K9,O9) -> 0 | T9: =MAX(L9,P9) -> 0 | U9: =SUM(R9:T9) -> 0 | V9: =IF(F9<>0, IF(R9/F9*100=0, "-",R9/F9*100), " ") ->  | W9: =IF(G9<>0, IF(S9/G9*100=0, "-", S9/G9*100), " ") ->  | X9: =IF(H9<>0, IF(T9/H9*100=0, "-", T9/H9*100), " ") ->  | Y9: =IF(I9<>0, IF(U9/I9*100=0, "-", U9/I9*100), " ") -> 
A10: =IF(COUNTRY_INFO!A10=0," ",COUNTRY_INFO!A10) -> Cameroon | B10: =IF(COUNTRY_INFO!B10=0," ",COUNTRY_INFO!B10) -> ADAMAOUA | C10: =IF(COUNTRY_INFO!C10=0," ",COUNTRY_INFO!C10) -> BANYO | D10: =IF(COUNTRY_INFO!$U$9:$U$1000="MDA4 (ALB/2*ALB)", COUNTRY_INFO!$U$9:$U$1000, " ") ->  | I10: =SUM(F10:H10) -> 0 | M10: =SUM(J10:L10) -> 0 | Q10: =SUM(N10:P10) -> 0 | R10: 0 | S10: 0 | T10: 0 | U10: 0
A11: =IF(COUNTRY_INFO!A11=0," ",COUNTRY_INFO!A11) -> Cameroon | B11: =IF(COUNTRY_INFO!B11=0," ",COUNTRY_INFO!B11) -> ADAMAOUA | C11: =IF(COUNTRY_INFO!C11=0," ",COUNTRY_INFO!C11) -> DJOHONG | D11: =IF(COUNTRY_INFO!$U$9:$U$1000="MDA4 (ALB/2*ALB)", COUNTRY_INFO!$U$9:$U$1000, " ") ->  | I11: 0 | M11: 0 | Q11: 0 | R11: 0 | S11: 0 | T11: 0 | U11: 0
A12: =IF(COUNTRY_INFO!A12=0," ",COUNTRY_INFO!A12) -> Cameroon | B12: =IF(COUNTRY_INFO!B12=0," ",COUNTRY_INFO!B12) -> ADAMAOUA | C12: =IF(COUNTRY_INFO!C12=0," ",COUNTRY_INFO!C12) -> MEIGANGA | D12: =IF(COUNTRY_INFO!$U$9:$U$1000="MDA4 (ALB/2*ALB)", COUNTRY_INFO!$U$9:$U$1000, " ") ->  | I12: 0 | M12: 0 | Q12: 0 | R12: 0 | S12: 0 | T12: 0 | U12: 0
A13: =IF(COUNTRY_INFO!A13=0," ",COUNTRY_INFO!A13) -> Cameroon | B13: =IF(COUNTRY_INFO!B13=0," ",COUNTRY_INFO!B13) -> ADAMAOUA | C13: =IF(COUNTRY_INFO!C13=0," ",COUNTRY_INFO!C13) -> NGAOUNDAL | D13: =IF(COUNTRY_INFO!$U$9:$U$1000="MDA4 (ALB/2*ALB)", COUNTRY_INFO!$U$9:$U$1000, " ") ->  | I13: 0 | M13: 0 | Q13: 0 | R13: 0 | S13: 0 | T13: 0 | U13: 0
A14: =IF(COUNTRY_INFO!A14=0," ",COUNTRY_INFO!A14) -> Cameroon | B14: =IF(COUNTRY_INFO!B14=0," ",COUNTRY_INFO!B14) -> ADAMAOUA | C14: =IF(COUNTRY_INFO!C14=0," ",COUNTRY_INFO!C14) -> NGAOUNDERE RURAL | D14: =IF(COUNTRY_INFO!$U$9:$U$1000="MDA4 (ALB/2*ALB)", COUNTRY_INFO!$U$9:$U$1000, " ") ->  | I14: 0 | M14: 0 | Q14: 0 | R14: 0 | S14: 0 | T14: 0 | U14: 0
A15: =IF(COUNTRY_INFO!A15=0," ",COUNTRY_INFO!A15) -> Cameroon | B15: =IF(COUNTRY_INFO!B15=0," ",COUNTRY_INFO!B15) -> ADAMAOUA | C15: =IF(COUNTRY_INFO!C15=0," ",COUNTRY_INFO!C15) -> NGAOUNDERE URBAIN | D15: =IF(COUNTRY_INFO!$U$9:$U$1000="MDA4 (ALB/2*ALB)", COUNTRY_INFO!$U$9:$U$1000, " ") ->  | I15: 0 | M15: 0 | Q15: 0 | R15: 0 | S15: 0 | T15: 0 | U15: 0
A16: =IF(COUNTRY_INFO!A16=0," ",COUNTRY_INFO!A16) -> Cameroon | B16: =IF(COUNTRY_INFO!B16=0," ",COUNTRY_INFO!B16) -> ADAMAOUA | C16: =IF(COUNTRY_INFO!C16=0," ",COUNTRY_INFO!C16) -> TIBATI | D16: =IF(COUNTRY_INFO!$U$9:$U$1000="MDA4 (ALB/2*ALB)", COUNTRY_INFO!$U$9:$U$1000, " ") ->  | I16: 0 | M16: 0 | Q16: 0 | R16: 0 | S16: 0 | T16: 0 | U16: 0
A17: =IF(COUNTRY_INFO!A17=0," ",COUNTRY_INFO!A17) -> Cameroon | B17: =IF(COUNTRY_INFO!B17=0," ",COUNTRY_INFO!B17) -> ADAMAOUA | C17: =IF(COUNTRY_INFO!C17=0," ",COUNTRY_INFO!C17) -> TIGNERE | D17: =IF(COUNTRY_INFO!$U$9:$U$1000="MDA4 (ALB/2*ALB)", COUNTRY_INFO!$U$9:$U$1000, " ") ->  | I17: 0 | M17: 0 | Q17: 0 | R17: 0 | S17: 0 | T17: 0 | U17: 0
A18: =IF(COUNTRY_INFO!A18=0," ",COUNTRY_INFO!A18) -> Cameroon | B18: =IF(COUNTRY_INFO!B18=0," ",COUNTRY_INFO!B18) -> CENTRE | C18: =IF(COUNTRY_INFO!C18=0," ",COUNTRY_INFO!C18) -> AKONOLINGA | D18: =IF(COUNTRY_INFO!$U$9:$U$1000="MDA4 (ALB/2*ALB)", COUNTRY_INFO!$U$9:$U$1000, " ") ->  | I18: 0 | M18: 0 | Q18: 0 | R18: 0 | S18: 0 | T18: 0 | U18: 0
A19: =IF(COUNTRY_INFO!A19=0," ",COUNTRY_INFO!A19) -> Cameroon | B19: =IF(COUNTRY_INFO!B19=0," ",COUNTRY_INFO!B19) -> CENTRE | C19: =IF(COUNTRY_INFO!C19=0," ",COUNTRY_INFO!C19) -> AWAE | D19: =IF(COUNTRY_INFO!$U$9:$U$1000="MDA4 (ALB/2*ALB)", COUNTRY_INFO!$U$9:$U$1000, " ") ->  | I19: 0 | M19: 0 | Q19: 0 | R19: 0 | S19: 0 | T19: 0 | U19: 0
A20: =IF(COUNTRY_INFO!A20=0," ",COUNTRY_INFO!A20) -> Cameroon | B20: =IF(COUNTRY_INFO!B20=0," ",COUNTRY_INFO!B20) -> CENTRE | C20: =IF(COUNTRY_INFO!C20=0," ",COUNTRY_INFO!C20) -> AYOS | D20: =IF(COUNTRY_INFO!$U$9:$U$1000="MDA4 (ALB/2*ALB)", COUNTRY_INFO!$U$9:$U$1000, " ") ->  | I20: 0 | M20: 0 | Q20: 0 | R20: 0 | S20: 0 | T20: 0 | U20: 0
A21: =IF(COUNTRY_INFO!A21=0," ",COUNTRY_INFO!A21) -> Cameroon | B21: =IF(COUNTRY_INFO!B21=0," ",COUNTRY_INFO!B21) -> CENTRE | C21: =IF(COUNTRY_INFO!C21=0," ",COUNTRY_INFO!C21) -> BAFIA | D21: =IF(COUNTRY_INFO!$U$9:$U$1000="MDA4 (ALB/2*ALB)", COUNTRY_INFO!$U$9:$U$1000, " ") ->  | I21: 0 | M21: 0 | Q21: 0 | R21: 0 | S21: 0 | T21: 0 | U21: 0
A22: =IF(COUNTRY_INFO!A22=0," ",COUNTRY_INFO!A22) -> Cameroon | B22: =IF(COUNTRY_INFO!B22=0," ",COUNTRY_INFO!B22) -> CENTRE | C22: =IF(COUNTRY_INFO!C22=0," ",COUNTRY_INFO!C22) -> BIYEM ASSI | D22: =IF(COUNTRY_INFO!$U$9:$U$1000="MDA4 (ALB/2*ALB)", COUNTRY_INFO!$U$9:$U$1000, " ") ->  | I22: 0 | M22: 0 | Q22: 0 | R22: 0 | S22: 0 | T22: 0 | U22: 0
A23: =IF(COUNTRY_INFO!A23=0," ",COUNTRY_INFO!A23) -> Cameroon | B23: =IF(COUNTRY_INFO!B23=0," ",COUNTRY_INFO!B23) -> CENTRE | C23: =IF(COUNTRY_INFO!C23=0," ",COUNTRY_INFO!C23) -> CITE VERTE | D23: =IF(COUNTRY_INFO!$U$9:$U$1000="MDA4 (ALB/2*ALB)", COUNTRY_INFO!$U$9:$U$1000, " ") ->  | I23: 0 | M23: 0 | Q23: 0 | R23: 0 | S23: 0 | T23: 0 | U23: 0
A24: =IF(COUNTRY_INFO!A24=0," ",COUNTRY_INFO!A24) -> Cameroon | B24: =IF(COUNTRY_INFO!B24=0," ",COUNTRY_INFO!B24) -> CENTRE | C24: =IF(COUNTRY_INFO!C24=0," ",COUNTRY_INFO!C24) -> DJOUNGOLO | D24: =IF(COUNTRY_INFO!$U$9:$U$1000="MDA4 (ALB/2*ALB)", COUNTRY_INFO!$U$9:$U$1000, " ") ->  | I24: 0 | M24: 0 | Q24: 0 | R24: 0 | S24: 0 | T24: 0 | U24: 0
A25: =IF(COUNTRY_INFO!A25=0," ",COUNTRY_INFO!A25) -> Cameroon | B25: =IF(COUNTRY_INFO!B25=0," ",COUNTRY_INFO!B25) -> CENTRE | C25: =IF(COUNTRY_INFO!C25=0," ",COUNTRY_INFO!C25) -> EBEBDA | D25: =IF(COUNTRY_INFO!$U$9:$U$1000="MDA4 (ALB/2*ALB)", COUNTRY_INFO!$U$9:$U$1000, " ") ->  | I25: 0 | M25: 0 | Q25: 0 | R25: 0 | S25: 0 | T25: 0 | U25: 0
A26: =IF(COUNTRY_INFO!A26=0," ",COUNTRY_INFO!A26) -> Cameroon | B26: =IF(COUNTRY_INFO!B26=0," ",COUNTRY_INFO!B26) -> CENTRE | C26: =IF(COUNTRY_INFO!C26=0," ",COUNTRY_INFO!C26) -> EFOULAN | D26: =IF(COUNTRY_INFO!$U$9:$U$1000="MDA4 (ALB/2*ALB)", COUNTRY_INFO!$U$9:$U$1000, " ") ->  | I26: 0 | M26: 0 | Q26: 0 | R26: 0 | S26: 0 | T26: 0 | U26: 0
A27: =IF(COUNTRY_INFO!A27=0," ",COUNTRY_INFO!A27) -> Cameroon | B27: =IF(COUNTRY_INFO!B27=0," ",COUNTRY_INFO!B27) -> CENTRE | C27: =IF(COUNTRY_INFO!C27=0," ",COUNTRY_INFO!C27) -> ELIG MFOMO | D27: =IF(COUNTRY_INFO!$U$9:$U$1000="MDA4 (ALB/2*ALB)", COUNTRY_INFO!$U$9:$U$1000, " ") ->  | I27: 0 | M27: 0 | Q27: 0 | R27: 0 | S27: 0 | T27: 0 | U27: 0
A28: =IF(COUNTRY_INFO!A28=0," ",COUNTRY_INFO!A28) -> Cameroon | B28: =IF(COUNTRY_INFO!B28=0," ",COUNTRY_INFO!B28) -> CENTRE | C28: =IF(COUNTRY_INFO!C28=0," ",COUNTRY_INFO!C28) -> ESEKA | D28: =IF(COUNTRY_INFO!$U$9:$U$1000="MDA4 (ALB/2*ALB)", COUNTRY_INFO!$U$9:$U$1000, " ") ->  | I28: 0 | M28: 0 | Q28: 0 | R28: 0 | S28: 0 | T28: 0 | U28: 0
A29: =IF(COUNTRY_INFO!A29=0," ",COUNTRY_INFO!A29) -> Cameroon | B29: =IF(COUNTRY_INFO!B29=0," ",COUNTRY_INFO!B29) -> CENTRE | C29: =IF(COUNTRY_INFO!C29=0," ",COUNTRY_INFO!C29) -> ESSE | D29: =IF(COUNTRY_INFO!$U$9:$U$1000="MDA4 (ALB/2*ALB)", COUNTRY_INFO!$U$9:$U$1000, " ") ->  | I29: 0 | M29: 0 | Q29: 0 | R29: 0 | S29: 0 | T29: 0 | U29: 0
A30: =IF(COUNTRY_INFO!A30=0," ",COUNTRY_INFO!A30) -> Cameroon | B30: =IF(COUNTRY_INFO!B30=0," ",COUNTRY_INFO!B30) -> CENTRE | C30: =IF(COUNTRY_INFO!C30=0," ",COUNTRY_INFO!C30) -> EVODOULA | D30: =IF(COUNTRY_INFO!$U$9:$U$1000="MDA4 (ALB/2*ALB)", COUNTRY_INFO!$U$9:$U$1000, " ") ->  | I30: 0 | M30: 0 | Q30: 0 | R30: 0 | S30: 0 | T30: 0 | U30: 0
A31: =IF(COUNTRY_INFO!A31=0," ",COUNTRY_INFO!A31) -> Cameroon | B31: =IF(COUNTRY_INFO!B31=0," ",COUNTRY_INFO!B31) -> CENTRE | C31: =IF(COUNTRY_INFO!C31=0," ",COUNTRY_INFO!C31) -> MBALMAYO | D31: =IF(COUNTRY_INFO!$U$9:$U$1000="MDA4 (ALB/2*ALB)", COUNTRY_INFO!$U$9:$U$1000, " ") ->  | I31: 0 | M31: 0 | Q31: 0 | R31: 0 | S31: 0 | T31: 0 | U31: 0
A32: =IF(COUNTRY_INFO!A32=0," ",COUNTRY_INFO!A32) -> Cameroon | B32: =IF(COUNTRY_INFO!B32=0," ",COUNTRY_INFO!B32) -> CENTRE | C32: =IF(COUNTRY_INFO!C32=0," ",COUNTRY_INFO!C32) -> MBANDJOCK | D32: =IF(COUNTRY_INFO!$U$9:$U$1000="MDA4 (ALB/2*ALB)", COUNTRY_INFO!$U$9:$U$1000, " ") ->  | I32: 0 | M32: 0 | Q32: 0 | R32: 0 | S32: 0 | T32: 0 | U32: 0
A33: =IF(COUNTRY_INFO!A33=0," ",COUNTRY_INFO!A33) -> Cameroon | B33: =IF(COUNTRY_INFO!B33=0," ",COUNTRY_INFO!B33) -> CENTRE | C33: =IF(COUNTRY_INFO!C33=0," ",COUNTRY_INFO!C33) -> MBANKOMO | D33: =IF(COUNTRY_INFO!$U$9:$U$1000="MDA4 (ALB/2*ALB)", COUNTRY_INFO!$U$9:$U$1000, " ") ->  | I33: 0 | M33: 0 | Q33: 0 | R33: 0 | S33: 0 | T33: 0 | U33: 0
A34: =IF(COUNTRY_INFO!A34=0," ",COUNTRY_INFO!A34) -> Cameroon | B34: =IF(COUNTRY_INFO!B34=0," ",COUNTRY_INFO!B34) -> CENTRE | C34: =IF(COUNTRY_INFO!C34=0," ",COUNTRY_INFO!C34) -> MFOU | D34: =IF(COUNTRY_INFO!$U$9:$U$1000="MDA4 (ALB/2*ALB)", COUNTRY_INFO!$U$9:$U$1000, " ") ->  | I34: 0 | M34: 0 | Q34: 0 | R34: 0 | S34: 0 | T34: 0 | U34: 0
A35: =IF(COUNTRY_INFO!A35=0," ",COUNTRY_INFO!A35) -> Cameroon | B35: =IF(COUNTRY_INFO!B35=0," ",COUNTRY_INFO!B35) -> CENTRE | C35: =IF(COUNTRY_INFO!C35=0," ",COUNTRY_INFO!C35) -> MONATELE | D35: =IF(COUNTRY_INFO!$U$9:$U$1000="MDA4 (ALB/2*ALB)", COUNTRY_INFO!$U$9:$U$1000, " ") ->  | I35: 0 | M35: 0 | Q35: 0 | R35: 0 | S35: 0 | T35: 0 | U35: 0
A36: =IF(COUNTRY_INFO!A36=0," ",COUNTRY_INFO!A36) -> Cameroon | B36: =IF(COUNTRY_INFO!B36=0," ",COUNTRY_INFO!B36) -> CENTRE | C36: =IF(COUNTRY_INFO!C36=0," ",COUNTRY_INFO!C36) -> NANGA EBOKO | D36: =IF(COUNTRY_INFO!$U$9:$U$1000="MDA4 (ALB/2*ALB)", COUNTRY_INFO!$U$9:$U$1000, " ") ->  | I36: 0 | M36: 0 | Q36: 0 | R36: 0 | S36: 0 | T36: 0 | U36: 0
A37: =IF(COUNTRY_INFO!A37=0," ",COUNTRY_INFO!A37) -> Cameroon | B37: =IF(COUNTRY_INFO!B37=0," ",COUNTRY_INFO!B37) -> CENTRE | C37: =IF(COUNTRY_INFO!C37=0," ",COUNTRY_INFO!C37) -> NDIKINIMEKI | D37: =IF(COUNTRY_INFO!$U$9:$U$1000="MDA4 (ALB/2*ALB)", COUNTRY_INFO!$U$9:$U$1000, " ") ->  | I37: 0 | M37: 0 | Q37: 0 | R37: 0 | S37: 0 | T37: 0 | U37: 0
A38: =IF(COUNTRY_INFO!A38=0," ",COUNTRY_INFO!A38) -> Cameroon | B38: =IF(COUNTRY_INFO!B38=0," ",COUNTRY_INFO!B38) -> CENTRE | C38: =IF(COUNTRY_INFO!C38=0," ",COUNTRY_INFO!C38) -> NGOG MAPUBI | D38: =IF(COUNTRY_INFO!$U$9:$U$1000="MDA4 (ALB/2*ALB)", COUNTRY_INFO!$U$9:$U$1000, " ") ->  | I38: 0 | M38: 0 | Q38: 0 | R38: 0 | S38: 0 | T38: 0 | U38: 0
A39: =IF(COUNTRY_INFO!A39=0," ",COUNTRY_INFO!A39) -> Cameroon | B39: =IF(COUNTRY_INFO!B39=0," ",COUNTRY_INFO!B39) -> CENTRE | C39: =IF(COUNTRY_INFO!C39=0," ",COUNTRY_INFO!C39) -> NGOUMOU | D39: =IF(COUNTRY_INFO!$U$9:$U$1000="MDA4 (ALB/2*ALB)", COUNTRY_INFO!$U$9:$U$1000, " ") ->  | I39: 0 | M39: 0 | Q39: 0 | R39: 0 | S39: 0 | T39: 0 | U39: 0
A40: =IF(COUNTRY_INFO!A40=0," ",COUNTRY_INFO!A40) -> Cameroon | B40: =IF(COUNTRY_INFO!B40=0," ",COUNTRY_INFO!B40) -> CENTRE | C40: =IF(COUNTRY_INFO!C40=0," ",COUNTRY_INFO!C40) -> NKOLBISSON | D40: =IF(COUNTRY_INFO!$U$9:$U$1000="MDA4 (ALB/2*ALB)", COUNTRY_INFO!$U$9:$U$1000, " ") ->  | I40: 0 | M40: 0 | Q40: 0 | R40: 0 | S40: 0 | T40: 0 | U40: 0
A41: =IF(COUNTRY_INFO!A41=0," ",COUNTRY_INFO!A41) -> Cameroon | B41: =IF(COUNTRY_INFO!B41=0," ",COUNTRY_INFO!B41) -> CENTRE | C41: =IF(COUNTRY_INFO!C41=0," ",COUNTRY_INFO!C41) -> NKOLNDONGO | D41: =IF(COUNTRY_INFO!$U$9:$U$1000="MDA4 (ALB/2*ALB)", COUNTRY_INFO!$U$9:$U$1000, " ") ->  | I41: 0 | M41: 0 | Q41: 0 | R41: =MAX(J41,N41) -> 0 | S41: =MAX(K41,O41) -> 0 | T41: =MAX(L41,P41) -> 0 | U41: =SUM(R41:T41) -> 0 | V41: =IF(F41<>0, IF(R41/F41*100=0, "-",R41/F41*100), " ") ->  | W41: =IF(G41<>0, IF(S41/G41*100=0, "-", S41/G41*100), " ") ->  | X41: =IF(H41<>0, IF(T41/H41*100=0, "-", T41/H41*100), " ") ->  | Y41: =IF(I41<>0, IF(U41/I41*100=0, "-", U41/I41*100), " ") -> 
A42: =IF(COUNTRY_INFO!A42=0," ",COUNTRY_INFO!A42) -> Cameroon | B42: =IF(COUNTRY_INFO!B42=0," ",COUNTRY_INFO!B42) -> CENTRE | C42: =IF(COUNTRY_INFO!C42=0," ",COUNTRY_INFO!C42) -> NTUI | D42: =IF(COUNTRY_INFO!$U$9:$U$1000="MDA4 (ALB/2*ALB)", COUNTRY_INFO!$U$9:$U$1000, " ") ->  | I42: 0 | M42: 0 | Q42: 0 | R42: 0 | S42: 0 | T42: 0 | U42: 0
A43: =IF(COUNTRY_INFO!A43=0," ",COUNTRY_INFO!A43) -> Cameroon | B43: =IF(COUNTRY_INFO!B43=0," ",COUNTRY_INFO!B43) -> CENTRE | C43: =IF(COUNTRY_INFO!C43=0," ",COUNTRY_INFO!C43) -> OBALA | D43: =IF(COUNTRY_INFO!$U$9:$U$1000="MDA4 (ALB/2*ALB)", COUNTRY_INFO!$U$9:$U$1000, " ") ->  | I43: 0 | M43: 0 | Q43: 0 | R43: 0 | S43: 0 | T43: 0 | U43: 0
A44: =IF(COUNTRY_INFO!A44=0," ",COUNTRY_INFO!A44) -> Cameroon | B44: =IF(COUNTRY_INFO!B44=0," ",COUNTRY_INFO!B44) -> CENTRE | C44: =IF(COUNTRY_INFO!C44=0," ",COUNTRY_INFO!C44) -> OKOLA | D44: =IF(COUNTRY_INFO!$U$9:$U$1000="MDA4 (ALB/2*ALB)", COUNTRY_INFO!$U$9:$U$1000, " ") ->  | I44: 0 | M44: 0 | Q44: 0 | R44: 0 | S44: 0 | T44: 0 | U44: 0
A45: =IF(COUNTRY_INFO!A45=0," ",COUNTRY_INFO!A45) -> Cameroon | B45: =IF(COUNTRY_INFO!B45=0," ",COUNTRY_INFO!B45) -> CENTRE | C45: =IF(COUNTRY_INFO!C45=0," ",COUNTRY_INFO!C45) -> SAA | D45: =IF(COUNTRY_INFO!$U$9:$U$1000="MDA4 (ALB/2*ALB)", COUNTRY_INFO!$U$9:$U$1000, " ") ->  | I45: 0 | M45: 0 | Q45: 0 | R45: 0 | S45: 0 | T45: 0 | U45: 0
A46: =IF(COUNTRY_INFO!A46=0," ",COUNTRY_INFO!A46) -> Cameroon | B46: =IF(COUNTRY_INFO!B46=0," ",COUNTRY_INFO!B46) -> CENTRE | C46: =IF(COUNTRY_INFO!C46=0," ",COUNTRY_INFO!C46) -> SOA | D46: =IF(COUNTRY_INFO!$U$9:$U$1000="MDA4 (ALB/2*ALB)", COUNTRY_INFO!$U$9:$U$1000, " ") ->  | I46: 0 | M46: 0 | Q46: 0 | R46: 0 | S46: 0 | T46: 0 | U46: 0
A47: =IF(COUNTRY_INFO!A47=0," ",COUNTRY_INFO!A47) -> Cameroon | B47: =IF(COUNTRY_INFO!B47=0," ",COUNTRY_INFO!B47) -> CENTRE | C47: =IF(COUNTRY_INFO!C47=0," ",COUNTRY_INFO!C47) -> YOKO | D47: =IF(COUNTRY_INFO!$U$9:$U$1000="MDA4 (ALB/2*ALB)", COUNTRY_INFO!$U$9:$U$1000, " ") ->  | I47: 0 | M47: 0 | Q47: 0 | R47: 0 | S47: 0 | T47: 0 | U47: 0
A48: =IF(COUNTRY_INFO!A48=0," ",COUNTRY_INFO!A48) -> Cameroon | B48: =IF(COUNTRY_INFO!B48=0," ",COUNTRY_INFO!B48) -> EAST | C48: =IF(COUNTRY_INFO!C48=0," ",COUNTRY_INFO!C48) -> ABONG MBANG | D48: =IF(COUNTRY_INFO!$U$9:$U$1000="MDA4 (ALB/2*ALB)", COUNTRY_INFO!$U$9:$U$1000, " ") ->  | I48: 0 | M48: 0 | Q48: 0 | R48: 0 | S48: 0 | T48: 0 | U48: 0
A49: =IF(COUNTRY_INFO!A49=0," ",COUNTRY_INFO!A49) -> Cameroon | B49: =IF(COUNTRY_INFO!B49=0," ",COUNTRY_INFO!B49) -> EAST | C49: =IF(COUNTRY_INFO!C49=0," ",COUNTRY_INFO!C49) -> BATOURI | D49: =IF(COUNTRY_INFO!$U$9:$U$1000="MDA4 (ALB/2*ALB)", COUNTRY_INFO!$U$9:$U$1000, " ") ->  | I49: 0 | M49: 0 | Q49: 0 | R49: 0 | S49: 0 | T49: 0 | U49: 0
A50: =IF(COUNTRY_INFO!A50=0," ",COUNTRY_INFO!A50) -> Cameroon | B50: =IF(COUNTRY_INFO!B50=0," ",COUNTRY_INFO!B50) -> EAST | C50: =IF(COUNTRY_INFO!C50=0," ",COUNTRY_INFO!C50) -> BERTOUA | D50: =IF(COUNTRY_INFO!$U$9:$U$1000="MDA4 (ALB/2*ALB)", COUNTRY_INFO!$U$9:$U$1000, " ") ->  | I50: 0 | M50: 0 | Q50: 0 | R50: 0 | S50: 0 | T50: 0 | U50: 0
A51: =IF(COUNTRY_INFO!A51=0," ",COUNTRY_INFO!A51) -> Cameroon | B51: =IF(COUNTRY_INFO!B51=0," ",COUNTRY_INFO!B51) -> EAST | C51: =IF(COUNTRY_INFO!C51=0," ",COUNTRY_INFO!C51) -> BETARE OYA | D51: =IF(COUNTRY_INFO!$U$9:$U$1000="MDA4 (ALB/2*ALB)", COUNTRY_INFO!$U$9:$U$1000, " ") ->  | I51: 0 | M51: 0 | Q51: 0 | R51: 0 | S51: 0 | T51: 0 | U51: 0
A52: =IF(COUNTRY_INFO!A52=0," ",COUNTRY_INFO!A52) -> Cameroon | B52: =IF(COUNTRY_INFO!B52=0," ",COUNTRY_INFO!B52) -> EAST | C52: =IF(COUNTRY_INFO!C52=0," ",COUNTRY_INFO!C52) -> DOUME | D52: =IF(COUNTRY_INFO!$U$9:$U$1000="MDA4 (ALB/2*ALB)", COUNTRY_INFO!$U$9:$U$1000, " ") ->  | I52: 0 | M52: 0 | Q52: 0 | R52: 0 | S52: 0 | T52: 0 | U52: 0
A53: =IF(COUNTRY_INFO!A53=0," ",COUNTRY_INFO!A53) -> Cameroon | B53: =IF(COUNTRY_INFO!B53=0," ",COUNTRY_INFO!B53) -> EAST | C53: =IF(COUNTRY_INFO!C53=0," ",COUNTRY_INFO!C53) -> GAROUA BOULAI | D53: =IF(COUNTRY_INFO!$U$9:$U$1000="MDA4 (ALB/2*ALB)", COUNTRY_INFO!$U$9:$U$1000, " ") ->  | I53: 0 | M53: 0 | Q53: 0 | R53: 0 | S53: 0 | T53: 0 | U53: 0
A54: =IF(COUNTRY_INFO!A54=0," ",COUNTRY_INFO!A54) -> Cameroon | B54: =IF(COUNTRY_INFO!B54=0," ",COUNTRY_INFO!B54) -> EAST | C54: =IF(COUNTRY_INFO!C54=0," ",COUNTRY_INFO!C54) -> KETTE | D54: =IF(COUNTRY_INFO!$U$9:$U$1000="MDA4 (ALB/2*ALB)", COUNTRY_INFO!$U$9:$U$1000, " ") ->  | I54: 0 | M54: 0 | Q54: 0 | R54: 0 | S54: 0 | T54: 0 | U54: 0
A55: =IF(COUNTRY_INFO!A55=0," ",COUNTRY_INFO!A55) -> Cameroon | B55: =IF(COUNTRY_INFO!B55=0," ",COUNTRY_INFO!B55) -> EAST | C55: =IF(COUNTRY_INFO!C55=0," ",COUNTRY_INFO!C55) -> LOMIE | D55: =IF(COUNTRY_INFO!$U$9:$U$1000="MDA4 (ALB/2*ALB)", COUNTRY_INFO!$U$9:$U$1000, " ") ->  | I55: 0 | M55: 0 | Q55: 0 | R55: 0 | S55: 0 | T55: 0 | U55: 0
A56: =IF(COUNTRY_INFO!A56=0," ",COUNTRY_INFO!A56) -> Cameroon | B56: =IF(COUNTRY_INFO!B56=0," ",COUNTRY_INFO!B56) -> EAST | C56: =IF(COUNTRY_INFO!C56=0," ",COUNTRY_INFO!C56) -> MBANG | D56: =IF(COUNTRY_INFO!$U$9:$U$1000="MDA4 (ALB/2*ALB)", COUNTRY_INFO!$U$9:$U$1000, " ") ->  | I56: 0 | M56: 0 | Q56: 0 | R56: 0 | S56: 0 | T56: 0 | U56: 0
A57: =IF(COUNTRY_INFO!A57=0," ",COUNTRY_INFO!A57) -> Cameroon | B57: =IF(COUNTRY_INFO!B57=0," ",COUNTRY_INFO!B57) -> EAST | C57: =IF(COUNTRY_INFO!C57=0," ",COUNTRY_INFO!C57) -> MESSAMENA | D57: =IF(COUNTRY_INFO!$U$9:$U$1000="MDA4 (ALB/2*ALB)", COUNTRY_INFO!$U$9:$U$1000, " ") ->  | I57: 0 | M57: 0 | Q57: 0 | R57: 0 | S57: 0 | T57: 0 | U57: 0
A58: =IF(COUNTRY_INFO!A58=0," ",COUNTRY_INFO!A58) -> Cameroon | B58: =IF(COUNTRY_INFO!B58=0," ",COUNTRY_INFO!B58) -> EAST | C58: =IF(COUNTRY_INFO!C58=0," ",COUNTRY_INFO!C58) -> MOLOUNDOU | D58: =IF(COUNTRY_INFO!$U$9:$U$1000="MDA4 (ALB/2*ALB)", COUNTRY_INFO!$U$9:$U$1000, " ") ->  | I58: 0 | M58: 0 | Q58: 0 | R58: 0 | S58: 0 | T58: 0 | U58: 0
A59: =IF(COUNTRY_INFO!A59=0," ",COUNTRY_INFO!A59) -> Cameroon | B59: =IF(COUNTRY_INFO!B59=0," ",COUNTRY_INFO!B59) -> EAST | C59: =IF(COUNTRY_INFO!C59=0," ",COUNTRY_INFO!C59) -> NDELELE | D59: =IF(COUNTRY_INFO!$U$9:$U$1000="MDA4 (ALB/2*ALB)", COUNTRY_INFO!$U$9:$U$1000, " ") ->  | I59: 0 | M59: 0 | Q59: 0 | R59: 0 | S59: 0 | T59: 0 | U59: 0
A60: =IF(COUNTRY_INFO!A60=0," ",COUNTRY_INFO!A60) -> Cameroon | B60: =IF(COUNTRY_INFO!B60=0," ",COUNTRY_INFO!B60) -> EAST | C60: =IF(COUNTRY_INFO!C60=0," ",COUNTRY_INFO!C60) -> NGUELEMENDOUKA | D60: =IF(COUNTRY_INFO!$U$9:$U$1000="MDA4 (ALB/2*ALB)", COUNTRY_INFO!$U$9:$U$1000, " ") ->  | I60: 0 | M60: 0 | Q60: 0 | R60: 0 | S60: 0 | T60: 0 | U60: 0
A61: =IF(COUNTRY_INFO!A61=0," ",COUNTRY_INFO!A61) -> Cameroon | B61: =IF(COUNTRY_INFO!B61=0," ",COUNTRY_INFO!B61) -> EAST | C61: =IF(COUNTRY_INFO!C61=0," ",COUNTRY_INFO!C61) -> YOKADOUMA | D61: =IF(COUNTRY_INFO!$U$9:$U$1000="MDA4 (ALB/2*ALB)", COUNTRY_INFO!$U$9:$U$1000, " ") ->  | I61: 0 | M61: 0 | Q61: 0 | R61: 0 | S61: 0 | T61: 0 | U61: 0
A62: =IF(COUNTRY_INFO!A62=0," ",COUNTRY_INFO!A62) -> Cameroon | B62: =IF(COUNTRY_INFO!B62=0," ",COUNTRY_INFO!B62) -> FAR-NORTH | C62: =IF(COUNTRY_INFO!C62=0," ",COUNTRY_INFO!C62) -> BOGO | D62: =IF(COUNTRY_INFO!$U$9:$U$1000="MDA4 (ALB/2*ALB)", COUNTRY_INFO!$U$9:$U$1000, " ") ->  | I62: 0 | M62: 0 | Q62: 0 | R62: 0 | S62: 0 | T62: 0 | U62: 0
A63: =IF(COUNTRY_INFO!A63=0," ",COUNTRY_INFO!A63) -> Cameroon | B63: =IF(COUNTRY_INFO!B63=0," ",COUNTRY_INFO!B63) -> FAR-NORTH | C63: =IF(COUNTRY_INFO!C63=0," ",COUNTRY_INFO!C63) -> BOURHA | D63: =IF(COUNTRY_INFO!$U$9:$U$1000="MDA4 (ALB/2*ALB)", COUNTRY_INFO!$U$9:$U$1000, " ") ->  | I63: 0 | M63: 0 | Q63: 0 | R63: 0 | S63: 0 | T63: 0 | U63: 0
A64: =IF(COUNTRY_INFO!A64=0," ",COUNTRY_INFO!A64) -> Cameroon | B64: =IF(COUNTRY_INFO!B64=0," ",COUNTRY_INFO!B64) -> FAR-NORTH | C64: =IF(COUNTRY_INFO!C64=0," ",COUNTRY_INFO!C64) -> GAZAWA | D64: =IF(COUNTRY_INFO!$U$9:$U$1000="MDA4 (ALB/2*ALB)", COUNTRY_INFO!$U$9:$U$1000, " ") ->  | I64: 0 | M64: 0 | Q64: 0 | R64: 0 | S64: 0 | T64: 0 | U64: 0
A65: =IF(COUNTRY_INFO!A65=0," ",COUNTRY_INFO!A65) -> Cameroon | B65: =IF(COUNTRY_INFO!B65=0," ",COUNTRY_INFO!B65) -> FAR-NORTH | C65: =IF(COUNTRY_INFO!C65=0," ",COUNTRY_INFO!C65) -> GOULFEY | D65: =IF(COUNTRY_INFO!$U$9:$U$1000="MDA4 (ALB/2*ALB)", COUNTRY_INFO!$U$9:$U$1000, " ") ->  | I65: 0 | M65: 0 | Q65: 0 | R65: 0 | S65: 0 | T65: 0 | U65: 0
A66: =IF(COUNTRY_INFO!A66=0," ",COUNTRY_INFO!A66) -> Cameroon | B66: =IF(COUNTRY_INFO!B66=0," ",COUNTRY_INFO!B66) -> FAR-NORTH | C66: =IF(COUNTRY_INFO!C66=0," ",COUNTRY_INFO!C66) -> GUERE | D66: =IF(COUNTRY_INFO!$U$9:$U$1000="MDA4 (ALB/2*ALB)", COUNTRY_INFO!$U$9:$U$1000, " ") ->  | I66: 0 | M66: 0 | Q66: 0 | R66: 0 | S66: 0 | T66: 0 | U66: 0
A67: =IF(COUNTRY_INFO!A67=0," ",COUNTRY_INFO!A67) -> Cameroon | B67: =IF(COUNTRY_INFO!B67=0," ",COUNTRY_INFO!B67) -> FAR-NORTH | C67: =IF(COUNTRY_INFO!C67=0," ",COUNTRY_INFO!C67) -> GUIDIGUIS | D67: =IF(COUNTRY_INFO!$U$9:$U$1000="MDA4 (ALB/2*ALB)", COUNTRY_INFO!$U$9:$U$1000, " ") ->  | I67: 0 | M67: 0 | Q67: 0 | R67: 0 | S67: 0 | T67: 0 | U67: 0
A68: =IF(COUNTRY_INFO!A68=0," ",COUNTRY_INFO!A68) -> Cameroon | B68: =IF(COUNTRY_INFO!B68=0," ",COUNTRY_INFO!B68) -> FAR-NORTH | C68: =IF(COUNTRY_INFO!C68=0," ",COUNTRY_INFO!C68) -> HINA | D68: =IF(COUNTRY_INFO!$U$9:$U$1000="MDA4 (ALB/2*ALB)", COUNTRY_INFO!$U$9:$U$1000, " ") ->  | I68: 0 | M68: 0 | Q68: 0 | R68: 0 | S68: 0 | T68: 0 | U68: 0
A69: =IF(COUNTRY_INFO!A69=0," ",COUNTRY_INFO!A69) -> Cameroon | B69: =IF(COUNTRY_INFO!B69=0," ",COUNTRY_INFO!B69) -> FAR-NORTH | C69: =IF(COUNTRY_INFO!C69=0," ",COUNTRY_INFO!C69) -> KAELE | D69: =IF(COUNTRY_INFO!$U$9:$U$1000="MDA4 (ALB/2*ALB)", COUNTRY_INFO!$U$9:$U$1000, " ") ->  | I69: 0 | M69: 0 | Q69: 0 | R69: 0 | S69: 0 | T69: 0 | U69: 0
A70: =IF(COUNTRY_INFO!A70=0," ",COUNTRY_INFO!A70) -> Cameroon | B70: =IF(COUNTRY_INFO!B70=0," ",COUNTRY_INFO!B70) -> FAR-NORTH | C70: =IF(COUNTRY_INFO!C70=0," ",COUNTRY_INFO!C70) -> KAR HAY | D70: =IF(COUNTRY_INFO!$U$9:$U$1000="MDA4 (ALB/2*ALB)", COUNTRY_INFO!$U$9:$U$1000, " ") ->  | I70: 0 | M70: 0 | Q70: 0 | R70: 0 | S70: 0 | T70: 0 | U70: 0
A71: =IF(COUNTRY_INFO!A71=0," ",COUNTRY_INFO!A71) -> Cameroon | B71: =IF(COUNTRY_INFO!B71=0," ",COUNTRY_INFO!B71) -> FAR-NORTH | C71: =IF(COUNTRY_INFO!C71=0," ",COUNTRY_INFO!C71) -> KOLOFATA | D71: =IF(COUNTRY_INFO!$U$9:$U$1000="MDA4 (ALB/2*ALB)", COUNTRY_INFO!$U$9:$U$1000, " ") ->  | I71: 0 | M71: 0 | Q71: 0 | R71: 0 | S71: 0 | T71: 0 | U71: 0
A72: =IF(COUNTRY_INFO!A72=0," ",COUNTRY_INFO!A72) -> Cameroon | B72: =IF(COUNTRY_INFO!B72=0," ",COUNTRY_INFO!B72) -> FAR-NORTH | C72: =IF(COUNTRY_INFO!C72=0," ",COUNTRY_INFO!C72) -> KOUSSERI | D72: =IF(COUNTRY_INFO!$U$9:$U$1000="MDA4 (ALB/2*ALB)", COUNTRY_INFO!$U$9:$U$1000, " ") ->  | I72: 0 | M72: 0 | Q72: 0 | R72: 0 | S72: 0 | T72: 0 | U72: 0
A73: =IF(COUNTRY_INFO!A73=0," ",COUNTRY_INFO!A73) -> Cameroon | B73: =IF(COUNTRY_INFO!B73=0," ",COUNTRY_INFO!B73) -> FAR-NORTH | C73: =IF(COUNTRY_INFO!C73=0," ",COUNTRY_INFO!C73) -> KOZA | D73: =IF(COUNTRY_INFO!$U$9:$U$1000="MDA4 (ALB/2*ALB)", COUNTRY_INFO!$U$9:$U$1000, " ") ->  | I73: 0 | M73: 0 | Q73: 0 | R73: =MAX(J73,N73) -> 0 | S73: =MAX(K73,O73) -> 0 | T73: =MAX(L73,P73) -> 0 | U73: =SUM(R73:T73) -> 0 | V73: =IF(F73<>0, IF(R73/F73*100=0, "-",R73/F73*100), " ") ->  | W73: =IF(G73<>0, IF(S73/G73*100=0, "-", S73/G73*100), " ") ->  | X73: =IF(H73<>0, IF(T73/H73*100=0, "-", T73/H73*100), " ") ->  | Y73: =IF(I73<>0, IF(U73/I73*100=0, "-", U73/I73*100), " ") -> 
A74: =IF(COUNTRY_INFO!A74=0," ",COUNTRY_INFO!A74) -> Cameroon | B74: =IF(COUNTRY_INFO!B74=0," ",COUNTRY_INFO!B74) -> FAR-NORTH | C74: =IF(COUNTRY_INFO!C74=0," ",COUNTRY_INFO!C74) -> MADA | D74: =IF(COUNTRY_INFO!$U$9:$U$1000="MDA4 (ALB/2*ALB)", COUNTRY_INFO!$U$9:$U$1000, " ") ->  | I74: =SUM(F74:H74) -> 0 | M74: =SUM(J74:L74) -> 0 | Q74: =SUM(N74:P74) -> 0 | R74: 0 | S74: 0 | T74: 0 | U74: 0
A75: =IF(COUNTRY_INFO!A75=0," ",COUNTRY_INFO!A75) -> Cameroon | B75: =IF(COUNTRY_INFO!B75=0," ",COUNTRY_INFO!B75) -> FAR-NORTH | C75: =IF(COUNTRY_INFO!C75=0," ",COUNTRY_INFO!C75) -> MAGA | D75: =IF(COUNTRY_INFO!$U$9:$U$1000="MDA4 (ALB/2*ALB)", COUNTRY_INFO!$U$9:$U$1000, " ") ->  | I75: 0 | M75: 0 | Q75: 0 | R75: 0 | S75: 0 | T75: 0 | U75: 0
A76: =IF(COUNTRY_INFO!A76=0," ",COUNTRY_INFO!A76) -> Cameroon | B76: =IF(COUNTRY_INFO!B76=0," ",COUNTRY_INFO!B76) -> FAR-NORTH | C76: =IF(COUNTRY_INFO!C76=0," ",COUNTRY_INFO!C76) -> MAKARY | D76: =IF(COUNTRY_INFO!$U$9:$U$1000="MDA4 (ALB/2*ALB)", COUNTRY_INFO!$U$9:$U$1000, " ") ->  | I76: 0 | M76: 0 | Q76: 0 | R76: 0 | S76: 0 | T76: 0 | U76: 0
A77: =IF(COUNTRY_INFO!A77=0," ",COUNTRY_INFO!A77) -> Cameroon | B77: =IF(COUNTRY_INFO!B77=0," ",COUNTRY_INFO!B77) -> FAR-NORTH | C77: =IF(COUNTRY_INFO!C77=0," ",COUNTRY_INFO!C77) -> MAROUA 1 | D77: =IF(COUNTRY_INFO!$U$9:$U$1000="MDA4 (ALB/2*ALB)", COUNTRY_INFO!$U$9:$U$1000, " ") ->  | I77: 0 | M77: 0 | Q77: 0 | R77: 0 | S77: 0 | T77: 0 | U77: 0
A78: =IF(COUNTRY_INFO!A78=0," ",COUNTRY_INFO!A78) -> Cameroon | B78: =IF(COUNTRY_INFO!B78=0," ",COUNTRY_INFO!B78) -> FAR-NORTH | C78: =IF(COUNTRY_INFO!C78=0," ",COUNTRY_INFO!C78) -> MAROUA 2 | D78: =IF(COUNTRY_INFO!$U$9:$U$1000="MDA4 (ALB/2*ALB)", COUNTRY_INFO!$U$9:$U$1000, " ") ->  | I78: 0 | M78: 0 | Q78: 0 | R78: 0 | S78: 0 | T78: 0 | U78: 0
A79: =IF(COUNTRY_INFO!A79=0," ",COUNTRY_INFO!A79) -> Cameroon | B79: =IF(COUNTRY_INFO!B79=0," ",COUNTRY_INFO!B79) -> FAR-NORTH | C79: =IF(COUNTRY_INFO!C79=0," ",COUNTRY_INFO!C79) -> MAROUA 3 | D79: =IF(COUNTRY_INFO!$U$9:$U$1000="MDA4 (ALB/2*ALB)", COUNTRY_INFO!$U$9:$U$1000, " ") ->  | I79: 0 | M79: 0 | Q79: 0 | R79: 0 | S79: 0 | T79: 0 | U79: 0
A80: =IF(COUNTRY_INFO!A80=0," ",COUNTRY_INFO!A80) -> Cameroon | B80: =IF(COUNTRY_INFO!B80=0," ",COUNTRY_INFO!B80) -> FAR-NORTH | C80: =IF(COUNTRY_INFO!C80=0," ",COUNTRY_INFO!C80) -> MERI | D80: =IF(COUNTRY_INFO!$U$9:$U$1000="MDA4 (ALB/2*ALB)", COUNTRY_INFO!$U$9:$U$1000, " ") ->  | I80: 0 | M80: 0 | Q80: 0 | R80: 0 | S80: 0 | T80: 0 | U80: 0
A81: =IF(COUNTRY_INFO!A81=0," ",COUNTRY_INFO!A81) -> Cameroon | B81: =IF(COUNTRY_INFO!B81=0," ",COUNTRY_INFO!B81) -> FAR-NORTH | C81: =IF(COUNTRY_INFO!C81=0," ",COUNTRY_INFO!C81) -> MINDIF | D81: =IF(COUNTRY_INFO!$U$9:$U$1000="MDA4 (ALB/2*ALB)", COUNTRY_INFO!$U$9:$U$1000, " ") ->  | I81: 0 | M81: 0 | Q81: 0 | R81: 0 | S81: 0 | T81: 0 | U81: 0
A82: =IF(COUNTRY_INFO!A82=0," ",COUNTRY_INFO!A82) -> Cameroon | B82: =IF(COUNTRY_INFO!B82=0," ",COUNTRY_INFO!B82) -> FAR-NORTH | C82: =IF(COUNTRY_INFO!C82=0," ",COUNTRY_INFO!C82) -> MOGODE | D82: =IF(COUNTRY_INFO!$U$9:$U$1000="MDA4 (ALB/2*ALB)", COUNTRY_INFO!$U$9:$U$1000, " ") ->  | I82: 0 | M82: 0 | Q82: 0 | R82: 0 | S82: 0 | T82: 0 | U82: 0
A83: =IF(COUNTRY_INFO!A83=0," ",COUNTRY_INFO!A83) -> Cameroon | B83: =IF(COUNTRY_INFO!B83=0," ",COUNTRY_INFO!B83) -> FAR-NORTH | C83: =IF(COUNTRY_INFO!C83=0," ",COUNTRY_INFO!C83) -> MOKOLO | D83: =IF(COUNTRY_INFO!$U$9:$U$1000="MDA4 (ALB/2*ALB)", COUNTRY_INFO!$U$9:$U$1000, " ") ->  | I83: 0 | M83: 0 | Q83: 0 | R83: 0 | S83: 0 | T83: 0 | U83: 0
A84: =IF(COUNTRY_INFO!A84=0," ",COUNTRY_INFO!A84) -> Cameroon | B84: =IF(COUNTRY_INFO!B84=0," ",COUNTRY_INFO!B84) -> FAR-NORTH | C84: =IF(COUNTRY_INFO!C84=0," ",COUNTRY_INFO!C84) -> MORA | D84: =IF(COUNTRY_INFO!$U$9:$U$1000="MDA4 (ALB/2*ALB)", COUNTRY_INFO!$U$9:$U$1000, " ") ->  | I84: 0 | M84: 0 | Q84: 0 | R84: 0 | S84: 0 | T84: 0 | U84: 0
A85: =IF(COUNTRY_INFO!A85=0," ",COUNTRY_INFO!A85) -> Cameroon | B85: =IF(COUNTRY_INFO!B85=0," ",COUNTRY_INFO!B85) -> FAR-NORTH | C85: =IF(COUNTRY_INFO!C85=0," ",COUNTRY_INFO!C85) -> MOULVOUDAYE | D85: =IF(COUNTRY_INFO!$U$9:$U$1000="MDA4 (ALB/2*ALB)", COUNTRY_INFO!$U$9:$U$1000, " ") ->  | I85: 0 | M85: 0 | Q85: 0 | R85: 0 | S85: 0 | T85: 0 | U85: 0
A86: =IF(COUNTRY_INFO!A86=0," ",COUNTRY_INFO!A86) -> Cameroon | B86: =IF(COUNTRY_INFO!B86=0," ",COUNTRY_INFO!B86) -> FAR-NORTH | C86: =IF(COUNTRY_INFO!C86=0," ",COUNTRY_INFO!C86) -> MOUTOURWA | D86: =IF(COUNTRY_INFO!$U$9:$U$1000="MDA4 (ALB/2*ALB)", COUNTRY_INFO!$U$9:$U$1000, " ") ->  | I86: 0 | M86: 0 | Q86: 0 | R86: 0 | S86: 0 | T86: 0 | U86: 0
A87: =IF(COUNTRY_INFO!A87=0," ",COUNTRY_INFO!A87) -> Cameroon | B87: =IF(COUNTRY_INFO!B87=0," ",COUNTRY_INFO!B87) -> FAR-NORTH | C87: =IF(COUNTRY_INFO!C87=0," ",COUNTRY_INFO!C87) -> PETTE | D87: =IF(COUNTRY_INFO!$U$9:$U$1000="MDA4 (ALB/2*ALB)", COUNTRY_INFO!$U$9:$U$1000, " ") ->  | I87: 0 | M87: 0 | Q87: 0 | R87: 0 | S87: 0 | T87: 0 | U87: 0
A88: =IF(COUNTRY_INFO!A88=0," ",COUNTRY_INFO!A88) -> Cameroon | B88: =IF(COUNTRY_INFO!B88=0," ",COUNTRY_INFO!B88) -> FAR-NORTH | C88: =IF(COUNTRY_INFO!C88=0," ",COUNTRY_INFO!C88) -> ROUA | D88: =IF(COUNTRY_INFO!$U$9:$U$1000="MDA4 (ALB/2*ALB)", COUNTRY_INFO!$U$9:$U$1000, " ") ->  | I88: 0 | M88: 0 | Q88: 0 | R88: 0 | S88: 0 | T88: 0 | U88: 0
A89: =IF(COUNTRY_INFO!A89=0," ",COUNTRY_INFO!A89) -> Cameroon | B89: =IF(COUNTRY_INFO!B89=0," ",COUNTRY_INFO!B89) -> FAR-NORTH | C89: =IF(COUNTRY_INFO!C89=0," ",COUNTRY_INFO!C89) -> TOKOMBERE | D89: =IF(COUNTRY_INFO!$U$9:$U$1000="MDA4 (ALB/2*ALB)", COUNTRY_INFO!$U$9:$U$1000, " ") ->  | I89: 0 | M89: 0 | Q89: 0 | R89: 0 | S89: 0 | T89: 0 | U89: 0
A90: =IF(COUNTRY_INFO!A90=0," ",COUNTRY_INFO!A90) -> Cameroon | B90: =IF(COUNTRY_INFO!B90=0," ",COUNTRY_INFO!B90) -> FAR-NORTH | C90: =IF(COUNTRY_INFO!C90=0," ",COUNTRY_INFO!C90) -> VELE | D90: =IF(COUNTRY_INFO!$U$9:$U$1000="MDA4 (ALB/2*ALB)", COUNTRY_INFO!$U$9:$U$1000, " ") ->  | I90: 0 | M90: 0 | Q90: 0 | R90: 0 | S90: 0 | T90: 0 | U90: 0
A91: =IF(COUNTRY_INFO!A91=0," ",COUNTRY_INFO!A91) -> Cameroon | B91: =IF(COUNTRY_INFO!B91=0," ",COUNTRY_INFO!B91) -> FAR-NORTH | C91: =IF(COUNTRY_INFO!C91=0," ",COUNTRY_INFO!C91) -> YAGOUA | D91: =IF(COUNTRY_INFO!$U$9:$U$1000="MDA4 (ALB/2*ALB)", COUNTRY_INFO!$U$9:$U$1000, " ") ->  | I91: 0 | M91: 0 | Q91: 0 | R91: 0 | S91: 0 | T91: 0 | U91: 0
A92: =IF(COUNTRY_INFO!A92=0," ",COUNTRY_INFO!A92) -> Cameroon | B92: =IF(COUNTRY_INFO!B92=0," ",COUNTRY_INFO!B92) -> LITTORAL | C92: =IF(COUNTRY_INFO!C92=0," ",COUNTRY_INFO!C92) -> ABO | D92: =IF(COUNTRY_INFO!$U$9:$U$1000="MDA4 (ALB/2*ALB)", COUNTRY_INFO!$U$9:$U$1000, " ") ->  | I92: 0 | M92: 0 | Q92: 0 | R92: 0 | S92: 0 | T92: 0 | U92: 0
A93: =IF(COUNTRY_INFO!A93=0," ",COUNTRY_INFO!A93) -> Cameroon | B93: =IF(COUNTRY_INFO!B93=0," ",COUNTRY_INFO!B93) -> LITTORAL | C93: =IF(COUNTRY_INFO!C93=0," ",COUNTRY_INFO!C93) -> BANGUE | D93: =IF(COUNTRY_INFO!$U$9:$U$1000="MDA4 (ALB/2*ALB)", COUNTRY_INFO!$U$9:$U$1000, " ") ->  | I93: 0 | M93: 0 | Q93: 0 | R93: 0 | S93: 0 | T93: 0 | U93: 0
A94: =IF(COUNTRY_INFO!A94=0," ",COUNTRY_INFO!A94) -> Cameroon | B94: =IF(COUNTRY_INFO!B94=0," ",COUNTRY_INFO!B94) -> LITTORAL | C94: =IF(COUNTRY_INFO!C94=0," ",COUNTRY_INFO!C94) -> BOKO | D94: =IF(COUNTRY_INFO!$U$9:$U$1000="MDA4 (ALB/2*ALB)", COUNTRY_INFO!$U$9:$U$1000, " ") ->  | I94: 0 | M94: 0 | Q94: 0 | R94: 0 | S94: 0 | T94: 0 | U94: 0
A95: =IF(COUNTRY_INFO!A95=0," ",COUNTRY_INFO!A95) -> Cameroon | B95: =IF(COUNTRY_INFO!B95=0," ",COUNTRY_INFO!B95) -> LITTORAL | C95: =IF(COUNTRY_INFO!C95=0," ",COUNTRY_INFO!C95) -> BONASSAMA | D95: =IF(COUNTRY_INFO!$U$9:$U$1000="MDA4 (ALB/2*ALB)", COUNTRY_INFO!$U$9:$U$1000, " ") ->  | I95: 0 | M95: 0 | Q95: 0 | R95: 0 | S95: 0 | T95: 0 | U95: 0
A96: =IF(COUNTRY_INFO!A96=0," ",COUNTRY_INFO!A96) -> Cameroon | B96: =IF(COUNTRY_INFO!B96=0," ",COUNTRY_INFO!B96) -> LITTORAL | C96: =IF(COUNTRY_INFO!C96=0," ",COUNTRY_INFO!C96) -> CITE PALMIERS | D96: =IF(COUNTRY_INFO!$U$9:$U$1000="MDA4 (ALB/2*ALB)", COUNTRY_INFO!$U$9:$U$1000, " ") ->  | I96: 0 | M96: 0 | Q96: 0 | R96: 0 | S96: 0 | T96: 0 | U96: 0
A97: =IF(COUNTRY_INFO!A97=0," ",COUNTRY_INFO!A97) -> Cameroon | B97: =IF(COUNTRY_INFO!B97=0," ",COUNTRY_INFO!B97) -> LITTORAL | C97: =IF(COUNTRY_INFO!C97=0," ",COUNTRY_INFO!C97) -> DEIDO | D97: =IF(COUNTRY_INFO!$U$9:$U$1000="MDA4 (ALB/2*ALB)", COUNTRY_INFO!$U$9:$U$1000, " ") ->  | I97: 0 | M97: 0 | Q97: 0 | R97: 0 | S97: 0 | T97: 0 | U97: 0
A98: =IF(COUNTRY_INFO!A98=0," ",COUNTRY_INFO!A98) -> Cameroon | B98: =IF(COUNTRY_INFO!B98=0," ",COUNTRY_INFO!B98) -> LITTORAL | C98: =IF(COUNTRY_INFO!C98=0," ",COUNTRY_INFO!C98) -> DIBOMBARI | D98: =IF(COUNTRY_INFO!$U$9:$U$1000="MDA4 (ALB/2*ALB)", COUNTRY_INFO!$U$9:$U$1000, " ") ->  | I98: 0 | M98: 0 | Q98: 0 | R98: 0 | S98: 0 | T98: 0 | U98: 0
A99: =IF(COUNTRY_INFO!A99=0," ",COUNTRY_INFO!A99) -> Cameroon | B99: =IF(COUNTRY_INFO!B99=0," ",COUNTRY_INFO!B99) -> LITTORAL | C99: =IF(COUNTRY_INFO!C99=0," ",COUNTRY_INFO!C99) -> EDEA | D99: =IF(COUNTRY_INFO!$U$9:$U$1000="MDA4 (ALB/2*ALB)", COUNTRY_INFO!$U$9:$U$1000, " ") ->  | I99: 0 | M99: 0 | Q99: 0 | R99: 0 | S99: 0 | T99: 0 | U99: 0
A100: =IF(COUNTRY_INFO!A100=0," ",COUNTRY_INFO!A100) -> Cameroon | B100: =IF(COUNTRY_INFO!B100=0," ",COUNTRY_INFO!B100) -> LITTORAL | C100: =IF(COUNTRY_INFO!C100=0," ",COUNTRY_INFO!C100) -> JAPOMA | D100: =IF(COUNTRY_INFO!$U$9:$U$1000="MDA4 (ALB/2*ALB)", COUNTRY_INFO!$U$9:$U$1000, " ") ->  | I100: 0 | M100: 0 | Q100: 0 | R100: 0 | S100: 0 | T100: 0 | U100: 0
A101: =IF(COUNTRY_INFO!A101=0," ",COUNTRY_INFO!A101) -> Cameroon | B101: =IF(COUNTRY_INFO!B101=0," ",COUNTRY_INFO!B101) -> LITTORAL | C101: =IF(COUNTRY_INFO!C101=0," ",COUNTRY_INFO!C101) -> LOGBABA | D101: =IF(COUNTRY_INFO!$U$9:$U$1000="MDA4 (ALB/2*ALB)", COUNTRY_INFO!$U$9:$U$1000, " ") ->  | I101: 0 | M101: 0 | Q101: 0 | R101: 0 | S101: 0 | T101: 0 | U101: 0
A102: =IF(COUNTRY_INFO!A102=0," ",COUNTRY_INFO!A102) -> Cameroon | B102: =IF(COUNTRY_INFO!B102=0," ",COUNTRY_INFO!B102) -> LITTORAL | C102: =IF(COUNTRY_INFO!C102=0," ",COUNTRY_INFO!C102) -> LOUM | D102: =IF(COUNTRY_INFO!$U$9:$U$1000="MDA4 (ALB/2*ALB)", COUNTRY_INFO!$U$9:$U$1000, " ") ->  | I102: 0 | M102: 0 | Q102: 0 | R102: 0 | S102: 0 | T102: 0 | U102: 0
A103: =IF(COUNTRY_INFO!A103=0," ",COUNTRY_INFO!A103) -> Cameroon | B103: =IF(COUNTRY_INFO!B103=0," ",COUNTRY_INFO!B103) -> LITTORAL | C103: =IF(COUNTRY_INFO!C103=0," ",COUNTRY_INFO!C103) -> MANJO | D103: =IF(COUNTRY_INFO!$U$9:$U$1000="MDA4 (ALB/2*ALB)", COUNTRY_INFO!$U$9:$U$1000, " ") ->  | I103: 0 | M103: 0 | Q103: 0 | R103: 0 | S103: 0 | T103: 0 | U103: 0
A104: =IF(COUNTRY_INFO!A104=0," ",COUNTRY_INFO!A104) -> Cameroon | B104: =IF(COUNTRY_INFO!B104=0," ",COUNTRY_INFO!B104) -> LITTORAL | C104: =IF(COUNTRY_INFO!C104=0," ",COUNTRY_INFO!C104) -> MANOKA | D104: =IF(COUNTRY_INFO!$U$9:$U$1000="MDA4 (ALB/2*ALB)", COUNTRY_INFO!$U$9:$U$1000, " ") ->  | I104: 0 | M104: 0 | Q104: 0 | R104: 0 | S104: 0 | T104: 0 | U104: 0
A105: =IF(COUNTRY_INFO!A105=0," ",COUNTRY_INFO!A105) -> Cameroon | B105: =IF(COUNTRY_INFO!B105=0," ",COUNTRY_INFO!B105) -> LITTORAL | C105: =IF(COUNTRY_INFO!C105=0," ",COUNTRY_INFO!C105) -> MBANGA | D105: =IF(COUNTRY_INFO!$U$9:$U$1000="MDA4 (ALB/2*ALB)", COUNTRY_INFO!$U$9:$U$1000, " ") ->  | I105: 0 | M105: 0 | Q105: 0 | R105: =MAX(J105,N105) -> 0 | S105: =MAX(K105,O105) -> 0 | T105: =MAX(L105,P105) -> 0 | U105: =SUM(R105:T105) -> 0 | V105: =IF(F105<>0, IF(R105/F105*100=0, "-",R105/F105*100), " ") ->  | W105: =IF(G105<>0, IF(S105/G105*100=0, "-", S105/G105*100), " ") ->  | X105: =IF(H105<>0, IF(T105/H105*100=0, "-", T105/H105*100), " ") ->  | Y105: =IF(I105<>0, IF(U105/I105*100=0, "-", U105/I105*100), " ") -> 
A106: =IF(COUNTRY_INFO!A106=0," ",COUNTRY_INFO!A106) -> Cameroon | B106: =IF(COUNTRY_INFO!B106=0," ",COUNTRY_INFO!B106) -> LITTORAL | C106: =IF(COUNTRY_INFO!C106=0," ",COUNTRY_INFO!C106) -> MELONG | D106: =IF(COUNTRY_INFO!$U$9:$U$1000="MDA4 (ALB/2*ALB)", COUNTRY_INFO!$U$9:$U$1000, " ") ->  | I106: 0 | M106: 0 | Q106: 0 | R106: 0 | S106: 0 | T106: 0 | U106: 0
A107: =IF(COUNTRY_INFO!A107=0," ",COUNTRY_INFO!A107) -> Cameroon | B107: =IF(COUNTRY_INFO!B107=0," ",COUNTRY_INFO!B107) -> LITTORAL | C107: =IF(COUNTRY_INFO!C107=0," ",COUNTRY_INFO!C107) -> NDOM | D107: =IF(COUNTRY_INFO!$U$9:$U$1000="MDA4 (ALB/2*ALB)", COUNTRY_INFO!$U$9:$U$1000, " ") ->  | I107: 0 | M107: 0 | Q107: 0 | R107: 0 | S107: 0 | T107: 0 | U107: 0
A108: =IF(COUNTRY_INFO!A108=0," ",COUNTRY_INFO!A108) -> Cameroon | B108: =IF(COUNTRY_INFO!B108=0," ",COUNTRY_INFO!B108) -> LITTORAL | C108: =IF(COUNTRY_INFO!C108=0," ",COUNTRY_INFO!C108) -> NEW BELL | D108: =IF(COUNTRY_INFO!$U$9:$U$1000="MDA4 (ALB/2*ALB)", COUNTRY_INFO!$U$9:$U$1000, " ") ->  | I108: 0 | M108: 0 | Q108: 0 | R108: 0 | S108: 0 | T108: 0 | U108: 0
A109: =IF(COUNTRY_INFO!A109=0," ",COUNTRY_INFO!A109) -> Cameroon | B109: =IF(COUNTRY_INFO!B109=0," ",COUNTRY_INFO!B109) -> LITTORAL | C109: =IF(COUNTRY_INFO!C109=0," ",COUNTRY_INFO!C109) -> NGAMBE | D109: =IF(COUNTRY_INFO!$U$9:$U$1000="MDA4 (ALB/2*ALB)", COUNTRY_INFO!$U$9:$U$1000, " ") ->  | I109: 0 | M109: 0 | Q109: 0 | R109: 0 | S109: 0 | T109: 0 | U109: 0
A110: =IF(COUNTRY_INFO!A110=0," ",COUNTRY_INFO!A110) -> Cameroon | B110: =IF(COUNTRY_INFO!B110=0," ",COUNTRY_INFO!B110) -> LITTORAL | C110: =IF(COUNTRY_INFO!C110=0," ",COUNTRY_INFO!C110) -> NJOMBE PENJA | D110: =IF(COUNTRY_INFO!$U$9:$U$1000="MDA4 (ALB/2*ALB)", COUNTRY_INFO!$U$9:$U$1000, " ") ->  | I110: 0 | M110: 0 | Q110: 0 | R110: 0 | S110: 0 | T110: 0 | U110: 0
A111: =IF(COUNTRY_INFO!A111=0," ",COUNTRY_INFO!A111) -> Cameroon | B111: =IF(COUNTRY_INFO!B111=0," ",COUNTRY_INFO!B111) -> LITTORAL | C111: =IF(COUNTRY_INFO!C111=0," ",COUNTRY_INFO!C111) -> NKONDJOCK | D111: =IF(COUNTRY_INFO!$U$9:$U$1000="MDA4 (ALB/2*ALB)", COUNTRY_INFO!$U$9:$U$1000, " ") ->  | I111: 0 | M111: 0 | Q111: 0 | R111: 0 | S111: 0 | T111: 0 | U111: 0
A112: =IF(COUNTRY_INFO!A112=0," ",COUNTRY_INFO!A112) -> Cameroon | B112: =IF(COUNTRY_INFO!B112=0," ",COUNTRY_INFO!B112) -> LITTORAL | C112: =IF(COUNTRY_INFO!C112=0," ",COUNTRY_INFO!C112) -> NKONGSAMBA | D112: =IF(COUNTRY_INFO!$U$9:$U$1000="MDA4 (ALB/2*ALB)", COUNTRY_INFO!$U$9:$U$1000, " ") ->  | I112: 0 | M112: 0 | Q112: 0 | R112: 0 | S112: 0 | T112: 0 | U112: 0
A113: =IF(COUNTRY_INFO!A113=0," ",COUNTRY_INFO!A113) -> Cameroon | B113: =IF(COUNTRY_INFO!B113=0," ",COUNTRY_INFO!B113) -> LITTORAL | C113: =IF(COUNTRY_INFO!C113=0," ",COUNTRY_INFO!C113) -> NYLON | D113: =IF(COUNTRY_INFO!$U$9:$U$1000="MDA4 (ALB/2*ALB)", COUNTRY_INFO!$U$9:$U$1000, " ") ->  | I113: 0 | M113: 0 | Q113: 0 | R113: 0 | S113: 0 | T113: 0 | U113: 0
A114: =IF(COUNTRY_INFO!A114=0," ",COUNTRY_INFO!A114) -> Cameroon | B114: =IF(COUNTRY_INFO!B114=0," ",COUNTRY_INFO!B114) -> LITTORAL | C114: =IF(COUNTRY_INFO!C114=0," ",COUNTRY_INFO!C114) -> POUMA | D114: =IF(COUNTRY_INFO!$U$9:$U$1000="MDA4 (ALB/2*ALB)", COUNTRY_INFO!$U$9:$U$1000, " ") ->  | I114: 0 | M114: 0 | Q114: 0 | R114: 0 | S114: 0 | T114: 0 | U114: 0
A115: =IF(COUNTRY_INFO!A115=0," ",COUNTRY_INFO!A115) -> Cameroon | B115: =IF(COUNTRY_INFO!B115=0," ",COUNTRY_INFO!B115) -> LITTORAL | C115: =IF(COUNTRY_INFO!C115=0," ",COUNTRY_INFO!C115) -> YABASSI | D115: =IF(COUNTRY_INFO!$U$9:$U$1000="MDA4 (ALB/2*ALB)", COUNTRY_INFO!$U$9:$U$1000, " ") ->  | I115: 0 | M115: 0 | Q115: 0 | R115: 0 | S115: 0 | T115: 0 | U115: 0
A116: =IF(COUNTRY_INFO!A116=0," ",COUNTRY_INFO!A116) -> Cameroon | B116: =IF(COUNTRY_INFO!B116=0," ",COUNTRY_INFO!B116) -> NORTH | C116: =IF(COUNTRY_INFO!C116=0," ",COUNTRY_INFO!C116) -> BIBEMI | D116: =IF(COUNTRY_INFO!$U$9:$U$1000="MDA4 (ALB/2*ALB)", COUNTRY_INFO!$U$9:$U$1000, " ") ->  | I116: 0 | M116: 0 | Q116: 0 | R116: 0 | S116: 0 | T116: 0 | U116: 0
A117: =IF(COUNTRY_INFO!A117=0," ",COUNTRY_INFO!A117) -> Cameroon | B117: =IF(COUNTRY_INFO!B117=0," ",COUNTRY_INFO!B117) -> NORTH | C117: =IF(COUNTRY_INFO!C117=0," ",COUNTRY_INFO!C117) -> FIGUIL | D117: =IF(COUNTRY_INFO!$U$9:$U$1000="MDA4 (ALB/2*ALB)", COUNTRY_INFO!$U$9:$U$1000, " ") ->  | I117: 0 | M117: 0 | Q117: 0 | R117: 0 | S117: 0 | T117: 0 | U117: 0
A118: =IF(COUNTRY_INFO!A118=0," ",COUNTRY_INFO!A118) -> Cameroon | B118: =IF(COUNTRY_INFO!B118=0," ",COUNTRY_INFO!B118) -> NORTH | C118: =IF(COUNTRY_INFO!C118=0," ",COUNTRY_INFO!C118) -> GAROUA I | D118: =IF(COUNTRY_INFO!$U$9:$U$1000="MDA4 (ALB/2*ALB)", COUNTRY_INFO!$U$9:$U$1000, " ") ->  | I118: 0 | M118: 0 | Q118: 0 | R118: 0 | S118: 0 | T118: 0 | U118: 0
A119: =IF(COUNTRY_INFO!A119=0," ",COUNTRY_INFO!A119) -> Cameroon | B119: =IF(COUNTRY_INFO!B119=0," ",COUNTRY_INFO!B119) -> NORTH | C119: =IF(COUNTRY_INFO!C119=0," ",COUNTRY_INFO!C119) -> GAROUA II | D119: =IF(COUNTRY_INFO!$U$9:$U$1000="MDA4 (ALB/2*ALB)", COUNTRY_INFO!$U$9:$U$1000, " ") ->  | I119: 0 | M119: 0 | Q119: 0 | R119: 0 | S119: 0 | T119: 0 | U119: 0
A120: =IF(COUNTRY_INFO!A120=0," ",COUNTRY_INFO!A120) -> Cameroon | B120: =IF(COUNTRY_INFO!B120=0," ",COUNTRY_INFO!B120) -> NORTH | C120: =IF(COUNTRY_INFO!C120=0," ",COUNTRY_INFO!C120) -> GASCHIGA | D120: =IF(COUNTRY_INFO!$U$9:$U$1000="MDA4 (ALB/2*ALB)", COUNTRY_INFO!$U$9:$U$1000, " ") ->  | I120: 0 | M120: 0 | Q120: 0 | R120: 0 | S120: 0 | T120: 0 | U120: 0
A121: =IF(COUNTRY_INFO!A121=0," ",COUNTRY_INFO!A121) -> Cameroon | B121: =IF(COUNTRY_INFO!B121=0," ",COUNTRY_INFO!B121) -> NORTH | C121: =IF(COUNTRY_INFO!C121=0," ",COUNTRY_INFO!C121) -> GOLOMBE | D121: =IF(COUNTRY_INFO!$U$9:$U$1000="MDA4 (ALB/2*ALB)", COUNTRY_INFO!$U$9:$U$1000, " ") ->  | I121: 0 | M121: 0 | Q121: 0 | R121: 0 | S121: 0 | T121: 0 | U121: 0
A122: =IF(COUNTRY_INFO!A122=0," ",COUNTRY_INFO!A122) -> Cameroon | B122: =IF(COUNTRY_INFO!B122=0," ",COUNTRY_INFO!B122) -> NORTH | C122: =IF(COUNTRY_INFO!C122=0," ",COUNTRY_INFO!C122) -> GUIDER | D122: =IF(COUNTRY_INFO!$U$9:$U$1000="MDA4 (ALB/2*ALB)", COUNTRY_INFO!$U$9:$U$1000, " ") ->  | I122: 0 | M122: 0 | Q122: 0 | R122: 0 | S122: 0 | T122: 0 | U122: 0
A123: =IF(COUNTRY_INFO!A123=0," ",COUNTRY_INFO!A123) -> Cameroon | B123: =IF(COUNTRY_INFO!B123=0," ",COUNTRY_INFO!B123) -> NORTH | C123: =IF(COUNTRY_INFO!C123=0," ",COUNTRY_INFO!C123) -> LAGDO | D123: =IF(COUNTRY_INFO!$U$9:$U$1000="MDA4 (ALB/2*ALB)", COUNTRY_INFO!$U$9:$U$1000, " ") ->  | I123: 0 | M123: 0 | Q123: 0 | R123: 0 | S123: 0 | T123: 0 | U123: 0
A124: =IF(COUNTRY_INFO!A124=0," ",COUNTRY_INFO!A124) -> Cameroon | B124: =IF(COUNTRY_INFO!B124=0," ",COUNTRY_INFO!B124) -> NORTH | C124: =IF(COUNTRY_INFO!C124=0," ",COUNTRY_INFO!C124) -> MAYO OULO | D124: =IF(COUNTRY_INFO!$U$9:$U$1000="MDA4 (ALB/2*ALB)", COUNTRY_INFO!$U$9:$U$1000, " ") ->  | I124: 0 | M124: 0 | Q124: 0 | R124: 0 | S124: 0 | T124: 0 | U124: 0
A125: =IF(COUNTRY_INFO!A125=0," ",COUNTRY_INFO!A125) -> Cameroon | B125: =IF(COUNTRY_INFO!B125=0," ",COUNTRY_INFO!B125) -> NORTH | C125: =IF(COUNTRY_INFO!C125=0," ",COUNTRY_INFO!C125) -> NGONG | D125: =IF(COUNTRY_INFO!$U$9:$U$1000="MDA4 (ALB/2*ALB)", COUNTRY_INFO!$U$9:$U$1000, " ") ->  | I125: 0 | M125: 0 | Q125: 0 | R125: 0 | S125: 0 | T125: 0 | U125: 0
A126: =IF(COUNTRY_INFO!A126=0," ",COUNTRY_INFO!A126) -> Cameroon | B126: =IF(COUNTRY_INFO!B126=0," ",COUNTRY_INFO!B126) -> NORTH | C126: =IF(COUNTRY_INFO!C126=0," ",COUNTRY_INFO!C126) -> PITOA | D126: =IF(COUNTRY_INFO!$U$9:$U$1000="MDA4 (ALB/2*ALB)", COUNTRY_INFO!$U$9:$U$1000, " ") ->  | I126: 0 | M126: 0 | Q126: 0 | R126: 0 | S126: 0 | T126: 0 | U126: 0
A127: =IF(COUNTRY_INFO!A127=0," ",COUNTRY_INFO!A127) -> Cameroon | B127: =IF(COUNTRY_INFO!B127=0," ",COUNTRY_INFO!B127) -> NORTH | C127: =IF(COUNTRY_INFO!C127=0," ",COUNTRY_INFO!C127) -> POLI | D127: =IF(COUNTRY_INFO!$U$9:$U$1000="MDA4 (ALB/2*ALB)", COUNTRY_INFO!$U$9:$U$1000, " ") ->  | I127: 0 | M127: 0 | Q127: 0 | R127: 0 | S127: 0 | T127: 0 | U127: 0
A128: =IF(COUNTRY_INFO!A128=0," ",COUNTRY_INFO!A128) -> Cameroon | B128: =IF(COUNTRY_INFO!B128=0," ",COUNTRY_INFO!B128) -> NORTH | C128: =IF(COUNTRY_INFO!C128=0," ",COUNTRY_INFO!C128) -> REY BOUBA | D128: =IF(COUNTRY_INFO!$U$9:$U$1000="MDA4 (ALB/2*ALB)", COUNTRY_INFO!$U$9:$U$1000, " ") ->  | I128: 0 | M128: 0 | Q128: 0 | R128: 0 | S128: 0 | T128: 0 | U128: 0
